Workbook

Sheet Rawdata
A1: 0.5644320201 | B1: 0.6992023753 | C1: 0.8987056756 | D1: 0.931222406 | E1: 0.9741524345 | F1: 0.1195518299 | G1: 0.5956158055 | H1: 0.5934852786 | I1: 0.8618738526 | J1: 0.9386167355 | K1: 0.5780951894 | L1: 0.9641547701 | M1: 0.6792376247 | N1: 0.2236537811 | O1: 0.873563424 | P1: 0.6361732782 | Q1: 0.9008749425 | R1: 0.7279345615 | S1: 0.02989481264 | T1: 0.804456094 | U1: 0.3205764211 | V1: 0.7966991742 | W1: 0.5463855787 | X1: 0.4922084045 | Y1: 0.8926001859 | Z1: 0.1746805768 | AA1: 0.5774951422 | AB1: 0.2855456344 | AC1: 0.1632045961 | AD1: 0.5013958323 | AE1: 0.6073980245 | AF1: 0.8760227639 | AG1: 0.4511492754 | AH1: 0.8414167868 | AI1: 0.1743272403 | AJ1: 0.394142017 | AK1: 0.9268380874 | AL1: 0.3122270777 | AM1: 0.296333012 | AN1: 0.4076585721 | AO1: 0.4761229862 | AP1: 0.4321439193 | AQ1: 0.1213605581 | AR1: 0.7094875194 | AS1: 0.6710864307 | AT1: 0.1493936036 | AU1: 0.8013489369 | AV1: 0.0710818563 | AW1: 0.2627082427 | AX1: 0.3915789048 | AY1: 0.04578189397 | AZ1: 0.1468723379 | BA1: 0.3231860382 | BB1: 0.9736701108 | BC1: 0.62222826 | BD1: 0.7577246818 | BE1: 0.4223974096 | BF1: 0.7877006752 | BG1: 0.676058126 | BH1: 0.5546107682 | BI1: 0.04710371778 | BJ1: 0.9700068435 | BK1: 0.1700789734 | BL1: 0.2497648275 | BM1: 0.5892782696 | BN1: 0.1358356793 | BO1: 0.05560271358 | BP1: 0.7298881092 | BQ1: 0.9562876612 | BR1: 0.3503994622 | BS1: 0.8712436589 | BT1: 0.8327372198 | BU1: 0.9311322083 | BV1: 0.2468305226 | BW1: 0.5963706107 | BX1: 0.7145092059 | BY1: 0.06207362368 | BZ1: 0.9565356927 | CA1: 0.3329808353 | CB1: 0.1240788158 | CC1: 0.9705173716 | CD1: 0.3851458607 | CE1: 0.9799658404 | CF1: 0.1509326393 | CG1: 0.05699001441 | CH1: 0.2150256738 | CI1: 0.6608102463 | CJ1: 0.8650760288 | CK1: 0.8528023577 | CL1: 0.08666974496 | CM1: 0.2339010307 | CN1: 0.9674186292 | CO1: 0.3196151027 | CP1: 0.8241631938 | CQ1: 0.6050745319 | CR1: 0.9285325925 | CS1: 0.2213355717 | CT1: 0.9759807079 | CU1: 0.6662506423 | CV1: 0.61098209 | CX1: Count | DA1: Expected | DC1: Check
A2: 0.3672780921 | B2: 0.6301032671 | C2: 0.2883583743 | D2: 0.6931257701 | E2: 0.8790762922 | F2: 0.8743472196 | G2: 0.3835575278 | H2: 0.927001069 | I2: 0.256837351 | J2: 0.5635015452 | K2: 0.7324701503 | L2: 0.04737237372 | M2: 0.1054511922 | N2: 0.6716381225 | O2: 0.3116014928 | P2: 0.2500915729 | Q2: 0.2682154897 | R2: 0.7192347568 | S2: 0.9714335363 | T2: 0.9902951293 | U2: 0.5626877267 | V2: 0.2928155639 | W2: 0.3984473202 | X2: 0.2678540567 | Y2: 0.133215514 | Z2: 0.7573074693 | AA2: 0.5431287188 | AB2: 0.542625052 | AC2: 0.3507111646 | AD2: 0.8112877253 | AE2: 0.4383680514 | AF2: 0.8333561952 | AG2: 0.6542375968 | AH2: 0.2675082367 | AI2: 0.3681599602 | AJ2: 0.3598855007 | AK2: 0.6176461457 | AL2: 0.9715269102 | AM2: 0.7718033541 | AN2: 0.8454087593 | AO2: 0.5457771051 | AP2: 0.5725997199 | AQ2: 0.3043608442 | AR2: 0.643995938 | AS2: 0.9034977501 | AT2: 0.8968733995 | AU2: 0.09249047147 | AV2: 0.5676751661 | AW2: 0.8865452394 | AX2: 0.6461783957 | AY2: 0.5814871964 | AZ2: 0.3634302014 | BA2: 0.9965904991 | BB2: 0.3490781236 | BC2: 0.7563232121 | BD2: 0.3948645487 | BE2: 0.71725993 | BF2: 0.5483527429 | BG2: 0.3730515995 | BH2: 0.6265501765 | BI2: 0.2610023867 | BJ2: 0.5499586978 | BK2: 0.02542813981 | BL2: 0.07297462965 | BM2: 0.8449965263 | BN2: 0.8855372006 | BO2: 0.06601577667 | BP2: 0.8824572192 | BQ2: 0.1771678941 | BR2: 0.3120350947 | BS2: 0.3612886645 | BT2: 0.01553317342 | BU2: 0.0714761319 | BV2: 0.1235365201 | BW2: 0.005494087469 | BX2: 0.2022262332 | BY2: 0.3106195193 | BZ2: 0.2649601992 | CA2: 0.09173132246 | CB2: 0.9498655625 | CC2: 0.1687278261 | CD2: 0.1368813227 | CE2: 0.5143604502 | CF2: 0.9954736247 | CG2: 0.09641078919 | CH2: 0.361545859 | CI2: 0.3903533132 | CJ2: 0.3177343132 | CK2: 0.1820108599 | CL2: 0.7175798908 | CM2: 0.6128477943 | CN2: 0.9225572847 | CO2: 0.4202041219 | CP2: 0.09774406282 | CQ2: 0.6660275024 | CR2: 0.9553470577 | CS2: 0.1079284413 | CT2: 0.2488882955 | CU2: 0.7724159573 | CV2: 0.2289878548 | CX2: Total | CY2: =COUNT(A1:CV100) -> 10000 | DA2: 10000 | DC2: =IF(CY2=DA2,"OK","CHECKDATA") -> OK
A3: 0.8224902229 | B3: 0.1792538783 | C3: 0.940623401 | D3: 0.9652893036 | E3: 0.9468055871 | F3: 0.6522346141 | G3: 0.7819462071 | H3: 0.04963559196 | I3: 0.291631707 | J3: 0.1394440315 | K3: 0.9072522538 | L3: 0.8690549425 | M3: 0.265557623 | N3: 0.6799141136 | O3: 0.005088333267 | P3: 0.273410141 | Q3: 0.9728586793 | R3: 0.3832601042 | S3: 0.7862079341 | T3: 0.0552774177 | U3: 0.04149887512 | V3: 0.06509004858 | W3: 0.2888632036 | X3: 0.3741857059 | Y3: 0.08089619993 | Z3: 0.3295959282 | AA3: 0.6808398298 | AB3: 0.06630238997 | AC3: 0.24179613 | AD3: 0.2951574672 | AE3: 0.242639341 | AF3: 0.9540976614 | AG3: 0.8450727238 | AH3: 0.04591427428 | AI3: 0.2131577307 | AJ3: 0.492374533 | AK3: 0.3670687781 | AL3: 0.328502524 | AM3: 0.9035503651 | AN3: 0.2634723173 | AO3: 0.1760360864 | AP3: 0.1026213966 | AQ3: 0.2827956859 | AR3: 0.6215282022 | AS3: 0.2260797702 | AT3: 0.5461731935 | AU3: 0.9809925551 | AV3: 0.4676820989 | AW3: 0.5947714672 | AX3: 0.7973328238 | AY3: 0.9780296574 | AZ3: 0.1538668374 | BA3: 0.00488278375 | BB3: 0.2837380219 | BC3: 0.9631609459 | BD3: 0.3856822382 | BE3: 0.5971628207 | BF3: 0.08556574093 | BG3: 0.6230590583 | BH3: 0.6128746256 | BI3: 0.6509351027 | BJ3: 0.8129283375 | BK3: 0.5573443939 | BL3: 0.5796145967 | BM3: 0.6184716006 | BN3: 0.2241096667 | BO3: 0.1954848374 | BP3: 0.5384947587 | BQ3: 0.2139297429 | BR3: 0.2282428303 | BS3: 0.9440107417 | BT3: 0.6573057215 | BU3: 0.09685088331 | BV3: 0.2216519935 | BW3: 0.6578286592 | BX3: 0.9318243427 | BY3: 0.2925304522 | BZ3: 0.2162931549 | CA3: 0.4689125607 | CB3: 0.82494769 | CC3: 0.7918835491 | CD3: 0.5258346329 | CE3: 0.2568463992 | CF3: 0.7078917637 | CG3: 0.2707748697 | CH3: 0.1719882359 | CI3: 0.7567995393 | CJ3: 0.1868323062 | CK3: 0.6120983703 | CL3: 0.5641177242 | CM3: 0.9466858508 | CN3: 0.5270957813 | CO3: 0.6756968557 | CP3: 0.6431438944 | CQ3: 0.4174481611 | CR3: 0.6583401003 | CS3: 0.06491466978 | CT3: 0.4769322067 | CU3: 0.9762180545 | CV3: 0.3746449665 | CX3: <0 | CY3: =COUNTIF(A1:CV100,"<0") -> 0 | DA3: 0 | DC3: =IF(CY3=DA3,"OK","CHECKDATA") -> OK
A4: 0.2605096411 | B4: 0.6903171005 | C4: 0.6951170205 | D4: 0.3235740826 | E4: 0.816985774 | F4: 0.807226028 | G4: 0.2594217038 | H4: 0.2212748799 | I4: 0.6633431352 | J4: 0.3024642545 | K4: 0.6327047058 | L4: 0.1549560796 | M4: 0.311498357 | N4: 0.171592795 | O4: 0.2142083246 | P4: 0.4746559283 | Q4: 0.01200145435 | R4: 0.3265919433 | S4: 0.9211755643 | T4: 0.005238936987 | U4: 0.530553643 | V4: 0.02643651875 | W4: 0.7867620361 | X4: 0.613824437 | Y4: 0.5093000017 | Z4: 0.2191819222 | AA4: 0.8375758394 | AB4: 0.7891969301 | AC4: 0.6299827844 | AD4: 0.5393643301 | AE4: 0.8764342698 | AF4: 0.3349100074 | AG4: 0.8352711071 | AH4: 0.4300760651 | AI4: 0.9129355052 | AJ4: 0.7103782704 | AK4: 0.4500031735 | AL4: 0.7496218865 | AM4: 0.8483752864 | AN4: 0.3317430205 | AO4: 0.6110686299 | AP4: 0.07988921237 | AQ4: 0.9556448723 | AR4: 0.2578079223 | AS4: 0.9726745181 | AT4: 0.5329886265 | AU4: 0.07309510192 | AV4: 0.210976373 | AW4: 0.2685335393 | AX4: 0.02407153291 | AY4: 0.5252705504 | AZ4: 0.3285405734 | BA4: 0.8413645566 | BB4: 0.4802014645 | BC4: 0.3628472552 | BD4: 0.2017986711 | BE4: 0.7516149922 | BF4: 0.8459471448 | BG4: 0.4901874214 | BH4: 0.1864287826 | BI4: 0.5034868652 | BJ4: 0.273593446 | BK4: 0.3233010365 | BL4: 0.4658388385 | BM4: 0.2637334208 | BN4: 0.761956372 | BO4: 0.7917631436 | BP4: 0.4756396156 | BQ4: 0.5217381086 | BR4: 0.1133923761 | BS4: 0.4810358899 | BT4: 0.3652836544 | BU4: 0.2996046184 | BV4: 0.04768660239 | BW4: 0.8227879417 | BX4: 0.8038134414 | BY4: 0.8539173898 | BZ4: 0.9393365054 | CA4: 0.140650895 | CB4: 0.5674832356 | CC4: 0.1900355151 | CD4: 0.7077517091 | CE4: 0.7623905739 | CF4: 0.9259612054 | CG4: 0.6827874344 | CH4: 0.6188192245 | CI4: 0.9561903158 | CJ4: 0.004479669085 | CK4: 0.1686817899 | CL4: 0.1675908522 | CM4: 0.5403633061 | CN4: 0.12198201 | CO4: 0.2712774265 | CP4: 0.6673089674 | CQ4: 0.779295143 | CR4: 0.3627607112 | CS4: 0.9367315214 | CT4: 0.110904505 | CU4: 0.08231167784 | CV4: 0.8897011842 | CX4: >1 | CY4: =COUNTIF(A1:CV100,">1") -> 0 | DA4: 0 | DC4: =IF(CY4=DA4,"OK","CHECKDATA") -> OK
A5: 0.8712260993 | B5: 0.746955586 | C5: 0.4390235235 | D5: 0.4486135319 | E5: 0.8593672175 | F5: 0.1980879744 | G5: 0.5271234993 | H5: 0.9684146519 | I5: 0.8561447679 | J5: 0.01402065691 | K5: 0.3864888622 | L5: 0.4690085729 | M5: 0.5385862594 | N5: 0.8263339696 | O5: 0.6597323561 | P5: 0.9488438808 | Q5: 0.05128367114 | R5: 0.4378578312 | S5: 0.3022681026 | T5: 0.3736073725 | U5: 0.5611866771 | V5: 0.8668971012 | W5: 0.03481611781 | X5: 0.6763439692 | Y5: 0.4124182792 | Z5: 0.05258167163 | AA5: 0.7460569173 | AB5: 0.9249128418 | AC5: 0.5508898217 | AD5: 0.613244519 | AE5: 0.8492803409 | AF5: 0.6145109124 | AG5: 0.195084437 | AH5: 0.153502065 | AI5: 0.05805246647 | AJ5: 0.2882209677 | AK5: 0.4390505934 | AL5: 0.9878971501 | AM5: 0.6590190866 | AN5: 0.9329256235 | AO5: 0.5320814777 | AP5: 0.1200485199 | AQ5: 0.6438638683 | AR5: 0.5652280098 | AS5: 0.03618838333 | AT5: 0.5232907848 | AU5: 0.99947944 | AV5: 0.9261468911 | AW5: 0.05055744285 | AX5: 0.4137529777 | AY5: 0.1522568727 | AZ5: 0.7685704857 | BA5: 0.9754115375 | BB5: 0.3557180603 | BC5: 0.4464312513 | BD5: 0.3748400562 | BE5: 0.2314077257 | BF5: 0.7224815744 | BG5: 0.2199658 | BH5: 0.2347091349 | BI5: 0.4598618173 | BJ5: 0.1295847558 | BK5: 0.7796047799 | BL5: 0.4620261343 | BM5: 0.350341566 | BN5: 0.153069305 | BO5: 0.5183001347 | BP5: 0.7082136241 | BQ5: 0.9612530936 | BR5: 0.9231187653 | BS5: 0.4817757883 | BT5: 0.8512264706 | BU5: 0.1777280855 | BV5: 0.7534030783 | BW5: 0.2908460594 | BX5: 0.945303162 | BY5: 0.2308283741 | BZ5: 0.03850269041 | CA5: 0.146447166 | CB5: 0.04422654248 | CC5: 0.6161986443 | CD5: 0.1473181884 | CE5: 0.5026114748 | CF5: 0.9483612527 | CG5: 0.09281636697 | CH5: 0.9807862332 | CI5: 0.2286938937 | CJ5: 0.9563147252 | CK5: 0.3875010416 | CL5: 0.5035018728 | CM5: 0.6225643773 | CN5: 0.3771346731 | CO5: 0.7624524692 | CP5: 0.2726310949 | CQ5: 0.8549366168 | CR5: 0.520519973 | CS5: 0.9955020797 | CT5: 0.1486595396 | CU5: 0.8973225109 | CV5: 0.7721712707 | DA5: Expected | DB5: Tolerance | DC5: Check
A6: 0.6246392529 | B6: 0.5204256923 | C6: 0.5400895071 | D6: 0.9650474601 | E6: 0.834211786 | F6: 0.9598604541 | G6: 0.7762109978 | H6: 0.5179494588 | I6: 0.08589294009 | J6: 0.1546877835 | K6: 0.4347500567 | L6: 0.2756302402 | M6: 0.01337772185 | N6: 0.4803025504 | O6: 0.9366598876 | P6: 0.05560638592 | Q6: 0.3555675544 | R6: 0.9209282513 | S6: 0.9758935565 | T6: 0.4207208771 | U6: 0.8019979496 | V6: 0.6542080449 | W6: 0.5136051242 | X6: 0.6130038653 | Y6: 0.6661726521 | Z6: 0.3517575819 | AA6: 0.1044094725 | AB6: 0.9715474847 | AC6: 0.2702916185 | AD6: 0.2249178056 | AE6: 0.3850652198 | AF6: 0.3581663409 | AG6: 0.2504685588 | AH6: 0.8858814403 | AI6: 0.1056671857 | AJ6: 0.04924349666 | AK6: 0.7530338653 | AL6: 0.2535949297 | AM6: 0.176071853 | AN6: 0.9530794496 | AO6: 0.454648452 | AP6: 0.561603861 | AQ6: 0.3306831055 | AR6: 0.6340391758 | AS6: 0.7763829476 | AT6: 0.536522804 | AU6: 0.8134186117 | AV6: 0.6161371765 | AW6: 0.6296790051 | AX6: 0.3350063686 | AY6: 0.8145866233 | AZ6: 0.02381166154 | BA6: 0.7073445634 | BB6: 0.9315903844 | BC6: 0.2715299846 | BD6: 0.3882716925 | BE6: 0.4709542008 | BF6: 0.1046061896 | BG6: 0.4339794589 | BH6: 0.300525453 | BI6: 0.7114622272 | BJ6: 0.1272468021 | BK6: 0.300510711 | BL6: 0.2873216863 | BM6: 0.3943703351 | BN6: 0.5969596784 | BO6: 0.4321356038 | BP6: 0.9922615527 | BQ6: 0.8758822664 | BR6: 0.5191455988 | BS6: 0.7995687883 | BT6: 0.4222249276 | BU6: 0.6420762305 | BV6: 0.8055786989 | BW6: 0.7656078307 | BX6: 0.07744484963 | BY6: 0.8604514593 | BZ6: 0.8492887507 | CA6: 0.4372991497 | CB6: 0.8400548661 | CC6: 0.6357980845 | CD6: 0.1683809755 | CE6: 0.6978302449 | CF6: 0.6466860927 | CG6: 0.6035039749 | CH6: 0.07935994342 | CI6: 0.2975109385 | CJ6: 0.4367028868 | CK6: 0.8993800075 | CL6: 0.4080042355 | CM6: 0.2470718239 | CN6: 0.1273598314 | CO6: 0.326254661 | CP6: 0.0592280768 | CQ6: 0.1518673389 | CR6: 0.06599133352 | CS6: 0.38116395 | CT6: 0.8654319562 | CU6: 0.8037687498 | CV6: 0.5550145504 | CX6: Mean | CY6: =AVERAGE(A1:CV100) -> 0.4983816316 | DA6: 0.5 | DB6: 0.01 | DC6: =IF(ABS(CY6-DA6)<DB6,"OK","CHECKDATA") -> OK
A7: 0.3809602857 | B7: 0.08944614331 | C7: 0.3150626721 | D7: 0.5529058348 | E7: 0.4278916588 | F7: 0.2474260506 | G7: 0.1760498389 | H7: 0.3401377623 | I7: 0.7306727674 | J7: 0.1800987275 | K7: 0.9504143213 | L7: 0.4846566123 | M7: 0.2342628348 | N7: 0.2766227963 | O7: 0.9239468233 | P7: 0.8696043077 | Q7: 0.002181662757 | R7: 0.2432833756 | S7: 0.3375559837 | T7: 0.08713512431 | U7: 0.1123694883 | V7: 0.2309739724 | W7: 0.9393323601 | X7: 0.4608915801 | Y7: 0.7933246967 | Z7: 0.3783341381 | AA7: 0.9965070032 | AB7: 0.5310600198 | AC7: 0.0285590405 | AD7: 0.1473719272 | AE7: 0.9433046506 | AF7: 0.7943947199 | AG7: 0.6076869424 | AH7: 0.1422491651 | AI7: 0.5120443487 | AJ7: 0.05500267495 | AK7: 0.8951035164 | AL7: 0.6379063079 | AM7: 0.006473395742 | AN7: 0.5195923981 | AO7: 0.8183256889 | AP7: 0.5405737006 | AQ7: 0.3825313374 | AR7: 0.3764110655 | AS7: 0.5313720011 | AT7: 0.1029333735 | AU7: 0.9764401552 | AV7: 0.01756437646 | AW7: 0.8415315639 | AX7: 0.7868848449 | AY7: 0.2976816874 | AZ7: 0.2407911729 | BA7: 0.4148912617 | BB7: 0.5744942012 | BC7: 0.2093178799 | BD7: 0.989487375 | BE7: 0.678878022 | BF7: 0.9806816048 | BG7: 0.9288631454 | BH7: 0.1834752831 | BI7: 0.8516101761 | BJ7: 0.2414661366 | BK7: 0.06175983238 | BL7: 0.05246184828 | BM7: 0.7971556891 | BN7: 0.7593577532 | BO7: 0.3811023147 | BP7: 0.1797537716 | BQ7: 0.8560269608 | BR7: 0.7600821741 | BS7: 0.2812922886 | BT7: 0.6952110239 | BU7: 0.2354002076 | BV7: 0.1343774251 | BW7: 0.1188757027 | BX7: 0.7005934189 | BY7: 0.9567493348 | BZ7: 0.3779760223 | CA7: 0.03566325981 | CB7: 0.3889853645 | CC7: 0.668122377 | CD7: 0.7259465956 | CE7: 0.4050428551 | CF7: 0.5523509694 | CG7: 0.5834179025 | CH7: 0.864419984 | CI7: 0.1459934946 | CJ7: 0.1473941736 | CK7: 0.2804102353 | CL7: 0.1478549752 | CM7: 0.1939636661 | CN7: 0.006536244085 | CO7: 0.1633329496 | CP7: 0.4360122533 | CQ7: 0.4379717437 | CR7: 0.6875355399 | CS7: 0.2012224486 | CT7: 0.4440814964 | CU7: 0.2070583106 | CV7: 0.983040205 | CX7: St Dev | CY7: =STDEV(A1:CV100) -> 0.2879727522 | DA7: =(1/12)^0.5 -> 0.2886751346 | DB7: 0.01 | DC7: =IF(ABS(CY7-DA7)<DB7,"OK","CHECKDATA") -> OK
A8: 0.5234904451 | B8: 0.3640658231 | C8: 0.3233799844 | D8: 0.4047647729 | E8: 0.5095564875 | F8: 0.9853191272 | G8: 0.5467599528 | H8: 0.238778151 | I8: 0.4394618976 | J8: 0.1119141639 | K8: 0.7898510637 | L8: 0.09203944497 | M8: 0.8622214211 | N8: 0.845508871 | O8: 0.07982636631 | P8: 0.4236890109 | Q8: 0.1105401317 | R8: 0.590097739 | S8: 0.1200344431 | T8: 0.4982646496 | U8: 0.07182980161 | V8: 0.8512016801 | W8: 0.9367916926 | X8: 0.8282421659 | Y8: 0.3670949327 | Z8: 0.2303861627 | AA8: 0.06941296244 | AB8: 0.9597092724 | AC8: 0.9092537696 | AD8: 0.9815223654 | AE8: 0.2939450159 | AF8: 0.1217732498 | AG8: 0.0255602023 | AH8: 0.5412040519 | AI8: 0.8632536621 | AJ8: 0.7408522943 | AK8: 0.174591596 | AL8: 0.8215440425 | AM8: 0.531911314 | AN8: 0.2307891936 | AO8: 0.139567532 | AP8: 0.7483192066 | AQ8: 0.5395288063 | AR8: 0.8128340619 | AS8: 0.906578346 | AT8: 0.9428249694 | AU8: 0.4508740844 | AV8: 0.4645006657 | AW8: 0.6130608264 | AX8: 0.3602175591 | AY8: 0.007080660578 | AZ8: 0.8380661343 | BA8: 0.6807950092 | BB8: 0.5093048297 | BC8: 0.2664918827 | BD8: 0.1524662487 | BE8: 0.2851150066 | BF8: 0.9619735562 | BG8: 0.3858852613 | BH8: 0.06043815729 | BI8: 0.2202779974 | BJ8: 0.8479654956 | BK8: 0.5959875494 | BL8: 0.923149667 | BM8: 0.5467019545 | BN8: 0.9271163381 | BO8: 0.7242505116 | BP8: 0.4675953425 | BQ8: 0.3570483373 | BR8: 0.5948305159 | BS8: 0.2234461747 | BT8: 0.7082861263 | BU8: 0.4375112025 | BV8: 0.6105850989 | BW8: 0.4764724752 | BX8: 0.8705245156 | BY8: 0.3923377997 | BZ8: 0.7604443031 | CA8: 0.2318754659 | CB8: 0.5557241512 | CC8: 0.7058976631 | CD8: 0.0611546348 | CE8: 0.6349384759 | CF8: 0.2823764459 | CG8: 0.007818763198 | CH8: 0.4673008989 | CI8: 0.5255705151 | CJ8: 0.04484256434 | CK8: 0.2412969779 | CL8: 0.1150776917 | CM8: 0.4815790302 | CN8: 0.1972475165 | CO8: 0.843803032 | CP8: 0.3157125503 | CQ8: 0.714358112 | CR8: 0.3168123836 | CS8: 0.9058814982 | CT8: 0.04056180906 | CU8: 0.8453328137 | CV8: 0.7244096192
A9: 0.5572206956 | B9: 0.2701592695 | C9: 0.7725126416 | D9: 0.9019926509 | E9: 0.481794119 | F9: 0.29379569 | G9: 0.5353047072 | H9: 0.3132184057 | I9: 0.9802814173 | J9: 0.2283705485 | K9: 0.2884073796 | L9: 0.3194168521 | M9: 0.4809266902 | N9: 0.6731230225 | O9: 0.2687674497 | P9: 0.2752444747 | Q9: 0.4616739586 | R9: 0.6709571392 | S9: 0.2211077699 | T9: 0.9739301877 | U9: 0.4748768313 | V9: 0.5293129264 | W9: 0.4761006974 | X9: 0.5595594366 | Y9: 0.2721473632 | Z9: 0.1407288882 | AA9: 0.7188608078 | AB9: 0.2432508162 | AC9: 0.4909956878 | AD9: 0.1248452805 | AE9: 0.2931242767 | AF9: 0.9842004775 | AG9: 0.4502114732 | AH9: 0.7333324204 | AI9: 0.03649941525 | AJ9: 0.1485046991 | AK9: 0.2286467611 | AL9: 0.7653011958 | AM9: 0.1971073555 | AN9: 0.8795606425 | AO9: 0.5545157184 | AP9: 0.05348834476 | AQ9: 0.9849449802 | AR9: 0.5402370815 | AS9: 0.1652167953 | AT9: 0.955406677 | AU9: 0.3959265105 | AV9: 0.09288667387 | AW9: 0.8692645957 | AX9: 0.1667057505 | AY9: 0.8926792221 | AZ9: 0.8679098513 | BA9: 0.4559058458 | BB9: 0.2868243471 | BC9: 0.781293479 | BD9: 0.2252996613 | BE9: 0.7469233404 | BF9: 0.5732093207 | BG9: 0.8786531487 | BH9: 0.6603189971 | BI9: 0.704490794 | BJ9: 0.1261595493 | BK9: 0.7200422652 | BL9: 0.921600764 | BM9: 0.07976320599 | BN9: 0.073500726 | BO9: 0.2917384195 | BP9: 0.3672790262 | BQ9: 0.8928165789 | BR9: 0.9317157427 | BS9: 0.8099310569 | BT9: 0.3009467591 | BU9: 0.4622304828 | BV9: 0.7035729792 | BW9: 0.7247156644 | BX9: 0.1095493683 | BY9: 0.7156528534 | BZ9: 0.6584005014 | CA9: 0.6666828039 | CB9: 0.4117408151 | CC9: 0.8070506255 | CD9: 0.4762370157 | CE9: 0.7752042128 | CF9: 0.6885420048 | CG9: 0.8647886596 | CH9: 0.9318043293 | CI9: 0.2096331538 | CJ9: 0.5809135404 | CK9: 0.7065825861 | CL9: 0.1340923769 | CM9: 0.2173971957 | CN9: 0.145266036 | CO9: 0.2124502116 | CP9: 0.5793027569 | CQ9: 0.843812779 | CR9: 0.9159300662 | CS9: 0.1463821969 | CT9: 0.6961760672 | CU9: 0.2489478448 | CV9: 0.5623865396
A10: 0.5604417957 | B10: 0.6475967823 | C10: 0.02811354722 | D10: 0.9501291928 | E10: 0.1784315461 | F10: 0.3059521256 | G10: 0.587916712 | H10: 0.4521384773 | I10: 0.2120389472 | J10: 0.7665063388 | K10: 0.389332368 | L10: 0.08256214296 | M10: 0.08951437022 | N10: 0.817884488 | O10: 0.6839133022 | P10: 0.9205917729 | Q10: 0.07272284069 | R10: 0.4265463986 | S10: 0.3349875986 | T10: 0.5977215045 | U10: 0.2337138873 | V10: 0.5660081168 | W10: 0.1441937579 | X10: 0.5667909012 | Y10: 0.5796428836 | Z10: 0.2222356044 | AA10: 0.1411080998 | AB10: 0.1308911617 | AC10: 0.6221882603 | AD10: 0.1991750511 | AE10: 0.4312835072 | AF10: 0.3294715485 | AG10: 0.3047697013 | AH10: 0.2161380194 | AI10: 0.4563701792 | AJ10: 0.3276177841 | AK10: 0.7361674564 | AL10: 0.2292357468 | AM10: 0.8982860767 | AN10: 0.376203696 | AO10: 0.154739967 | AP10: 0.1280037131 | AQ10: 0.05057125981 | AR10: 0.5668693088 | AS10: 0.41995944 | AT10: 0.3909544957 | AU10: 0.5149443418 | AV10: 0.9899760281 | AW10: 0.2777818845 | AX10: 0.4551042028 | AY10: 0.3806952309 | AZ10: 0.9730070808 | BA10: 0.7105851427 | BB10: 0.5353500748 | BC10: 0.5722432023 | BD10: 0.9571102945 | BE10: 0.7749159124 | BF10: 0.2570924317 | BG10: 0.6826623609 | BH10: 0.6759929101 | BI10: 0.6813663691 | BJ10: 0.3338147416 | BK10: 0.5076994943 | BL10: 0.9178817797 | BM10: 0.9586516823 | BN10: 0.8795709045 | BO10: 0.6441480529 | BP10: 0.3058111165 | BQ10: 0.8499846964 | BR10: 0.3087949861 | BS10: 4.302596296e-05 | BT10: 0.1122733804 | BU10: 0.7505380919 | BV10: 0.6705433839 | BW10: 0.4091530844 | BX10: 0.2854106009 | BY10: 0.2496002668 | BZ10: 0.4320116851 | CA10: 0.8422926816 | CB10: 0.746034237 | CC10: 0.1469650426 | CD10: 0.6767332424 | CE10: 0.6107105392 | CF10: 0.6610991319 | CG10: 0.6817501605 | CH10: 0.7633216118 | CI10: 0.02237772966 | CJ10: 0.7517307484 | CK10: 0.7179799452 | CL10: 0.1072837303 | CM10: 0.3220858638 | CN10: 0.8108561958 | CO10: 0.06783118543 | CP10: 0.4527373196 | CQ10: 0.3312098464 | CR10: 0.6390272959 | CS10: 0.8688319837 | CT10: 0.3806948049 | CU10: 0.9087074149 | CV10: 0.08725701703 | CX10: Cumulative frequency
A11: 0.4833783741 | B11: 0.6169736626 | C11: 0.8037496708 | D11: 0.6510041314 | E11: 0.6593759305 | F11: 0.2473772426 | G11: 0.7361019923 | H11: 0.3317056334 | I11: 0.8225337939 | J11: 0.3118492889 | K11: 0.6141759389 | L11: 0.1017464576 | M11: 0.3319506383 | N11: 0.785068754 | O11: 0.6023838152 | P11: 0.4333161176 | Q11: 0.3693549194 | R11: 0.09775952324 | S11: 0.9515766374 | T11: 0.1938055883 | U11: 0.106295923 | V11: 0.7869122606 | W11: 0.6902531806 | X11: 0.1993642309 | Y11: 0.6801341204 | Z11: 0.806505611 | AA11: 0.09916331193 | AB11: 0.4823815146 | AC11: 0.4113275536 | AD11: 0.4208681596 | AE11: 0.1475120985 | AF11: 0.09380602918 | AG11: 0.08213701304 | AH11: 0.3292595473 | AI11: 0.687072072 | AJ11: 0.6201870344 | AK11: 0.7002678176 | AL11: 0.3497575972 | AM11: 0.6200533226 | AN11: 0.7678383521 | AO11: 0.3274845563 | AP11: 0.3085354044 | AQ11: 0.04675617121 | AR11: 0.1162784514 | AS11: 0.2399202212 | AT11: 0.0182759799 | AU11: 0.9825407522 | AV11: 0.8514470959 | AW11: 0.6408449351 | AX11: 0.968280211 | AY11: 0.5195454061 | AZ11: 0.8052220337 | BA11: 0.5660451376 | BB11: 0.1299879988 | BC11: 0.6676186612 | BD11: 0.9213731639 | BE11: 0.2241241797 | BF11: 0.1226846388 | BG11: 0.06279887223 | BH11: 0.9788999427 | BI11: 0.6615963676 | BJ11: 0.6324230807 | BK11: 0.2939303816 | BL11: 0.4089139818 | BM11: 0.874973191 | BN11: 0.06301429295 | BO11: 0.5616326185 | BP11: 0.7887338182 | BQ11: 0.2076210323 | BR11: 0.5357140551 | BS11: 0.5212904348 | BT11: 0.1876016126 | BU11: 0.3852803277 | BV11: 0.4182942338 | BW11: 0.375570917 | BX11: 0.757907845 | BY11: 0.6547979177 | BZ11: 0.8568622733 | CA11: 0.8459226474 | CB11: 0.238237728 | CC11: 0.9328149316 | CD11: 0.4913666991 | CE11: 0.664272686 | CF11: 0.1019481279 | CG11: 0.9198197211 | CH11: 0.758115676 | CI11: 0.171268226 | CJ11: 0.7707258096 | CK11: 0.3895596664 | CL11: 0.7633226738 | CM11: 0.6399819918 | CN11: 0.03862001749 | CO11: 0.3538193816 | CP11: 0.5284971728 | CQ11: 0.06781487116 | CR11: 0.1234643154 | CS11: 0.1750000076 | CT11: 0.4471137592 | CU11: 0.7128103365 | CV11: 0.8795389922 | CX11: Less than | DA11: Frequency
A12: 0.3610145072 | B12: 0.3472204439 | C12: 0.2236176569 | D12: 0.3587081987 | E12: 0.9893819355 | F12: 0.511455582 | G12: 0.1795289801 | H12: 0.8546776813 | I12: 0.05538367529 | J12: 0.471653611 | K12: 0.5251438059 | L12: 0.8969114425 | M12: 0.2023176191 | N12: 0.3397966488 | O12: 0.4294617157 | P12: 0.6662734416 | Q12: 0.5702326819 | R12: 0.3523907248 | S12: 0.9563351088 | T12: 0.1042533113 | U12: 0.2732246291 | V12: 0.937321065 | W12: 0.04865335174 | X12: 0.01805135218 | Y12: 0.5688770443 | Z12: 0.2507268394 | AA12: 0.1902868082 | AB12: 0.02649222456 | AC12: 0.5351788323 | AD12: 0.2804864211 | AE12: 0.07711839014 | AF12: 0.4238625375 | AG12: 0.7097433679 | AH12: 0.4590378286 | AI12: 0.4662118358 | AJ12: 0.9938472946 | AK12: 0.6603287859 | AL12: 0.04158261181 | AM12: 0.6914733314 | AN12: 0.7904449112 | AO12: 0.398633484 | AP12: 0.1560731029 | AQ12: 0.4503701674 | AR12: 0.8962825339 | AS12: 0.3844383688 | AT12: 0.4603229802 | AU12: 0.1627605975 | AV12: 0.1635821 | AW12: 0.5944696179 | AX12: 0.01427363688 | AY12: 0.6877903026 | AZ12: 0.6158100899 | BA12: 0.456845945 | BB12: 0.3079629429 | BC12: 0.1318240056 | BD12: 0.6254665004 | BE12: 0.5705075445 | BF12: 0.4016143151 | BG12: 0.1645046235 | BH12: 0.4343163247 | BI12: 0.03817058537 | BJ12: 0.4587339974 | BK12: 0.6822316528 | BL12: 0.510690053 | BM12: 0.5932928527 | BN12: 0.05541147914 | BO12: 0.1886515682 | BP12: 0.9384152536 | BQ12: 0.3095835755 | BR12: 0.1719866416 | BS12: 0.0886144259 | BT12: 0.05588429232 | BU12: 0.9609697208 | BV12: 0.4755874817 | BW12: 0.3746948284 | BX12: 0.09654259949 | BY12: 0.8734598234 | BZ12: 0.9988599663 | CA12: 0.6008129568 | CB12: 0.2240686152 | CC12: 0.8886698366 | CD12: 0.1476313144 | CE12: 0.6432830304 | CF12: 0.4810220137 | CG12: 0.04023762057 | CH12: 0.8425548624 | CI12: 0.06364754162 | CJ12: 0.7389118539 | CK12: 0.5509242352 | CL12: 0.6799406292 | CM12: 0.6674086287 | CN12: 0.4471646171 | CO12: 0.1874430849 | CP12: 0.7389591 | CQ12: 0.3940568002 | CR12: 0.2455831489 | CS12: 0.7785777677 | CT12: 0.09112829275 | CU12: 0.3167164549 | CV12: 0.9012143938 | CX12: 0 | CY12: =COUNTIF($A$1:$CV$100,"<"&CX12) -> 0 | DA12: =CY12 -> 0
A13: 0.9906427537 | B13: 0.9739433655 | C13: 0.1966237915 | D13: 0.6224734241 | E13: 0.3570809753 | F13: 0.2275369896 | G13: 0.3047697087 | H13: 0.7205159701 | I13: 0.9905919747 | J13: 0.3952136209 | K13: 0.1036367288 | L13: 0.6118652182 | M13: 0.8159512971 | N13: 0.241155942 | O13: 0.1032779127 | P13: 0.3491158983 | Q13: 0.8929791293 | R13: 0.5893858287 | S13: 0.2969147944 | T13: 0.1413525375 | U13: 0.5107625409 | V13: 0.004553586886 | W13: 0.7458209701 | X13: 0.7210475369 | Y13: 0.2616428088 | Z13: 0.7511599265 | AA13: 0.5537679998 | AB13: 0.410415092 | AC13: 0.3826536404 | AD13: 0.4305800557 | AE13: 0.7706776885 | AF13: 0.4541920111 | AG13: 0.6460505292 | AH13: 0.9033417756 | AI13: 0.7399813746 | AJ13: 0.03860565731 | AK13: 0.3739643306 | AL13: 0.1571330585 | AM13: 0.6963501915 | AN13: 0.3375616199 | AO13: 0.03148814158 | AP13: 0.3241405855 | AQ13: 0.1502029394 | AR13: 0.5660612025 | AS13: 0.0951579662 | AT13: 0.903547486 | AU13: 0.5378021795 | AV13: 0.5121694227 | AW13: 0.6784483209 | AX13: 0.3212017961 | AY13: 0.7172633954 | AZ13: 0.8983720379 | BA13: 0.4316787707 | BB13: 0.03102193824 | BC13: 0.403346977 | BD13: 0.387686928 | BE13: 0.8053201233 | BF13: 0.7488869012 | BG13: 0.03863283054 | BH13: 0.7250459117 | BI13: 0.8363809023 | BJ13: 0.2630230081 | BK13: 0.8542207994 | BL13: 0.9409535452 | BM13: 0.2448134134 | BN13: 0.2467613771 | BO13: 0.4236444799 | BP13: 0.3579703392 | BQ13: 0.4873263274 | BR13: 0.2129530616 | BS13: 0.3952803049 | BT13: 0.01972346257 | BU13: 0.796888917 | BV13: 0.7700948034 | BW13: 0.5900961839 | BX13: 0.3338002349 | BY13: 0.2674076328 | BZ13: 0.2224808411 | CA13: 0.2120466168 | CB13: 0.3886539246 | CC13: 0.6693854329 | CD13: 0.2096595435 | CE13: 0.8429990405 | CF13: 0.5776348607 | CG13: 0.1754028285 | CH13: 0.2722028455 | CI13: 0.9995192551 | CJ13: 0.2107076544 | CK13: 0.1104145614 | CL13: 0.6660901508 | CM13: 0.8982482434 | CN13: 0.422457337 | CO13: 0.6904275383 | CP13: 0.8045808702 | CQ13: 0.07881888458 | CR13: 0.2401849579 | CS13: 0.02153142771 | CT13: 0.157675144 | CU13: 0.3560063391 | CV13: 0.2208723032 | CW13: 0 - 0.1 | CX13: =CX12+0.1 -> 0.1 | CY13: =COUNTIF($A$1:$CV$100,"<"&CX13) -> 1021 | DA13: =CY13-CY12 -> 1021
A14: 0.2526200854 | B14: 0.7935204057 | C14: 0.7761114742 | D14: 0.6376059941 | E14: 0.7578130043 | F14: 0.3865847907 | G14: 0.2285137688 | H14: 0.6582479108 | I14: 0.6630714304 | J14: 0.4467825115 | K14: 0.5810984047 | L14: 0.05730481323 | M14: 0.02011814611 | N14: 0.2561156064 | O14: 0.8121009667 | P14: 0.6550858459 | Q14: 0.8410300026 | R14: 0.4369298778 | S14: 0.444126499 | T14: 0.5241877299 | U14: 0.07415510688 | V14: 0.005164680828 | W14: 0.5362827728 | X14: 0.9848338619 | Y14: 0.9959307298 | Z14: 0.3712665189 | AA14: 0.4759590924 | AB14: 0.650662903 | AC14: 0.7254258445 | AD14: 0.02969436015 | AE14: 0.3900571106 | AF14: 0.8575249777 | AG14: 0.2237561403 | AH14: 0.5726330049 | AI14: 0.504045463 | AJ14: 0.7392065005 | AK14: 0.4535263243 | AL14: 0.1059481497 | AM14: 0.9114880815 | AN14: 0.4433762217 | AO14: 0.5159905557 | AP14: 0.5450897388 | AQ14: 0.9674897381 | AR14: 0.1955900538 | AS14: 0.3686282516 | AT14: 0.1516331709 | AU14: 0.5870705206 | AV14: 0.9237813091 | AW14: 0.559767162 | AX14: 0.3809745892 | AY14: 0.7845204931 | AZ14: 0.3842690322 | BA14: 0.579234669 | BB14: 0.2390203654 | BC14: 0.05118753422 | BD14: 0.9486852065 | BE14: 0.5013049049 | BF14: 0.2267202725 | BG14: 0.1517892409 | BH14: 0.05874036556 | BI14: 0.7573902684 | BJ14: 0.9741500458 | BK14: 0.4158611669 | BL14: 0.8092562998 | BM14: 0.2879055464 | BN14: 0.06650081217 | BO14: 0.8489477511 | BP14: 0.3011616442 | BQ14: 0.679179911 | BR14: 0.3217386957 | BS14: 0.4045507952 | BT14: 0.1072526064 | BU14: 0.9782221662 | BV14: 0.6834294291 | BW14: 0.0300801361 | BX14: 0.5338426236 | BY14: 0.1846767267 | BZ14: 0.200532835 | CA14: 0.5959040475 | CB14: 0.4365939509 | CC14: 0.3661302469 | CD14: 0.7926741345 | CE14: 0.4241246982 | CF14: 0.4997650832 | CG14: 0.6263799659 | CH14: 0.9965673023 | CI14: 0.5836462323 | CJ14: 0.3722670866 | CK14: 0.2263948812 | CL14: 0.5005794235 | CM14: 0.3860697442 | CN14: 0.2773654908 | CO14: 0.3333428054 | CP14: 0.6657900234 | CQ14: 0.6689958808 | CR14: 0.09893235547 | CS14: 0.09009845311 | CT14: 0.9549478255 | CU14: 0.6890797777 | CV14: 0.8108470598 | CW14: 0.1 - 0.2 | CX14: =CX13+0.1 -> 0.2 | CY14: 2005 | DA14: =CY14-CY13 -> 984
A15: 0.7229246839 | B15: 0.3070896952 | C15: 0.7010053916 | D15: 0.8802264878 | E15: 0.02412710911 | F15: 0.55545205 | G15: 0.8963347997 | H15: 0.2041985489 | I15: 0.2339765203 | J15: 0.6830229657 | K15: 0.1309120471 | L15: 0.2321085018 | M15: 0.5673307117 | N15: 0.6213349106 | O15: 0.6783916075 | P15: 0.6002670372 | Q15: 0.6776675438 | R15: 0.8576043094 | S15: 0.7748383519 | T15: 0.07867469496 | U15: 0.4589735227 | V15: 0.7576116806 | W15: 0.8486134767 | X15: 0.8475914142 | Y15: 0.02637912426 | Z15: 0.5042624314 | AA15: 0.4072256154 | AB15: 0.9738076929 | AC15: 0.5679528742 | AD15: 0.4435754374 | AE15: 0.3825844469 | AF15: 0.7735681538 | AG15: 0.7683174713 | AH15: 0.8691891034 | AI15: 0.1412580019 | AJ15: 0.8885544036 | AK15: 0.4425591217 | AL15: 0.6934552786 | AM15: 0.8977634362 | AN15: 0.4863362821 | AO15: 0.4809090327 | AP15: 0.7544487723 | AQ15: 0.651895548 | AR15: 0.09629496349 | AS15: 0.3315327381 | AT15: 0.9777167071 | AU15: 0.407341113 | AV15: 0.6483305189 | AW15: 0.1009510708 | AX15: 0.5615562246 | AY15: 0.2550755526 | AZ15: 0.3673317351 | BA15: 0.50781972 | BB15: 0.8527538064 | BC15: 0.6321179043 | BD15: 0.7508212507 | BE15: 0.8895199766 | BF15: 0.183144239 | BG15: 0.7892731466 | BH15: 0.1813246147 | BI15: 0.3276675977 | BJ15: 0.7295463625 | BK15: 0.06987195018 | BL15: 0.4987882657 | BM15: 0.3608322399 | BN15: 0.8350920792 | BO15: 0.9699928386 | BP15: 0.8736140091 | BQ15: 0.2735219597 | BR15: 0.8907267434 | BS15: 0.8608852904 | BT15: 0.243632691 | BU15: 0.6770209901 | BV15: 0.02864261775 | BW15: 0.6734607696 | BX15: 0.0319762359 | BY15: 0.4630836229 | BZ15: 0.07956378919 | CA15: 0.5645153871 | CB15: 0.3683090528 | CC15: 0.710960959 | CD15: 0.4376946572 | CE15: 0.9051781304 | CF15: 0.9133632436 | CG15: 0.7235447324 | CH15: 0.8249779508 | CI15: 0.7206562471 | CJ15: 0.2253622112 | CK15: 0.4482148506 | CL15: 0.1096881042 | CM15: 0.2801722911 | CN15: 0.03129523172 | CO15: 0.07780034597 | CP15: 0.07607017437 | CQ15: 0.8207356744 | CR15: 0.344986264 | CS15: 0.0009245283847 | CT15: 0.8801521885 | CU15: 0.191129285 | CV15: 0.1506402665 | CW15: 0.2 - 0.3 | CX15: 0.3 | CY15: 2990 | DA15: 985
A16: 0.5278294407 | B16: 0.01244788549 | C16: 0.5254049431 | D16: 0.3910215205 | E16: 0.1971753706 | F16: 0.8936659075 | G16: 0.01549284393 | H16: 0.3668407883 | I16: 0.8141394252 | J16: 0.4986970283 | K16: 0.2158691505 | L16: 0.4529843663 | M16: 0.5633850303 | N16: 0.3367313959 | O16: 0.1990275778 | P16: 0.3445443625 | Q16: 0.4704431588 | R16: 0.9287840006 | S16: 0.4363736302 | T16: 0.4631645715 | U16: 0.414065549 | V16: 0.7881282777 | W16: 0.9867444127 | X16: 0.07492097616 | Y16: 0.1037050292 | Z16: 0.1189157982 | AA16: 0.777722336 | AB16: 0.596704621 | AC16: 0.1231929208 | AD16: 0.3705399086 | AE16: 0.6895441797 | AF16: 0.3036211708 | AG16: 0.146759761 | AH16: 0.0211294697 | AI16: 0.9174871755 | AJ16: 0.1084458776 | AK16: 0.3808763193 | AL16: 0.3745666577 | AM16: 0.2334899442 | AN16: 0.8067219959 | AO16: 0.06823978866 | AP16: 0.7311219814 | AQ16: 0.2127661224 | AR16: 0.08119070149 | AS16: 0.666921153 | AT16: 0.7190197207 | AU16: 0.1779128945 | AV16: 0.3776682731 | AW16: 0.1923620625 | AX16: 0.4494470208 | AY16: 0.3484895288 | AZ16: 0.9074676166 | BA16: 0.6273891124 | BB16: 0.8295062656 | BC16: 0.7517988071 | BD16: 0.7987886256 | BE16: 0.2608042179 | BF16: 0.08047577599 | BG16: 0.2586964792 | BH16: 0.4605770929 | BI16: 0.1070122144 | BJ16: 0.843600853 | BK16: 0.1467175113 | BL16: 0.7322062849 | BM16: 0.8836089322 | BN16: 0.8027997565 | BO16: 0.7967058214 | BP16: 0.1779058199 | BQ16: 0.7311517089 | BR16: 0.8816950253 | BS16: 0.02264558757 | BT16: 0.6116752315 | BU16: 0.1681709697 | BV16: 0.06603132387 | BW16: 0.557661736 | BX16: 0.7568121748 | BY16: 0.8868214407 | BZ16: 0.5591188555 | CA16: 0.08427067354 | CB16: 0.2135560235 | CC16: 0.9019108292 | CD16: 0.8779019134 | CE16: 0.5950046135 | CF16: 0.4041320997 | CG16: 0.251189589 | CH16: 0.08015080652 | CI16: 0.7774084803 | CJ16: 0.7922064923 | CK16: 0.9980982207 | CL16: 0.4839655823 | CM16: 0.008290449812 | CN16: 0.2338238627 | CO16: 0.3379555372 | CP16: 0.217564569 | CQ16: 0.8001308444 | CR16: 0.9274729806 | CS16: 0.05518416605 | CT16: 0.07777391327 | CU16: 0.4333672017 | CV16: 0.00189674347 | CW16: 0.3 - 0.4 | CX16: 0.4 | CY16: 4049 | DA16: 1059
A17: 0.6751696141 | B17: 0.9544136685 | C17: 0.2939761073 | D17: 0.8375311748 | E17: 0.96669649 | F17: 0.3730368655 | G17: 0.06330546931 | H17: 0.7640501915 | I17: 0.963929968 | J17: 0.9537132677 | K17: 0.9918225227 | L17: 0.1006218222 | M17: 0.07797845708 | N17: 0.2759690835 | O17: 0.4987318822 | P17: 0.4793865073 | Q17: 0.9524537408 | R17: 0.7581574546 | S17: 0.2276881575 | T17: 0.9011975489 | U17: 0.9781068747 | V17: 0.2364343115 | W17: 0.01473079134 | X17: 0.08207495181 | Y17: 0.7082315534 | Z17: 0.3742083173 | AA17: 0.1775186861 | AB17: 0.148753384 | AC17: 0.7761698541 | AD17: 0.5107652896 | AE17: 0.5255405825 | AF17: 0.5320922816 | AG17: 0.6865593122 | AH17: 0.09790585528 | AI17: 0.1004613611 | AJ17: 0.2946794535 | AK17: 0.7610526781 | AL17: 0.8566905423 | AM17: 0.978448621 | AN17: 0.7486861627 | AO17: 0.9280900073 | AP17: 0.4958722163 | AQ17: 0.9344855287 | AR17: 0.3697484371 | AS17: 0.3062928782 | AT17: 0.7407580811 | AU17: 0.7660394645 | AV17: 0.3842036453 | AW17: 0.4102448022 | AX17: 0.7170421332 | AY17: 0.2205391121 | AZ17: 0.8482488767 | BA17: 0.3116642699 | BB17: 0.232491619 | BC17: 0.4551272231 | BD17: 0.8906328353 | BE17: 0.7483924114 | BF17: 0.7251403529 | BG17: 0.230122276 | BH17: 0.6197403518 | BI17: 0.2444543877 | BJ17: 0.9492461137 | BK17: 0.3253259852 | BL17: 0.285993878 | BM17: 0.276894687 | BN17: 0.08786774855 | BO17: 0.3726530241 | BP17: 0.9071312216 | BQ17: 0.03338276632 | BR17: 0.9722308409 | BS17: 0.666837262 | BT17: 0.6103321141 | BU17: 0.9377106847 | BV17: 0.2385676693 | BW17: 0.3638220079 | BX17: 0.07779711818 | BY17: 0.930636631 | BZ17: 0.2485269508 | CA17: 0.8035986296 | CB17: 0.1146596316 | CC17: 0.6517040264 | CD17: 0.01612895322 | CE17: 0.2834243759 | CF17: 0.3079179767 | CG17: 0.008598433754 | CH17: 0.4192670237 | CI17: 0.7486521459 | CJ17: 0.8794665218 | CK17: 0.8740399685 | CL17: 0.7981928609 | CM17: 0.1634331313 | CN17: 0.8966257285 | CO17: 0.3532717521 | CP17: 0.4098610871 | CQ17: 0.8765840553 | CR17: 0.6888810253 | CS17: 0.2613277179 | CT17: 0.8948141188 | CU17: 0.9095606762 | CV17: 0.09450283757 | CW17: 0.4 - 0.5 | CX17: 0.5 | CY17: 4967 | DA17: 918
A18: 0.08151983343 | B18: 0.6625936889 | C18: 0.3229150796 | D18: 0.8388756341 | E18: 0.2535128726 | F18: 0.7091140441 | G18: 0.1159650779 | H18: 0.8946723958 | I18: 0.5729692314 | J18: 0.5891801553 | K18: 0.716457418 | L18: 0.3393871162 | M18: 0.9904407982 | N18: 0.3034015142 | O18: 0.551751336 | P18: 0.3720557323 | Q18: 0.2037137601 | R18: 0.9518430696 | S18: 0.3423596823 | T18: 0.1671683207 | U18: 0.02189717393 | V18: 0.7867621571 | W18: 0.3806996789 | X18: 0.3289448737 | Y18: 0.8775807475 | Z18: 0.6156972708 | AA18: 0.1224060401 | AB18: 0.9307771242 | AC18: 0.517613225 | AD18: 0.2525156342 | AE18: 0.4025074809 | AF18: 0.451565095 | AG18: 0.5519111625 | AH18: 0.28247643 | AI18: 0.9616248438 | AJ18: 0.6073667395 | AK18: 0.4643005946 | AL18: 0.5842321033 | AM18: 0.2509957984 | AN18: 0.8012414052 | AO18: 0.004151215289 | AP18: 0.0609890022 | AQ18: 0.138998752 | AR18: 0.9339330238 | AS18: 0.8067944522 | AT18: 0.226813505 | AU18: 0.7865063802 | AV18: 0.9859218184 | AW18: 0.2123512582 | AX18: 0.330649629 | AY18: 0.7989387456 | AZ18: 0.3802351701 | BA18: 0.175941751 | BB18: 0.8122804899 | BC18: 0.2096118437 | BD18: 0.6505858659 | BE18: 0.4800233532 | BF18: 0.5650008876 | BG18: 0.9844680334 | BH18: 0.5440659863 | BI18: 0.04270298717 | BJ18: 0.740480766 | BK18: 0.7308724809 | BL18: 0.7125904832 | BM18: 0.9253234207 | BN18: 0.08954917715 | BO18: 0.4206648955 | BP18: 0.5586010627 | BQ18: 0.07723444723 | BR18: 0.5804241244 | BS18: 0.7935585778 | BT18: 0.2772665712 | BU18: 0.4554362991 | BV18: 0.7914228243 | BW18: 0.258551234 | BX18: 0.2774793756 | BY18: 0.1405359656 | BZ18: 0.8676343211 | CA18: 0.4360190327 | CB18: 0.9497677738 | CC18: 0.7585678625 | CD18: 0.3166473315 | CE18: 0.04424226147 | CF18: 0.4062290831 | CG18: 0.7435619178 | CH18: 0.02721229732 | CI18: 0.09402888662 | CJ18: 0.088059482 | CK18: 0.1686219323 | CL18: 0.04609800612 | CM18: 0.07203583155 | CN18: 0.68873153 | CO18: 0.08894118413 | CP18: 0.620003353 | CQ18: 0.2825761597 | CR18: 0.2337335066 | CS18: 0.6175858866 | CT18: 0.8609247748 | CU18: 0.7193891468 | CV18: 0.9633762131 | CW18: 0.5 - 0.6 | CX18: 0.6 | CY18: 5977 | DA18: 1010
A19: 0.7333353143 | B19: 0.6125522031 | C19: 0.8902320569 | D19: 0.963773819 | E19: 0.7025244858 | F19: 0.6663833132 | G19: 0.2393494863 | H19: 0.4078979777 | I19: 0.3056141364 | J19: 0.1613417388 | K19: 0.317164028 | L19: 0.1350234112 | M19: 0.6440723457 | N19: 0.9986079078 | O19: 0.1161162703 | P19: 0.9977129194 | Q19: 0.8249770027 | R19: 0.03999578582 | S19: 0.1293448373 | T19: 0.203595196 | U19: 0.8742325105 | V19: 0.3826329668 | W19: 0.8169265126 | X19: 0.2904430937 | Y19: 0.9581847623 | Z19: 0.8951506581 | AA19: 0.5537252723 | AB19: 0.600234769 | AC19: 0.5237852065 | AD19: 0.9957704429 | AE19: 0.3787310978 | AF19: 0.03057273758 | AG19: 0.7158016985 | AH19: 0.8031106172 | AI19: 0.5204576572 | AJ19: 0.805655962 | AK19: 0.03445409429 | AL19: 0.5076603334 | AM19: 0.7849870975 | AN19: 0.1029464546 | AO19: 0.383561941 | AP19: 0.7624188171 | AQ19: 0.1695135947 | AR19: 0.07127605192 | AS19: 0.8892807997 | AT19: 0.7639344364 | AU19: 0.8672321901 | AV19: 0.8212753704 | AW19: 0.5593887878 | AX19: 0.6145643176 | AY19: 0.6763917248 | AZ19: 0.9028208564 | BA19: 0.7794356092 | BB19: 0.8751292047 | BC19: 0.7239527297 | BD19: 0.3106275576 | BE19: 0.8335893982 | BF19: 0.507622623 | BG19: 0.1444373608 | BH19: 0.6095329388 | BI19: 0.7790172388 | BJ19: 0.3129896768 | BK19: 0.388664404 | BL19: 0.346936856 | BM19: 0.9481042231 | BN19: 0.2726464199 | BO19: 0.5684894676 | BP19: 0.5478874681 | BQ19: 0.7815788253 | BR19: 0.3268193382 | BS19: 0.6092830593 | BT19: 0.6082777801 | BU19: 0.3109340676 | BV19: 0.2447104993 | BW19: 0.7537489397 | BX19: 0.2444462895 | BY19: 0.972351234 | BZ19: 0.7442028283 | CA19: 0.4198712444 | CB19: 0.345141593 | CC19: 0.5335987027 | CD19: 0.1512819265 | CE19: 0.1186379616 | CF19: 0.2750711712 | CG19: 0.6365085312 | CH19: 0.04305954528 | CI19: 0.002360409321 | CJ19: 0.4467190182 | CK19: 0.5292994207 | CL19: 0.2481544425 | CM19: 0.8962310068 | CN19: 0.501701512 | CO19: 0.55160536 | CP19: 0.9360504616 | CQ19: 0.3293232045 | CR19: 0.004501721569 | CS19: 0.489224737 | CT19: 0.8303113627 | CU19: 0.4731911412 | CV19: 0.4535871556 | CW19: 0.6 - 0.7 | CX19: 0.7 | CY19: 7034 | DA19: 1057
A20: 0.529384818 | B20: 0.4575466588 | C20: 0.6023217037 | D20: 0.784369851 | E20: 0.9680171938 | F20: 0.2740697448 | G20: 0.2886129231 | H20: 0.2315116405 | I20: 0.01040188685 | J20: 0.4401981843 | K20: 0.1332265905 | L20: 0.391532516 | M20: 0.3606003732 | N20: 0.4935727651 | O20: 0.8380022638 | P20: 0.8527063057 | Q20: 0.6230571733 | R20: 0.278226993 | S20: 0.8346000911 | T20: 0.5094926981 | U20: 0.3043296643 | V20: 0.6469668907 | W20: 0.9496911375 | X20: 0.009105535873 | Y20: 0.4763495523 | Z20: 0.2558538998 | AA20: 0.05680477862 | AB20: 0.6301079894 | AC20: 0.3830305872 | AD20: 0.9888376339 | AE20: 0.405764592 | AF20: 0.6867708977 | AG20: 0.8086493652 | AH20: 0.7653411105 | AI20: 0.6883793883 | AJ20: 0.8310612514 | AK20: 0.06712861407 | AL20: 0.517060321 | AM20: 0.4733295189 | AN20: 0.7087752171 | AO20: 0.7482680914 | AP20: 0.06631933224 | AQ20: 0.8754012691 | AR20: 0.2138037595 | AS20: 0.6861908233 | AT20: 0.7292413348 | AU20: 0.5369804509 | AV20: 0.1992305041 | AW20: 0.2420484909 | AX20: 0.9490262789 | AY20: 0.8899185817 | AZ20: 0.5490021586 | BA20: 0.4528401267 | BB20: 0.2702252303 | BC20: 0.6144478706 | BD20: 0.1495774283 | BE20: 0.6439647723 | BF20: 0.3689119528 | BG20: 0.1362540046 | BH20: 0.3001157693 | BI20: 0.6065174364 | BJ20: 0.8124712049 | BK20: 0.3320780313 | BL20: 0.700227708 | BM20: 0.1307006907 | BN20: 0.6978176991 | BO20: 0.7126346845 | BP20: 0.4405106925 | BQ20: 0.3905153424 | BR20: 0.8476333508 | BS20: 0.312280503 | BT20: 0.3545698326 | BU20: 0.1714367204 | BV20: 0.390611776 | BW20: 0.003582920699 | BX20: 0.5066559819 | BY20: 0.2810168868 | BZ20: 0.2224709084 | CA20: 0.2692379461 | CB20: 0.1930145614 | CC20: 0.4892781905 | CD20: 0.1831687946 | CE20: 0.3819074058 | CF20: 0.7025352377 | CG20: 0.04019929453 | CH20: 0.4959305378 | CI20: 0.6251100354 | CJ20: 0.6252183081 | CK20: 0.9668120204 | CL20: 0.5701027912 | CM20: 0.7936965593 | CN20: 0.8924790077 | CO20: 0.05992074433 | CP20: 0.9486303738 | CQ20: 0.3051150205 | CR20: 0.957017286 | CS20: 0.8626836789 | CT20: 0.4946492659 | CU20: 0.06653512751 | CV20: 0.1598791381 | CW20: 0.7 - 0.8 | CX20: 0.8 | CY20: 8070 | DA20: 1036
A21: 0.1399948888 | B21: 0.8779362625 | C21: 0.4879220512 | D21: 0.7306894587 | E21: 0.4806914369 | F21: 0.6578358851 | G21: 0.6394160132 | H21: 0.376131995 | I21: 0.3392921981 | J21: 0.5914931931 | K21: 0.7952556559 | L21: 0.221875371 | M21: 0.63003971 | N21: 0.6448920277 | O21: 0.2115513417 | P21: 0.008447568734 | Q21: 0.4844703939 | R21: 0.9891032055 | S21: 0.1110956566 | T21: 0.4951163684 | U21: 0.09282181689 | V21: 0.2397146448 | W21: 0.5420149297 | X21: 0.8607965423 | Y21: 0.7882592226 | Z21: 0.06851493557 | AA21: 0.1724126678 | AB21: 0.9458092508 | AC21: 0.914053645 | AD21: 0.01220243723 | AE21: 0.2233768997 | AF21: 0.3762760291 | AG21: 0.5343508693 | AH21: 0.2957507322 | AI21: 0.4494932641 | AJ21: 0.8658784936 | AK21: 0.5945981088 | AL21: 0.7778042853 | AM21: 0.3594605767 | AN21: 0.6639568879 | AO21: 0.0788295672 | AP21: 0.2116512994 | AQ21: 0.4110103596 | AR21: 0.3991617556 | AS21: 0.8447434785 | AT21: 0.9944537737 | AU21: 0.8635514789 | AV21: 0.6427077028 | AW21: 0.8177084671 | AX21: 0.2192738421 | AY21: 0.4000543708 | AZ21: 0.9901286885 | BA21: 0.4546651198 | BB21: 0.06207054166 | BC21: 0.4665556389 | BD21: 0.3674571236 | BE21: 0.1143189197 | BF21: 0.3157233525 | BG21: 0.8045326609 | BH21: 0.0589318599 | BI21: 0.3428313912 | BJ21: 0.2792481059 | BK21: 0.7583867989 | BL21: 0.3893959426 | BM21: 0.3944018497 | BN21: 0.3288011327 | BO21: 0.3330969252 | BP21: 0.9912340042 | BQ21: 0.7505315994 | BR21: 0.5862600007 | BS21: 0.695140668 | BT21: 0.08072680201 | BU21: 0.1452700258 | BV21: 0.785158033 | BW21: 0.04865110937 | BX21: 0.321143106 | BY21: 0.1026350062 | BZ21: 0.1371895373 | CA21: 0.4975638645 | CB21: 0.3362454131 | CC21: 0.5791030121 | CD21: 0.9028433539 | CE21: 0.09177453073 | CF21: 0.244849507 | CG21: 0.6405433701 | CH21: 0.5284550175 | CI21: 0.9657880869 | CJ21: 0.8552182962 | CK21: 0.7652958751 | CL21: 0.8547497142 | CM21: 0.8274905561 | CN21: 0.8506263369 | CO21: 0.1120112498 | CP21: 0.7292539953 | CQ21: 0.4963533353 | CR21: 0.9312892893 | CS21: 0.3822908416 | CT21: 0.6141096818 | CU21: 0.6750539079 | CV21: 0.804786668 | CW21: 0.8 - 0.9 | CX21: 0.9 | CY21: 9041 | DA21: 971
A22: 0.2928483281 | B22: 0.7742766454 | C22: 0.04676214549 | D22: 0.257704366 | E22: 0.9360904449 | F22: 0.05845734673 | G22: 0.9401586743 | H22: 0.1043027298 | I22: 0.7479406582 | J22: 0.8522442374 | K22: 0.4470683691 | L22: 0.4667600257 | M22: 0.258403226 | N22: 0.7891098023 | O22: 0.7772496225 | P22: 0.538061614 | Q22: 0.4082832112 | R22: 0.6719794121 | S22: 0.557539447 | T22: 0.7390469667 | U22: 0.05656082676 | V22: 0.376390042 | W22: 0.8857662142 | X22: 0.7734179303 | Y22: 0.439557536 | Z22: 0.8712941583 | AA22: 0.1082067412 | AB22: 0.1150169916 | AC22: 0.7413595587 | AD22: 0.8486346955 | AE22: 0.6378294024 | AF22: 0.03958401447 | AG22: 0.07275010738 | AH22: 0.5934412406 | AI22: 0.5983556013 | AJ22: 0.4821783299 | AK22: 0.05885797132 | AL22: 0.7309198871 | AM22: 0.8547840768 | AN22: 0.1763273176 | AO22: 0.7974137922 | AP22: 0.2910926263 | AQ22: 0.5181335934 | AR22: 0.5367688652 | AS22: 0.04046041743 | AT22: 0.8347204297 | AU22: 0.4412566024 | AV22: 0.6867626674 | AW22: 0.2829432305 | AX22: 0.5831890048 | AY22: 0.5524532689 | AZ22: 0.8425404978 | BA22: 0.9669067341 | BB22: 0.2262969626 | BC22: 0.1450904398 | BD22: 0.9924123175 | BE22: 0.7184615551 | BF22: 0.9012340075 | BG22: 0.4826943181 | BH22: 0.03857501177 | BI22: 0.2474065592 | BJ22: 0.5512591203 | BK22: 0.05543642266 | BL22: 0.7943241759 | BM22: 0.7513531154 | BN22: 0.1565018471 | BO22: 0.2035236179 | BP22: 0.7519747391 | BQ22: 0.7538625979 | BR22: 0.1738397722 | BS22: 0.9016130835 | BT22: 0.4325992246 | BU22: 0.3940359731 | BV22: 0.6501180758 | BW22: 0.7454295259 | BX22: 0.9278943763 | BY22: 0.002941286531 | BZ22: 0.06074100397 | CA22: 0.3968513246 | CB22: 0.8756493603 | CC22: 0.1516588829 | CD22: 0.9096747511 | CE22: 0.4553755743 | CF22: 0.04891817557 | CG22: 0.334098773 | CH22: 0.1173684367 | CI22: 0.2979209763 | CJ22: 0.1692982423 | CK22: 0.3509600751 | CL22: 0.4957343091 | CM22: 0.8696775417 | CN22: 0.3733102875 | CO22: 0.2888145766 | CP22: 0.2782778753 | CQ22: 0.3215895542 | CR22: 0.1341603113 | CS22: 0.5820442633 | CT22: 0.8647708688 | CU22: 0.7666481636 | CV22: 0.4486024058 | CW22: 0.9 - 1.0 | CX22: 1 | CY22: 10000 | DA22: 959
A23: 0.8752647463 | B23: 0.5451137249 | C23: 0.8984448792 | D23: 0.7621800746 | E23: 0.9940895443 | F23: 0.5852806697 | G23: 0.2503157447 | H23: 0.3658589759 | I23: 0.04894111355 | J23: 0.9233849664 | K23: 0.1780937621 | L23: 0.0008722063682 | M23: 0.4948982009 | N23: 0.573556732 | O23: 0.06015782095 | P23: 0.1306318347 | Q23: 0.3960774306 | R23: 0.8581337207 | S23: 0.2796446259 | T23: 0.4091521415 | U23: 0.3809804974 | V23: 0.8404897091 | W23: 0.5970297986 | X23: 0.2883578512 | Y23: 0.0217364386 | Z23: 0.1643851202 | AA23: 0.319250244 | AB23: 0.6364710716 | AC23: 0.8015472615 | AD23: 0.6821141999 | AE23: 0.7079871594 | AF23: 0.5765911571 | AG23: 0.1402463252 | AH23: 0.9179378201 | AI23: 0.362856482 | AJ23: 0.2173525093 | AK23: 0.6093190443 | AL23: 0.3018603238 | AM23: 0.3775912723 | AN23: 0.2797058209 | AO23: 0.07061000251 | AP23: 0.6257350852 | AQ23: 0.7644860581 | AR23: 0.8777988427 | AS23: 0.3784666651 | AT23: 0.2568597005 | AU23: 0.9960398742 | AV23: 0.8188419935 | AW23: 0.6261717106 | AX23: 0.8422403687 | AY23: 0.7604824215 | AZ23: 0.5850582938 | BA23: 0.4593000455 | BB23: 0.2958260318 | BC23: 0.6025367705 | BD23: 0.4971495323 | BE23: 0.8764119179 | BF23: 0.2048288048 | BG23: 0.7823393276 | BH23: 0.7946287966 | BI23: 0.4293847054 | BJ23: 0.2578518472 | BK23: 0.9478678462 | BL23: 0.7815913789 | BM23: 0.3998905144 | BN23: 0.1326834377 | BO23: 0.1928570083 | BP23: 0.2771288448 | BQ23: 0.1428617683 | BR23: 0.7506016406 | BS23: 0.9882695568 | BT23: 0.7506376168 | BU23: 0.9191439235 | BV23: 0.2207870865 | BW23: 0.3142449912 | BX23: 0.8111947637 | BY23: 0.1169529188 | BZ23: 0.8238132855 | CA23: 0.7287898561 | CB23: 0.9307807784 | CC23: 0.8097172673 | CD23: 0.9802617718 | CE23: 0.8820405658 | CF23: 0.9607421875 | CG23: 0.7337376147 | CH23: 0.4004178156 | CI23: 0.9400232144 | CJ23: 0.5933163872 | CK23: 0.5525145009 | CL23: 0.5932826266 | CM23: 0.2469786938 | CN23: 0.7449370374 | CO23: 0.2450418515 | CP23: 0.5648400548 | CQ23: 0.86936891 | CR23: 0.8852559273 | CS23: 0.3097259831 | CT23: 0.486972179 | CU23: 0.8000456084 | CV23: 0.001267245326
A24: 0.1760953424 | B24: 0.3688904827 | C24: 0.4850645859 | D24: 0.7401383444 | E24: 0.9021923319 | F24: 0.4278234502 | G24: 0.5610069603 | H24: 0.0670038997 | I24: 0.4585467651 | J24: 0.3503248791 | K24: 0.3484512523 | L24: 0.04128523036 | M24: 0.290532426 | N24: 0.7284078244 | O24: 0.2247840933 | P24: 0.2260753372 | Q24: 0.556521518 | R24: 0.3913763874 | S24: 0.731532005 | T24: 0.3089434056 | U24: 0.5239065766 | V24: 0.15573261 | W24: 0.5785557178 | X24: 0.03544894287 | Y24: 0.8148885891 | Z24: 0.8493618338 | AA24: 0.01351994034 | AB24: 0.04265386964 | AC24: 0.7906914151 | AD24: 0.1429981318 | AE24: 0.08499089998 | AF24: 0.5362864932 | AG24: 0.1300771844 | AH24: 0.7190632041 | AI24: 0.1264325959 | AJ24: 0.4934897856 | AK24: 0.4688544446 | AL24: 0.7928601088 | AM24: 0.7361897887 | AN24: 0.2658081906 | AO24: 0.987678616 | AP24: 0.2068437063 | AQ24: 0.9174131582 | AR24: 0.9220892243 | AS24: 0.6024277427 | AT24: 0.6208560336 | AU24: 0.8815408231 | AV24: 0.5284958052 | AW24: 0.8970675489 | AX24: 0.7542601631 | AY24: 0.2946997882 | AZ24: 0.1288120265 | BA24: 0.09495481567 | BB24: 0.2737835699 | BC24: 0.5918229282 | BD24: 0.5361045205 | BE24: 0.3892279339 | BF24: 0.3485314683 | BG24: 0.07821586308 | BH24: 0.4733675527 | BI24: 0.1974923491 | BJ24: 0.6168690586 | BK24: 0.2982237413 | BL24: 0.7378442912 | BM24: 0.7194355583 | BN24: 0.846371323 | BO24: 0.8688264731 | BP24: 0.3242580685 | BQ24: 0.007528578953 | BR24: 0.9434398249 | BS24: 0.2184225577 | BT24: 0.122262411 | BU24: 0.776760273 | BV24: 0.8057282199 | BW24: 0.7963184916 | BX24: 0.5632789918 | BY24: 0.8426183703 | BZ24: 0.05743245736 | CA24: 0.07162219969 | CB24: 0.7760707429 | CC24: 0.06020588535 | CD24: 0.4110118281 | CE24: 0.5403787105 | CF24: 0.6089590119 | CG24: 0.9051238166 | CH24: 0.3797889819 | CI24: 0.3284652119 | CJ24: 0.674026677 | CK24: 0.4033006052 | CL24: 0.4714882774 | CM24: 0.7032378931 | CN24: 0.7364917346 | CO24: 0.06960483526 | CP24: 0.03162088048 | CQ24: 0.7990528137 | CR24: 0.8535562387 | CS24: 0.9601142067 | CT24: 0.7127180806 | CU24: 0.4027971199 | CV24: 0.9232835533
A25: 0.8833976362 | B25: 0.05477616908 | C25: 0.9605939821 | D25: 0.02594286984 | E25: 0.2737273588 | F25: 0.4757643069 | G25: 0.9255268845 | H25: 0.1912334217 | I25: 0.02787301347 | J25: 0.2049670281 | K25: 0.511840223 | L25: 0.2295698868 | M25: 0.9459565635 | N25: 0.7879363933 | O25: 0.7126487092 | P25: 0.2464443833 | Q25: 0.3833527723 | R25: 0.02942739129 | S25: 0.9140323138 | T25: 0.2575216593 | U25: 0.5273104287 | V25: 0.9051927728 | W25: 0.7242830656 | X25: 0.782899707 | Y25: 0.2483989568 | Z25: 0.2513639633 | AA25: 0.3754715988 | AB25: 0.5885475099 | AC25: 0.6352135973 | AD25: 0.6353327724 | AE25: 0.6772755135 | AF25: 0.5786996098 | AG25: 0.4258299207 | AH25: 0.3666940503 | AI25: 0.2177964811 | AJ25: 0.6846125174 | AK25: 0.4845829923 | AL25: 0.3666763268 | AM25: 0.547841744 | AN25: 0.6635286208 | AO25: 0.3200602222 | AP25: 0.3175816598 | AQ25: 0.05314365755 | AR25: 0.4905544173 | AS25: 0.785502225 | AT25: 0.8854307695 | AU25: 0.7609428081 | AV25: 0.1511992607 | AW25: 0.155982578 | AX25: 0.9476268978 | AY25: 0.7927427654 | AZ25: 0.6177317394 | BA25: 0.4992735074 | BB25: 0.1749854619 | BC25: 0.0265012215 | BD25: 0.1729033878 | BE25: 0.2354461691 | BF25: 0.1801387434 | BG25: 0.586811216 | BH25: 0.6367133964 | BI25: 0.3615752177 | BJ25: 0.4191311943 | BK25: 0.2669253179 | BL25: 0.1914206395 | BM25: 0.2675430538 | BN25: 0.180226084 | BO25: 0.02604059318 | BP25: 0.4031133697 | BQ25: 0.7473915723 | BR25: 0.8043302993 | BS25: 0.5099979238 | BT25: 0.675757832 | BU25: 0.3541150218 | BV25: 0.2432838388 | BW25: 0.9826069106 | BX25: 0.1125831797 | BY25: 0.4413683536 | BZ25: 0.8910084018 | CA25: 0.2625348306 | CB25: 0.08681510867 | CC25: 0.8765037125 | CD25: 0.7292564076 | CE25: 0.6950840654 | CF25: 0.3715615129 | CG25: 0.7261380597 | CH25: 0.2989825795 | CI25: 0.4998317531 | CJ25: 0.2500752213 | CK25: 0.4217049126 | CL25: 0.1487281952 | CM25: 0.7646313012 | CN25: 0.5518457091 | CO25: 0.7954909174 | CP25: 0.6005918685 | CQ25: 0.01469828692 | CR25: 0.6171994939 | CS25: 0.1772450948 | CT25: 0.5460508102 | CU25: 0.8238004502 | CV25: 0.5508469589
A26: 0.6434512483 | B26: 0.5099473685 | C26: 0.8079354453 | D26: 0.7083935981 | E26: 0.9907802524 | F26: 0.2508913842 | G26: 0.4803664983 | H26: 0.5509932179 | I26: 0.5314936091 | J26: 0.6006804853 | K26: 0.4282848939 | L26: 0.947013761 | M26: 0.8953421066 | N26: 0.09507991359 | O26: 0.7910169959 | P26: 0.4853227206 | Q26: 0.2681779745 | R26: 0.1099863129 | S26: 0.09271875474 | T26: 0.96274708 | U26: 0.9331871972 | V26: 0.1354455434 | W26: 0.2637272113 | X26: 0.9612082481 | Y26: 0.3988249277 | Z26: 0.6928285245 | AA26: 0.9031284687 | AB26: 0.1752499281 | AC26: 0.8161170739 | AD26: 0.02803532083 | AE26: 0.3725331584 | AF26: 0.08254533754 | AG26: 0.7536639338 | AH26: 0.3137743622 | AI26: 0.4578024807 | AJ26: 0.1017160887 | AK26: 0.932589131 | AL26: 0.6884672099 | AM26: 0.6695438431 | AN26: 0.6183201104 | AO26: 0.7466418755 | AP26: 0.8273034084 | AQ26: 0.5983202039 | AR26: 0.9696575225 | AS26: 0.3640729942 | AT26: 0.7133243783 | AU26: 0.6496678372 | AV26: 0.8129727265 | AW26: 0.8208151496 | AX26: 0.4850257632 | AY26: 0.3417925391 | AZ26: 0.2439622779 | BA26: 0.7705476221 | BB26: 0.5531720345 | BC26: 0.2784941034 | BD26: 0.633790129 | BE26: 0.1298553292 | BF26: 0.4880585203 | BG26: 0.6040247245 | BH26: 0.5303112158 | BI26: 0.7741480353 | BJ26: 0.8022547842 | BK26: 0.7514681734 | BL26: 0.9562925605 | BM26: 0.1881461743 | BN26: 0.2733749394 | BO26: 0.8097055167 | BP26: 0.8891530216 | BQ26: 0.09395893963 | BR26: 0.7474039506 | BS26: 0.7108061825 | BT26: 0.7726443021 | BU26: 0.4756621019 | BV26: 0.2438974837 | BW26: 0.7856483732 | BX26: 0.414122639 | BY26: 0.8132230873 | BZ26: 0.4297212868 | CA26: 0.961685667 | CB26: 0.7888680753 | CC26: 0.218562043 | CD26: 0.8031770047 | CE26: 0.5452009006 | CF26: 0.4636697288 | CG26: 0.8991507855 | CH26: 0.885311699 | CI26: 0.7682194538 | CJ26: 0.1392014174 | CK26: 0.7929427259 | CL26: 0.3852507593 | CM26: 0.9961688991 | CN26: 0.7169220695 | CO26: 0.7248660698 | CP26: 0.9741327311 | CQ26: 0.9669320959 | CR26: 0.3500228616 | CS26: 0.2443287202 | CT26: 0.4270087361 | CU26: 0.4590816507 | CV26: 0.2830071962
A27: 0.6146183494 | B27: 0.1679572064 | C27: 0.6386678527 | D27: 0.5703481981 | E27: 0.06661986624 | F27: 0.09230596857 | G27: 0.1077965386 | H27: 0.8152788424 | I27: 0.5780052326 | J27: 0.9576542489 | K27: 0.3900134017 | L27: 0.04326649309 | M27: 0.7657088835 | N27: 0.4173528639 | O27: 0.9828952231 | P27: 0.1975688382 | Q27: 0.5848798542 | R27: 0.4420553645 | S27: 0.5943684921 | T27: 0.09890891021 | U27: 0.2645726111 | V27: 0.7106658 | W27: 0.7530015375 | X27: 0.6628132129 | Y27: 0.01019705319 | Z27: 0.8457047852 | AA27: 0.1256964944 | AB27: 0.2894657853 | AC27: 0.8239662634 | AD27: 0.3967329757 | AE27: 0.4843975619 | AF27: 0.1042751681 | AG27: 0.4771650701 | AH27: 0.7201853341 | AI27: 0.9183752944 | AJ27: 0.09531236862 | AK27: 0.5624520866 | AL27: 0.4484563202 | AM27: 0.6416428484 | AN27: 0.717042057 | AO27: 0.8455331279 | AP27: 0.4711580216 | AQ27: 0.3777391267 | AR27: 0.01901762305 | AS27: 0.01747028718 | AT27: 0.9607750144 | AU27: 0.3423463619 | AV27: 0.6810802172 | AW27: 0.620208265 | AX27: 0.1986556702 | AY27: 0.6700871299 | AZ27: 0.3849476177 | BA27: 0.7672877667 | BB27: 0.6656820926 | BC27: 0.03832766525 | BD27: 0.3309492241 | BE27: 0.3123821004 | BF27: 0.7012855435 | BG27: 0.5103039114 | BH27: 0.07280262204 | BI27: 0.6933524993 | BJ27: 0.6767633388 | BK27: 0.9062012417 | BL27: 0.7697077641 | BM27: 0.4492049178 | BN27: 0.8793688724 | BO27: 0.7398411002 | BP27: 0.7157229773 | BQ27: 0.001568213945 | BR27: 0.213523542 | BS27: 0.8810493879 | BT27: 0.276762715 | BU27: 0.8596348649 | BV27: 0.678763618 | BW27: 0.3974915304 | BX27: 0.6498717243 | BY27: 0.6364317655 | BZ27: 0.2690966838 | CA27: 0.8605807537 | CB27: 0.03082594435 | CC27: 0.5773635319 | CD27: 0.6278409736 | CE27: 0.7693377529 | CF27: 0.5133437959 | CG27: 0.3994942533 | CH27: 0.9931660978 | CI27: 0.3944876649 | CJ27: 0.9844908728 | CK27: 0.6424386197 | CL27: 0.1628706526 | CM27: 0.6663391869 | CN27: 0.002150950928 | CO27: 0.3066814076 | CP27: 0.4913086411 | CQ27: 0.8668139475 | CR27: 0.5244382547 | CS27: 0.03815008855 | CT27: 0.1447403631 | CU27: 0.5219767743 | CV27: 0.01492302669
A28: 0.6606213883 | B28: 0.7413207468 | C28: 0.8980519579 | D28: 0.2175231065 | E28: 0.7288886851 | F28: 0.006286211806 | G28: 0.6972339671 | H28: 0.2257513841 | I28: 0.4275184007 | J28: 0.08176230193 | K28: 0.7694727703 | L28: 0.3657992883 | M28: 0.05941326864 | N28: 0.7992716618 | O28: 0.1229975906 | P28: 0.8704614058 | Q28: 0.03824758342 | R28: 0.7712574227 | S28: 0.5794642652 | T28: 0.01410530567 | U28: 0.07338014906 | V28: 0.7805550262 | W28: 0.5606861419 | X28: 0.2241014242 | Y28: 0.5661580603 | Z28: 0.7718853943 | AA28: 0.6760706421 | AB28: 0.5731642033 | AC28: 0.8344929461 | AD28: 0.04709282242 | AE28: 0.04509237646 | AF28: 0.06916149319 | AG28: 0.7600742629 | AH28: 0.352010146 | AI28: 0.4092981036 | AJ28: 0.5191566557 | AK28: 0.8133069497 | AL28: 0.5857705297 | AM28: 0.1253829012 | AN28: 0.4136397099 | AO28: 0.03907461839 | AP28: 0.1473272646 | AQ28: 0.8605838537 | AR28: 0.6931138315 | AS28: 0.3171598819 | AT28: 0.2792147459 | AU28: 0.3156096965 | AV28: 0.6243991078 | AW28: 0.1025372248 | AX28: 0.4598461291 | AY28: 0.1757470795 | AZ28: 0.4460437851 | BA28: 0.4098161441 | BB28: 0.7482845231 | BC28: 0.289651917 | BD28: 0.6488347899 | BE28: 0.4185573558 | BF28: 0.9374799202 | BG28: 0.2408303254 | BH28: 0.2214976174 | BI28: 0.5294948333 | BJ28: 0.5618079953 | BK28: 0.09540243104 | BL28: 0.8940732062 | BM28: 0.9229499399 | BN28: 0.3954059175 | BO28: 0.2249968544 | BP28: 0.3951319552 | BQ28: 0.2032098318 | BR28: 0.4180373648 | BS28: 0.4541117553 | BT28: 0.4199835212 | BU28: 0.8241758933 | BV28: 0.4042255394 | BW28: 0.6483437814 | BX28: 0.2796451169 | BY28: 0.3947263222 | BZ28: 0.3374593325 | CA28: 0.05982549297 | CB28: 0.3956229656 | CC28: 0.5061554582 | CD28: 0.3526404393 | CE28: 0.6312869236 | CF28: 0.03459309737 | CG28: 0.3490795397 | CH28: 0.8464875336 | CI28: 0.7221340595 | CJ28: 0.5601113328 | CK28: 0.7323986784 | CL28: 0.5546795521 | CM28: 0.2971157761 | CN28: 0.2653075659 | CO28: 0.8074029699 | CP28: 0.9726526798 | CQ28: 0.7917280165 | CR28: 0.3566753163 | CS28: 0.7759190973 | CT28: 0.6227996298 | CU28: 0.7762930267 | CV28: 0.08400097295
A29: 0.08130973882 | B29: 0.6361825122 | C29: 0.370344406 | D29: 0.1594094292 | E29: 0.9108310147 | F29: 0.739586606 | G29: 0.8768863379 | H29: 0.4317820374 | I29: 0.3589755641 | J29: 0.6456876803 | K29: 0.5770781644 | L29: 0.7818515549 | M29: 0.05519650035 | N29: 0.7564395893 | O29: 0.8663814404 | P29: 0.00860861832 | Q29: 0.2167190303 | R29: 0.6501261972 | S29: 0.9104886333 | T29: 0.8909993099 | U29: 0.7103788317 | V29: 0.09465151576 | W29: 0.6874658687 | X29: 0.7312089139 | Y29: 0.1752199456 | Z29: 0.09086006672 | AA29: 0.3335541205 | AB29: 0.152541847 | AC29: 0.7847980637 | AD29: 0.5078475947 | AE29: 0.6830962501 | AF29: 0.8319129356 | AG29: 0.640440585 | AH29: 0.7932941317 | AI29: 0.1505139007 | AJ29: 0.5882317823 | AK29: 0.651497623 | AL29: 0.2970697992 | AM29: 0.4270189649 | AN29: 0.7537660431 | AO29: 0.7431340779 | AP29: 0.08083147158 | AQ29: 0.9623918786 | AR29: 0.895867285 | AS29: 0.1393991719 | AT29: 0.9948351918 | AU29: 0.522060159 | AV29: 0.5877117266 | AW29: 0.1366379368 | AX29: 0.6549976358 | AY29: 0.2048904978 | AZ29: 0.5644431214 | BA29: 0.584160349 | BB29: 0.5722969309 | BC29: 0.2081963256 | BD29: 0.6274664045 | BE29: 0.8077249644 | BF29: 0.5680101626 | BG29: 0.631251406 | BH29: 0.2890205205 | BI29: 0.6806908931 | BJ29: 0.9459036682 | BK29: 0.397401322 | BL29: 0.8240247216 | BM29: 0.8221235727 | BN29: 0.09327962014 | BO29: 0.6897530043 | BP29: 0.826995403 | BQ29: 0.4637573819 | BR29: 0.5354263091 | BS29: 0.6438780001 | BT29: 0.5747159972 | BU29: 0.9197895385 | BV29: 0.08574020252 | BW29: 0.3537753335 | BX29: 0.7304323454 | BY29: 0.02834876752 | BZ29: 0.7391713712 | CA29: 0.1321631542 | CB29: 0.428159908 | CC29: 0.4092752998 | CD29: 0.6705921561 | CE29: 0.09523247574 | CF29: 0.4747005797 | CG29: 0.07392407285 | CH29: 0.4982151019 | CI29: 0.3155885944 | CJ29: 0.5608225934 | CK29: 0.805507939 | CL29: 0.8607175607 | CM29: 0.658597527 | CN29: 0.8453758614 | CO29: 0.2073803148 | CP29: 0.1276546906 | CQ29: 0.6471791408 | CR29: 0.5649223776 | CS29: 0.9480344402 | CT29: 0.240374486 | CU29: 0.5160861835 | CV29: 0.7391816894
A30: 0.245758988 | B30: 0.803153989 | C30: 0.3822461273 | D30: 0.06972236013 | E30: 0.03685466201 | F30: 0.7937044952 | G30: 0.6335048393 | H30: 0.05964007901 | I30: 0.03393905949 | J30: 0.5603188948 | K30: 0.9641981863 | L30: 0.3834301708 | M30: 0.3614468848 | N30: 0.723217512 | O30: 0.7754455438 | P30: 0.4980981201 | Q30: 0.2532739082 | R30: 0.9752713896 | S30: 0.9693347123 | T30: 0.3928178611 | U30: 0.3137320133 | V30: 0.1838212785 | W30: 0.9158400969 | X30: 0.3982164473 | Y30: 0.8079573032 | Z30: 0.8048104427 | AA30: 0.63627282 | AB30: 0.4162580506 | AC30: 0.1946141953 | AD30: 0.0123084672 | AE30: 0.1543866655 | AF30: 0.6757324485 | AG30: 0.3809895267 | AH30: 0.0414747598 | AI30: 0.7936188988 | AJ30: 0.3297365496 | AK30: 0.7717279479 | AL30: 0.0983794783 | AM30: 0.7850604173 | AN30: 0.7580635827 | AO30: 0.8658797511 | AP30: 0.4821812395 | AQ30: 0.1598996923 | AR30: 0.4733859413 | AS30: 0.1961076582 | AT30: 0.1771236416 | AU30: 0.1555232212 | AV30: 0.7549724494 | AW30: 0.7822744486 | AX30: 0.2306431193 | AY30: 0.08513469183 | AZ30: 0.2357903665 | BA30: 0.7958144111 | BB30: 0.803596654 | BC30: 0.223101321 | BD30: 0.9554769258 | BE30: 0.9664905569 | BF30: 0.8359142126 | BG30: 0.9188090548 | BH30: 0.1230175647 | BI30: 0.3343592379 | BJ30: 0.9899324013 | BK30: 0.8448703085 | BL30: 0.102107837 | BM30: 0.1838877546 | BN30: 0.9526297412 | BO30: 0.8394741953 | BP30: 0.2886558043 | BQ30: 0.4450610209 | BR30: 0.239797029 | BS30: 0.4583685278 | BT30: 0.9984480779 | BU30: 0.3766921171 | BV30: 0.6432534916 | BW30: 0.3947009519 | BX30: 0.6579377258 | BY30: 0.1470101256 | BZ30: 0.4397118138 | CA30: 0.2499148976 | CB30: 0.649392396 | CC30: 0.3518665225 | CD30: 0.5756493604 | CE30: 0.8040548979 | CF30: 0.9196895519 | CG30: 0.1513326165 | CH30: 0.3498641954 | CI30: 0.389177511 | CJ30: 0.5833577833 | CK30: 0.05064013912 | CL30: 0.2577795813 | CM30: 0.8840914767 | CN30: 0.7539902645 | CO30: 0.5126772978 | CP30: 0.68611662 | CQ30: 0.01959901258 | CR30: 0.08411900529 | CS30: 0.04437048477 | CT30: 0.2636710283 | CU30: 0.3900748594 | CV30: 0.3995727924
A31: 0.03175241664 | B31: 0.1773843729 | C31: 0.8074106878 | D31: 0.680911595 | E31: 0.2231721452 | F31: 0.08871371496 | G31: 0.4253786912 | H31: 0.5834351483 | I31: 0.3154745577 | J31: 0.07814354487 | K31: 0.2331434421 | L31: 0.6064530809 | M31: 0.1427912249 | N31: 0.5590464233 | O31: 0.1664946293 | P31: 0.1940629081 | Q31: 0.1786462387 | R31: 0.2268156908 | S31: 0.3847019787 | T31: 0.2063935473 | U31: 0.2166674521 | V31: 0.6484541445 | W31: 0.7767877834 | X31: 0.6721315277 | Y31: 0.5295983187 | Z31: 0.9043417667 | AA31: 0.3885947746 | AB31: 0.6963206274 | AC31: 0.782084292 | AD31: 0.5187417927 | AE31: 0.6733750741 | AF31: 0.2604818013 | AG31: 0.858409016 | AH31: 0.965901531 | AI31: 0.3230575184 | AJ31: 0.4705180965 | AK31: 0.6814295739 | AL31: 0.8863406272 | AM31: 0.1335275427 | AN31: 0.424556963 | AO31: 0.5823340149 | AP31: 0.4407740159 | AQ31: 0.5685515293 | AR31: 0.8001321547 | AS31: 0.33474368 | AT31: 0.6196497424 | AU31: 0.653723897 | AV31: 0.472706567 | AW31: 0.2637183961 | AX31: 0.6281268621 | AY31: 0.3859661985 | AZ31: 0.2018007052 | BA31: 0.5027214865 | BB31: 0.1310467935 | BC31: 0.08533487019 | BD31: 0.8649480738 | BE31: 0.8910177827 | BF31: 0.180069888 | BG31: 0.988319585 | BH31: 0.4464395528 | BI31: 0.4461333001 | BJ31: 0.09766655075 | BK31: 0.4010526508 | BL31: 0.6821169737 | BM31: 0.05286253188 | BN31: 0.5530480837 | BO31: 0.7530483282 | BP31: 0.8751596662 | BQ31: 0.7618299968 | BR31: 0.1722218625 | BS31: 0.3413937083 | BT31: 0.3452764971 | BU31: 0.001197697793 | BV31: 0.9842195102 | BW31: 0.1644330378 | BX31: 0.5822540416 | BY31: 0.1883597331 | BZ31: 0.1425406697 | CA31: 0.7978031389 | CB31: 0.1891924087 | CC31: 0.4842166432 | CD31: 0.1351617349 | CE31: 0.3391512835 | CF31: 0.430268053 | CG31: 0.170060036 | CH31: 0.4915241912 | CI31: 0.732141255 | CJ31: 0.714032754 | CK31: 0.926775515 | CL31: 0.5660696999 | CM31: 0.7566850565 | CN31: 0.1047607011 | CO31: 0.7897210731 | CP31: 0.8440952229 | CQ31: 0.08874387478 | CR31: 0.4912767929 | CS31: 0.5743926545 | CT31: 0.4968792844 | CU31: 0.7381256732 | CV31: 0.05490916724
A32: 0.3555920351 | B32: 0.3228810368 | C32: 0.4485932902 | D32: 0.003130739484 | E32: 0.7106355068 | F32: 0.1936155471 | G32: 0.3649253899 | H32: 0.1121625099 | I32: 0.2626698363 | J32: 0.411023408 | K32: 0.1089214432 | L32: 0.2750228569 | M32: 0.5601485402 | N32: 0.8775500812 | O32: 0.2671044237 | P32: 0.1909535096 | Q32: 0.3910224331 | R32: 0.2748861429 | S32: 0.7038021871 | T32: 0.9337792074 | U32: 0.608822107 | V32: 0.8868209009 | W32: 0.3424144119 | X32: 0.4481600836 | Y32: 0.7063664623 | Z32: 0.5327276515 | AA32: 0.6832306495 | AB32: 0.6773468398 | AC32: 0.3617218832 | AD32: 0.9156252801 | AE32: 0.9776701347 | AF32: 0.3196610491 | AG32: 0.7653746387 | AH32: 0.03393489768 | AI32: 0.8885623884 | AJ32: 0.7864761967 | AK32: 0.1578415017 | AL32: 0.7509964286 | AM32: 0.228990536 | AN32: 0.8124995008 | AO32: 0.6209403705 | AP32: 0.5504949017 | AQ32: 0.7895358611 | AR32: 0.6798945369 | AS32: 0.01542840759 | AT32: 0.02745323932 | AU32: 0.2178437561 | AV32: 0.6219815848 | AW32: 0.391971708 | AX32: 0.1419134631 | AY32: 0.4469089182 | AZ32: 0.08787681466 | BA32: 0.7842471814 | BB32: 0.6328802199 | BC32: 0.9385752244 | BD32: 0.5725211527 | BE32: 0.3780412287 | BF32: 0.03358671044 | BG32: 0.2568542654 | BH32: 0.4180480768 | BI32: 0.9805810142 | BJ32: 0.7119961626 | BK32: 0.6889576973 | BL32: 0.4157999647 | BM32: 0.1884176331 | BN32: 0.2363897624 | BO32: 0.4348256896 | BP32: 0.8075804427 | BQ32: 0.2837906055 | BR32: 0.062113092 | BS32: 0.9812555619 | BT32: 0.2355083232 | BU32: 0.5831042367 | BV32: 0.02108814972 | BW32: 0.6208584226 | BX32: 0.8249606387 | BY32: 0.5867795383 | BZ32: 0.07795212442 | CA32: 0.7164419055 | CB32: 0.3334447586 | CC32: 0.359603002 | CD32: 0.9113143418 | CE32: 0.4713090163 | CF32: 0.3912181124 | CG32: 0.3593533651 | CH32: 0.1940794057 | CI32: 0.8048452833 | CJ32: 0.2973912603 | CK32: 0.2680594387 | CL32: 0.6545626883 | CM32: 0.4617319268 | CN32: 0.1442382943 | CO32: 0.9086184225 | CP32: 0.6560740291 | CQ32: 0.5967172451 | CR32: 0.1996718068 | CS32: 0.9611783406 | CT32: 0.6696300144 | CU32: 0.5458415266 | CV32: 0.8779697006
A33: 0.5045654474 | B33: 0.4739279255 | C33: 0.9428077482 | D33: 0.3994221162 | E33: 0.9478210148 | F33: 0.9663524287 | G33: 0.63753548 | H33: 0.02209007586 | I33: 0.06429968669 | J33: 0.798877989 | K33: 0.4486318902 | L33: 0.6089125642 | M33: 0.4025310106 | N33: 0.1770570245 | O33: 0.2308130928 | P33: 0.5142583668 | Q33: 0.5335972387 | R33: 0.9452732596 | S33: 0.09734125907 | T33: 0.936332004 | U33: 0.3290453916 | V33: 0.2339844737 | W33: 0.1379640846 | X33: 0.4165146014 | Y33: 0.53078943 | Z33: 0.9408643916 | AA33: 0.436248914 | AB33: 0.2268878638 | AC33: 0.953533072 | AD33: 0.304000061 | AE33: 0.9487575039 | AF33: 0.9053387657 | AG33: 0.2390384244 | AH33: 0.06168485122 | AI33: 0.927328751 | AJ33: 0.5454920247 | AK33: 0.8463867107 | AL33: 0.706530433 | AM33: 0.9086830072 | AN33: 0.9680711568 | AO33: 0.9068160539 | AP33: 0.5936098878 | AQ33: 0.7829827322 | AR33: 0.08961717989 | AS33: 0.510351182 | AT33: 0.3356666012 | AU33: 0.2852678513 | AV33: 0.5492064248 | AW33: 0.8497523614 | AX33: 0.1291385498 | AY33: 0.6636849446 | AZ33: 0.4671245068 | BA33: 0.8375044487 | BB33: 0.6912718399 | BC33: 0.3534477576 | BD33: 0.8503171763 | BE33: 0.08480347879 | BF33: 0.3343556685 | BG33: 0.5342278099 | BH33: 0.6516990862 | BI33: 0.3922932839 | BJ33: 0.8554306251 | BK33: 0.3445632934 | BL33: 0.992463911 | BM33: 0.9698362035 | BN33: 0.8244178452 | BO33: 0.9586990214 | BP33: 0.2719309223 | BQ33: 0.3487655839 | BR33: 0.3230446454 | BS33: 0.1147089351 | BT33: 0.8886671782 | BU33: 0.1190891223 | BV33: 0.01202344038 | BW33: 0.9586554713 | BX33: 0.625681079 | BY33: 0.6786739195 | BZ33: 0.6948589555 | CA33: 0.6661241802 | CB33: 0.07079075184 | CC33: 0.4241009374 | CD33: 0.2975095119 | CE33: 0.9342270525 | CF33: 0.1412835429 | CG33: 0.2899481812 | CH33: 0.3559228721 | CI33: 0.5830476546 | CJ33: 0.2597752792 | CK33: 0.785352656 | CL33: 0.1461006518 | CM33: 0.2295956986 | CN33: 0.6195693512 | CO33: 0.8269461989 | CP33: 0.07287201507 | CQ33: 0.1010618104 | CR33: 0.9683433104 | CS33: 0.9109352121 | CT33: 0.5385759911 | CU33: 0.8243355775 | CV33: 0.6591210484
A34: 0.6027230954 | B34: 0.1053267367 | C34: 0.9571611625 | D34: 0.1944794691 | E34: 0.3508969604 | F34: 0.1972326848 | G34: 0.1653611044 | H34: 0.5855717376 | I34: 0.2885281855 | J34: 0.1578787841 | K34: 0.6471119618 | L34: 0.5124427891 | M34: 0.3644188303 | N34: 0.06278269635 | O34: 0.819518244 | P34: 0.8068925531 | Q34: 0.9585747882 | R34: 0.2480898646 | S34: 0.4696504986 | T34: 0.2653029898 | U34: 0.5019075968 | V34: 0.7362073155 | W34: 0.7768091169 | X34: 0.554230264 | Y34: 0.3966158427 | Z34: 0.04176939751 | AA34: 0.1890005045 | AB34: 0.1471197488 | AC34: 0.1507886547 | AD34: 0.3865357123 | AE34: 0.7443898986 | AF34: 0.687504756 | AG34: 0.2065001655 | AH34: 0.7545518199 | AI34: 0.7258438169 | AJ34: 0.5190155887 | AK34: 0.9958391466 | AL34: 0.6035792253 | AM34: 0.3977657994 | AN34: 0.09662155321 | AO34: 0.6062394029 | AP34: 0.6055309477 | AQ34: 0.7798998888 | AR34: 0.5370694813 | AS34: 0.4667322297 | AT34: 0.3715721148 | AU34: 0.8965862653 | AV34: 0.7908508883 | AW34: 0.9771144651 | AX34: 0.8514362126 | AY34: 0.6605796653 | AZ34: 0.9882799205 | BA34: 0.8774240991 | BB34: 0.7314227205 | BC34: 0.7140856701 | BD34: 0.08582366278 | BE34: 0.105214384 | BF34: 0.05513561589 | BG34: 0.2361852786 | BH34: 0.4155524707 | BI34: 0.1571307908 | BJ34: 0.5049328655 | BK34: 0.3971402447 | BL34: 0.5200686778 | BM34: 0.5709954481 | BN34: 0.5384836323 | BO34: 0.3038673097 | BP34: 0.4677287543 | BQ34: 0.5268825947 | BR34: 0.8177846289 | BS34: 0.5201730422 | BT34: 0.01666546846 | BU34: 0.169790951 | BV34: 0.4221310502 | BW34: 0.1312644059 | BX34: 0.5096011611 | BY34: 0.7142736666 | BZ34: 0.5475899869 | CA34: 0.2992599325 | CB34: 0.8609654113 | CC34: 0.4411927293 | CD34: 0.397086147 | CE34: 0.1187572756 | CF34: 0.4669070902 | CG34: 0.4721479518 | CH34: 0.06833025159 | CI34: 0.6558768216 | CJ34: 0.07917757522 | CK34: 0.9985416814 | CL34: 0.6296771506 | CM34: 0.7111237275 | CN34: 0.1813788927 | CO34: 0.6400250785 | CP34: 0.7884605456 | CQ34: 0.2036010888 | CR34: 0.5641181797 | CS34: 0.9368409913 | CT34: 0.9742025698 | CU34: 0.325284285 | CV34: 0.3424029445
A35: 0.3396388419 | B35: 0.5375676909 | C35: 0.2257354751 | D35: 0.8697815405 | E35: 0.3263356445 | F35: 0.1943904746 | G35: 0.2352851876 | H35: 0.6838267787 | I35: 0.6658959758 | J35: 0.6198501358 | K35: 0.6970311443 | L35: 0.3509267682 | M35: 0.06078297129 | N35: 0.2890914512 | O35: 0.3398756271 | P35: 0.5916188318 | Q35: 0.3117852458 | R35: 0.9736950605 | S35: 0.4083566152 | T35: 0.03501949549 | U35: 0.5575843554 | V35: 0.4684928782 | W35: 0.9942345415 | X35: 0.1822840433 | Y35: 0.9961473822 | Z35: 0.1371732814 | AA35: 0.1114644668 | AB35: 0.1445367525 | AC35: 0.6235461454 | AD35: 0.9210825616 | AE35: 0.7111016504 | AF35: 0.7632149749 | AG35: 0.006743187948 | AH35: 0.5387607425 | AI35: 0.8173342222 | AJ35: 0.986933388 | AK35: 0.7140781843 | AL35: 0.5999517329 | AM35: 0.4703609118 | AN35: 0.2814244811 | AO35: 0.922832974 | AP35: 0.1433066027 | AQ35: 0.03978122389 | AR35: 0.2493494687 | AS35: 0.4094392949 | AT35: 0.8199825188 | AU35: 0.2783551547 | AV35: 0.8138602223 | AW35: 0.06279185427 | AX35: 0.5785009822 | AY35: 0.5257810459 | AZ35: 0.4138145765 | BA35: 0.8923729608 | BB35: 0.429093751 | BC35: 0.8687207643 | BD35: 0.634449781 | BE35: 0.7089830796 | BF35: 0.3057056425 | BG35: 0.009273644862 | BH35: 0.4436228117 | BI35: 0.0183133262 | BJ35: 0.6787689992 | BK35: 0.8999242829 | BL35: 0.7224541985 | BM35: 0.9247074988 | BN35: 0.5336261531 | BO35: 0.3939422967 | BP35: 0.2725191614 | BQ35: 0.08733379848 | BR35: 0.763948525 | BS35: 0.07843488699 | BT35: 0.718331885 | BU35: 0.7053707692 | BV35: 0.2657858213 | BW35: 0.01932991326 | BX35: 0.1667406996 | BY35: 0.6339632012 | BZ35: 0.8100349767 | CA35: 0.08509854489 | CB35: 0.3873951624 | CC35: 0.725836545 | CD35: 0.3003771611 | CE35: 0.8857083579 | CF35: 0.2658429542 | CG35: 0.6871954339 | CH35: 0.066903169 | CI35: 0.839021018 | CJ35: 0.0171619701 | CK35: 0.8225595945 | CL35: 0.4326168144 | CM35: 0.3867405875 | CN35: 0.2377006019 | CO35: 0.8300137005 | CP35: 0.9667262825 | CQ35: 0.8021514797 | CR35: 0.1421069729 | CS35: 0.7222604507 | CT35: 0.667107352 | CU35: 0.2277498947 | CV35: 0.2680427563
A36: 0.1591817662 | B36: 0.3151314261 | C36: 0.1000275803 | D36: 0.5443748695 | E36: 0.1584239039 | F36: 0.3013495185 | G36: 0.9370944566 | H36: 0.384545136 | I36: 0.6296085633 | J36: 0.9218100239 | K36: 0.6949439528 | L36: 0.3640034139 | M36: 0.255396656 | N36: 0.07897313114 | O36: 0.7070613304 | P36: 0.9851862415 | Q36: 0.2635373416 | R36: 0.2351532001 | S36: 0.9547952481 | T36: 0.7820858235 | U36: 0.1274541791 | V36: 0.1868851525 | W36: 0.4673204595 | X36: 0.7311184845 | Y36: 0.1529854637 | Z36: 0.2490841028 | AA36: 0.2160873782 | AB36: 0.6845938998 | AC36: 0.04613893534 | AD36: 0.4487570456 | AE36: 0.6866714547 | AF36: 0.9754548811 | AG36: 0.06552579881 | AH36: 0.8100327266 | AI36: 0.7554518584 | AJ36: 0.7192256624 | AK36: 0.4378391375 | AL36: 0.5407052931 | AM36: 0.7821404008 | AN36: 0.9685407762 | AO36: 0.05675067893 | AP36: 0.1076625502 | AQ36: 0.7830655629 | AR36: 0.6248160061 | AS36: 0.04194501625 | AT36: 0.5479730833 | AU36: 0.7022517499 | AV36: 0.2955733024 | AW36: 0.7867101266 | AX36: 0.1892497552 | AY36: 0.8823313151 | AZ36: 0.4123886117 | BA36: 0.2511707765 | BB36: 0.421101126 | BC36: 0.5876906434 | BD36: 0.3644559312 | BE36: 0.5842510009 | BF36: 0.8354388283 | BG36: 0.3717261869 | BH36: 0.6303214139 | BI36: 0.9614905763 | BJ36: 0.2368915301 | BK36: 0.1109302221 | BL36: 0.6372687949 | BM36: 0.3062324251 | BN36: 0.9717406143 | BO36: 0.9678271357 | BP36: 0.3682594415 | BQ36: 0.1955029431 | BR36: 0.7425929957 | BS36: 0.96458675 | BT36: 0.2426758761 | BU36: 0.01261331737 | BV36: 0.4967128814 | BW36: 0.5867505888 | BX36: 0.8636038559 | BY36: 0.9623965992 | BZ36: 0.5795797338 | CA36: 0.02885904144 | CB36: 0.1362681216 | CC36: 0.6027249983 | CD36: 0.8916246242 | CE36: 0.01174038506 | CF36: 0.4692505436 | CG36: 0.7330435594 | CH36: 0.9868642981 | CI36: 0.01417907546 | CJ36: 0.7139405045 | CK36: 0.521767574 | CL36: 0.3413877683 | CM36: 0.5683644729 | CN36: 0.3970621882 | CO36: 0.635044786 | CP36: 0.4483608544 | CQ36: 0.1649532573 | CR36: 0.3072055144 | CS36: 0.1636254059 | CT36: 0.7085781297 | CU36: 0.9507128252 | CV36: 0.02923246095
A37: 0.5751728975 | B37: 0.3160618411 | C37: 0.852583591 | D37: 0.7829566549 | E37: 0.1464825449 | F37: 0.355421956 | G37: 0.2132814662 | H37: 0.8736799394 | I37: 0.8814385686 | J37: 0.5024896244 | K37: 0.5347459366 | L37: 0.8270006232 | M37: 0.1370401188 | N37: 0.6097847544 | O37: 0.2325968064 | P37: 0.3064211438 | Q37: 0.8858210102 | R37: 0.7320337415 | S37: 0.7816009374 | T37: 0.6991130749 | U37: 0.1172410329 | V37: 0.8161317434 | W37: 0.9110264017 | X37: 0.6607952135 | Y37: 0.2121878814 | Z37: 0.3108736595 | AA37: 0.8453151851 | AB37: 0.6104555411 | AC37: 0.4671270307 | AD37: 0.8123426506 | AE37: 0.4879213658 | AF37: 0.02222657826 | AG37: 0.190177477 | AH37: 0.2383389684 | AI37: 0.342659615 | AJ37: 0.5426040277 | AK37: 0.7896575615 | AL37: 0.824677237 | AM37: 0.6901428893 | AN37: 0.8096317432 | AO37: 0.4040594446 | AP37: 0.2681766097 | AQ37: 0.3629350594 | AR37: 0.5013307533 | AS37: 0.1946956233 | AT37: 0.09792673273 | AU37: 0.6714128127 | AV37: 0.3411945528 | AW37: 0.5034172731 | AX37: 0.7082316008 | AY37: 0.8424069597 | AZ37: 0.8871964524 | BA37: 0.2044149851 | BB37: 0.5701974948 | BC37: 0.5366981417 | BD37: 0.01384905403 | BE37: 0.6530531706 | BF37: 0.7522223034 | BG37: 0.1448499456 | BH37: 0.6719276598 | BI37: 0.7697609809 | BJ37: 0.0425191735 | BK37: 0.7968961855 | BL37: 0.543797589 | BM37: 0.7989402795 | BN37: 0.2975258526 | BO37: 0.7060877471 | BP37: 0.4008120477 | BQ37: 0.6600884957 | BR37: 0.3673453139 | BS37: 0.9399348061 | BT37: 0.8943260047 | BU37: 0.5056974772 | BV37: 0.8728771926 | BW37: 0.1156183248 | BX37: 0.5125385056 | BY37: 0.6914169779 | BZ37: 0.8977742718 | CA37: 0.07640587222 | CB37: 0.8519824892 | CC37: 0.2939285746 | CD37: 0.3111440999 | CE37: 0.6523425318 | CF37: 0.7012678065 | CG37: 0.2950356482 | CH37: 0.4221400843 | CI37: 0.493474352 | CJ37: 0.5577485416 | CK37: 0.09171757586 | CL37: 0.3972134733 | CM37: 0.04194704243 | CN37: 0.007394657426 | CO37: 0.1365893738 | CP37: 0.06398584829 | CQ37: 0.4274307529 | CR37: 0.2669419718 | CS37: 0.6849479771 | CT37: 0.7652897882 | CU37: 0.04406102015 | CV37: 0.1693874124
A38: 0.01937027106 | B38: 0.2381525797 | C38: 0.8087234277 | D38: 0.7865605576 | E38: 0.1109893425 | F38: 0.7755205085 | G38: 0.4435218887 | H38: 0.1029880842 | I38: 0.8823633624 | J38: 0.8730661743 | K38: 0.8364935678 | L38: 0.6878738736 | M38: 0.5845275699 | N38: 0.3616084047 | O38: 0.01265943601 | P38: 0.9412980661 | Q38: 0.3201262728 | R38: 0.2125585692 | S38: 0.8599920841 | T38: 0.4482256306 | U38: 0.960922698 | V38: 0.4726553905 | W38: 0.104372812 | X38: 0.1262999797 | Y38: 0.3462927121 | Z38: 0.08207775169 | AA38: 0.4731083798 | AB38: 0.7498114222 | AC38: 0.7804882584 | AD38: 0.83561272 | AE38: 0.8085096355 | AF38: 0.5103968462 | AG38: 0.1769182932 | AH38: 0.9329799511 | AI38: 0.358395933 | AJ38: 0.6595485085 | AK38: 0.1591937873 | AL38: 0.7936729465 | AM38: 0.4446558211 | AN38: 0.2467356682 | AO38: 0.5794329692 | AP38: 0.8364551925 | AQ38: 0.1738624654 | AR38: 0.4660062523 | AS38: 0.005625372772 | AT38: 0.3228362272 | AU38: 0.2477966192 | AV38: 0.5691829384 | AW38: 0.9363071505 | AX38: 0.8341282433 | AY38: 0.6867578242 | AZ38: 0.8942519074 | BA38: 0.8275808467 | BB38: 0.6517276289 | BC38: 0.4735572405 | BD38: 0.618989324 | BE38: 0.3506518188 | BF38: 0.4872102877 | BG38: 0.4342265751 | BH38: 0.6114085352 | BI38: 0.4452906397 | BJ38: 0.8763154214 | BK38: 0.6758286224 | BL38: 0.2881113161 | BM38: 0.8708707341 | BN38: 0.8454098138 | BO38: 0.8737418002 | BP38: 0.5992209855 | BQ38: 0.8355466475 | BR38: 0.1467475647 | BS38: 0.8662874206 | BT38: 0.1819701666 | BU38: 0.128059277 | BV38: 0.5951555201 | BW38: 0.1620540552 | BX38: 0.5428085137 | BY38: 0.9521843806 | BZ38: 0.1705788027 | CA38: 0.7746313595 | CB38: 0.197733866 | CC38: 0.7531627373 | CD38: 0.1139545943 | CE38: 0.4542320349 | CF38: 0.3785524941 | CG38: 0.275767852 | CH38: 0.3614022359 | CI38: 0.144297137 | CJ38: 0.7465988547 | CK38: 0.839262277 | CL38: 0.8051290869 | CM38: 0.6742897741 | CN38: 0.07329242745 | CO38: 0.3445298385 | CP38: 0.9252776384 | CQ38: 0.778107401 | CR38: 0.2084605393 | CS38: 0.7389553254 | CT38: 0.5523220169 | CU38: 0.8380259416 | CV38: 0.8405289482
A39: 0.1376528487 | B39: 0.7845594848 | C39: 0.6139472397 | D39: 0.3406445665 | E39: 0.1184304551 | F39: 0.5300208543 | G39: 0.7456700291 | H39: 0.009690023665 | I39: 0.5505607311 | J39: 0.4597676585 | K39: 0.9378996945 | L39: 0.7920632806 | M39: 0.7353545005 | N39: 0.7311321538 | O39: 0.8684590524 | P39: 0.1243118305 | Q39: 0.2986610425 | R39: 0.06520556421 | S39: 0.1448108108 | T39: 0.2040441622 | U39: 0.8887222802 | V39: 0.8921791995 | W39: 0.1818501207 | X39: 0.01469589164 | Y39: 0.8852663571 | Z39: 0.4948271591 | AA39: 0.2508495932 | AB39: 0.6334820544 | AC39: 0.4153133053 | AD39: 0.7592510769 | AE39: 0.7792788868 | AF39: 0.9220477611 | AG39: 0.04719577129 | AH39: 0.5609622909 | AI39: 0.4731605699 | AJ39: 0.9028559818 | AK39: 0.02870248998 | AL39: 0.6103990418 | AM39: 0.5622699888 | AN39: 0.7163016021 | AO39: 0.8746515942 | AP39: 0.562723398 | AQ39: 0.3361871648 | AR39: 0.9999429285 | AS39: 0.1185949953 | AT39: 0.1538057595 | AU39: 0.2204932955 | AV39: 0.0302857815 | AW39: 0.78166994 | AX39: 0.3205338033 | AY39: 0.2021427968 | AZ39: 0.565241797 | BA39: 0.7478323318 | BB39: 0.8711890469 | BC39: 0.8799797666 | BD39: 0.5219468631 | BE39: 0.944346282 | BF39: 0.07671719376 | BG39: 0.8459700951 | BH39: 0.6616300243 | BI39: 0.08942390767 | BJ39: 0.04663742256 | BK39: 0.6968731853 | BL39: 0.4530188275 | BM39: 0.7275624485 | BN39: 0.06998253901 | BO39: 0.9395847448 | BP39: 0.8398890823 | BQ39: 0.4344094889 | BR39: 0.1708170792 | BS39: 0.4098347904 | BT39: 0.5499917406 | BU39: 0.8239836979 | BV39: 0.7434909593 | BW39: 0.4259996663 | BX39: 0.5949215045 | BY39: 0.9548572066 | BZ39: 0.9343400362 | CA39: 0.5394185264 | CB39: 0.8693347949 | CC39: 0.7069196429 | CD39: 0.8334226078 | CE39: 0.7668808696 | CF39: 0.9145351599 | CG39: 0.6389637977 | CH39: 0.2016891355 | CI39: 0.6077630677 | CJ39: 0.9453073994 | CK39: 0.2361028894 | CL39: 0.3591798797 | CM39: 0.3299932524 | CN39: 0.2059070784 | CO39: 0.01541504125 | CP39: 0.026939573 | CQ39: 0.8058784402 | CR39: 0.584188018 | CS39: 0.7744708768 | CT39: 0.963088126 | CU39: 0.5898426263 | CV39: 0.3183212604
A40: 0.7570576861 | B40: 0.6263321696 | C40: 0.5330325023 | D40: 0.9838673904 | E40: 0.1066204338 | F40: 0.7621299878 | G40: 0.1991296213 | H40: 0.09156243419 | I40: 0.07638946815 | J40: 0.056663729 | K40: 0.2891037226 | L40: 0.1321037106 | M40: 0.4930117537 | N40: 0.2027237066 | O40: 0.2052200433 | P40: 0.6580135718 | Q40: 0.2104182116 | R40: 0.7544478889 | S40: 0.7554605595 | T40: 0.538254773 | U40: 0.4957816524 | V40: 0.003329811155 | W40: 0.4424355961 | X40: 0.7640713001 | Y40: 0.1615721218 | Z40: 0.4896976113 | AA40: 0.5020736963 | AB40: 0.1479315311 | AC40: 0.5702808073 | AD40: 0.603766464 | AE40: 0.4161465853 | AF40: 0.6499274968 | AG40: 0.6396080786 | AH40: 0.8518956774 | AI40: 0.2253376003 | AJ40: 0.5582583112 | AK40: 0.7562883218 | AL40: 0.1960728376 | AM40: 0.568674063 | AN40: 0.7561260035 | AO40: 0.3162633507 | AP40: 0.4163340203 | AQ40: 0.6781017677 | AR40: 0.7330276231 | AS40: 0.5707075936 | AT40: 0.8255835225 | AU40: 0.8536256054 | AV40: 0.526918014 | AW40: 0.1509690374 | AX40: 0.9665632807 | AY40: 0.3820656795 | AZ40: 0.08518832817 | BA40: 0.4351740841 | BB40: 0.7214706207 | BC40: 0.213192555 | BD40: 0.4110282674 | BE40: 0.04436946159 | BF40: 0.09867264011 | BG40: 0.6567396656 | BH40: 0.5126314963 | BI40: 0.2341391212 | BJ40: 0.9414381602 | BK40: 0.813225821 | BL40: 0.1618435725 | BM40: 0.6292168592 | BN40: 0.2203874657 | BO40: 0.7327999805 | BP40: 0.9591413874 | BQ40: 0.5934125454 | BR40: 0.8213048912 | BS40: 0.8626407243 | BT40: 0.1315250498 | BU40: 0.6566586004 | BV40: 0.3069426169 | BW40: 0.0497696548 | BX40: 0.9788769401 | BY40: 0.4403630367 | BZ40: 0.6757492374 | CA40: 0.3941979123 | CB40: 0.538552199 | CC40: 0.6821222852 | CD40: 0.5644496968 | CE40: 0.6466176228 | CF40: 0.9477568653 | CG40: 0.7136132212 | CH40: 0.487018607 | CI40: 0.05274855628 | CJ40: 0.2151613321 | CK40: 0.02290828981 | CL40: 0.16030701 | CM40: 0.2177348249 | CN40: 0.4409036953 | CO40: 0.9073414603 | CP40: 0.9166476363 | CQ40: 0.5956412087 | CR40: 0.4667725614 | CS40: 0.299106396 | CT40: 0.3118660123 | CU40: 0.2394906078 | CV40: 0.1767209853
A41: 0.9862881806 | B41: 0.3312397859 | C41: 0.5306295793 | D41: 0.9326969383 | E41: 0.7981836507 | F41: 0.7175848119 | G41: 0.9648567637 | H41: 0.0006898125421 | I41: 0.5016350301 | J41: 0.9967749273 | K41: 0.6790967143 | L41: 0.825535566 | M41: 0.7914821408 | N41: 0.6705596327 | O41: 0.3966256187 | P41: 0.7714312256 | Q41: 0.4928087364 | R41: 0.6660434532 | S41: 0.9097452798 | T41: 0.03281119924 | U41: 0.8768926625 | V41: 0.4476740008 | W41: 0.9978462762 | X41: 0.8575478144 | Y41: 0.7926246551 | Z41: 0.637039281 | AA41: 0.7497627133 | AB41: 0.2934472896 | AC41: 0.06776609176 | AD41: 0.3067476992 | AE41: 0.4127859442 | AF41: 0.6365135997 | AG41: 0.1434826752 | AH41: 0.6369567531 | AI41: 0.1307333847 | AJ41: 0.526657551 | AK41: 0.3542991379 | AL41: 0.307208058 | AM41: 0.510741726 | AN41: 0.3050015303 | AO41: 0.3040729338 | AP41: 0.3263848696 | AQ41: 0.7886004326 | AR41: 0.2483740554 | AS41: 0.9760271015 | AT41: 0.5393571828 | AU41: 0.1309623735 | AV41: 0.5730622925 | AW41: 0.9392295915 | AX41: 0.4251177469 | AY41: 0.8058235661 | AZ41: 0.8856684903 | BA41: 0.2641908161 | BB41: 0.4570694142 | BC41: 0.2086154568 | BD41: 0.6074071562 | BE41: 0.2724943047 | BF41: 0.4588464644 | BG41: 0.3849436985 | BH41: 0.8102991572 | BI41: 0.04590889084 | BJ41: 0.5792913444 | BK41: 0.8478754866 | BL41: 0.9916502677 | BM41: 0.6555657122 | BN41: 0.5484188952 | BO41: 0.1313169037 | BP41: 0.0102584113 | BQ41: 0.6160767026 | BR41: 0.9217204999 | BS41: 0.1989170837 | BT41: 0.930384393 | BU41: 0.7085601125 | BV41: 0.2511077483 | BW41: 0.9121664042 | BX41: 0.7244786674 | BY41: 0.03946407586 | BZ41: 0.4857727155 | CA41: 0.6039899875 | CB41: 0.8288353513 | CC41: 0.02100920133 | CD41: 0.5884917629 | CE41: 0.06985404269 | CF41: 0.7846725522 | CG41: 0.8655003245 | CH41: 0.05641749086 | CI41: 0.125818607 | CJ41: 0.8283578641 | CK41: 0.2118569613 | CL41: 0.5474328863 | CM41: 0.5670937822 | CN41: 0.509870838 | CO41: 0.482536774 | CP41: 0.2028095903 | CQ41: 0.754995531 | CR41: 0.543402645 | CS41: 0.9316615853 | CT41: 0.1259577936 | CU41: 0.4436080043 | CV41: 0.4917198273
A42: 0.8505403311 | B42: 0.3167215827 | C42: 0.897880254 | D42: 0.754982854 | E42: 0.0005787335823 | F42: 0.4567769152 | G42: 0.4653428102 | H42: 0.1514518048 | I42: 0.1486366791 | J42: 0.1071616421 | K42: 0.9698181981 | L42: 0.6243918938 | M42: 0.6755619726 | N42: 0.3671256477 | O42: 0.2980896905 | P42: 0.5392252582 | Q42: 0.2857346865 | R42: 0.9196044122 | S42: 0.2303464778 | T42: 0.9754987149 | U42: 0.7902568205 | V42: 0.7330932693 | W42: 0.6620523541 | X42: 0.5163568501 | Y42: 0.8454849446 | Z42: 0.5074045909 | AA42: 0.7872902431 | AB42: 0.5346673305 | AC42: 0.601531622 | AD42: 0.2106072559 | AE42: 0.8616518353 | AF42: 0.8041917885 | AG42: 0.528057111 | AH42: 0.3024311619 | AI42: 0.553663939 | AJ42: 0.9187037283 | AK42: 0.5693425866 | AL42: 0.2443319978 | AM42: 0.2944463157 | AN42: 0.3514243647 | AO42: 0.03133208316 | AP42: 0.6266950406 | AQ42: 0.1853665582 | AR42: 0.570522713 | AS42: 0.9275835151 | AT42: 0.3531242495 | AU42: 0.9587618668 | AV42: 0.2152265733 | AW42: 0.2092097895 | AX42: 0.6274033125 | AY42: 0.9634285374 | AZ42: 0.8164003076 | BA42: 0.009506129693 | BB42: 0.2597394737 | BC42: 0.8706844798 | BD42: 0.3537351052 | BE42: 0.1803963709 | BF42: 0.9754238359 | BG42: 0.6512539601 | BH42: 0.8451837452 | BI42: 0.4293204899 | BJ42: 0.8280122796 | BK42: 0.2821935107 | BL42: 0.8107646842 | BM42: 0.164392569 | BN42: 0.4482019929 | BO42: 0.3451387628 | BP42: 0.8410506861 | BQ42: 0.8499863415 | BR42: 0.2376519781 | BS42: 0.3272166725 | BT42: 0.2250426918 | BU42: 0.4869131605 | BV42: 0.5550638499 | BW42: 0.1471271236 | BX42: 0.7546186276 | BY42: 0.1836347088 | BZ42: 0.5451216819 | CA42: 0.1120099584 | CB42: 0.8232839298 | CC42: 0.5920515121 | CD42: 0.6197682344 | CE42: 0.7003481432 | CF42: 0.9099365937 | CG42: 0.03296535774 | CH42: 0.6121879971 | CI42: 0.9229948869 | CJ42: 0.01911275731 | CK42: 0.1662509573 | CL42: 0.04493095753 | CM42: 0.7430895311 | CN42: 0.8029438403 | CO42: 0.8300013577 | CP42: 0.2423656076 | CQ42: 0.0404236484 | CR42: 0.5716242997 | CS42: 0.447041065 | CT42: 0.4502078966 | CU42: 0.9603652954 | CV42: 0.3505697296
A43: 0.6256007484 | B43: 0.1079754998 | C43: 0.01310133799 | D43: 0.9076022158 | E43: 0.5090052341 | F43: 0.02685950872 | G43: 0.6829763275 | H43: 0.687474236 | I43: 0.8728977025 | J43: 0.5108422238 | K43: 0.9725027297 | L43: 0.7343108555 | M43: 0.01753206207 | N43: 0.6376143931 | O43: 0.3900739886 | P43: 0.7621092536 | Q43: 0.5337311741 | R43: 0.7101515082 | S43: 0.5988672417 | T43: 0.1557030158 | U43: 0.5450107558 | V43: 0.6066910731 | W43: 0.5775774786 | X43: 0.3068429381 | Y43: 0.1130033001 | Z43: 0.3535088965 | AA43: 0.8338640864 | AB43: 0.2041274554 | AC43: 0.9147037639 | AD43: 0.7702203658 | AE43: 0.09105980953 | AF43: 0.5211888627 | AG43: 0.2314955302 | AH43: 0.829058059 | AI43: 0.6659186851 | AJ43: 0.3888922904 | AK43: 0.6338637603 | AL43: 0.06803480088 | AM43: 0.9816408552 | AN43: 0.8344653374 | AO43: 0.6360627637 | AP43: 0.625255023 | AQ43: 0.8840272336 | AR43: 0.6906630466 | AS43: 0.6284578074 | AT43: 0.4822002465 | AU43: 0.3448923918 | AV43: 0.468042458 | AW43: 0.02053569347 | AX43: 0.4481107828 | AY43: 0.3966065829 | AZ43: 0.9220615149 | BA43: 0.7090344235 | BB43: 0.1071308218 | BC43: 0.8657602341 | BD43: 0.6275800196 | BE43: 0.2145967133 | BF43: 0.9745917626 | BG43: 0.5601253504 | BH43: 0.7016498679 | BI43: 0.5295850985 | BJ43: 0.1088220377 | BK43: 0.1680696587 | BL43: 0.8859255245 | BM43: 0.1245888638 | BN43: 0.1389170333 | BO43: 0.4168072519 | BP43: 0.1710714446 | BQ43: 0.3157160275 | BR43: 0.2815189485 | BS43: 0.8397637402 | BT43: 0.8091308797 | BU43: 0.7382655343 | BV43: 0.6064193725 | BW43: 0.9360355519 | BX43: 0.9404473343 | BY43: 0.8194385914 | BZ43: 0.7223028661 | CA43: 0.9516255935 | CB43: 0.1981284592 | CC43: 0.5649337731 | CD43: 0.4380778303 | CE43: 0.5201890736 | CF43: 0.8898944335 | CG43: 0.1371195254 | CH43: 0.3810053575 | CI43: 0.2459400101 | CJ43: 0.04693775822 | CK43: 0.566198204 | CL43: 0.1582957624 | CM43: 0.1974177092 | CN43: 0.8631262035 | CO43: 0.01750466618 | CP43: 0.0533419685 | CQ43: 0.6320526326 | CR43: 0.6667975608 | CS43: 0.1123033687 | CT43: 0.8183559547 | CU43: 0.6839970437 | CV43: 0.1725752794
A44: 0.4871317402 | B44: 0.7410923713 | C44: 0.7124570173 | D44: 0.1114807655 | E44: 0.367722221 | F44: 0.03943585384 | G44: 0.09001260714 | H44: 0.9269750318 | I44: 0.6317228906 | J44: 0.7193217288 | K44: 0.001882839752 | L44: 0.2892826511 | M44: 0.08214236422 | N44: 0.2699985333 | O44: 0.8247303911 | P44: 0.5329047356 | Q44: 0.026904995 | R44: 0.9127255305 | S44: 0.04622283235 | T44: 0.6243577022 | U44: 0.318798949 | V44: 0.8531350316 | W44: 0.01078262892 | X44: 0.4364406819 | Y44: 0.8640241835 | Z44: 0.6398743681 | AA44: 0.5632545335 | AB44: 0.1939997161 | AC44: 0.05378890015 | AD44: 0.3376602367 | AE44: 0.03410673108 | AF44: 0.4496776945 | AG44: 0.143904018 | AH44: 0.8703070804 | AI44: 0.3179146838 | AJ44: 0.8360091567 | AK44: 0.7394470001 | AL44: 0.9480996298 | AM44: 0.01424476807 | AN44: 0.4686934769 | AO44: 0.5190586793 | AP44: 0.6501984155 | AQ44: 0.2400055553 | AR44: 0.5966507202 | AS44: 0.08226072821 | AT44: 0.4485391722 | AU44: 0.6112383822 | AV44: 0.2578653647 | AW44: 0.8917816499 | AX44: 0.2954831335 | AY44: 0.1812349251 | AZ44: 0.5382450724 | BA44: 0.3359416971 | BB44: 0.3788593066 | BC44: 0.675975061 | BD44: 0.5676945778 | BE44: 0.8281162879 | BF44: 0.6032059194 | BG44: 0.3568581557 | BH44: 0.4808545184 | BI44: 0.3491622818 | BJ44: 0.5104484488 | BK44: 0.5680582692 | BL44: 0.2106323335 | BM44: 0.3024842616 | BN44: 0.7696401886 | BO44: 0.7134301129 | BP44: 0.9024306915 | BQ44: 0.04878719961 | BR44: 0.7016612324 | BS44: 0.3295947784 | BT44: 0.7512743952 | BU44: 0.464606766 | BV44: 0.3400474057 | BW44: 0.0294332001 | BX44: 0.07606515621 | BY44: 0.8916223553 | BZ44: 0.8762021397 | CA44: 0.4795057636 | CB44: 0.7385864469 | CC44: 0.3817554014 | CD44: 0.4141162993 | CE44: 0.7172391151 | CF44: 0.3145654032 | CG44: 0.698324867 | CH44: 0.591255119 | CI44: 0.8747175153 | CJ44: 0.4046214098 | CK44: 0.2184945409 | CL44: 0.2887736215 | CM44: 0.5680224818 | CN44: 0.9058275177 | CO44: 0.9169077986 | CP44: 0.02344698241 | CQ44: 0.5572984604 | CR44: 0.7302360249 | CS44: 0.9889531371 | CT44: 0.56724493 | CU44: 0.1119019108 | CV44: 0.03803276362
A45: 0.3058836866 | B45: 0.3387947438 | C45: 0.5915648546 | D45: 0.6342075439 | E45: 0.9493291098 | F45: 0.6015367896 | G45: 0.02318599656 | H45: 0.5134632944 | I45: 0.7445685432 | J45: 0.2881688187 | K45: 0.1259405404 | L45: 0.6313917506 | M45: 0.2245547527 | N45: 0.854340586 | O45: 0.329260544 | P45: 0.6844131194 | Q45: 0.9265723896 | R45: 0.1508337624 | S45: 0.9253366904 | T45: 0.1256452635 | U45: 0.33468239 | V45: 0.2165525365 | W45: 0.1308787203 | X45: 0.4865369205 | Y45: 0.7997837771 | Z45: 0.9971702765 | AA45: 0.412311448 | AB45: 0.9516788714 | AC45: 0.9589971277 | AD45: 0.6584189001 | AE45: 0.6270104945 | AF45: 0.05686917849 | AG45: 0.4199140068 | AH45: 0.6046922809 | AI45: 0.704794577 | AJ45: 0.2576281272 | AK45: 0.6232539096 | AL45: 0.4530830778 | AM45: 0.04032107248 | AN45: 0.4525516721 | AO45: 0.4671258977 | AP45: 0.5403669357 | AQ45: 0.5425854097 | AR45: 0.235029005 | AS45: 0.0007364848059 | AT45: 0.8223643954 | AU45: 0.7718340376 | AV45: 0.6251329496 | AW45: 0.002733508347 | AX45: 0.6769139616 | AY45: 0.8350904164 | AZ45: 0.9764228798 | BA45: 0.3629330927 | BB45: 0.06626760322 | BC45: 0.9677233529 | BD45: 0.7074595534 | BE45: 0.9764679802 | BF45: 0.6530656091 | BG45: 0.8958729966 | BH45: 0.5760828847 | BI45: 0.1026740186 | BJ45: 0.8959589897 | BK45: 0.3913032812 | BL45: 0.3487467811 | BM45: 0.9945651724 | BN45: 0.1897277042 | BO45: 0.1347332407 | BP45: 0.9767582 | BQ45: 0.4878845479 | BR45: 0.7330444665 | BS45: 0.5982753656 | BT45: 0.6188454902 | BU45: 0.3477642367 | BV45: 0.2653247686 | BW45: 0.2506663763 | BX45: 0.1822086588 | BY45: 0.5054857577 | BZ45: 0.7926957544 | CA45: 0.1287501204 | CB45: 0.3841508898 | CC45: 0.04903864107 | CD45: 0.8381935862 | CE45: 0.5772427118 | CF45: 0.8041513749 | CG45: 0.5465675752 | CH45: 0.3451637684 | CI45: 0.003683548374 | CJ45: 0.09091216957 | CK45: 0.7564280837 | CL45: 0.01029611852 | CM45: 0.6716773963 | CN45: 0.8055192246 | CO45: 0.6243468488 | CP45: 0.06299642317 | CQ45: 0.5137216094 | CR45: 0.5870880593 | CS45: 0.04845744681 | CT45: 0.6301946234 | CU45: 0.3765540535 | CV45: 0.9700875834
A46: 0.3635222755 | B46: 0.6133980918 | C46: 0.583184445 | D46: 0.7380839912 | E46: 0.5158332716 | F46: 0.002567027234 | G46: 0.02144414192 | H46: 0.3717049067 | I46: 0.3946247555 | J46: 0.4968170506 | K46: 0.01088473968 | L46: 0.03444508107 | M46: 0.3395833401 | N46: 0.6110709578 | O46: 0.2944913705 | P46: 0.4551102803 | Q46: 0.4447972672 | R46: 0.8400683798 | S46: 0.146818624 | T46: 0.1045847796 | U46: 0.04550963046 | V46: 0.6726548875 | W46: 0.9969410394 | X46: 0.9363267745 | Y46: 0.387860958 | Z46: 0.1827204911 | AA46: 0.5028517635 | AB46: 0.760919884 | AC46: 0.6661351355 | AD46: 0.3744353999 | AE46: 0.6367949211 | AF46: 0.3504285102 | AG46: 0.8972347893 | AH46: 0.5939681171 | AI46: 0.241333508 | AJ46: 0.7407712099 | AK46: 0.2913246469 | AL46: 0.3474370239 | AM46: 0.6989014371 | AN46: 0.8759130995 | AO46: 0.9097635767 | AP46: 0.9897030159 | AQ46: 0.6241168639 | AR46: 0.5328944175 | AS46: 0.2542332333 | AT46: 0.8092201144 | AU46: 0.5042756246 | AV46: 0.6723998903 | AW46: 0.2115276234 | AX46: 0.5130566334 | AY46: 0.5779229304 | AZ46: 0.1341277806 | BA46: 0.3471726832 | BB46: 0.2565636086 | BC46: 0.5178337812 | BD46: 0.690389622 | BE46: 0.5946281103 | BF46: 0.9725313445 | BG46: 0.9404955348 | BH46: 0.7159125946 | BI46: 0.5484376435 | BJ46: 0.803273764 | BK46: 0.6731584405 | BL46: 0.8161463709 | BM46: 0.2421347093 | BN46: 0.223905751 | BO46: 0.7099434772 | BP46: 0.4823172167 | BQ46: 0.8253819109 | BR46: 0.5290945143 | BS46: 0.2838179386 | BT46: 0.02201899949 | BU46: 0.6044364507 | BV46: 0.9166631031 | BW46: 0.8773984171 | BX46: 0.1880811678 | BY46: 0.3350389637 | BZ46: 0.409285582 | CA46: 0.5185016171 | CB46: 0.5122892476 | CC46: 0.6478134073 | CD46: 0.3341202258 | CE46: 0.7351997734 | CF46: 0.2860317932 | CG46: 0.753019968 | CH46: 0.3304533512 | CI46: 0.2478050334 | CJ46: 0.5621021652 | CK46: 0.5122562024 | CL46: 0.3747366919 | CM46: 0.8473992844 | CN46: 0.3898941928 | CO46: 0.877733751 | CP46: 0.5748248817 | CQ46: 0.7544984381 | CR46: 0.9174513438 | CS46: 0.2390180065 | CT46: 0.8398955538 | CU46: 0.6560151379 | CV46: 0.2751686508
A47: 0.1699207144 | B47: 0.8447824668 | C47: 0.4144492989 | D47: 0.6415801369 | E47: 0.2403519863 | F47: 0.7702579199 | G47: 0.3381304185 | H47: 0.2905125339 | I47: 0.1975960401 | J47: 0.3560817728 | K47: 0.06991844236 | L47: 0.1647972337 | M47: 0.1719534474 | N47: 0.9370080923 | O47: 0.6846707333 | P47: 0.7413917477 | Q47: 0.3169977167 | R47: 0.5992251212 | S47: 0.9452791006 | T47: 0.9939305031 | U47: 0.1632944568 | V47: 0.5299696503 | W47: 0.6428612602 | X47: 0.7476973088 | Y47: 0.8274131536 | Z47: 0.4525470986 | AA47: 0.1346445038 | AB47: 0.7294328353 | AC47: 0.670848921 | AD47: 0.4488339484 | AE47: 0.9466454165 | AF47: 0.3061516521 | AG47: 0.4939090432 | AH47: 0.1373989276 | AI47: 0.6537740577 | AJ47: 0.3853703604 | AK47: 0.04467740203 | AL47: 0.3631097749 | AM47: 0.1959821743 | AN47: 0.9348591716 | AO47: 0.7862726478 | AP47: 0.06395926556 | AQ47: 0.7621985393 | AR47: 0.1056827554 | AS47: 0.5355693947 | AT47: 0.1348080981 | AU47: 0.8978104169 | AV47: 0.9631145677 | AW47: 0.4868231984 | AX47: 0.8935053909 | AY47: 0.3611360892 | AZ47: 0.1374593626 | BA47: 0.492036764 | BB47: 0.648031555 | BC47: 0.1501603472 | BD47: 0.9592363135 | BE47: 0.9767540155 | BF47: 0.358053386 | BG47: 0.6257820046 | BH47: 0.1902877421 | BI47: 0.1147996667 | BJ47: 0.3834417663 | BK47: 0.6789893482 | BL47: 0.6627228362 | BM47: 0.4145683572 | BN47: 0.7360241804 | BO47: 0.3482980087 | BP47: 0.7170611263 | BQ47: 0.5618958845 | BR47: 0.3070051037 | BS47: 0.09817265013 | BT47: 0.7981373351 | BU47: 0.8743760689 | BV47: 0.6689826871 | BW47: 0.6737617706 | BX47: 0.1242655985 | BY47: 0.8689696397 | BZ47: 0.9979247527 | CA47: 0.1564096466 | CB47: 0.366176605 | CC47: 0.689867615 | CD47: 0.7306912069 | CE47: 0.1169709645 | CF47: 0.9110464709 | CG47: 0.470367162 | CH47: 0.01904182527 | CI47: 0.578909846 | CJ47: 0.4605832886 | CK47: 0.7162842857 | CL47: 0.8398704746 | CM47: 0.2138965619 | CN47: 0.8817789836 | CO47: 0.7826407421 | CP47: 0.9820561569 | CQ47: 0.9754774663 | CR47: 0.3990790132 | CS47: 0.3107855213 | CT47: 0.7158691423 | CU47: 0.6899525547 | CV47: 0.136000554
A48: 0.6853237019 | B48: 0.1141713563 | C48: 0.3129167313 | D48: 0.9597488406 | E48: 0.9637993679 | F48: 0.2039783056 | G48: 0.743709093 | H48: 0.06486352599 | I48: 0.08011179346 | J48: 0.6398281402 | K48: 0.6715237852 | L48: 0.7457776621 | M48: 0.07739907784 | N48: 0.6758028658 | O48: 0.6418934328 | P48: 0.9184732853 | Q48: 0.4129640584 | R48: 0.2486913752 | S48: 0.1934214654 | T48: 0.4488063283 | U48: 0.2419476961 | V48: 0.9730889124 | W48: 0.1074519236 | X48: 0.453928613 | Y48: 0.2243241677 | Z48: 0.5355716689 | AA48: 0.1468604047 | AB48: 0.7506737201 | AC48: 0.169459851 | AD48: 0.07800092385 | AE48: 0.509648587 | AF48: 0.9728406405 | AG48: 0.4223824039 | AH48: 0.4608051678 | AI48: 0.5870218755 | AJ48: 0.6066530367 | AK48: 0.2184096208 | AL48: 0.06599557301 | AM48: 0.1206179724 | AN48: 0.3746458466 | AO48: 0.7752290227 | AP48: 0.0628159169 | AQ48: 0.2206632489 | AR48: 0.5789463544 | AS48: 0.8540603267 | AT48: 0.6359181639 | AU48: 0.07866423286 | AV48: 0.804882095 | AW48: 0.5687787587 | AX48: 0.8707556934 | AY48: 0.05748676233 | AZ48: 0.8197910397 | BA48: 0.04124791641 | BB48: 0.02657290911 | BC48: 0.6568840711 | BD48: 0.9014927642 | BE48: 0.07968145171 | BF48: 0.4151749185 | BG48: 0.414671793 | BH48: 0.4120402093 | BI48: 0.004168807067 | BJ48: 0.4457478809 | BK48: 0.1953490355 | BL48: 0.4815638151 | BM48: 0.1838321475 | BN48: 0.564895646 | BO48: 0.2919099722 | BP48: 0.4491420191 | BQ48: 0.209649402 | BR48: 0.02879350256 | BS48: 0.3694785826 | BT48: 0.07532886771 | BU48: 0.3246702702 | BV48: 0.3256288529 | BW48: 0.1686906021 | BX48: 0.3435552192 | BY48: 0.5160498937 | BZ48: 0.517160202 | CA48: 0.333420401 | CB48: 0.2443626739 | CC48: 0.2480819508 | CD48: 0.6861722742 | CE48: 0.9769094051 | CF48: 0.8843845765 | CG48: 0.8590963728 | CH48: 0.4720328252 | CI48: 0.9237067045 | CJ48: 0.5474626539 | CK48: 0.2421540026 | CL48: 0.6218548595 | CM48: 0.3762172799 | CN48: 0.2061555945 | CO48: 0.3524927378 | CP48: 0.221302252 | CQ48: 0.1563209799 | CR48: 0.6665197658 | CS48: 0.4381366406 | CT48: 0.5658100232 | CU48: 0.9320444877 | CV48: 0.375554861
A49: 0.9978454122 | B49: 0.1868397493 | C49: 0.002741771161 | D49: 0.9765387105 | E49: 0.1264609124 | F49: 0.5207822121 | G49: 0.4617711007 | H49: 0.02671959863 | I49: 0.605773989 | J49: 0.358246409 | K49: 0.2667552086 | L49: 0.1821626731 | M49: 0.8940134924 | N49: 0.4244498878 | O49: 0.8969927988 | P49: 0.7854470793 | Q49: 0.4048389986 | R49: 0.2139468163 | S49: 0.2907259111 | T49: 0.9356552406 | U49: 0.3129150918 | V49: 0.2595258047 | W49: 0.08756874994 | X49: 0.8059279017 | Y49: 0.9516527989 | Z49: 0.3089267663 | AA49: 0.257525319 | AB49: 0.6028111431 | AC49: 0.924261729 | AD49: 0.8449078607 | AE49: 0.7833865286 | AF49: 0.9968947114 | AG49: 0.6525119216 | AH49: 0.6058188536 | AI49: 0.7056738806 | AJ49: 0.9679400975 | AK49: 0.6719409684 | AL49: 0.08501331966 | AM49: 0.6023887625 | AN49: 0.7120372293 | AO49: 0.1941389244 | AP49: 0.6495664603 | AQ49: 0.07259188639 | AR49: 0.6785752413 | AS49: 0.4854025929 | AT49: 0.6161920204 | AU49: 0.5483883054 | AV49: 0.1245433104 | AW49: 0.671183771 | AX49: 0.4672104404 | AY49: 0.09712671156 | AZ49: 0.9824206977 | BA49: 0.1977260189 | BB49: 0.6820732408 | BC49: 0.6270151874 | BD49: 0.01544916961 | BE49: 0.751401627 | BF49: 0.4636052322 | BG49: 0.7313845005 | BH49: 0.006271999492 | BI49: 0.8467510695 | BJ49: 0.7874690586 | BK49: 0.9746553799 | BL49: 0.03998345527 | BM49: 0.6910065957 | BN49: 0.3864362559 | BO49: 0.8142718824 | BP49: 0.4582699928 | BQ49: 0.1373785846 | BR49: 0.08112861738 | BS49: 0.7678812484 | BT49: 0.474801771 | BU49: 0.1736864577 | BV49: 0.4462768554 | BW49: 0.1074839246 | BX49: 0.9412848042 | BY49: 0.6386383968 | BZ49: 0.8412390655 | CA49: 0.7046926418 | CB49: 0.2163108844 | CC49: 0.9999482554 | CD49: 0.3344512252 | CE49: 0.6651696069 | CF49: 0.2177484595 | CG49: 0.1000223728 | CH49: 0.567328148 | CI49: 0.9817362599 | CJ49: 0.7965716223 | CK49: 0.8667004487 | CL49: 0.09360435085 | CM49: 0.5696429817 | CN49: 0.8425925198 | CO49: 0.3196172082 | CP49: 0.3304234512 | CQ49: 0.7691654538 | CR49: 0.331653047 | CS49: 0.4751575006 | CT49: 0.5449686138 | CU49: 0.2661805033 | CV49: 0.4176666922
A50: 0.9251400372 | B50: 0.7981109428 | C50: 0.099924802 | D50: 0.3701691513 | E50: 0.4947563477 | F50: 0.1616593408 | G50: 0.9692001858 | H50: 0.5796662183 | I50: 0.06011687874 | J50: 0.02828679163 | K50: 0.8435117559 | L50: 0.6801465732 | M50: 0.8538495054 | N50: 0.03303044082 | O50: 0.07023306942 | P50: 0.975956375 | Q50: 0.868126479 | R50: 0.6236394698 | S50: 0.6895161087 | T50: 0.6006144882 | U50: 0.8593028025 | V50: 0.674090891 | W50: 0.2605449737 | X50: 0.833226985 | Y50: 0.8901973377 | Z50: 0.4525813829 | AA50: 0.7774608097 | AB50: 0.5432275194 | AC50: 0.8203799649 | AD50: 0.6403559982 | AE50: 0.5725290494 | AF50: 0.8730283036 | AG50: 0.2887540548 | AH50: 0.8672840503 | AI50: 0.4688851317 | AJ50: 0.007663019887 | AK50: 0.1364011262 | AL50: 0.3078462883 | AM50: 0.5937467052 | AN50: 0.8612687284 | AO50: 0.9447321048 | AP50: 0.4729147896 | AQ50: 0.6129567316 | AR50: 0.8883582356 | AS50: 0.6371790815 | AT50: 0.8715466376 | AU50: 0.43290821 | AV50: 0.8141425775 | AW50: 0.8639819491 | AX50: 0.8057670542 | AY50: 0.05072560868 | AZ50: 0.4856265107 | BA50: 0.5322773953 | BB50: 0.5417376236 | BC50: 0.6226065181 | BD50: 0.782114914 | BE50: 0.7857865043 | BF50: 0.3489086722 | BG50: 0.1945263263 | BH50: 0.759568086 | BI50: 0.6519461345 | BJ50: 0.1303119651 | BK50: 0.5921738982 | BL50: 0.8184105389 | BM50: 0.7949405168 | BN50: 0.4880877543 | BO50: 0.232950836 | BP50: 0.9899008776 | BQ50: 0.5450683674 | BR50: 0.6713971834 | BS50: 0.6953781029 | BT50: 0.5455706399 | BU50: 0.2339775356 | BV50: 0.3515697268 | BW50: 0.4358002067 | BX50: 0.3543111567 | BY50: 0.5278298512 | BZ50: 0.4548882082 | CA50: 0.5701217191 | CB50: 0.9974257178 | CC50: 0.8503084068 | CD50: 0.06920588319 | CE50: 0.7281746047 | CF50: 0.6047971157 | CG50: 0.9569941697 | CH50: 0.6572219208 | CI50: 0.7907455553 | CJ50: 0.05433115317 | CK50: 0.7408734494 | CL50: 0.3123038826 | CM50: 0.2050166286 | CN50: 0.8747999945 | CO50: 0.4425746534 | CP50: 0.9086031972 | CQ50: 0.4186398242 | CR50: 0.7412423718 | CS50: 0.7679948071 | CT50: 0.7214467692 | CU50: 0.1323957111 | CV50: 0.3352498757
A51: 0.1779689728 | B51: 0.7012007093 | C51: 0.6556713048 | D51: 0.7315643181 | E51: 0.8916245934 | F51: 0.8199476619 | G51: 0.06066795009 | H51: 0.8002569076 | I51: 0.87353847 | J51: 0.6111525745 | K51: 0.9543194281 | L51: 0.7044242959 | M51: 0.1241764297 | N51: 0.08271147464 | O51: 0.3576970602 | P51: 0.9527865922 | Q51: 0.6329586264 | R51: 0.01223379811 | S51: 0.4770382041 | T51: 0.9799322639 | U51: 0.08396634523 | V51: 0.9228788355 | W51: 0.8937947423 | X51: 0.9390340862 | Y51: 0.3594758832 | Z51: 0.7284223289 | AA51: 0.3314803204 | AB51: 0.8822344776 | AC51: 0.9020279578 | AD51: 0.02194458463 | AE51: 0.2899199863 | AF51: 0.8464803908 | AG51: 0.9636910732 | AH51: 0.2115857562 | AI51: 0.1260798203 | AJ51: 0.8115813094 | AK51: 0.4012133535 | AL51: 0.545574245 | AM51: 0.8452679217 | AN51: 0.02882466309 | AO51: 0.03823542275 | AP51: 0.4190813644 | AQ51: 0.6900175167 | AR51: 0.09636492845 | AS51: 0.4076139981 | AT51: 0.258790387 | AU51: 0.5195719439 | AV51: 0.3753177696 | AW51: 0.7229823504 | AX51: 0.7506356439 | AY51: 0.7874176642 | AZ51: 0.4873135566 | BA51: 0.3574246347 | BB51: 0.5971468285 | BC51: 0.9836559145 | BD51: 0.8543743597 | BE51: 0.3148141958 | BF51: 0.7130470924 | BG51: 0.7527522484 | BH51: 0.5084042466 | BI51: 0.8181890521 | BJ51: 0.6356123904 | BK51: 0.5314724299 | BL51: 0.3640518414 | BM51: 0.1903340542 | BN51: 0.4102396223 | BO51: 0.8838831136 | BP51: 0.8920153688 | BQ51: 0.09855326212 | BR51: 0.9075893252 | BS51: 0.5925310857 | BT51: 0.3690142838 | BU51: 0.09237956591 | BV51: 0.9779642304 | BW51: 0.4550803799 | BX51: 0.8192884659 | BY51: 0.7428488191 | BZ51: 0.8339695822 | CA51: 0.9809125042 | CB51: 0.6347737701 | CC51: 0.08878740131 | CD51: 0.02230768021 | CE51: 0.570519594 | CF51: 0.6507311623 | CG51: 0.105458111 | CH51: 0.7888456386 | CI51: 0.3108179685 | CJ51: 0.7383910976 | CK51: 0.4757653949 | CL51: 0.8147640728 | CM51: 0.3785440107 | CN51: 0.6157687014 | CO51: 0.4115842462 | CP51: 0.1528779269 | CQ51: 0.666241337 | CR51: 0.2998121993 | CS51: 0.7789407235 | CT51: 0.07580354952 | CU51: 0.03648108564 | CV51: 0.8964901855
A52: 0.4409659853 | B52: 0.1333423055 | C52: 0.7161447103 | D52: 0.07641312802 | E52: 0.972865435 | F52: 0.9964427802 | G52: 0.5475444788 | H52: 0.6516683239 | I52: 0.3757804161 | J52: 0.7242815995 | K52: 0.03158305876 | L52: 0.6842267182 | M52: 0.5981474358 | N52: 0.3418464053 | O52: 0.01427901211 | P52: 0.7616899186 | Q52: 0.05984846281 | R52: 0.4751133687 | S52: 0.5286627136 | T52: 0.5616001336 | U52: 0.7115468865 | V52: 0.6376935792 | W52: 0.07484902755 | X52: 0.01857549208 | Y52: 0.3865349942 | Z52: 0.9837867049 | AA52: 0.7819297523 | AB52: 0.7826267656 | AC52: 0.9594613747 | AD52: 0.7576659931 | AE52: 0.1489013966 | AF52: 0.04809697098 | AG52: 0.8213452347 | AH52: 0.03220013346 | AI52: 0.4782844173 | AJ52: 0.6677430646 | AK52: 0.02879409153 | AL52: 0.1171708985 | AM52: 0.6909970246 | AN52: 0.7481813776 | AO52: 0.1221421591 | AP52: 0.6091399242 | AQ52: 0.4649484582 | AR52: 0.34901864 | AS52: 0.0983216813 | AT52: 0.2348711023 | AU52: 0.1918419189 | AV52: 0.9080380435 | AW52: 0.8181297605 | AX52: 0.8874875367 | AY52: 0.374150423 | AZ52: 0.870540045 | BA52: 0.06983506531 | BB52: 0.9192292426 | BC52: 0.1525180057 | BD52: 0.5820796572 | BE52: 0.6729843332 | BF52: 0.1534287486 | BG52: 0.5394251108 | BH52: 0.4430666548 | BI52: 0.7208129387 | BJ52: 0.3810952969 | BK52: 0.1069633865 | BL52: 0.9175632719 | BM52: 0.9849521915 | BN52: 0.7705806373 | BO52: 0.1621419445 | BP52: 0.3746337696 | BQ52: 0.8530681949 | BR52: 0.5101725953 | BS52: 0.457721521 | BT52: 0.1553869903 | BU52: 0.8962484176 | BV52: 0.1530629554 | BW52: 0.5611671607 | BX52: 0.6652076952 | BY52: 0.2767052305 | BZ52: 0.886736344 | CA52: 0.9957636665 | CB52: 0.8325824645 | CC52: 0.9384202791 | CD52: 0.9749273975 | CE52: 0.1221125254 | CF52: 0.5905344149 | CG52: 0.133556516 | CH52: 0.614606089 | CI52: 0.6122485048 | CJ52: 0.5236115406 | CK52: 0.30076243 | CL52: 0.5036770681 | CM52: 0.08413705389 | CN52: 0.308902718 | CO52: 0.7509798612 | CP52: 0.9413114056 | CQ52: 0.9702005392 | CR52: 0.7728266412 | CS52: 0.2104592022 | CT52: 0.9679276146 | CU52: 0.902012138 | CV52: 0.3243697871
A53: 0.5439942384 | B53: 0.2591175515 | C53: 0.2097277344 | D53: 0.5071165844 | E53: 0.8408005429 | F53: 0.04721242782 | G53: 0.7906180586 | H53: 0.6586159474 | I53: 0.7451064102 | J53: 0.1024093799 | K53: 0.6980684925 | L53: 0.1772681415 | M53: 0.1987757263 | N53: 0.6114102689 | O53: 0.7692850764 | P53: 0.6858579548 | Q53: 0.319367215 | R53: 0.05858650659 | S53: 0.3831093606 | T53: 0.8918803743 | U53: 0.7499302814 | V53: 0.01753321521 | W53: 0.2272767577 | X53: 0.5326131511 | Y53: 0.03005224182 | Z53: 0.458344162 | AA53: 0.08841428199 | AB53: 0.9651410547 | AC53: 0.4403612945 | AD53: 0.4198808351 | AE53: 0.8414611619 | AF53: 0.6962046344 | AG53: 0.6697765512 | AH53: 0.3821594321 | AI53: 0.6247438276 | AJ53: 0.5355381067 | AK53: 0.7716490209 | AL53: 0.03906971175 | AM53: 0.4658491691 | AN53: 0.3156750094 | AO53: 0.247340336 | AP53: 0.5687145408 | AQ53: 0.3489381823 | AR53: 0.01012366043 | AS53: 0.7007576804 | AT53: 0.1128975423 | AU53: 0.5914244369 | AV53: 0.5681829793 | AW53: 0.3590899278 | AX53: 0.7339842167 | AY53: 0.4469601851 | AZ53: 0.01973414943 | BA53: 0.8784808255 | BB53: 0.7077635141 | BC53: 0.7646565777 | BD53: 0.8350655009 | BE53: 0.7858157414 | BF53: 0.2120023696 | BG53: 0.2151081585 | BH53: 0.5626804537 | BI53: 0.8865986354 | BJ53: 0.7886176926 | BK53: 0.002207436371 | BL53: 0.3807680169 | BM53: 0.4583186507 | BN53: 0.602635605 | BO53: 0.6154149556 | BP53: 0.1569624123 | BQ53: 0.05709229426 | BR53: 0.04156908155 | BS53: 0.8462749914 | BT53: 0.4167774245 | BU53: 0.7326803345 | BV53: 0.01039600174 | BW53: 0.09890339906 | BX53: 0.3667150424 | BY53: 0.3882385796 | BZ53: 0.07736003771 | CA53: 0.4968651395 | CB53: 0.6841485764 | CC53: 0.07168380849 | CD53: 0.2348375245 | CE53: 0.7435800671 | CF53: 0.5656454271 | CG53: 0.982859242 | CH53: 0.648936736 | CI53: 0.4990534088 | CJ53: 0.7245050638 | CK53: 0.7693427277 | CL53: 0.6000762443 | CM53: 0.9116799539 | CN53: 0.4164643273 | CO53: 0.7231994712 | CP53: 0.0521280622 | CQ53: 0.06815189223 | CR53: 0.01283705049 | CS53: 0.7597574326 | CT53: 0.2853834213 | CU53: 0.441479882 | CV53: 0.936078605
A54: 0.9850228779 | B54: 0.3005645452 | C54: 0.3522274213 | D54: 0.05783113294 | E54: 0.3596940951 | F54: 0.7512018525 | G54: 0.9574981712 | H54: 0.3436327885 | I54: 0.2649875436 | J54: 0.2935150126 | K54: 0.3595983796 | L54: 0.6173777874 | M54: 0.1819828759 | N54: 0.5884306223 | O54: 0.10823935 | P54: 0.8590799003 | Q54: 0.1757346808 | R54: 0.9097103742 | S54: 0.05146995075 | T54: 0.8407611665 | U54: 0.8753100769 | V54: 0.276634379 | W54: 0.3042347419 | X54: 0.9323758901 | Y54: 0.6554455798 | Z54: 0.6100224653 | AA54: 0.3284946905 | AB54: 0.3724290254 | AC54: 0.01467684998 | AD54: 0.5057799387 | AE54: 0.5516521585 | AF54: 0.3865779294 | AG54: 0.7846882246 | AH54: 0.2890706628 | AI54: 0.03683177194 | AJ54: 0.4922767703 | AK54: 0.1955891188 | AL54: 0.1290840612 | AM54: 0.45790768 | AN54: 0.4484017808 | AO54: 0.0451493354 | AP54: 0.4672315596 | AQ54: 0.128156466 | AR54: 0.1979106348 | AS54: 0.6616827479 | AT54: 0.1784132729 | AU54: 0.7396294761 | AV54: 0.3146201454 | AW54: 0.2606615479 | AX54: 0.453946942 | AY54: 0.1095041916 | AZ54: 0.5719866351 | BA54: 0.7299063447 | BB54: 0.7835634603 | BC54: 0.826654725 | BD54: 0.2927083921 | BE54: 0.3994479484 | BF54: 0.3011572354 | BG54: 0.4110238501 | BH54: 0.6274049163 | BI54: 0.2135122529 | BJ54: 0.5722349359 | BK54: 0.5670534436 | BL54: 0.5084624547 | BM54: 0.7644015975 | BN54: 0.4043793603 | BO54: 0.7236599081 | BP54: 0.6060714773 | BQ54: 0.5434873976 | BR54: 0.01019042114 | BS54: 0.09347224306 | BT54: 0.7238844962 | BU54: 0.831812363 | BV54: 0.8501941962 | BW54: 0.3484916803 | BX54: 0.815504438 | BY54: 0.415439673 | BZ54: 0.1472496108 | CA54: 0.3236361797 | CB54: 0.9552629053 | CC54: 0.08810533543 | CD54: 0.5569966282 | CE54: 0.3279625538 | CF54: 0.7876799377 | CG54: 0.2155582121 | CH54: 0.55748354 | CI54: 0.314296908 | CJ54: 0.4438806026 | CK54: 0.4760624502 | CL54: 0.9544798923 | CM54: 0.948700571 | CN54: 0.07901699109 | CO54: 0.547892468 | CP54: 0.8541110672 | CQ54: 0.7257602382 | CR54: 0.3666540894 | CS54: 0.2133977568 | CT54: 0.6616292148 | CU54: 0.7497327217 | CV54: 0.5150396877
A55: 0.6598212467 | B55: 0.7605868321 | C55: 0.8708959751 | D55: 0.6211733775 | E55: 0.7697140685 | F55: 0.1362424227 | G55: 0.8285133955 | H55: 0.4760444271 | I55: 0.5826748428 | J55: 0.1750059416 | K55: 0.7514885606 | L55: 0.8973502621 | M55: 0.7597449779 | N55: 0.002296700504 | O55: 0.3710923036 | P55: 0.5281248833 | Q55: 0.4533994073 | R55: 0.2789256764 | S55: 0.8336900332 | T55: 0.4071115353 | U55: 0.8931200747 | V55: 0.5841330544 | W55: 0.9783475591 | X55: 0.1910821802 | Y55: 0.1299861368 | Z55: 0.0361026666 | AA55: 0.9099179913 | AB55: 0.9556150437 | AC55: 0.8557382012 | AD55: 0.2177881648 | AE55: 0.5395974221 | AF55: 0.3953941494 | AG55: 0.500326789 | AH55: 0.6849484787 | AI55: 0.5556934096 | AJ55: 0.4936290523 | AK55: 0.03379584326 | AL55: 0.4107500834 | AM55: 0.6983948177 | AN55: 0.675252258 | AO55: 0.7986924986 | AP55: 0.8490970542 | AQ55: 0.4714316033 | AR55: 0.3597749221 | AS55: 0.9039379507 | AT55: 0.260487765 | AU55: 0.5094745213 | AV55: 0.2947144682 | AW55: 0.00549198196 | AX55: 0.9798027982 | AY55: 0.5379095457 | AZ55: 0.1925713488 | BA55: 0.9039699089 | BB55: 0.5923407268 | BC55: 0.2370170936 | BD55: 0.9163785399 | BE55: 0.4636440104 | BF55: 0.1366585375 | BG55: 0.8002154124 | BH55: 0.6247842319 | BI55: 0.5354958842 | BJ55: 0.1330870908 | BK55: 0.5368957101 | BL55: 0.8741906026 | BM55: 0.9614682926 | BN55: 0.3192988857 | BO55: 0.8513078841 | BP55: 0.3659857029 | BQ55: 0.1197923134 | BR55: 0.1325897442 | BS55: 0.2391770669 | BT55: 0.4388620605 | BU55: 0.9823889251 | BV55: 0.7756343649 | BW55: 0.9500155832 | BX55: 0.4112684887 | BY55: 0.575263445 | BZ55: 0.1057503836 | CA55: 0.4765192627 | CB55: 0.1192496828 | CC55: 0.661160472 | CD55: 0.4285999619 | CE55: 0.9502473688 | CF55: 0.7463203082 | CG55: 0.721651754 | CH55: 0.6648609353 | CI55: 0.9250870583 | CJ55: 0.6499150932 | CK55: 0.6445352714 | CL55: 0.9843903666 | CM55: 0.8639883049 | CN55: 0.4998881529 | CO55: 0.4851855401 | CP55: 0.7603701479 | CQ55: 0.7078077787 | CR55: 0.03594691803 | CS55: 0.7472488127 | CT55: 0.5375379988 | CU55: 0.3912407645 | CV55: 0.1148788664
A56: 0.1859944164 | B56: 0.3032670638 | C56: 0.2081274754 | D56: 0.6396496926 | E56: 0.733924698 | F56: 0.6072630536 | G56: 0.2881878291 | H56: 0.5759860049 | I56: 0.05731968453 | J56: 0.6249667717 | K56: 0.1246342419 | L56: 0.7905224045 | M56: 0.1630875399 | N56: 0.3265900329 | O56: 0.3825621147 | P56: 0.2036649783 | Q56: 0.7580820897 | R56: 0.2077911776 | S56: 0.8739542226 | T56: 0.9422944854 | U56: 0.02526176335 | V56: 0.9659401445 | W56: 0.5917370973 | X56: 0.7130061755 | Y56: 0.03167811214 | Z56: 0.628058049 | AA56: 0.7865270079 | AB56: 0.999927732 | AC56: 0.8031080171 | AD56: 0.393467401 | AE56: 0.3993314797 | AF56: 0.1434882391 | AG56: 0.5937389362 | AH56: 0.1104648691 | AI56: 0.2087670275 | AJ56: 0.7466749366 | AK56: 0.3964209594 | AL56: 0.1811367946 | AM56: 0.5317374109 | AN56: 0.5262127772 | AO56: 0.7100860943 | AP56: 0.6324840846 | AQ56: 0.2457722188 | AR56: 0.2614007293 | AS56: 0.18353661 | AT56: 0.9963326474 | AU56: 0.1987536863 | AV56: 0.5240648914 | AW56: 0.8170689054 | AX56: 0.222441214 | AY56: 0.3344637657 | AZ56: 0.3543208347 | BA56: 0.6611814208 | BB56: 0.0703634361 | BC56: 0.8545964531 | BD56: 0.7764744696 | BE56: 0.37069696 | BF56: 0.4539948804 | BG56: 0.4229875488 | BH56: 0.5035226696 | BI56: 0.2673258393 | BJ56: 0.802958607 | BK56: 0.6657911122 | BL56: 0.5603394433 | BM56: 0.2652778464 | BN56: 0.5322544618 | BO56: 0.130241058 | BP56: 0.3991021181 | BQ56: 0.3730981279 | BR56: 0.3650129514 | BS56: 0.3840665737 | BT56: 0.1863081748 | BU56: 0.8445073143 | BV56: 0.1173028389 | BW56: 0.4653209049 | BX56: 0.3055932598 | BY56: 0.6078521306 | BZ56: 0.6145745016 | CA56: 0.07310999411 | CB56: 0.8038697481 | CC56: 0.03949556761 | CD56: 0.4775860045 | CE56: 0.4857059795 | CF56: 0.7897843297 | CG56: 0.4139106902 | CH56: 0.03811336128 | CI56: 0.1301077024 | CJ56: 0.9033143424 | CK56: 0.5570983023 | CL56: 0.03176269255 | CM56: 0.1076519868 | CN56: 0.4485470375 | CO56: 0.7668892751 | CP56: 0.3560755628 | CQ56: 0.637796983 | CR56: 0.3732110473 | CS56: 0.3009673518 | CT56: 0.5669593926 | CU56: 0.4996040307 | CV56: 0.4562351742
A57: 0.2199371754 | B57: 0.9472083646 | C57: 0.2202860803 | D57: 0.4172947529 | E57: 0.516152678 | F57: 0.2030002355 | G57: 0.2715014262 | H57: 0.205262408 | I57: 0.4496397494 | J57: 0.2301798121 | K57: 0.7858151912 | L57: 0.101216559 | M57: 0.7009923409 | N57: 0.5785216393 | O57: 0.6384273683 | P57: 0.3648881181 | Q57: 0.4474079203 | R57: 0.9129794177 | S57: 0.1822554254 | T57: 0.3152051307 | U57: 0.7999154837 | V57: 0.298897777 | W57: 0.9654189596 | X57: 0.1390202606 | Y57: 0.9406798997 | Z57: 0.1525752012 | AA57: 0.4933620573 | AB57: 0.7110305508 | AC57: 0.988075042 | AD57: 0.8409667519 | AE57: 0.5166917736 | AF57: 0.9832050412 | AG57: 0.679873647 | AH57: 0.9272954297 | AI57: 0.4423178157 | AJ57: 0.7006026735 | AK57: 0.8312127568 | AL57: 0.6218171504 | AM57: 0.875241652 | AN57: 0.2688756168 | AO57: 0.5410177559 | AP57: 0.536647993 | AQ57: 0.7742014815 | AR57: 0.8191271576 | AS57: 0.7494991581 | AT57: 0.1228853916 | AU57: 0.5940901697 | AV57: 0.3012023276 | AW57: 0.8840535892 | AX57: 0.4321454405 | AY57: 0.5401679073 | AZ57: 0.112938139 | BA57: 0.3222467522 | BB57: 0.7485062759 | BC57: 0.2775034405 | BD57: 0.02406732919 | BE57: 0.7276576271 | BF57: 0.6221862342 | BG57: 0.1484233116 | BH57: 0.6689651202 | BI57: 0.06820377325 | BJ57: 0.8356072096 | BK57: 0.6527972022 | BL57: 0.4357435843 | BM57: 0.955334061 | BN57: 0.03665967688 | BO57: 0.05485695841 | BP57: 0.8781872963 | BQ57: 0.9113597598 | BR57: 0.3872087072 | BS57: 0.669972844 | BT57: 0.5531778681 | BU57: 0.743874268 | BV57: 0.8315192041 | BW57: 0.6788021078 | BX57: 0.2340355686 | BY57: 0.8193106391 | BZ57: 0.4520699896 | CA57: 0.9294181387 | CB57: 0.7838842807 | CC57: 0.2761060668 | CD57: 0.7992010245 | CE57: 0.6744585824 | CF57: 0.8784194019 | CG57: 0.5389373654 | CH57: 0.4714358569 | CI57: 0.1812939727 | CJ57: 0.7537687545 | CK57: 0.2627385935 | CL57: 0.524083258 | CM57: 0.2417612764 | CN57: 0.1995823194 | CO57: 0.4309807888 | CP57: 0.8968852906 | CQ57: 0.9637629704 | CR57: 0.5949153552 | CS57: 0.2197708516 | CT57: 0.1327333765 | CU57: 0.4360037906 | CV57: 0.7391654936
A58: 0.2502868679 | B58: 0.3853230801 | C58: 0.5977325642 | D58: 0.6830539096 | E58: 0.2586685522 | F58: 0.6531040463 | G58: 0.03440616431 | H58: 0.3444144609 | I58: 0.2955467183 | J58: 0.6789832767 | K58: 0.5741891633 | L58: 0.07305849432 | M58: 0.3267329156 | N58: 0.2970460121 | O58: 0.05250670465 | P58: 0.3152608383 | Q58: 0.7222831871 | R58: 0.9955468895 | S58: 0.07911752948 | T58: 0.8756642289 | U58: 0.6297090636 | V58: 0.6708977757 | W58: 0.3576831058 | X58: 0.3871860037 | Y58: 0.211722234 | Z58: 0.1408095787 | AA58: 0.7663566156 | AB58: 0.6701621261 | AC58: 0.3131069102 | AD58: 0.8771710409 | AE58: 0.172996474 | AF58: 0.7200301835 | AG58: 0.6252431663 | AH58: 0.7471711148 | AI58: 0.8760115204 | AJ58: 0.03169247892 | AK58: 0.06202342564 | AL58: 0.6069911675 | AM58: 0.5451064231 | AN58: 0.1168790901 | AO58: 0.8519515318 | AP58: 0.9577338681 | AQ58: 0.8749509962 | AR58: 0.5233614775 | AS58: 0.7438615585 | AT58: 0.1009860867 | AU58: 0.2308280281 | AV58: 0.8194289834 | AW58: 0.267619285 | AX58: 0.5426960767 | AY58: 0.04781867107 | AZ58: 0.05288808559 | BA58: 0.0885382711 | BB58: 0.9722188226 | BC58: 0.7410256522 | BD58: 0.9779237486 | BE58: 0.5118513337 | BF58: 0.4567625356 | BG58: 0.1089377312 | BH58: 0.0271585195 | BI58: 0.6706297463 | BJ58: 0.1010893917 | BK58: 0.3619980887 | BL58: 0.434958515 | BM58: 0.01394872049 | BN58: 0.05927421727 | BO58: 0.4600995208 | BP58: 0.2890280553 | BQ58: 0.3325166176 | BR58: 0.1399484671 | BS58: 0.07790581711 | BT58: 0.7971522672 | BU58: 0.4521204732 | BV58: 0.8793870101 | BW58: 0.5805017794 | BX58: 0.0626362664 | BY58: 0.3450780169 | BZ58: 0.174665714 | CA58: 0.3969493706 | CB58: 0.03080574737 | CC58: 0.9717026024 | CD58: 0.2097673497 | CE58: 0.6359122412 | CF58: 0.1102576964 | CG58: 0.8461243056 | CH58: 0.6212161505 | CI58: 0.7928375939 | CJ58: 0.9176228976 | CK58: 0.3093504534 | CL58: 0.9875268102 | CM58: 0.826837232 | CN58: 0.4486063692 | CO58: 0.4118051702 | CP58: 0.0003789324528 | CQ58: 0.3665776658 | CR58: 0.3650896996 | CS58: 0.8192528879 | CT58: 0.766677588 | CU58: 0.6057624654 | CV58: 0.3626312315
A59: 0.03554722755 | B59: 0.8244466459 | C59: 0.3459497341 | D59: 0.4001080425 | E59: 0.2136413705 | F59: 0.08678005444 | G59: 0.2550089669 | H59: 0.3787272881 | I59: 0.2248543588 | J59: 0.8374866497 | K59: 0.4708110968 | L59: 0.01601852228 | M59: 0.8585684727 | N59: 0.8150708909 | O59: 0.7035358613 | P59: 0.2651605333 | Q59: 0.1292340002 | R59: 0.379566004 | S59: 0.2240161434 | T59: 0.2243138668 | U59: 0.7448555508 | V59: 0.09989242743 | W59: 0.963231051 | X59: 0.198123068 | Y59: 0.7414620464 | Z59: 0.9367653289 | AA59: 0.5740187451 | AB59: 0.03778774334 | AC59: 0.7096290797 | AD59: 0.5153519203 | AE59: 0.1982549642 | AF59: 0.2251579354 | AG59: 0.2154422259 | AH59: 0.4372127112 | AI59: 0.5558612167 | AJ59: 0.9399968698 | AK59: 0.3870690834 | AL59: 0.5154706809 | AM59: 0.5572570974 | AN59: 0.3376459204 | AO59: 0.8405318382 | AP59: 0.7226385325 | AQ59: 0.01923400531 | AR59: 0.5839848986 | AS59: 0.4048023893 | AT59: 0.2900776603 | AU59: 0.6576760163 | AV59: 0.8385685267 | AW59: 0.8551815594 | AX59: 0.3997870722 | AY59: 0.6777969953 | AZ59: 0.8632500246 | BA59: 0.5612895768 | BB59: 0.3322315817 | BC59: 0.3648250524 | BD59: 0.2854891434 | BE59: 0.5908533563 | BF59: 0.9255710174 | BG59: 0.7016546621 | BH59: 0.9668690724 | BI59: 0.2737465336 | BJ59: 0.3982057474 | BK59: 0.05461127041 | BL59: 0.7305541489 | BM59: 0.4243836673 | BN59: 0.4762718741 | BO59: 0.2721781288 | BP59: 0.1611345039 | BQ59: 0.4305786677 | BR59: 0.9302174388 | BS59: 0.5098044036 | BT59: 0.9584735984 | BU59: 0.3118810397 | BV59: 0.6960645354 | BW59: 0.8210637275 | BX59: 0.4481672943 | BY59: 0.9816503055 | BZ59: 0.9244056026 | CA59: 0.2937705981 | CB59: 0.8889044489 | CC59: 0.5953024612 | CD59: 0.3114410517 | CE59: 0.6039629145 | CF59: 0.3825138365 | CG59: 0.8199821446 | CH59: 0.2919295025 | CI59: 0.04186536633 | CJ59: 0.5822171856 | CK59: 0.1463516802 | CL59: 0.5699486443 | CM59: 0.01069514115 | CN59: 0.6954337421 | CO59: 0.04041105645 | CP59: 0.03444622768 | CQ59: 0.7959171172 | CR59: 0.2837477369 | CS59: 0.4540258956 | CT59: 0.2128642478 | CU59: 0.1344082842 | CV59: 0.3491890941
A60: 0.4372840798 | B60: 0.2339296279 | C60: 0.05434507442 | D60: 0.6584460351 | E60: 0.4318656076 | F60: 0.4815608079 | G60: 0.4867862804 | H60: 0.5522759895 | I60: 0.491532333 | J60: 0.9842021062 | K60: 0.1466252753 | L60: 0.9562269424 | M60: 0.7070183596 | N60: 0.4267558829 | O60: 0.8117398037 | P60: 0.0452478994 | Q60: 0.09927300431 | R60: 0.3839926763 | S60: 0.1163261695 | T60: 0.4099434983 | U60: 0.5198054947 | V60: 0.5446161355 | W60: 0.5875699341 | X60: 0.6781957059 | Y60: 0.7510046308 | Z60: 0.9312996004 | AA60: 0.9642550105 | AB60: 0.3275704704 | AC60: 0.141410567 | AD60: 0.6724779111 | AE60: 0.7242296925 | AF60: 0.6287242825 | AG60: 0.5787363713 | AH60: 0.720046447 | AI60: 0.8876365948 | AJ60: 0.1487907245 | AK60: 0.7049310209 | AL60: 0.7255796483 | AM60: 0.6966716571 | AN60: 0.6943392371 | AO60: 0.7651365246 | AP60: 0.7680559287 | AQ60: 0.4064299083 | AR60: 0.6025720208 | AS60: 0.3430418873 | AT60: 0.288917786 | AU60: 0.391428326 | AV60: 0.795545364 | AW60: 0.6966449519 | AX60: 0.5834147198 | AY60: 0.3573100227 | AZ60: 0.4010559915 | BA60: 0.9380315985 | BB60: 0.2971818612 | BC60: 0.5710545456 | BD60: 0.3046804408 | BE60: 0.02101499604 | BF60: 0.940959548 | BG60: 0.6689230815 | BH60: 0.174041033 | BI60: 0.6457224281 | BJ60: 0.08244826191 | BK60: 0.2950931651 | BL60: 0.02077472608 | BM60: 0.5683719035 | BN60: 0.6536136067 | BO60: 0.4719337335 | BP60: 0.434143328 | BQ60: 0.77672811 | BR60: 0.1828935927 | BS60: 0.5914104595 | BT60: 0.9147977482 | BU60: 0.6726083036 | BV60: 0.4781432735 | BW60: 0.05052406054 | BX60: 0.8673221297 | BY60: 0.1870968975 | BZ60: 0.08763070344 | CA60: 0.5489205502 | CB60: 0.4623152034 | CC60: 0.7340682347 | CD60: 0.7004742391 | CE60: 0.1250059906 | CF60: 0.6316609757 | CG60: 0.5761417206 | CH60: 0.9702535892 | CI60: 0.8913471737 | CJ60: 0.6633902771 | CK60: 0.3720320176 | CL60: 0.3276633099 | CM60: 0.5479383137 | CN60: 0.7387540664 | CO60: 0.2062927951 | CP60: 0.9808778589 | CQ60: 0.6591940047 | CR60: 0.2369827428 | CS60: 0.5068192711 | CT60: 0.8970697659 | CU60: 0.00693005875 | CV60: 0.182336819
A61: 0.6670830863 | B61: 0.3819264382 | C61: 0.7121305239 | D61: 0.6460966398 | E61: 0.9507156817 | F61: 0.5639253467 | G61: 0.5731128209 | H61: 0.5908756674 | I61: 0.4951941349 | J61: 0.02679607224 | K61: 0.6958360288 | L61: 0.4848010346 | M61: 0.9123151815 | N61: 0.944370819 | O61: 0.01038534257 | P61: 0.5879221461 | Q61: 0.2539570128 | R61: 0.1351488352 | S61: 0.1434766443 | T61: 0.9743002187 | U61: 0.7346095706 | V61: 0.684628522 | W61: 0.3896980082 | X61: 0.06665398508 | Y61: 0.8545173093 | Z61: 0.7910080589 | AA61: 0.7391061974 | AB61: 0.3691009331 | AC61: 0.6142949438 | AD61: 0.6892559413 | AE61: 0.7338324903 | AF61: 0.1396206982 | AG61: 0.182528798 | AH61: 0.4040557502 | AI61: 0.2102058839 | AJ61: 0.2188973076 | AK61: 0.1182615646 | AL61: 0.4695169242 | AM61: 0.2488039282 | AN61: 0.2451206064 | AO61: 0.2939653112 | AP61: 0.8067560989 | AQ61: 0.3120586596 | AR61: 0.4924801364 | AS61: 0.8124377339 | AT61: 0.3806354855 | AU61: 0.2132520736 | AV61: 0.273128726 | AW61: 0.5186863066 | AX61: 0.05464416848 | AY61: 0.9883935353 | AZ61: 0.7723242817 | BA61: 0.4933905792 | BB61: 0.1211108533 | BC61: 0.2970515912 | BD61: 0.2126009787 | BE61: 0.3550707651 | BF61: 0.6663111469 | BG61: 0.891110475 | BH61: 0.815388524 | BI61: 0.7590678459 | BJ61: 0.7432278929 | BK61: 0.2923004535 | BL61: 0.1715335369 | BM61: 0.07849222789 | BN61: 0.3532382125 | BO61: 0.5629814275 | BP61: 0.2860585118 | BQ61: 0.3328971318 | BR61: 0.5127843896 | BS61: 0.2970598093 | BT61: 0.7699601495 | BU61: 0.06728879204 | BV61: 0.4172821851 | BW61: 0.2610982862 | BX61: 0.6482283326 | BY61: 0.9715857226 | BZ61: 0.7526030424 | CA61: 0.001950998987 | CB61: 0.3973029394 | CC61: 0.05295040858 | CD61: 0.8231571673 | CE61: 0.3717029869 | CF61: 0.5461418483 | CG61: 0.3903331271 | CH61: 0.2019833181 | CI61: 0.7164820811 | CJ61: 0.8708655036 | CK61: 0.02785672928 | CL61: 0.5477665309 | CM61: 0.9398922411 | CN61: 0.8528806385 | CO61: 0.9644268645 | CP61: 0.382259121 | CQ61: 0.4949706462 | CR61: 0.1964923174 | CS61: 0.1056073329 | CT61: 0.2313162174 | CU61: 0.04108432131 | CV61: 0.9284289763
A62: 0.760716503 | B62: 0.6352043667 | C62: 0.8640274037 | D62: 0.4066782288 | E62: 0.3141464907 | F62: 0.6456465735 | G62: 0.2199305437 | H62: 0.01182755204 | I62: 0.5021374542 | J62: 0.6580992029 | K62: 0.01893452012 | L62: 0.5892340599 | M62: 0.6475147948 | N62: 0.03281591465 | O62: 0.7051920445 | P62: 0.5159721395 | Q62: 0.8280017941 | R62: 0.4094030859 | S62: 0.462964433 | T62: 0.3896239568 | U62: 0.004630789703 | V62: 0.1168986881 | W62: 0.8650528253 | X62: 0.7373619748 | Y62: 0.2162539559 | Z62: 0.5092371452 | AA62: 0.3430844269 | AB62: 0.8908902329 | AC62: 0.2381238481 | AD62: 0.2341507582 | AE62: 0.2897770161 | AF62: 0.5728478648 | AG62: 0.3387637059 | AH62: 0.02712719771 | AI62: 0.7706097034 | AJ62: 0.2591113964 | AK62: 0.7414182145 | AL62: 0.2311235256 | AM62: 0.2512385393 | AN62: 0.7407394152 | AO62: 0.3120185215 | AP62: 0.1291151124 | AQ62: 0.9066180306 | AR62: 0.1813630158 | AS62: 0.4787325043 | AT62: 0.6129690548 | AU62: 0.394673382 | AV62: 0.9364420791 | AW62: 0.2829657344 | AX62: 0.2564686562 | AY62: 0.3271265522 | AZ62: 0.3990886444 | BA62: 0.8340432758 | BB62: 0.07193323613 | BC62: 0.4677897404 | BD62: 0.8860686203 | BE62: 0.8164754634 | BF62: 0.7667950272 | BG62: 0.3986397884 | BH62: 0.2001176732 | BI62: 0.4471827666 | BJ62: 0.2262909202 | BK62: 0.9898083754 | BL62: 0.9784357952 | BM62: 0.7353041241 | BN62: 0.6164712426 | BO62: 0.2171483863 | BP62: 0.217969421 | BQ62: 0.1336922879 | BR62: 0.3680584799 | BS62: 0.7968592516 | BT62: 0.5438632781 | BU62: 0.6180115996 | BV62: 0.4639366748 | BW62: 0.5886514471 | BX62: 0.05080071218 | BY62: 0.9081971697 | BZ62: 0.6558473203 | CA62: 0.03949718788 | CB62: 0.7883959663 | CC62: 0.7339158721 | CD62: 0.30343375 | CE62: 0.0184550825 | CF62: 0.6000105837 | CG62: 0.2646308158 | CH62: 0.3680735158 | CI62: 0.8570137328 | CJ62: 0.009988601412 | CK62: 0.37567957 | CL62: 0.0878586821 | CM62: 0.546358735 | CN62: 0.6323024383 | CO62: 0.9615511244 | CP62: 0.06354181219 | CQ62: 0.6310230013 | CR62: 0.01330555986 | CS62: 0.6361506854 | CT62: 0.3671123879 | CU62: 0.5577278247 | CV62: 0.4165348179
A63: 0.6011082864 | B63: 0.02599295569 | C63: 0.7678034004 | D63: 0.6614633823 | E63: 0.428780452 | F63: 0.7159635311 | G63: 0.2550900062 | H63: 0.7508716384 | I63: 0.1592793508 | J63: 0.1983044832 | K63: 0.1372470522 | L63: 0.7197830401 | M63: 0.9382444904 | N63: 0.2427899862 | O63: 0.9918553675 | P63: 0.3067056757 | Q63: 0.2487865363 | R63: 0.8924903755 | S63: 0.8168873644 | T63: 0.7241496554 | U63: 0.3489200509 | V63: 0.08513046887 | W63: 0.003636698183 | X63: 0.3585260538 | Y63: 0.1203455104 | Z63: 0.5288149867 | AA63: 0.4633756625 | AB63: 0.9664821152 | AC63: 0.61983196 | AD63: 0.8897772608 | AE63: 0.8322524031 | AF63: 0.5731271273 | AG63: 0.1665529525 | AH63: 0.4938199557 | AI63: 0.3816943674 | AJ63: 0.8362385791 | AK63: 0.2550349012 | AL63: 0.9851913752 | AM63: 0.08944775388 | AN63: 0.5976274781 | AO63: 0.3629494286 | AP63: 0.1644726471 | AQ63: 0.7112062227 | AR63: 0.8325569886 | AS63: 0.02109043803 | AT63: 0.9523595415 | AU63: 0.974066074 | AV63: 0.9586462166 | AW63: 0.9288063249 | AX63: 0.9653302226 | AY63: 0.333362399 | AZ63: 0.9037039608 | BA63: 0.7525617369 | BB63: 0.2597861099 | BC63: 0.1001846422 | BD63: 0.1596289136 | BE63: 0.07799202925 | BF63: 0.1333622804 | BG63: 0.4750301063 | BH63: 0.5676095413 | BI63: 0.8236664267 | BJ63: 0.3419514688 | BK63: 0.5253618581 | BL63: 0.4226243177 | BM63: 0.3310375336 | BN63: 0.5785489653 | BO63: 0.7399147782 | BP63: 0.03953077177 | BQ63: 0.7916847498 | BR63: 0.8639224189 | BS63: 0.3374608527 | BT63: 0.4716928118 | BU63: 0.1848647648 | BV63: 0.2484820377 | BW63: 0.5650585105 | BX63: 0.852030583 | BY63: 0.07253302444 | BZ63: 0.001289509279 | CA63: 0.5636125381 | CB63: 0.3255337016 | CC63: 0.9717398377 | CD63: 0.535627861 | CE63: 0.5949010578 | CF63: 0.857448238 | CG63: 0.7269869096 | CH63: 0.3375385503 | CI63: 0.8146704005 | CJ63: 0.4385481825 | CK63: 0.776357737 | CL63: 0.2700207616 | CM63: 0.4418188148 | CN63: 0.9736512044 | CO63: 0.0899561814 | CP63: 0.8370047152 | CQ63: 0.6102533678 | CR63: 0.9922189763 | CS63: 0.2842209937 | CT63: 0.640019422 | CU63: 0.2684693451 | CV63: 0.4752041515
A64: 0.2446940295 | B64: 0.8068207644 | C64: 0.7554913967 | D64: 0.977107042 | E64: 0.6952879534 | F64: 0.5475824272 | G64: 0.1400483443 | H64: 0.5566749461 | I64: 0.1054312058 | J64: 0.1118347554 | K64: 0.1229861593 | L64: 0.1897129003 | M64: 0.8124248091 | N64: 0.9241641798 | O64: 0.1484324498 | P64: 0.2270206707 | Q64: 0.9099029714 | R64: 0.3622641223 | S64: 0.5026914622 | T64: 0.06914189359 | U64: 0.7013800781 | V64: 0.9254084903 | W64: 0.4851076795 | X64: 0.1746163866 | Y64: 0.4414343057 | Z64: 0.1773376179 | AA64: 0.06811395671 | AB64: 0.4264539329 | AC64: 0.04708344011 | AD64: 0.910656456 | AE64: 0.5063215655 | AF64: 0.9501606345 | AG64: 0.1177200677 | AH64: 0.5352585521 | AI64: 0.3494969329 | AJ64: 0.3094728509 | AK64: 0.6164895052 | AL64: 0.8090275037 | AM64: 0.2912554244 | AN64: 0.6237785298 | AO64: 0.775105718 | AP64: 0.4925499834 | AQ64: 0.164811352 | AR64: 0.2592609766 | AS64: 0.8355504531 | AT64: 0.5004464446 | AU64: 0.906246379 | AV64: 0.3485351877 | AW64: 0.4431557179 | AX64: 0.5373042519 | AY64: 0.8626687363 | AZ64: 0.92864717 | BA64: 0.62899144 | BB64: 0.3983504031 | BC64: 0.09473063049 | BD64: 0.1084148176 | BE64: 0.4179971641 | BF64: 0.9966064255 | BG64: 0.5027526879 | BH64: 0.9907479035 | BI64: 0.527636421 | BJ64: 0.217578926 | BK64: 0.9940559065 | BL64: 0.1412640009 | BM64: 0.9751820042 | BN64: 0.09900915729 | BO64: 0.8451946604 | BP64: 0.8409249812 | BQ64: 0.9289889766 | BR64: 0.8769572483 | BS64: 0.9930561875 | BT64: 0.5973716149 | BU64: 0.3652011961 | BV64: 0.348657454 | BW64: 0.5579616683 | BX64: 0.2448326498 | BY64: 0.1655020081 | BZ64: 0.3216815827 | CA64: 0.9788687481 | CB64: 0.08275677237 | CC64: 0.294337583 | CD64: 0.7026049206 | CE64: 0.6232528564 | CF64: 0.1996562654 | CG64: 0.8952004037 | CH64: 0.6567635313 | CI64: 0.1674658248 | CJ64: 0.2746950724 | CK64: 0.4964757449 | CL64: 0.2905000127 | CM64: 0.8180751014 | CN64: 0.483231885 | CO64: 0.5097168686 | CP64: 0.08199568977 | CQ64: 0.5523126907 | CR64: 0.6905017979 | CS64: 0.06745412679 | CT64: 0.9342351858 | CU64: 0.3730620662 | CV64: 0.8915161668
A65: 0.1481320064 | B65: 0.1640571573 | C65: 0.7160384288 | D65: 0.9365122906 | E65: 0.481643083 | F65: 0.9536453181 | G65: 0.9328389074 | H65: 0.8529080669 | I65: 0.4364149179 | J65: 0.7980484937 | K65: 0.8862743868 | L65: 0.7887699561 | M65: 0.338517431 | N65: 0.5947139783 | O65: 0.315894225 | P65: 0.6846838385 | Q65: 0.4961109645 | R65: 0.08568695047 | S65: 0.3172863284 | T65: 0.524101107 | U65: 0.03685210834 | V65: 0.8441029294 | W65: 0.802040084 | X65: 0.8852895236 | Y65: 0.03856868128 | Z65: 0.2327705535 | AA65: 0.3668343422 | AB65: 0.714964354 | AC65: 0.4354603943 | AD65: 0.50796915 | AE65: 0.3522102591 | AF65: 0.6266861573 | AG65: 0.2714294217 | AH65: 0.1388953073 | AI65: 0.04984588772 | AJ65: 0.1244962764 | AK65: 0.7796156434 | AL65: 0.2752362012 | AM65: 0.4127984168 | AN65: 0.969549955 | AO65: 0.3341100678 | AP65: 0.3498091159 | AQ65: 0.9265614329 | AR65: 0.7327828085 | AS65: 0.9249476619 | AT65: 0.7128472071 | AU65: 0.2408996315 | AV65: 0.7162289753 | AW65: 0.7772023798 | AX65: 0.3684114116 | AY65: 0.6753344398 | AZ65: 0.9557868514 | BA65: 0.07657876116 | BB65: 0.3664984093 | BC65: 0.3460224287 | BD65: 0.9253628488 | BE65: 0.6079743699 | BF65: 0.622077496 | BG65: 0.2906546623 | BH65: 0.7415232837 | BI65: 0.6958063111 | BJ65: 0.208885256 | BK65: 0.9722473736 | BL65: 0.652483996 | BM65: 0.1189311805 | BN65: 0.5920020208 | BO65: 0.7458610924 | BP65: 0.6133901524 | BQ65: 0.6049545496 | BR65: 0.3950111714 | BS65: 0.04863737081 | BT65: 0.09414168115 | BU65: 0.1591693299 | BV65: 0.7654201953 | BW65: 0.4093483991 | BX65: 0.534228564 | BY65: 0.3419967955 | BZ65: 0.148891071 | CA65: 0.8538773454 | CB65: 0.5188348839 | CC65: 0.2411088499 | CD65: 0.9968822888 | CE65: 0.001528548924 | CF65: 0.1750160004 | CG65: 0.7180565721 | CH65: 0.8095768838 | CI65: 0.7719378474 | CJ65: 0.06659743262 | CK65: 0.6049485477 | CL65: 0.7332131488 | CM65: 0.4265184603 | CN65: 0.4729682709 | CO65: 0.599905354 | CP65: 0.8410063413 | CQ65: 0.9964052 | CR65: 0.65455677 | CS65: 0.6409952468 | CT65: 0.5048821863 | CU65: 0.9187529309 | CV65: 0.4904222437
A66: 0.4673852842 | B66: 0.5991121826 | C66: 0.5479662496 | D66: 0.1484766759 | E66: 0.8951758034 | F66: 0.1282406237 | G66: 0.07475375912 | H66: 0.9874440106 | I66: 0.9941904913 | J66: 0.03105129895 | K66: 0.9499413474 | L66: 0.279145349 | M66: 0.07011938861 | N66: 0.1664887714 | O66: 0.3129579592 | P66: 0.7079246403 | Q66: 0.1554416836 | R66: 0.2419107558 | S66: 0.09157103439 | T66: 0.3571079189 | U66: 0.6381761352 | V66: 0.8698836588 | W66: 0.371718379 | X66: 0.0657507798 | Y66: 0.6007845288 | Z66: 0.0883369765 | AA66: 0.115737749 | AB66: 0.3480685449 | AC66: 0.3821331874 | AD66: 0.4274967019 | AE66: 0.636863258 | AF66: 0.4951309411 | AG66: 0.1358753138 | AH66: 0.5732490356 | AI66: 0.609775099 | AJ66: 0.2631269562 | AK66: 0.7558669624 | AL66: 0.2796393717 | AM66: 0.6188653788 | AN66: 0.4369218549 | AO66: 0.6026883037 | AP66: 0.03703238554 | AQ66: 0.5340051037 | AR66: 0.9938775053 | AS66: 0.1206246761 | AT66: 0.4001636469 | AU66: 0.1582171719 | AV66: 0.8043482824 | AW66: 0.5910740778 | AX66: 0.1406065149 | AY66: 0.002838748798 | AZ66: 0.8134891253 | BA66: 0.5300827661 | BB66: 0.1722108614 | BC66: 0.972435778 | BD66: 0.371668408 | BE66: 0.01863288523 | BF66: 0.8614038811 | BG66: 0.2055557573 | BH66: 0.6302917034 | BI66: 0.2566041608 | BJ66: 0.6347121397 | BK66: 0.5425851153 | BL66: 0.9543078646 | BM66: 0.146743798 | BN66: 0.1807394851 | BO66: 0.9950077203 | BP66: 0.1224152315 | BQ66: 0.6349484119 | BR66: 0.8230752058 | BS66: 0.4976508489 | BT66: 0.9130796056 | BU66: 0.1184221522 | BV66: 0.116913427 | BW66: 0.41867272 | BX66: 0.2558455875 | BY66: 0.5023748038 | BZ66: 0.05282923733 | CA66: 0.01657848507 | CB66: 0.3992860533 | CC66: 0.1063344196 | CD66: 0.2313304837 | CE66: 0.8807188721 | CF66: 0.5071384395 | CG66: 0.1730942267 | CH66: 0.4791222205 | CI66: 0.2314388972 | CJ66: 0.05888518441 | CK66: 0.2804596983 | CL66: 0.9523090418 | CM66: 0.6466463659 | CN66: 0.6522060198 | CO66: 0.9768880994 | CP66: 0.8361870879 | CQ66: 0.3362178319 | CR66: 0.1514508561 | CS66: 0.68079558 | CT66: 0.7078715472 | CU66: 0.5165557722 | CV66: 0.3039007731
A67: 0.6937600101 | B67: 0.1106254086 | C67: 0.5013598115 | D67: 0.5095212201 | E67: 0.6485140529 | F67: 0.6913631437 | G67: 0.7198855145 | H67: 0.2989241649 | I67: 0.4856530601 | J67: 0.5278129935 | K67: 0.05514186514 | L67: 0.2886950771 | M67: 0.665430652 | N67: 0.4601965367 | O67: 0.7360401386 | P67: 0.5064022613 | Q67: 0.6309662569 | R67: 0.5464495619 | S67: 0.6783933488 | T67: 0.8410694709 | U67: 0.9814757043 | V67: 0.1389296877 | W67: 0.2536637048 | X67: 0.4043031792 | Y67: 0.4233712445 | Z67: 0.2926746046 | AA67: 0.4489216735 | AB67: 0.5911426142 | AC67: 0.1914721561 | AD67: 0.9572684912 | AE67: 0.7037014838 | AF67: 0.0008281881752 | AG67: 0.5035719455 | AH67: 0.1899485204 | AI67: 0.2172727581 | AJ67: 0.236546448 | AK67: 0.4580013385 | AL67: 0.9644391868 | AM67: 0.5033361463 | AN67: 0.1505722777 | AO67: 0.9064948729 | AP67: 0.9698151391 | AQ67: 0.7927969752 | AR67: 0.4862271761 | AS67: 0.2033638973 | AT67: 0.5787601823 | AU67: 0.4477022725 | AV67: 0.5637771692 | AW67: 0.3862966942 | AX67: 0.5954291832 | AY67: 0.6806975291 | AZ67: 0.8074624666 | BA67: 0.9163228517 | BB67: 0.9282156644 | BC67: 0.03455750781 | BD67: 0.2582423989 | BE67: 0.6730137261 | BF67: 0.9407555028 | BG67: 0.651812991 | BH67: 0.9095474968 | BI67: 0.5804295517 | BJ67: 0.9333071539 | BK67: 0.6182100162 | BL67: 0.2763738222 | BM67: 0.1576858634 | BN67: 0.3784709574 | BO67: 0.6861132157 | BP67: 0.7342160355 | BQ67: 0.3311330736 | BR67: 0.6788018609 | BS67: 0.5524956219 | BT67: 0.409390257 | BU67: 0.6040690046 | BV67: 0.2194194461 | BW67: 0.4366138178 | BX67: 0.4237424083 | BY67: 0.2442181213 | BZ67: 0.6234927517 | CA67: 0.7912096878 | CB67: 0.2632720733 | CC67: 0.7697223991 | CD67: 0.2982652765 | CE67: 0.1638065908 | CF67: 0.8429124299 | CG67: 0.2306256918 | CH67: 0.4780546979 | CI67: 0.5330934454 | CJ67: 0.54902332 | CK67: 0.4629587123 | CL67: 0.3058680226 | CM67: 0.06537088019 | CN67: 0.8828047888 | CO67: 0.8437323448 | CP67: 0.1052341678 | CQ67: 0.502586013 | CR67: 0.05511435362 | CS67: 0.004694296939 | CT67: 0.7107853509 | CU67: 0.8702498355 | CV67: 0.2355600267
A68: 0.5278182283 | B68: 0.5461946424 | C68: 0.6599370711 | D68: 0.2452483915 | E68: 0.06654537359 | F68: 0.6044209331 | G68: 0.4620119306 | H68: 0.3848073529 | I68: 0.4905408069 | J68: 0.5275904755 | K68: 0.9922469785 | L68: 0.1319301199 | M68: 0.04537785903 | N68: 0.3492536127 | O68: 0.6661854699 | P68: 0.7775713596 | Q68: 0.002136392887 | R68: 0.8384775076 | S68: 0.9663647341 | T68: 0.650680139 | U68: 0.03774538974 | V68: 0.4112111765 | W68: 0.05729503107 | X68: 0.3759769297 | Y68: 0.2377832928 | Z68: 0.05288231578 | AA68: 0.5647347388 | AB68: 0.6460899608 | AC68: 0.939779077 | AD68: 0.8688635679 | AE68: 0.3128659048 | AF68: 0.4338088279 | AG68: 0.6488845931 | AH68: 0.4517187755 | AI68: 0.114094742 | AJ68: 0.1443954079 | AK68: 0.5947896981 | AL68: 0.2091788899 | AM68: 0.286091646 | AN68: 0.5416296199 | AO68: 0.3116088178 | AP68: 0.3464184458 | AQ68: 0.9130971325 | AR68: 0.0713101296 | AS68: 0.2727025082 | AT68: 0.696036879 | AU68: 0.7412555588 | AV68: 0.2411666831 | AW68: 0.2073219891 | AX68: 0.3470023799 | AY68: 0.4747886031 | AZ68: 0.6973850145 | BA68: 0.2040343024 | BB68: 0.6295767117 | BC68: 0.02907038279 | BD68: 0.04164612961 | BE68: 0.0254637047 | BF68: 0.2572356985 | BG68: 0.140687631 | BH68: 0.1733483821 | BI68: 0.5785036313 | BJ68: 0.532287546 | BK68: 0.4340808309 | BL68: 0.7994344101 | BM68: 0.4645705764 | BN68: 0.3628094232 | BO68: 0.2158676684 | BP68: 0.2016862697 | BQ68: 0.3208208699 | BR68: 0.552945799 | BS68: 0.354525533 | BT68: 0.9986642094 | BU68: 0.4807827877 | BV68: 0.04203412037 | BW68: 0.204461242 | BX68: 0.7147726589 | BY68: 0.2642839704 | BZ68: 0.2051105968 | CA68: 0.9689595956 | CB68: 0.8305539752 | CC68: 0.2961935033 | CD68: 0.3502455323 | CE68: 0.07956306404 | CF68: 0.9258575259 | CG68: 0.3282900735 | CH68: 0.08431895565 | CI68: 0.4554399517 | CJ68: 0.7351025037 | CK68: 0.8622830795 | CL68: 0.1870277239 | CM68: 0.507321793 | CN68: 0.7890059626 | CO68: 0.7133057899 | CP68: 0.9142765301 | CQ68: 0.7043297514 | CR68: 0.2736431476 | CS68: 0.05555360714 | CT68: 0.007377251536 | CU68: 0.6044293643 | CV68: 0.1406533389
A69: 0.7281129262 | B69: 0.3284439922 | C69: 0.3423971946 | D69: 0.04447709524 | E69: 0.5364991105 | F69: 0.6192697776 | G69: 0.7032632386 | H69: 0.2535264576 | I69: 0.3196254298 | J69: 0.2435483806 | K69: 0.4143618779 | L69: 0.08680183827 | M69: 0.301878426 | N69: 0.08246316213 | O69: 0.9785075497 | P69: 0.8466377468 | Q69: 0.3196532855 | R69: 0.22520053 | S69: 0.9552684093 | T69: 0.2969556787 | U69: 0.3709679977 | V69: 0.0909929547 | W69: 0.6122525071 | X69: 0.5406270784 | Y69: 0.5015159969 | Z69: 0.2797107416 | AA69: 0.1437133897 | AB69: 0.116319686 | AC69: 0.9016427489 | AD69: 0.8610220747 | AE69: 0.3805908806 | AF69: 0.4376646409 | AG69: 0.6464357014 | AH69: 0.2665127641 | AI69: 0.5366887989 | AJ69: 0.8661119526 | AK69: 0.747996193 | AL69: 0.6979706418 | AM69: 0.3621870531 | AN69: 0.747974572 | AO69: 0.3925917958 | AP69: 0.6755850665 | AQ69: 0.7066181305 | AR69: 0.1056308947 | AS69: 0.3062999374 | AT69: 0.1928429166 | AU69: 0.5749091454 | AV69: 0.346140754 | AW69: 0.2315707009 | AX69: 0.3139995991 | AY69: 0.4286550247 | AZ69: 0.1019694474 | BA69: 0.5156094574 | BB69: 0.2307404318 | BC69: 0.7359923649 | BD69: 0.4823747669 | BE69: 0.02140333895 | BF69: 0.5912915915 | BG69: 0.7116056838 | BH69: 0.5019343493 | BI69: 0.7763899547 | BJ69: 0.1177166116 | BK69: 0.582817827 | BL69: 0.6924394038 | BM69: 0.3736388456 | BN69: 0.7811777567 | BO69: 0.2724572333 | BP69: 0.3411830216 | BQ69: 0.7270727764 | BR69: 0.6448166152 | BS69: 0.2837198396 | BT69: 0.827782945 | BU69: 0.6683918359 | BV69: 0.6941827417 | BW69: 0.7257932001 | BX69: 0.3706648645 | BY69: 0.7070945869 | BZ69: 0.01311481319 | CA69: 0.217608332 | CB69: 0.1580164907 | CC69: 0.1139884302 | CD69: 0.1052972153 | CE69: 0.4458407464 | CF69: 0.3751650817 | CG69: 0.9632294368 | CH69: 0.1922957331 | CI69: 0.09080443671 | CJ69: 0.5973963344 | CK69: 0.1757130613 | CL69: 0.7115579136 | CM69: 0.1381319989 | CN69: 0.3609960746 | CO69: 0.988252776 | CP69: 0.2650705971 | CQ69: 0.8316142284 | CR69: 0.2699748653 | CS69: 0.08027324763 | CT69: 0.3321397515 | CU69: 0.1414205067 | CV69: 0.3505183501
A70: 0.6207206983 | B70: 0.2680871467 | C70: 0.05378240205 | D70: 0.6587223873 | E70: 0.8918177581 | F70: 0.02379514697 | G70: 0.1224774962 | H70: 0.327575387 | I70: 0.2126370466 | J70: 0.0001814201815 | K70: 0.7307725658 | L70: 0.622220958 | M70: 0.623861577 | N70: 0.631654147 | O70: 0.2103782169 | P70: 0.9443644734 | Q70: 0.628964748 | R70: 0.3257764924 | S70: 0.7601956837 | T70: 0.3178843595 | U70: 0.8973048693 | V70: 0.3282564345 | W70: 0.01518769829 | X70: 0.8727605819 | Y70: 0.8452708388 | Z70: 0.1023666907 | AA70: 0.03745270325 | AB70: 0.102261864 | AC70: 0.4371847656 | AD70: 0.7894975475 | AE70: 0.2008417557 | AF70: 0.1774828092 | AG70: 0.5477192422 | AH70: 0.783530855 | AI70: 0.1971006647 | AJ70: 0.9354195783 | AK70: 0.9931079419 | AL70: 0.9355286072 | AM70: 0.2993739697 | AN70: 0.09081716137 | AO70: 0.5582508443 | AP70: 0.4061933008 | AQ70: 0.4931847482 | AR70: 0.3455194712 | AS70: 0.964908766 | AT70: 0.3344728707 | AU70: 0.9033170978 | AV70: 0.1551714532 | AW70: 0.440724358 | AX70: 0.8846927505 | AY70: 0.7569109148 | AZ70: 0.8605085358 | BA70: 0.6177732161 | BB70: 0.3898522021 | BC70: 0.2847879844 | BD70: 0.6828012644 | BE70: 0.6148063229 | BF70: 0.5699245047 | BG70: 0.7140573671 | BH70: 0.7755938552 | BI70: 0.9474902718 | BJ70: 0.4696460279 | BK70: 0.3273952781 | BL70: 0.4325051945 | BM70: 0.6225247996 | BN70: 0.6164331815 | BO70: 0.7656462531 | BP70: 0.3262273996 | BQ70: 0.3841742343 | BR70: 0.3037813326 | BS70: 0.9749952527 | BT70: 0.651954505 | BU70: 0.06280584056 | BV70: 0.09800670171 | BW70: 0.3241724164 | BX70: 0.4382857761 | BY70: 0.2174368949 | BZ70: 0.9937660915 | CA70: 0.9334303396 | CB70: 0.435766013 | CC70: 0.6216726856 | CD70: 0.4173935116 | CE70: 0.1601831954 | CF70: 0.1465189594 | CG70: 0.4020363757 | CH70: 0.6202891808 | CI70: 0.624183493 | CJ70: 0.5568183227 | CK70: 0.8446909342 | CL70: 0.6881466727 | CM70: 0.699019136 | CN70: 0.6140305441 | CO70: 0.4786430005 | CP70: 0.5344019876 | CQ70: 0.6716614254 | CR70: 0.3711021344 | CS70: 0.1074415059 | CT70: 0.09055064141 | CU70: 0.3074486498 | CV70: 0.7375275189
A71: 0.4413467893 | B71: 0.3557191096 | C71: 0.4171663149 | D71: 0.3712646673 | E71: 0.5856387257 | F71: 0.001296531977 | G71: 0.9341427143 | H71: 0.7261421251 | I71: 0.5101771432 | J71: 0.4746877297 | K71: 0.6596098438 | L71: 0.7593503283 | M71: 0.9802819968 | N71: 0.6192566885 | O71: 0.01665508846 | P71: 0.6231858878 | Q71: 0.479102291 | R71: 0.124212744 | S71: 0.6064325236 | T71: 0.9913191367 | U71: 0.2666321385 | V71: 0.4699947713 | W71: 0.5672577034 | X71: 0.2620472443 | Y71: 0.7882729304 | Z71: 0.2179981447 | AA71: 0.4272874705 | AB71: 0.3046210298 | AC71: 0.4780800555 | AD71: 0.8999195574 | AE71: 0.202164052 | AF71: 0.8802038713 | AG71: 0.1784662717 | AH71: 0.619945378 | AI71: 0.02141637186 | AJ71: 0.5727589149 | AK71: 0.5165626497 | AL71: 0.1227718684 | AM71: 0.249414664 | AN71: 0.7212037956 | AO71: 0.7989541591 | AP71: 0.7946288828 | AQ71: 0.02388575306 | AR71: 0.08362850971 | AS71: 0.08709621111 | AT71: 0.3605038633 | AU71: 0.4332711942 | AV71: 0.09976306202 | AW71: 0.9993185378 | AX71: 0.2429714806 | AY71: 0.9536444322 | AZ71: 0.85259558 | BA71: 0.6716444326 | BB71: 0.2001680918 | BC71: 0.03981102353 | BD71: 0.9492276607 | BE71: 0.3521789251 | BF71: 0.3215735657 | BG71: 0.1337292896 | BH71: 0.7403236287 | BI71: 0.9361646614 | BJ71: 0.1526776477 | BK71: 0.2112037581 | BL71: 0.2483028212 | BM71: 0.1809297715 | BN71: 0.3259182068 | BO71: 0.2817574388 | BP71: 0.5341390513 | BQ71: 0.5054745854 | BR71: 0.9139741373 | BS71: 0.7883983138 | BT71: 0.407423894 | BU71: 0.8757016358 | BV71: 0.532443037 | BW71: 0.200086501 | BX71: 0.2066399033 | BY71: 0.1717500236 | BZ71: 0.2130469003 | CA71: 0.3574358681 | CB71: 0.4136787448 | CC71: 0.4632721714 | CD71: 0.2225512536 | CE71: 0.1969884005 | CF71: 0.002773626674 | CG71: 0.2081450529 | CH71: 0.9179961196 | CI71: 0.3634539252 | CJ71: 0.621619042 | CK71: 0.7849199027 | CL71: 0.48616366 | CM71: 0.6396818953 | CN71: 0.8008327126 | CO71: 0.3162486676 | CP71: 0.1305961963 | CQ71: 0.9534899847 | CR71: 0.3257552721 | CS71: 0.827378941 | CT71: 0.9649257108 | CU71: 0.7502214431 | CV71: 0.2060156879
A72: 0.2061606749 | B72: 0.9383353453 | C72: 0.1682302991 | D72: 0.4340916229 | E72: 0.6599782307 | F72: 0.02375764322 | G72: 0.3919649802 | H72: 0.6583456055 | I72: 0.3997041879 | J72: 0.3272636007 | K72: 0.7166296197 | L72: 0.2199708246 | M72: 0.1428499494 | N72: 0.11087651 | O72: 0.1111778475 | P72: 0.5507960197 | Q72: 0.8201447959 | R72: 0.8030895112 | S72: 0.3863250279 | T72: 0.07199214353 | U72: 0.3074001885 | V72: 0.5827970234 | W72: 0.9516141101 | X72: 0.6435520816 | Y72: 0.9675714224 | Z72: 0.3956456643 | AA72: 0.1542315036 | AB72: 0.132253758 | AC72: 0.639999348 | AD72: 0.6876166223 | AE72: 0.5249028248 | AF72: 0.9476372168 | AG72: 0.5341370345 | AH72: 0.5123750721 | AI72: 0.6056319885 | AJ72: 0.6264904144 | AK72: 0.331813007 | AL72: 0.4595639264 | AM72: 0.6255192249 | AN72: 0.378173272 | AO72: 0.6539184332 | AP72: 0.8751826846 | AQ72: 0.713110583 | AR72: 0.9683300133 | AS72: 0.8901952691 | AT72: 0.2861061061 | AU72: 0.8379820592 | AV72: 0.5480198155 | AW72: 0.2964302366 | AX72: 0.009819991023 | AY72: 0.2010132547 | AZ72: 0.02664106951 | BA72: 0.9769929582 | BB72: 0.349159685 | BC72: 0.9838802159 | BD72: 0.3905781366 | BE72: 0.8080313503 | BF72: 0.3276343769 | BG72: 0.6295815143 | BH72: 0.3138516066 | BI72: 0.057390241 | BJ72: 0.6376299641 | BK72: 0.7202323617 | BL72: 0.5391013192 | BM72: 0.4617255274 | BN72: 0.2032003194 | BO72: 0.04055050785 | BP72: 0.1869162024 | BQ72: 0.7056542283 | BR72: 0.162126238 | BS72: 0.7855886694 | BT72: 0.6216720414 | BU72: 0.9286075249 | BV72: 0.8072264368 | BW72: 0.4949091782 | BX72: 0.01622961725 | BY72: 0.03760386344 | BZ72: 0.746861197 | CA72: 0.6617444882 | CB72: 0.9190928885 | CC72: 0.1213126379 | CD72: 0.5657622249 | CE72: 0.7375704094 | CF72: 0.4915860727 | CG72: 0.03298933978 | CH72: 0.3423577463 | CI72: 0.7527819154 | CJ72: 0.9686440517 | CK72: 0.6510311222 | CL72: 0.8337556967 | CM72: 0.0008822732699 | CN72: 0.8295521463 | CO72: 0.5110816458 | CP72: 0.3290145419 | CQ72: 0.4409826837 | CR72: 0.2888447389 | CS72: 0.2093274039 | CT72: 0.1800256481 | CU72: 0.6443975274 | CV72: 0.7290545533
A73: 0.1378260066 | B73: 0.1401690964 | C73: 0.4864129163 | D73: 0.8574074878 | E73: 0.6467854647 | F73: 0.3561510153 | G73: 0.6480849137 | H73: 0.3932717297 | I73: 0.9946290612 | J73: 0.9278804184 | K73: 0.6833216731 | L73: 0.6517926908 | M73: 0.06567215974 | N73: 0.3312732 | O73: 0.4081214869 | P73: 0.4669209675 | Q73: 0.4420336482 | R73: 0.7537325458 | S73: 0.9627580684 | T73: 0.5655714112 | U73: 0.6856362673 | V73: 0.9912962143 | W73: 0.01566128129 | X73: 0.07009254668 | Y73: 0.102740011 | Z73: 0.9048747846 | AA73: 0.3139159579 | AB73: 0.7283566024 | AC73: 0.5864565304 | AD73: 0.8939442516 | AE73: 0.04408781483 | AF73: 0.9260523852 | AG73: 0.08249057249 | AH73: 0.3168462915 | AI73: 0.8279291387 | AJ73: 0.7060061611 | AK73: 0.7301516587 | AL73: 0.2986531894 | AM73: 0.8547599379 | AN73: 0.3168128882 | AO73: 0.3524632944 | AP73: 0.8453765245 | AQ73: 0.5415615019 | AR73: 0.9353150345 | AS73: 0.9357327817 | AT73: 0.9635035137 | AU73: 0.9271441623 | AV73: 0.8176100032 | AW73: 0.9969789467 | AX73: 0.8783821656 | AY73: 0.4471214342 | AZ73: 0.4133444382 | BA73: 0.5070183587 | BB73: 0.2291978205 | BC73: 0.5002569133 | BD73: 0.7016812358 | BE73: 0.1327159048 | BF73: 0.3286563932 | BG73: 0.3431818371 | BH73: 0.9299364394 | BI73: 0.9548232668 | BJ73: 0.1574770032 | BK73: 0.6652615633 | BL73: 0.3178166236 | BM73: 0.5062391223 | BN73: 0.1419236994 | BO73: 0.8309387727 | BP73: 0.04003102697 | BQ73: 0.5941414969 | BR73: 0.7598283344 | BS73: 0.6251935126 | BT73: 0.4330473809 | BU73: 0.7272969232 | BV73: 0.4043285948 | BW73: 0.1596881575 | BX73: 0.4197424429 | BY73: 0.3843945888 | BZ73: 0.05932752141 | CA73: 0.00209303446 | CB73: 0.9403056276 | CC73: 0.7450737264 | CD73: 0.01047674182 | CE73: 0.6271099383 | CF73: 0.9839833932 | CG73: 0.721004577 | CH73: 0.05213546559 | CI73: 0.5504816537 | CJ73: 0.565955324 | CK73: 0.2440826904 | CL73: 0.6193795406 | CM73: 0.6036411738 | CN73: 0.4233293519 | CO73: 0.0817951612 | CP73: 0.9348969726 | CQ73: 0.8841252443 | CR73: 0.09559712039 | CS73: 0.4940750913 | CT73: 0.1538377364 | CU73: 0.931116465 | CV73: 0.5088623974
A74: 0.02808138491 | B74: 0.149110139 | C74: 0.564830944 | D74: 0.3090972359 | E74: 0.1190176042 | F74: 0.3141225893 | G74: 0.1477181404 | H74: 0.7816088581 | I74: 0.4776030671 | J74: 0.07640414822 | K74: 0.9128918336 | L74: 0.9821385161 | M74: 0.6658146434 | N74: 0.3837920853 | O74: 0.162634013 | P74: 0.5316746593 | Q74: 0.3673134412 | R74: 0.6881086758 | S74: 0.1737581453 | T74: 0.02591542458 | U74: 0.2604603016 | V74: 0.2265489391 | W74: 0.03066893924 | X74: 0.3355358287 | Y74: 0.5853359921 | Z74: 0.6270413505 | AA74: 0.5194318805 | AB74: 0.214958427 | AC74: 0.07370530453 | AD74: 0.7522668237 | AE74: 0.4160462558 | AF74: 0.1858743819 | AG74: 0.08829102704 | AH74: 0.9931362094 | AI74: 0.08162461931 | AJ74: 0.1947487971 | AK74: 0.5636076337 | AL74: 0.5351655634 | AM74: 0.1398588453 | AN74: 0.03619726084 | AO74: 0.9791395727 | AP74: 0.698090018 | AQ74: 0.5910932534 | AR74: 0.8027226726 | AS74: 0.7260204088 | AT74: 0.2176579733 | AU74: 0.2981538515 | AV74: 0.214292902 | AW74: 0.8087965121 | AX74: 0.9424181135 | AY74: 0.2087935986 | AZ74: 0.001892657602 | BA74: 0.01726907188 | BB74: 0.1452002822 | BC74: 0.7177692978 | BD74: 0.1008078841 | BE74: 0.963146879 | BF74: 0.731743059 | BG74: 0.4060360064 | BH74: 0.05468844291 | BI74: 0.8588359535 | BJ74: 0.5312735884 | BK74: 0.1524404736 | BL74: 0.710779427 | BM74: 0.4006947727 | BN74: 0.949025945 | BO74: 0.7101144412 | BP74: 0.1024075746 | BQ74: 0.0260347481 | BR74: 0.09226803787 | BS74: 0.1456503567 | BT74: 0.3970250279 | BU74: 0.9516474299 | BV74: 0.6220639875 | BW74: 0.8004383698 | BX74: 0.1337536687 | BY74: 0.9333546946 | BZ74: 0.2488202587 | CA74: 0.962046391 | CB74: 0.9990937193 | CC74: 0.1081692305 | CD74: 0.9488422075 | CE74: 0.5268335205 | CF74: 0.3336795756 | CG74: 0.2609428459 | CH74: 0.6215873201 | CI74: 0.1843309903 | CJ74: 0.02195141248 | CK74: 0.7955123853 | CL74: 0.02992811406 | CM74: 0.6188684782 | CN74: 0.6827106502 | CO74: 0.6442117917 | CP74: 0.4799259436 | CQ74: 0.08596430406 | CR74: 0.6116623226 | CS74: 0.8904105556 | CT74: 0.3577116585 | CU74: 0.4700482909 | CV74: 0.7736183007
A75: 0.8520849959 | B75: 0.4990452941 | C75: 0.9664838958 | D75: 0.3227061072 | E75: 0.4972951568 | F75: 0.9629279368 | G75: 0.7474255198 | H75: 0.7554400222 | I75: 0.1497748625 | J75: 0.7100615372 | K75: 0.4838913834 | L75: 0.1659240282 | M75: 0.216590554 | N75: 0.6949087619 | O75: 0.6382532402 | P75: 0.5614634678 | Q75: 0.3503799583 | R75: 0.5211448504 | S75: 0.186836102 | T75: 0.8774166669 | U75: 0.7072482397 | V75: 0.1792116463 | W75: 0.3037717782 | X75: 0.1452121489 | Y75: 0.6592936181 | Z75: 0.2303001325 | AA75: 0.7601568801 | AB75: 0.9553904028 | AC75: 0.3311516024 | AD75: 0.2551932444 | AE75: 0.09268514767 | AF75: 0.6249399555 | AG75: 0.2063754587 | AH75: 0.8204295247 | AI75: 0.6466067966 | AJ75: 0.3399546125 | AK75: 0.06137679013 | AL75: 0.8230018218 | AM75: 0.7660241113 | AN75: 0.4858959108 | AO75: 0.3358928 | AP75: 0.4646284721 | AQ75: 0.3651738459 | AR75: 0.871780057 | AS75: 0.04793991892 | AT75: 0.4876539199 | AU75: 0.9915565385 | AV75: 0.5365739949 | AW75: 0.2746171365 | AX75: 0.6211834423 | AY75: 0.329643743 | AZ75: 0.9813668891 | BA75: 0.9498900614 | BB75: 0.5405632687 | BC75: 0.1050512799 | BD75: 0.5292374482 | BE75: 0.6194747979 | BF75: 0.8352532936 | BG75: 0.1687469884 | BH75: 0.154918346 | BI75: 0.8477738123 | BJ75: 0.4463669035 | BK75: 0.1838390739 | BL75: 0.6637561032 | BM75: 0.9192167172 | BN75: 0.2465215721 | BO75: 0.150666722 | BP75: 0.2081472859 | BQ75: 0.6316888626 | BR75: 0.4292523492 | BS75: 0.01201646411 | BT75: 0.652437674 | BU75: 0.4366031588 | BV75: 0.162048644 | BW75: 0.3163984039 | BX75: 0.08525206886 | BY75: 0.8124954264 | BZ75: 0.0892646863 | CA75: 0.7837203504 | CB75: 0.567738093 | CC75: 0.2095202559 | CD75: 0.3784395352 | CE75: 0.3682417097 | CF75: 0.4163064281 | CG75: 0.1619572387 | CH75: 0.5089286063 | CI75: 0.3234722651 | CJ75: 0.105913347 | CK75: 0.8078678517 | CL75: 0.8822819676 | CM75: 0.8463173207 | CN75: 0.9528257136 | CO75: 0.7460562572 | CP75: 0.7350047065 | CQ75: 0.8573486633 | CR75: 0.4284917799 | CS75: 0.6209240022 | CT75: 0.01437209062 | CU75: 0.9253542926 | CV75: 0.1650748003
A76: 0.8313182478 | B76: 0.2990227832 | C76: 0.2613882964 | D76: 0.2325867296 | E76: 0.8708248875 | F76: 0.3818331185 | G76: 0.4314876975 | H76: 0.7521786139 | I76: 0.04127922438 | J76: 0.9349780776 | K76: 0.4612390462 | L76: 0.6760776109 | M76: 0.7688801075 | N76: 0.03634577432 | O76: 0.04773995674 | P76: 0.4652454971 | Q76: 0.9329614624 | R76: 0.3316765697 | S76: 0.5893670218 | T76: 0.405714955 | U76: 0.1345263591 | V76: 0.6896154471 | W76: 0.01250502061 | X76: 0.7739757049 | Y76: 0.5174008261 | Z76: 0.6103637435 | AA76: 0.9873098469 | AB76: 0.4329793242 | AC76: 0.8981394118 | AD76: 0.0753519921 | AE76: 0.7035625444 | AF76: 0.9475768347 | AG76: 0.828151651 | AH76: 0.6996458713 | AI76: 0.9260282768 | AJ76: 0.7967047312 | AK76: 0.8133524833 | AL76: 0.498501659 | AM76: 0.7555849092 | AN76: 0.2757540325 | AO76: 0.6311330101 | AP76: 0.9652329403 | AQ76: 0.4167538148 | AR76: 0.2875896542 | AS76: 0.5460425879 | AT76: 0.7013527721 | AU76: 0.2195368961 | AV76: 0.4168255536 | AW76: 0.2298450357 | AX76: 0.5537814415 | AY76: 0.2848414891 | AZ76: 0.7815122366 | BA76: 0.8197424704 | BB76: 0.8513882191 | BC76: 0.04701557212 | BD76: 0.465139134 | BE76: 0.7576056471 | BF76: 0.957272191 | BG76: 0.9653975098 | BH76: 0.3406038102 | BI76: 0.2282120248 | BJ76: 0.2643668228 | BK76: 0.3097785343 | BL76: 0.8668397028 | BM76: 0.7280016732 | BN76: 0.6761953553 | BO76: 0.8759888412 | BP76: 0.741294978 | BQ76: 0.2412205059 | BR76: 0.00842694321 | BS76: 0.3168943202 | BT76: 0.8961965607 | BU76: 0.1495800762 | BV76: 0.904016559 | BW76: 0.4307953428 | BX76: 0.5296445447 | BY76: 0.4337089104 | BZ76: 0.9379337569 | CA76: 0.07882595083 | CB76: 0.09716161835 | CC76: 0.4955674124 | CD76: 0.6007004468 | CE76: 0.8985483929 | CF76: 0.7404780625 | CG76: 0.3381895072 | CH76: 0.6848008171 | CI76: 0.8992974074 | CJ76: 0.6599305753 | CK76: 0.3651247653 | CL76: 0.7281688131 | CM76: 0.2143124696 | CN76: 0.8156288237 | CO76: 0.2697475274 | CP76: 0.7010216548 | CQ76: 0.4593237212 | CR76: 0.7252670114 | CS76: 0.1138410691 | CT76: 0.6264773023 | CU76: 0.9127924922 | CV76: 0.2494453984
A77: 0.07182304101 | B77: 0.5178262159 | C77: 0.3466195443 | D77: 0.7292283506 | E77: 0.1692114959 | F77: 0.5770313792 | G77: 0.6595093035 | H77: 0.3348006847 | I77: 0.7104208951 | J77: 0.03376523438 | K77: 0.5386989748 | L77: 0.02950778167 | M77: 0.9127250117 | N77: 0.5462885714 | O77: 0.09409116327 | P77: 0.04781112447 | Q77: 0.1663118437 | R77: 0.1884874263 | S77: 0.1401026816 | T77: 0.03445570445 | U77: 0.3106020673 | V77: 0.6674846874 | W77: 0.4408313467 | X77: 0.2457897984 | Y77: 0.06382505095 | Z77: 0.4784938239 | AA77: 0.2207952154 | AB77: 0.5527325688 | AC77: 0.8697520865 | AD77: 0.3600820977 | AE77: 0.240888411 | AF77: 0.2079693941 | AG77: 0.515990424 | AH77: 0.2414574901 | AI77: 0.9173226533 | AJ77: 0.4423842585 | AK77: 0.07375209563 | AL77: 0.4443007326 | AM77: 0.03004822231 | AN77: 0.02651302295 | AO77: 0.3994372828 | AP77: 0.9210489299 | AQ77: 0.6544619387 | AR77: 0.008300095625 | AS77: 0.6977148841 | AT77: 0.5106047543 | AU77: 0.001158830888 | AV77: 0.9046563843 | AW77: 0.06908396001 | AX77: 0.7407238497 | AY77: 0.6158739785 | AZ77: 0.6697735579 | BA77: 0.1311058559 | BB77: 0.007345384703 | BC77: 0.1935464512 | BD77: 0.3235056219 | BE77: 0.687451009 | BF77: 0.3298658745 | BG77: 0.8622369509 | BH77: 0.36844093 | BI77: 0.2790941467 | BJ77: 0.9314773549 | BK77: 0.1801090576 | BL77: 0.1031577295 | BM77: 0.4327614979 | BN77: 0.7505840895 | BO77: 0.5171091119 | BP77: 0.7515339652 | BQ77: 0.1619523675 | BR77: 0.6047279553 | BS77: 0.2619618602 | BT77: 0.4673869724 | BU77: 0.5653438686 | BV77: 0.1297223605 | BW77: 0.7406932812 | BX77: 0.7354431695 | BY77: 0.9821749649 | BZ77: 0.8127987078 | CA77: 0.9614228345 | CB77: 0.5493234584 | CC77: 0.7083156574 | CD77: 0.7138424042 | CE77: 0.5672424704 | CF77: 0.8598641019 | CG77: 0.9253379314 | CH77: 0.6036314054 | CI77: 0.4536187577 | CJ77: 0.8711190507 | CK77: 0.09771387376 | CL77: 0.8269006863 | CM77: 0.02718840294 | CN77: 0.1131378803 | CO77: 0.1924306105 | CP77: 0.01954871923 | CQ77: 0.9375810112 | CR77: 0.8093106248 | CS77: 0.8404600069 | CT77: 0.7679051956 | CU77: 0.7242740457 | CV77: 0.02032097822
A78: 0.2670977511 | B78: 0.7891277791 | C78: 0.918470698 | D78: 0.3977291241 | E78: 0.3735475949 | F78: 0.9941300068 | G78: 0.8172734618 | H78: 0.02258464829 | I78: 0.9613730763 | J78: 0.9872208517 | K78: 0.3874776635 | L78: 0.4914430211 | M78: 0.5023022981 | N78: 0.4888658506 | O78: 0.1516826274 | P78: 0.858292436 | Q78: 0.7418251479 | R78: 0.6091960662 | S78: 0.2278558285 | T78: 0.8113304741 | U78: 0.8383756056 | V78: 0.1544742253 | W78: 0.1317042763 | X78: 0.2931504151 | Y78: 0.1111143908 | Z78: 0.03706325542 | AA78: 0.2881365136 | AB78: 0.9856723688 | AC78: 0.1582401733 | AD78: 0.3393359096 | AE78: 0.3221958361 | AF78: 0.5964164756 | AG78: 0.008409549949 | AH78: 0.01771401836 | AI78: 0.3965315183 | AJ78: 0.2449613731 | AK78: 0.8370109604 | AL78: 0.4773211508 | AM78: 0.8284678295 | AN78: 0.4152864234 | AO78: 0.3380511826 | AP78: 0.5353693326 | AQ78: 0.3552027144 | AR78: 0.01934047328 | AS78: 0.507337973 | AT78: 0.03258150474 | AU78: 0.5521768713 | AV78: 0.6774436955 | AW78: 0.9410771587 | AX78: 0.3170185116 | AY78: 0.5665385272 | AZ78: 0.1316708356 | BA78: 0.9636449343 | BB78: 0.3957526398 | BC78: 0.637312293 | BD78: 0.8819414312 | BE78: 0.7306343297 | BF78: 0.8020401496 | BG78: 0.8764399593 | BH78: 0.8289925391 | BI78: 0.8244660103 | BJ78: 0.7825055995 | BK78: 0.9972381259 | BL78: 0.9761921086 | BM78: 0.9889798477 | BN78: 0.6230148767 | BO78: 0.4562829502 | BP78: 0.6977537318 | BQ78: 0.8634386704 | BR78: 0.4133512345 | BS78: 0.8511619095 | BT78: 0.9223417241 | BU78: 0.7123491307 | BV78: 0.7787225359 | BW78: 0.8260873046 | BX78: 0.05606368477 | BY78: 0.6209951695 | BZ78: 0.7426630729 | CA78: 0.5623300652 | CB78: 0.4202701009 | CC78: 0.6986089644 | CD78: 0.2467232957 | CE78: 0.04124055889 | CF78: 0.6362523971 | CG78: 0.1375432606 | CH78: 0.2708740924 | CI78: 0.6727340717 | CJ78: 0.5398521276 | CK78: 0.09501394798 | CL78: 0.3856243371 | CM78: 0.8944612651 | CN78: 0.09728262593 | CO78: 0.03516801496 | CP78: 0.6390292226 | CQ78: 0.6973501121 | CR78: 0.8057173875 | CS78: 0.9574669927 | CT78: 0.3590026456 | CU78: 0.06871821573 | CV78: 0.6278871386
A79: 0.2308896414 | B79: 0.7855368924 | C79: 0.2176440031 | D79: 0.6029736636 | E79: 0.5962308819 | F79: 0.1782111715 | G79: 0.3309246566 | H79: 0.0633371417 | I79: 0.4835230178 | J79: 0.13753928 | K79: 0.1471129311 | L79: 0.4655860999 | M79: 0.2796836676 | N79: 0.9642879981 | O79: 0.5600813417 | P79: 0.5036236891 | Q79: 0.4053468209 | R79: 0.4382404766 | S79: 0.5569340515 | T79: 0.681512171 | U79: 0.9289117796 | V79: 0.5196501082 | W79: 0.293509799 | X79: 0.7182205063 | Y79: 0.8091498549 | Z79: 0.06008153411 | AA79: 0.4655922195 | AB79: 0.93184771 | AC79: 0.5924407217 | AD79: 0.2256294515 | AE79: 0.3315856064 | AF79: 0.9910605656 | AG79: 0.8421979901 | AH79: 0.7783828402 | AI79: 0.1459034968 | AJ79: 0.06332404329 | AK79: 0.8721007037 | AL79: 0.4850871706 | AM79: 0.2039495025 | AN79: 0.5067311314 | AO79: 0.6061324449 | AP79: 0.6827750976 | AQ79: 0.3574842715 | AR79: 0.0346241171 | AS79: 0.4253314418 | AT79: 0.3733262549 | AU79: 0.2172337468 | AV79: 0.9042985695 | AW79: 0.7589718175 | AX79: 0.8517365249 | AY79: 0.4700223019 | AZ79: 0.5974218439 | BA79: 0.7546727007 | BB79: 0.5522240987 | BC79: 0.8568232811 | BD79: 0.9548095069 | BE79: 0.7520139796 | BF79: 0.922647577 | BG79: 0.03772511378 | BH79: 0.6014306529 | BI79: 0.5425603276 | BJ79: 0.2605280741 | BK79: 0.545169935 | BL79: 0.2995829028 | BM79: 0.8489177794 | BN79: 0.3468216657 | BO79: 0.8985576816 | BP79: 0.7113338444 | BQ79: 0.1321179317 | BR79: 0.4904414486 | BS79: 0.1148400284 | BT79: 0.1416100261 | BU79: 0.9716579142 | BV79: 0.8835353649 | BW79: 0.8000934227 | BX79: 0.2352990485 | BY79: 0.08705525446 | BZ79: 0.8685984785 | CA79: 0.4057179614 | CB79: 0.5371132954 | CC79: 0.1689801065 | CD79: 0.6869447579 | CE79: 0.52175608 | CF79: 0.1599153718 | CG79: 0.8326037193 | CH79: 0.2483499565 | CI79: 0.8572042509 | CJ79: 0.6911122252 | CK79: 0.5442123614 | CL79: 0.3182703176 | CM79: 0.6819573277 | CN79: 0.7439667683 | CO79: 0.3448443918 | CP79: 0.1536275595 | CQ79: 0.4496802558 | CR79: 0.363898322 | CS79: 0.4715868933 | CT79: 0.6105771984 | CU79: 0.8076559131 | CV79: 0.6161820695
A80: 0.6970434416 | B80: 0.2528157627 | C80: 0.6956050206 | D80: 0.4671648654 | E80: 0.1068504652 | F80: 0.8128317213 | G80: 0.4494237332 | H80: 0.09932493017 | I80: 0.8909429317 | J80: 0.3222164064 | K80: 0.4145778229 | L80: 0.392519078 | M80: 0.6928888849 | N80: 0.280785791 | O80: 0.2020407841 | P80: 0.9147119109 | Q80: 0.5753778147 | R80: 0.7088023742 | S80: 0.2254262352 | T80: 0.5958849887 | U80: 0.1728852998 | V80: 0.1576429388 | W80: 0.5829143809 | X80: 0.03682087512 | Y80: 0.00716439035 | Z80: 0.9717915955 | AA80: 0.6126650953 | AB80: 0.6651809083 | AC80: 0.6623389777 | AD80: 0.06579276758 | AE80: 0.6802722434 | AF80: 0.7114787759 | AG80: 0.7186938593 | AH80: 0.2222689161 | AI80: 0.4796013517 | AJ80: 0.3501006497 | AK80: 0.3578777914 | AL80: 0.1192847155 | AM80: 0.618947105 | AN80: 0.3883730606 | AO80: 0.122343935 | AP80: 0.2720747428 | AQ80: 0.7252829236 | AR80: 0.09699468062 | AS80: 0.6872010601 | AT80: 0.3178822381 | AU80: 0.8577637336 | AV80: 0.9800666713 | AW80: 0.8322111566 | AX80: 0.6700616233 | AY80: 0.9993592903 | AZ80: 0.5971333312 | BA80: 0.7596971234 | BB80: 0.5069541055 | BC80: 0.2788382379 | BD80: 0.6168239868 | BE80: 0.9303730693 | BF80: 0.8625584548 | BG80: 0.7081293023 | BH80: 0.2155524867 | BI80: 0.913486392 | BJ80: 0.9334039509 | BK80: 0.5202944521 | BL80: 0.5156553208 | BM80: 0.8751802086 | BN80: 0.2494315787 | BO80: 0.5247549347 | BP80: 0.6965260204 | BQ80: 0.2091529191 | BR80: 0.2650100402 | BS80: 0.8315360772 | BT80: 0.9571724675 | BU80: 0.7333391664 | BV80: 0.7974119424 | BW80: 0.1700650099 | BX80: 0.9300892173 | BY80: 0.5721471366 | BZ80: 0.625234486 | CA80: 0.1190845049 | CB80: 0.7604301753 | CC80: 0.6026606815 | CD80: 0.2681878692 | CE80: 0.6532445429 | CF80: 0.07690524048 | CG80: 0.348749362 | CH80: 0.3563886732 | CI80: 0.06896813699 | CJ80: 0.4530265663 | CK80: 0.2223939892 | CL80: 0.6303453697 | CM80: 0.5684450145 | CN80: 0.9973300794 | CO80: 0.584320966 | CP80: 0.3104422171 | CQ80: 0.1783395577 | CR80: 0.06442806992 | CS80: 0.5033222094 | CT80: 0.8723915762 | CU80: 0.705586005 | CV80: 0.6727000514
A81: 0.6752942002 | B81: 0.1370513456 | C81: 0.5475374259 | D81: 0.9400734282 | E81: 0.3674742348 | F81: 0.4603791576 | G81: 0.7059832881 | H81: 0.208959265 | I81: 0.01409576618 | J81: 0.5054906847 | K81: 0.6988146924 | L81: 0.4438403536 | M81: 0.7294926838 | N81: 0.6422649966 | O81: 0.00931187888 | P81: 0.28746424 | Q81: 0.2973180173 | R81: 0.3822110655 | S81: 0.6456455177 | T81: 0.1613926828 | U81: 0.3415842139 | V81: 0.796318702 | W81: 0.3713453232 | X81: 0.4980829536 | Y81: 0.2395090524 | Z81: 0.2303649339 | AA81: 0.8066997072 | AB81: 0.8613622414 | AC81: 0.6260227936 | AD81: 0.5708647537 | AE81: 0.9795577413 | AF81: 0.9249851548 | AG81: 0.0276285677 | AH81: 0.7610324871 | AI81: 0.3365745173 | AJ81: 0.0399111204 | AK81: 0.9954312758 | AL81: 0.855287386 | AM81: 0.03000230872 | AN81: 0.7257897344 | AO81: 0.6728677183 | AP81: 0.4587984175 | AQ81: 0.3967868279 | AR81: 0.8442653153 | AS81: 0.1445024013 | AT81: 0.5997035662 | AU81: 0.8157895978 | AV81: 0.9349762785 | AW81: 0.6285899819 | AX81: 0.6882476811 | AY81: 0.4947935947 | AZ81: 0.6168971835 | BA81: 0.7976307183 | BB81: 0.7134788066 | BC81: 0.2238173564 | BD81: 0.841740865 | BE81: 0.05456655773 | BF81: 0.7164255609 | BG81: 0.3251486993 | BH81: 0.01446474242 | BI81: 0.5637804283 | BJ81: 0.492558955 | BK81: 0.5783007859 | BL81: 0.4435059025 | BM81: 0.9922906502 | BN81: 0.3924416079 | BO81: 0.7597536802 | BP81: 0.009021404706 | BQ81: 0.7584624073 | BR81: 0.2687904108 | BS81: 0.2955345438 | BT81: 0.5569177796 | BU81: 0.6797345661 | BV81: 0.5021452397 | BW81: 0.6398465884 | BX81: 0.4330800598 | BY81: 0.8851282592 | BZ81: 0.5655729821 | CA81: 0.7644612486 | CB81: 0.9477641079 | CC81: 0.3994454967 | CD81: 0.6828334235 | CE81: 0.05230987156 | CF81: 0.5553424692 | CG81: 0.6994525177 | CH81: 0.8052746559 | CI81: 0.746217981 | CJ81: 0.3620031099 | CK81: 0.7343797282 | CL81: 0.6260210154 | CM81: 0.6190849593 | CN81: 0.4371806404 | CO81: 0.004380664976 | CP81: 0.8817829252 | CQ81: 0.6309753714 | CR81: 0.2831131471 | CS81: 0.2362567769 | CT81: 0.1519969746 | CU81: 0.07021331828 | CV81: 0.7843256251
A82: 0.9881858691 | B82: 0.7814179482 | C82: 0.5001247581 | D82: 0.770987399 | E82: 0.6550498083 | F82: 0.153124568 | G82: 0.2188248205 | H82: 0.9313801073 | I82: 0.08549672176 | J82: 0.983256131 | K82: 0.6111827901 | L82: 0.4317316094 | M82: 0.1406726866 | N82: 0.802882115 | O82: 0.9660731105 | P82: 0.02712102019 | Q82: 0.2572563298 | R82: 0.8894228407 | S82: 0.4894575372 | T82: 0.4929837462 | U82: 0.8006115896 | V82: 0.232758245 | W82: 0.7479530297 | X82: 0.1852431803 | Y82: 0.7200721839 | Z82: 0.6948333594 | AA82: 0.3764164879 | AB82: 0.6805721519 | AC82: 0.1223385264 | AD82: 0.3158477763 | AE82: 0.5651774743 | AF82: 0.1609479787 | AG82: 0.8328601336 | AH82: 0.6157086768 | AI82: 0.4871229677 | AJ82: 0.3720374048 | AK82: 0.3395728986 | AL82: 0.01691020928 | AM82: 0.5342151193 | AN82: 0.5723478727 | AO82: 0.02666423245 | AP82: 0.9163561706 | AQ82: 0.4208566766 | AR82: 0.5264176938 | AS82: 0.6189645681 | AT82: 0.6272360723 | AU82: 0.5239437862 | AV82: 0.8145508218 | AW82: 0.639714697 | AX82: 0.2505901504 | AY82: 0.3588600756 | AZ82: 0.4869278741 | BA82: 0.139164338 | BB82: 0.02990137308 | BC82: 0.1039900363 | BD82: 0.8111048764 | BE82: 0.3777771286 | BF82: 0.4374314588 | BG82: 0.1022754666 | BH82: 0.7142509399 | BI82: 0.2321016415 | BJ82: 0.6563560302 | BK82: 0.4349103995 | BL82: 0.8786539395 | BM82: 0.0773767762 | BN82: 0.5000190057 | BO82: 0.493259753 | BP82: 0.5490342462 | BQ82: 0.3459806391 | BR82: 0.1897074797 | BS82: 0.9736973932 | BT82: 0.9721568093 | BU82: 0.9696949702 | BV82: 0.4093504004 | BW82: 0.2066691146 | BX82: 0.6830066194 | BY82: 0.9673155391 | BZ82: 0.141762932 | CA82: 0.3156519931 | CB82: 0.5175604405 | CC82: 0.1379593065 | CD82: 0.752552456 | CE82: 0.2785737853 | CF82: 0.7308191094 | CG82: 0.9935097455 | CH82: 0.6460607573 | CI82: 0.7172877649 | CJ82: 0.8324799506 | CK82: 0.5663006542 | CL82: 0.8376270998 | CM82: 0.5049172513 | CN82: 0.9529893978 | CO82: 0.7716593096 | CP82: 0.0801136233 | CQ82: 0.6955415537 | CR82: 0.08073488477 | CS82: 0.05532476403 | CT82: 0.4565954601 | CU82: 0.6615369157 | CV82: 0.875229116
A83: 0.1003891422 | B83: 0.1013180113 | C83: 0.3344995614 | D83: 0.8633404424 | E83: 0.06487257038 | F83: 0.5795568754 | G83: 0.6748346404 | H83: 0.2091880219 | I83: 0.7568557485 | J83: 0.1719169481 | K83: 0.4700723357 | L83: 0.07440991148 | M83: 0.6829146234 | N83: 0.8385812791 | O83: 0.3723679292 | P83: 0.5682088232 | Q83: 0.13099552 | R83: 0.2038621267 | S83: 0.500704255 | T83: 0.8376724472 | U83: 0.9084271851 | V83: 0.5941370175 | W83: 0.6236731391 | X83: 0.6469039291 | Y83: 0.4353859983 | Z83: 0.4100558051 | AA83: 0.05824574791 | AB83: 0.239156765 | AC83: 0.8257633406 | AD83: 0.2529731599 | AE83: 0.6503948563 | AF83: 0.4736373113 | AG83: 0.3066269356 | AH83: 0.3297018535 | AI83: 0.6246791099 | AJ83: 0.02432050232 | AK83: 0.1838933927 | AL83: 0.2717209396 | AM83: 0.01300023435 | AN83: 0.4166222812 | AO83: 0.1085359277 | AP83: 0.9761876744 | AQ83: 0.2467509166 | AR83: 0.1446007794 | AS83: 0.5576820441 | AT83: 0.5611646458 | AU83: 0.5749406007 | AV83: 0.6753871652 | AW83: 0.5760163682 | AX83: 0.2886744862 | AY83: 0.9789314617 | AZ83: 0.7477021734 | BA83: 0.5665513333 | BB83: 0.2227728124 | BC83: 0.9715088744 | BD83: 0.03550276541 | BE83: 0.08483422209 | BF83: 0.4971542926 | BG83: 0.9898360171 | BH83: 0.2898135977 | BI83: 0.04713584219 | BJ83: 0.3182197811 | BK83: 0.03547823735 | BL83: 0.1981549838 | BM83: 0.4949588148 | BN83: 0.1612316999 | BO83: 0.1024932775 | BP83: 0.7499912827 | BQ83: 0.04956985598 | BR83: 0.5647276117 | BS83: 0.6778146905 | BT83: 0.08816955793 | BU83: 0.6322174682 | BV83: 0.6414534684 | BW83: 0.7733821741 | BX83: 0.8088796095 | BY83: 0.3397617001 | BZ83: 0.05816056066 | CA83: 0.1447925428 | CB83: 0.7427511521 | CC83: 0.3090540162 | CD83: 0.6244381266 | CE83: 0.7556562279 | CF83: 0.1661353971 | CG83: 0.7471281441 | CH83: 0.5615004573 | CI83: 0.5685700185 | CJ83: 0.6602271451 | CK83: 0.4169940041 | CL83: 0.6377254979 | CM83: 0.404221547 | CN83: 0.405104607 | CO83: 0.8977746027 | CP83: 0.1164664186 | CQ83: 0.1425258988 | CR83: 0.3620507497 | CS83: 0.9849357379 | CT83: 0.755782745 | CU83: 0.5338290253 | CV83: 0.5331150155
A84: 0.7024636123 | B84: 0.1885060241 | C84: 0.9936364403 | D84: 0.882825305 | E84: 0.09248639621 | F84: 0.1084075763 | G84: 0.4295622991 | H84: 0.3041574104 | I84: 0.3012445781 | J84: 0.5973046019 | K84: 0.04295720565 | L84: 0.9142627587 | M84: 0.9895148866 | N84: 0.7797017392 | O84: 0.4944622477 | P84: 0.5115459423 | Q84: 0.8502842718 | R84: 0.068151412 | S84: 0.7434505855 | T84: 0.4330620141 | U84: 0.7573564208 | V84: 0.2620753546 | W84: 0.433665182 | X84: 0.6693406438 | Y84: 0.4415457932 | Z84: 0.4977699641 | AA84: 0.6753227529 | AB84: 0.5048611379 | AC84: 0.515038579 | AD84: 0.3491102183 | AE84: 0.4425374834 | AF84: 0.3237447456 | AG84: 0.2557655575 | AH84: 0.7721429073 | AI84: 0.5286572302 | AJ84: 0.5351701735 | AK84: 0.4257857184 | AL84: 0.6556813807 | AM84: 0.1663247769 | AN84: 0.9531475242 | AO84: 0.8704251072 | AP84: 0.4335271948 | AQ84: 0.8663765951 | AR84: 0.7961866451 | AS84: 0.5366217706 | AT84: 0.68791822 | AU84: 0.1851947527 | AV84: 0.8518736468 | AW84: 0.5040627562 | AX84: 0.8186951329 | AY84: 0.7170803316 | AZ84: 0.7017462254 | BA84: 0.076772679 | BB84: 0.1761742964 | BC84: 0.496752909 | BD84: 0.3919640469 | BE84: 0.23718635 | BF84: 0.9694041459 | BG84: 0.5615116645 | BH84: 0.7636490748 | BI84: 0.337519559 | BJ84: 0.8003018693 | BK84: 0.5119315429 | BL84: 0.9709413437 | BM84: 0.8382165016 | BN84: 0.6980695301 | BO84: 0.4630236401 | BP84: 0.3647391582 | BQ84: 0.6864203723 | BR84: 0.9370651698 | BS84: 0.4369672327 | BT84: 0.1459729043 | BU84: 0.533945464 | BV84: 0.1143946512 | BW84: 0.238439914 | BX84: 0.3884404921 | BY84: 0.3027298758 | BZ84: 0.6072405406 | CA84: 0.4181389028 | CB84: 0.1116812401 | CC84: 0.5002337981 | CD84: 0.7427996471 | CE84: 0.7790868312 | CF84: 0.5865742397 | CG84: 0.2508752049 | CH84: 0.5341625504 | CI84: 0.5432053243 | CJ84: 0.08155304826 | CK84: 0.02186830593 | CL84: 0.5159594497 | CM84: 0.9063778222 | CN84: 0.693592866 | CO84: 0.06222325399 | CP84: 0.491722505 | CQ84: 0.379341258 | CR84: 0.08545021272 | CS84: 0.1474406321 | CT84: 0.9047713316 | CU84: 0.8225437272 | CV84: 0.8982749799
A85: 0.9588188163 | B85: 0.1063656854 | C85: 0.5833995348 | D85: 0.5195764356 | E85: 0.5320550602 | F85: 0.3575813529 | G85: 0.9919794901 | H85: 0.1920853809 | I85: 0.522838111 | J85: 0.7928963711 | K85: 0.9279983436 | L85: 0.895908218 | M85: 0.8960975114 | N85: 0.7145475199 | O85: 0.8468204767 | P85: 0.7956268117 | Q85: 0.7845826302 | R85: 0.7888348685 | S85: 0.7456826567 | T85: 0.529636295 | U85: 0.6974249495 | V85: 0.6732335443 | W85: 0.9296390002 | X85: 0.6346056914 | Y85: 0.8066885431 | Z85: 0.2010776506 | AA85: 0.8533841673 | AB85: 0.5274679371 | AC85: 0.07093884072 | AD85: 0.6442739728 | AE85: 0.9397036753 | AF85: 0.7858178773 | AG85: 0.6390812386 | AH85: 0.806833041 | AI85: 0.2003035225 | AJ85: 0.5899098393 | AK85: 0.9962891665 | AL85: 0.02836810386 | AM85: 0.0641076696 | AN85: 0.1379205902 | AO85: 0.4638043323 | AP85: 0.1400122544 | AQ85: 0.8716758149 | AR85: 0.04918349875 | AS85: 0.1734183665 | AT85: 0.1044657047 | AU85: 0.1992692777 | AV85: 0.4382896078 | AW85: 0.7390675625 | AX85: 0.2224912317 | AY85: 0.08607270613 | AZ85: 0.5448783202 | BA85: 0.3782293008 | BB85: 0.4447584409 | BC85: 0.9471030458 | BD85: 0.6799711863 | BE85: 0.9194710395 | BF85: 0.1898199058 | BG85: 0.7723860811 | BH85: 0.846493705 | BI85: 0.7624634596 | BJ85: 0.2599375312 | BK85: 0.6937198859 | BL85: 0.9435925371 | BM85: 0.7328548628 | BN85: 0.7155840939 | BO85: 0.8015268106 | BP85: 0.2633566223 | BQ85: 0.9209700832 | BR85: 0.1300731931 | BS85: 0.7148370665 | BT85: 0.03465569897 | BU85: 0.6915092627 | BV85: 0.2765079415 | BW85: 0.2828980279 | BX85: 0.01727514922 | BY85: 0.1912379328 | BZ85: 0.3367203307 | CA85: 0.8821701675 | CB85: 0.4606012877 | CC85: 0.3874627996 | CD85: 0.3971679371 | CE85: 0.409811692 | CF85: 0.5106639849 | CG85: 0.008256880784 | CH85: 0.6601404672 | CI85: 0.5786363594 | CJ85: 0.2959161559 | CK85: 0.2015623201 | CL85: 0.4395531901 | CM85: 0.2263840685 | CN85: 0.535616892 | CO85: 0.8040502512 | CP85: 0.5916802357 | CQ85: 0.08972451039 | CR85: 0.6222834971 | CS85: 0.3610343988 | CT85: 0.01452006443 | CU85: 0.1668006086 | CV85: 0.9388936757
A86: 0.1855977973 | B86: 0.9477678379 | C86: 0.7940263076 | D86: 0.6177520999 | E86: 0.5571587363 | F86: 0.4121891968 | G86: 0.111977618 | H86: 0.2634110578 | I86: 0.2888310621 | J86: 0.7474328469 | K86: 0.2670929834 | L86: 0.1764785901 | M86: 0.2516557317 | N86: 0.830435303 | O86: 0.9942226359 | P86: 0.4436210211 | Q86: 0.9864067105 | R86: 0.5062685202 | S86: 0.5627762822 | T86: 0.9631633768 | U86: 0.5000289251 | V86: 0.3405345223 | W86: 0.3058628706 | X86: 0.7391394121 | Y86: 0.3852806289 | Z86: 0.5918580193 | AA86: 0.3297127884 | AB86: 0.2824278166 | AC86: 0.737683773 | AD86: 0.3205939387 | AE86: 0.5536784777 | AF86: 0.9729943971 | AG86: 0.08498436516 | AH86: 0.344836585 | AI86: 0.5794035 | AJ86: 0.3945216803 | AK86: 0.5043455875 | AL86: 0.7764125723 | AM86: 0.7086841883 | AN86: 0.03828678951 | AO86: 0.6750946098 | AP86: 0.9574057054 | AQ86: 0.3968195756 | AR86: 0.1013736966 | AS86: 0.2358670532 | AT86: 0.5964620259 | AU86: 0.09896704129 | AV86: 0.9455330106 | AW86: 0.7051085102 | AX86: 0.7461143622 | AY86: 0.9041428206 | AZ86: 0.7993996752 | BA86: 0.1175130007 | BB86: 0.3881233292 | BC86: 0.4267421282 | BD86: 0.8570417581 | BE86: 0.146420885 | BF86: 0.9981560477 | BG86: 0.7179357558 | BH86: 0.9886607514 | BI86: 0.1717361226 | BJ86: 0.3388174061 | BK86: 0.7192262139 | BL86: 0.3247856429 | BM86: 0.3844596186 | BN86: 0.8409009298 | BO86: 0.5741563279 | BP86: 0.3921468218 | BQ86: 0.04887186407 | BR86: 0.5440862995 | BS86: 0.01454996152 | BT86: 0.9472214539 | BU86: 0.7948397221 | BV86: 0.7183271553 | BW86: 0.485617562 | BX86: 0.341847888 | BY86: 0.4402581285 | BZ86: 0.5275453491 | CA86: 0.2655330147 | CB86: 0.8395838961 | CC86: 0.9649548345 | CD86: 0.2693056474 | CE86: 0.7792489735 | CF86: 0.5468218129 | CG86: 0.433984628 | CH86: 0.3598124781 | CI86: 0.8071550634 | CJ86: 0.7813184299 | CK86: 0.7570358197 | CL86: 0.2030171182 | CM86: 0.1524690396 | CN86: 0.3043364156 | CO86: 0.09497946992 | CP86: 0.995474332 | CQ86: 0.2707266089 | CR86: 0.08616481612 | CS86: 0.09067694935 | CT86: 0.3756086855 | CU86: 0.883022679 | CV86: 0.2022919671
A87: 0.5708157642 | B87: 0.4046011047 | C87: 0.2532932576 | D87: 0.6571765877 | E87: 0.6251009266 | F87: 0.8946148424 | G87: 0.1817219875 | H87: 0.5253781207 | I87: 0.7041969195 | J87: 0.344174937 | K87: 0.7923092944 | L87: 0.5353659557 | M87: 0.04519230055 | N87: 0.3443579359 | O87: 0.1644545684 | P87: 0.4291182184 | Q87: 0.4215028372 | R87: 0.08993193697 | S87: 0.5745521721 | T87: 0.2786514876 | U87: 0.02696047388 | V87: 0.3241432359 | W87: 0.7497368926 | X87: 0.8603249887 | Y87: 0.1626567667 | Z87: 0.1330602897 | AA87: 0.5686179207 | AB87: 0.7704060668 | AC87: 0.5135000708 | AD87: 0.01748928519 | AE87: 0.7686851758 | AF87: 0.5869355527 | AG87: 0.7671797072 | AH87: 0.5067633748 | AI87: 0.6917724505 | AJ87: 0.2143358704 | AK87: 0.3249858515 | AL87: 0.4907339584 | AM87: 0.6440069506 | AN87: 0.7354626165 | AO87: 0.004616200163 | AP87: 0.9824589151 | AQ87: 0.5436713766 | AR87: 0.7400858064 | AS87: 0.2304374104 | AT87: 0.6166545216 | AU87: 0.02737734484 | AV87: 0.4458336697 | AW87: 0.3332460889 | AX87: 0.5495302866 | AY87: 0.5132909703 | AZ87: 0.6046432715 | BA87: 0.9864011088 | BB87: 0.3337429479 | BC87: 0.2521975708 | BD87: 0.687777667 | BE87: 0.09479082642 | BF87: 0.5884756816 | BG87: 0.1407413498 | BH87: 0.2194581205 | BI87: 0.6797345131 | BJ87: 0.0741971065 | BK87: 0.3511478132 | BL87: 0.2243879675 | BM87: 0.9554365071 | BN87: 0.5517489351 | BO87: 0.4472250209 | BP87: 0.5095838644 | BQ87: 0.08672014361 | BR87: 0.02817744022 | BS87: 0.685937229 | BT87: 0.006592407879 | BU87: 0.6503649297 | BV87: 0.9884845829 | BW87: 0.6757602278 | BX87: 0.1628570674 | BY87: 0.2002123983 | BZ87: 0.106719591 | CA87: 0.8475485405 | CB87: 0.3959312737 | CC87: 0.6133484627 | CD87: 0.6127881894 | CE87: 0.3809047753 | CF87: 0.857651075 | CG87: 0.8719682985 | CH87: 0.7661272185 | CI87: 0.6430032748 | CJ87: 0.6060150183 | CK87: 0.4724093354 | CL87: 0.3481349578 | CM87: 0.1680812598 | CN87: 0.1116822491 | CO87: 0.4147390057 | CP87: 0.7727818309 | CQ87: 0.4408662027 | CR87: 0.2099703261 | CS87: 0.01618375343 | CT87: 0.168882891 | CU87: 0.9772674365 | CV87: 0.8983762144
A88: 0.2164936839 | B88: 0.597659566 | C88: 0.08203200073 | D88: 0.6535550842 | E88: 0.3525805291 | F88: 0.1829185157 | G88: 0.9074103311 | H88: 0.7154073297 | I88: 0.4855338749 | J88: 0.7516436941 | K88: 0.4424012401 | L88: 0.2161968575 | M88: 0.6047610339 | N88: 0.40742035 | O88: 0.537872799 | P88: 0.7075501137 | Q88: 0.6045381995 | R88: 0.8160870476 | S88: 0.945305621 | T88: 0.8354606262 | U88: 0.1549757716 | V88: 0.8643425651 | W88: 0.9809245264 | X88: 0.08946986115 | Y88: 0.2853522482 | Z88: 0.5022346019 | AA88: 0.2055664104 | AB88: 0.4476751867 | AC88: 0.7346339776 | AD88: 0.4460476658 | AE88: 0.8939272143 | AF88: 0.5724971466 | AG88: 0.1727901323 | AH88: 0.4900473504 | AI88: 0.9257879777 | AJ88: 0.7329318103 | AK88: 0.8703428619 | AL88: 0.4345025131 | AM88: 0.7350995386 | AN88: 0.6667488718 | AO88: 0.1564384948 | AP88: 0.9008959163 | AQ88: 0.6714056321 | AR88: 0.3007072972 | AS88: 0.2492555649 | AT88: 0.3054926584 | AU88: 0.3776014002 | AV88: 0.1063359306 | AW88: 0.7540627161 | AX88: 0.02099743828 | AY88: 0.1247770713 | AZ88: 0.2440769882 | BA88: 0.9379437044 | BB88: 0.9376205353 | BC88: 0.3477585818 | BD88: 0.3447226122 | BE88: 0.4658222401 | BF88: 0.9556872289 | BG88: 0.5974970373 | BH88: 0.9119119055 | BI88: 0.2034742325 | BJ88: 0.1528386741 | BK88: 0.7540180015 | BL88: 0.9147333072 | BM88: 0.2036364575 | BN88: 0.3699983333 | BO88: 0.664839905 | BP88: 0.2144873044 | BQ88: 0.332790926 | BR88: 0.1789679131 | BS88: 0.1632581247 | BT88: 0.1495073547 | BU88: 0.6297915162 | BV88: 0.6121441832 | BW88: 0.8814059674 | BX88: 0.05293746045 | BY88: 0.9687194797 | BZ88: 0.3199839336 | CA88: 0.2177205743 | CB88: 0.6193751276 | CC88: 0.1087357818 | CD88: 0.3234487444 | CE88: 0.1159741202 | CF88: 0.6698188967 | CG88: 0.1261228931 | CH88: 0.1595629742 | CI88: 0.6909334047 | CJ88: 0.4904847258 | CK88: 0.4441570073 | CL88: 0.8469609287 | CM88: 0.9858739341 | CN88: 0.7555504289 | CO88: 0.6636583829 | CP88: 0.1370448013 | CQ88: 0.412056688 | CR88: 0.3063275143 | CS88: 0.1013827019 | CT88: 0.2118746289 | CU88: 0.1144961689 | CV88: 0.316312445
A89: 0.9597765046 | B89: 0.01173858328 | C89: 0.2305636936 | D89: 0.2382684646 | E89: 0.8187984884 | F89: 0.8419309074 | G89: 0.3555360593 | H89: 0.6683157147 | I89: 0.7552117249 | J89: 0.4235261299 | K89: 0.6552379182 | L89: 0.5444925664 | M89: 0.4654340039 | N89: 0.878654395 | O89: 0.7910824967 | P89: 0.5148662532 | Q89: 0.1632833459 | R89: 0.9724653672 | S89: 0.4895832276 | T89: 0.9240956783 | U89: 0.6242014881 | V89: 0.9631726943 | W89: 0.03754344831 | X89: 0.8198064092 | Y89: 0.07290471648 | Z89: 0.6452876272 | AA89: 0.6720896929 | AB89: 0.9550339293 | AC89: 0.3049717698 | AD89: 0.4561423114 | AE89: 0.4993857021 | AF89: 0.839237712 | AG89: 0.7392620078 | AH89: 0.9341216372 | AI89: 0.1923571736 | AJ89: 0.4659784918 | AK89: 0.6896696351 | AL89: 0.5387447483 | AM89: 0.6627152974 | AN89: 0.09600945052 | AO89: 0.2604655805 | AP89: 0.6136502231 | AQ89: 0.6049452341 | AR89: 0.6576826762 | AS89: 0.6905451978 | AT89: 0.1154334974 | AU89: 0.4607641941 | AV89: 0.9105379769 | AW89: 0.3556785782 | AX89: 0.2814407014 | AY89: 0.6725220775 | AZ89: 0.5958083756 | BA89: 0.6954869455 | BB89: 0.9001293627 | BC89: 0.08088447485 | BD89: 0.934432194 | BE89: 0.4434177385 | BF89: 0.8879029306 | BG89: 0.611015953 | BH89: 0.3319477707 | BI89: 0.9668670944 | BJ89: 0.3448280306 | BK89: 0.3756660181 | BL89: 0.5046714673 | BM89: 0.4508440439 | BN89: 0.9200514151 | BO89: 0.9521322 | BP89: 0.6595101621 | BQ89: 0.1710202687 | BR89: 0.5929766226 | BS89: 0.8091760532 | BT89: 0.4756548596 | BU89: 0.1193465506 | BV89: 0.6359198653 | BW89: 0.2596940986 | BX89: 0.817220272 | BY89: 0.3812010483 | BZ89: 0.4819374093 | CA89: 0.7767747358 | CB89: 0.9869058468 | CC89: 0.4489362974 | CD89: 0.4537828724 | CE89: 0.2120900733 | CF89: 0.6883140745 | CG89: 0.2739395788 | CH89: 0.6989086745 | CI89: 0.5485471268 | CJ89: 0.3147183172 | CK89: 0.7248118012 | CL89: 0.5164686317 | CM89: 0.187272256 | CN89: 0.3761805284 | CO89: 0.6835929023 | CP89: 0.391490117 | CQ89: 0.3485403555 | CR89: 0.8045704191 | CS89: 0.6433107204 | CT89: 0.9325569469 | CU89: 0.5032512181 | CV89: 0.9909603316
A90: 0.3416411937 | B90: 0.1189860335 | C90: 0.1047254295 | D90: 0.132529514 | E90: 0.5191777964 | F90: 0.5426884787 | G90: 0.239489124 | H90: 0.6201281138 | I90: 0.301426961 | J90: 0.4661475583 | K90: 0.515833389 | L90: 0.858240603 | M90: 0.5278197946 | N90: 0.9562388871 | O90: 0.04980873752 | P90: 0.5062107661 | Q90: 0.5935736254 | R90: 0.3588368943 | S90: 0.1982602757 | T90: 0.5253181853 | U90: 0.6251982098 | V90: 0.6548193252 | W90: 0.3197440038 | X90: 0.441964878 | Y90: 0.1715526558 | Z90: 0.2337161761 | AA90: 0.9708843701 | AB90: 0.4122945138 | AC90: 0.96353777 | AD90: 0.05260298659 | AE90: 0.7142325493 | AF90: 0.5416206196 | AG90: 0.03400647876 | AH90: 0.007545849005 | AI90: 0.1927057912 | AJ90: 0.6398557943 | AK90: 0.02069747647 | AL90: 0.1553650016 | AM90: 0.9756103345 | AN90: 0.1895444391 | AO90: 0.9369325265 | AP90: 0.8588293974 | AQ90: 0.3402746553 | AR90: 0.03315138328 | AS90: 0.2570408741 | AT90: 0.2724968969 | AU90: 0.040880162 | AV90: 0.9345316774 | AW90: 0.1636904652 | AX90: 0.7982236378 | AY90: 0.8419660533 | AZ90: 0.3076271835 | BA90: 0.8400215649 | BB90: 0.1716015449 | BC90: 0.602527255 | BD90: 0.5839207783 | BE90: 0.3368800282 | BF90: 0.7510329684 | BG90: 0.1657561504 | BH90: 0.7702865666 | BI90: 0.5818016534 | BJ90: 0.1453772316 | BK90: 0.108254061 | BL90: 0.6935205879 | BM90: 0.9934741366 | BN90: 0.8319201028 | BO90: 0.1194269476 | BP90: 0.5140664459 | BQ90: 0.8546767135 | BR90: 0.189520122 | BS90: 0.6835857815 | BT90: 0.3861353505 | BU90: 0.9618709489 | BV90: 0.953403809 | BW90: 0.5444433201 | BX90: 0.2568754318 | BY90: 0.4481214005 | BZ90: 0.3472764384 | CA90: 0.3483191391 | CB90: 0.2003650214 | CC90: 0.566167172 | CD90: 0.7125557331 | CE90: 0.01161669328 | CF90: 0.229962419 | CG90: 0.7566033943 | CH90: 0.7840678742 | CI90: 0.2168549891 | CJ90: 0.1642312488 | CK90: 0.8431386951 | CL90: 0.8457448061 | CM90: 0.1987641278 | CN90: 0.3208458364 | CO90: 0.3984089392 | CP90: 0.9981922694 | CQ90: 0.3551677457 | CR90: 0.9946408456 | CS90: 0.5914161343 | CT90: 0.2315873335 | CU90: 0.7857394869 | CV90: 0.4845506111
A91: 0.6479341045 | B91: 0.5118378516 | C91: 0.6153463395 | D91: 0.36405517 | E91: 0.3566714571 | F91: 0.3486335717 | G91: 0.6724723618 | H91: 0.4371691663 | I91: 0.6789782107 | J91: 0.5519353362 | K91: 0.770638825 | L91: 0.2764509804 | M91: 0.4021833677 | N91: 0.2805935029 | O91: 0.9615808806 | P91: 0.2181342243 | Q91: 0.7404249182 | R91: 0.6203764162 | S91: 0.6649342788 | T91: 0.4221769839 | U91: 0.9303099939 | V91: 0.03584805815 | W91: 0.4199320632 | X91: 0.8141883423 | Y91: 0.7494186864 | Z91: 0.9627657599 | AA91: 0.272384555 | AB91: 0.8342505223 | AC91: 0.7427147642 | AD91: 0.8711532475 | AE91: 0.04751668472 | AF91: 0.1334951142 | AG91: 0.2612799497 | AH91: 0.5145506464 | AI91: 0.1313778512 | AJ91: 0.6424135598 | AK91: 0.7993902588 | AL91: 0.8068936738 | AM91: 0.7445730429 | AN91: 0.7239336881 | AO91: 0.6106485348 | AP91: 0.2082541973 | AQ91: 0.6760484907 | AR91: 0.9626835413 | AS91: 0.7549577387 | AT91: 0.4451656575 | AU91: 0.271821489 | AV91: 0.4806777323 | AW91: 0.3529019099 | AX91: 0.5230936574 | AY91: 0.6813080625 | AZ91: 0.02920215243 | BA91: 0.4054233549 | BB91: 0.4494894244 | BC91: 0.7368165975 | BD91: 0.7799738951 | BE91: 0.6894661453 | BF91: 0.6721128725 | BG91: 0.2955232481 | BH91: 0.9606133412 | BI91: 0.1866458275 | BJ91: 0.3363791175 | BK91: 0.0111536292 | BL91: 0.2323570021 | BM91: 0.5973137453 | BN91: 0.5018453442 | BO91: 0.9594310229 | BP91: 0.913394538 | BQ91: 0.1215427356 | BR91: 0.907248115 | BS91: 0.7984414857 | BT91: 0.732283155 | BU91: 0.3248404201 | BV91: 0.49635823 | BW91: 0.2270247591 | BX91: 0.5323235495 | BY91: 0.5240851207 | BZ91: 0.4069329272 | CA91: 0.6740952161 | CB91: 0.1950865362 | CC91: 0.2589590512 | CD91: 0.8913645958 | CE91: 0.4748286525 | CF91: 0.2393706761 | CG91: 0.3029136354 | CH91: 0.3203787602 | CI91: 0.4265205453 | CJ91: 0.7619886036 | CK91: 0.8151962716 | CL91: 0.2321446174 | CM91: 0.09875337972 | CN91: 0.5781953763 | CO91: 0.4023310584 | CP91: 0.3311938183 | CQ91: 0.7596883706 | CR91: 0.8952424466 | CS91: 0.1201114588 | CT91: 0.1588794662 | CU91: 0.7268455844 | CV91: 0.9002079938
A92: 0.4864666707 | B92: 0.7399572834 | C92: 0.5044215647 | D92: 0.5204012547 | E92: 0.6707657145 | F92: 0.4000563467 | G92: 0.7568884679 | H92: 0.4652040996 | I92: 0.4326027498 | J92: 0.5668856322 | K92: 0.05540229453 | L92: 0.9940276141 | M92: 0.1351662942 | N92: 0.7312168946 | O92: 0.2492235323 | P92: 0.5329104092 | Q92: 0.02144391645 | R92: 0.431518025 | S92: 0.9664289609 | T92: 0.04211806085 | U92: 0.1771186234 | V92: 0.8794685171 | W92: 0.8351767831 | X92: 0.5595593569 | Y92: 0.7741433956 | Z92: 0.06021467844 | AA92: 0.4330788452 | AB92: 0.8020628276 | AC92: 0.3583772943 | AD92: 0.6023126727 | AE92: 0.8493491797 | AF92: 0.5020274371 | AG92: 0.2330107778 | AH92: 0.9107655357 | AI92: 0.5645607925 | AJ92: 0.3740247421 | AK92: 0.05250327334 | AL92: 0.7577267368 | AM92: 0.3579006312 | AN92: 0.5786947024 | AO92: 0.1595829997 | AP92: 0.6150408645 | AQ92: 0.7958057881 | AR92: 0.1995955126 | AS92: 0.167218078 | AT92: 0.4820025006 | AU92: 0.8051002268 | AV92: 0.5168264433 | AW92: 0.07616929608 | AX92: 0.6949136503 | AY92: 0.470404406 | AZ92: 0.06294345118 | BA92: 0.2057805158 | BB92: 0.3944721686 | BC92: 0.2857047835 | BD92: 0.4637223188 | BE92: 0.3557650627 | BF92: 0.2641981457 | BG92: 0.3258167876 | BH92: 0.5218997062 | BI92: 0.8678686975 | BJ92: 0.9619019806 | BK92: 0.03692616454 | BL92: 0.6064773458 | BM92: 0.8931207692 | BN92: 0.8519004486 | BO92: 0.7211399687 | BP92: 0.7878413458 | BQ92: 0.700221484 | BR92: 0.8075946535 | BS92: 0.9175259441 | BT92: 0.002700701695 | BU92: 0.7273111833 | BV92: 0.731958242 | BW92: 0.6880254478 | BX92: 0.01061522531 | BY92: 0.8735053387 | BZ92: 0.6847074224 | CA92: 0.02845721013 | CB92: 0.1145314444 | CC92: 0.8885669145 | CD92: 0.9245049383 | CE92: 0.4429531796 | CF92: 0.1070618891 | CG92: 0.7054516764 | CH92: 0.03247995924 | CI92: 0.4668804246 | CJ92: 0.3878323793 | CK92: 0.1269649833 | CL92: 0.7793492848 | CM92: 0.2899557063 | CN92: 0.1160038768 | CO92: 0.4583689664 | CP92: 0.6221790362 | CQ92: 0.1751751115 | CR92: 0.8230363855 | CS92: 0.3544872862 | CT92: 0.05550954411 | CU92: 0.9615645184 | CV92: 0.1418727856
A93: 0.5395954235 | B93: 0.5263755133 | C93: 0.3299336332 | D93: 0.129887124 | E93: 0.5323929137 | F93: 0.48787903 | G93: 0.7346783447 | H93: 0.7989453365 | I93: 0.8546837828 | J93: 0.2664577642 | K93: 0.6224148272 | L93: 0.4314131776 | M93: 0.8202973032 | N93: 0.2320169896 | O93: 0.3051936339 | P93: 0.5436736765 | Q93: 0.2436021945 | R93: 0.6681662221 | S93: 0.6760224952 | T93: 0.02207298125 | U93: 0.1107485804 | V93: 0.8343452352 | W93: 0.1426105995 | X93: 0.323882127 | Y93: 0.6468129564 | Z93: 0.6451976242 | AA93: 0.6027319492 | AB93: 0.07029742954 | AC93: 0.2413273366 | AD93: 0.8120450792 | AE93: 0.588798664 | AF93: 0.4115593533 | AG93: 0.1908214085 | AH93: 0.7287634875 | AI93: 0.7997547267 | AJ93: 0.1597727667 | AK93: 0.9157006115 | AL93: 0.9281586284 | AM93: 0.2829763679 | AN93: 0.3468599752 | AO93: 0.8231409068 | AP93: 0.5376328006 | AQ93: 0.09116553958 | AR93: 0.130540094 | AS93: 0.376895785 | AT93: 0.198137664 | AU93: 0.09496479035 | AV93: 0.9135057164 | AW93: 0.8862423327 | AX93: 0.5818339018 | AY93: 0.8236004051 | AZ93: 0.6003785146 | BA93: 0.8974557634 | BB93: 0.7441470285 | BC93: 0.8899959586 | BD93: 0.9441600694 | BE93: 0.1382812966 | BF93: 0.4883506761 | BG93: 0.2315683173 | BH93: 0.6329815658 | BI93: 0.4189464078 | BJ93: 0.2723404414 | BK93: 0.6797337492 | BL93: 0.8571049363 | BM93: 0.5928286235 | BN93: 0.01325211508 | BO93: 0.8068491663 | BP93: 0.2793470024 | BQ93: 0.6752588395 | BR93: 0.9358398691 | BS93: 0.5468535249 | BT93: 0.04253971381 | BU93: 0.8866797116 | BV93: 0.5932967133 | BW93: 0.7727728508 | BX93: 0.0691746238 | BY93: 0.4946095973 | BZ93: 0.5185008879 | CA93: 0.7113384313 | CB93: 0.4182083685 | CC93: 0.1689808727 | CD93: 0.4163701611 | CE93: 0.6669265425 | CF93: 0.06022969587 | CG93: 0.643223689 | CH93: 0.3944098381 | CI93: 0.873601585 | CJ93: 0.2671722917 | CK93: 0.2843516506 | CL93: 0.7088372302 | CM93: 0.156192385 | CN93: 0.09207359528 | CO93: 0.53379927 | CP93: 0.3055401089 | CQ93: 0.3619007362 | CR93: 0.3944026138 | CS93: 0.1780716698 | CT93: 0.6554917083 | CU93: 0.4484397228 | CV93: 0.4183855866
A94: 0.06723913409 | B94: 0.8064620001 | C94: 0.7688752568 | D94: 0.01992995665 | E94: 0.9194307426 | F94: 0.6183683283 | G94: 0.9229959408 | H94: 0.1481623132 | I94: 0.2747659543 | J94: 0.7583608212 | K94: 0.0248210685 | L94: 0.8917017649 | M94: 0.3549791075 | N94: 0.9212059955 | O94: 0.5259393517 | P94: 0.04168273313 | Q94: 0.8810651831 | R94: 0.4491894578 | S94: 0.4067584327 | T94: 0.08563903128 | U94: 0.2307758954 | V94: 0.3688642621 | W94: 0.4441901182 | X94: 0.9159917159 | Y94: 0.4464796227 | Z94: 0.3982699391 | AA94: 0.5351382126 | AB94: 0.286012904 | AC94: 0.6170918888 | AD94: 0.9294719426 | AE94: 0.1173764282 | AF94: 0.8678949126 | AG94: 0.318495323 | AH94: 0.7581977126 | AI94: 0.7775098519 | AJ94: 0.8350771325 | AK94: 0.5335479268 | AL94: 0.6944167152 | AM94: 0.9801337254 | AN94: 0.0411815908 | AO94: 0.3550380544 | AP94: 0.7388977364 | AQ94: 0.1912076589 | AR94: 0.9409887178 | AS94: 0.1965911821 | AT94: 0.2115776534 | AU94: 0.4946029299 | AV94: 0.2904334576 | AW94: 0.8388039448 | AX94: 0.1235104522 | AY94: 0.787423239 | AZ94: 0.001361730848 | BA94: 0.00849948848 | BB94: 0.7988470784 | BC94: 0.2622378441 | BD94: 0.5069718161 | BE94: 0.8255975878 | BF94: 0.002948273497 | BG94: 0.1285414989 | BH94: 0.6731714154 | BI94: 0.9855652762 | BJ94: 0.5194049883 | BK94: 0.7992457896 | BL94: 0.05927306228 | BM94: 0.1900978004 | BN94: 0.4472365404 | BO94: 0.9219630043 | BP94: 0.394353864 | BQ94: 0.3408023722 | BR94: 0.4736425523 | BS94: 0.7241295464 | BT94: 0.7220571642 | BU94: 0.1464347035 | BV94: 0.04613178223 | BW94: 0.8040546786 | BX94: 0.3574619284 | BY94: 0.7474257857 | BZ94: 0.645659922 | CA94: 0.5514409858 | CB94: 0.04633560503 | CC94: 0.8237799098 | CD94: 0.98980192 | CE94: 0.3928873293 | CF94: 0.5482866327 | CG94: 0.636616491 | CH94: 0.0499662853 | CI94: 0.6819284071 | CJ94: 0.07417053796 | CK94: 0.6216225523 | CL94: 0.7872286054 | CM94: 0.2973366697 | CN94: 0.3741132275 | CO94: 0.46905392 | CP94: 0.9273050557 | CQ94: 0.9567358788 | CR94: 0.6553239497 | CS94: 0.1599760303 | CT94: 0.5196618334 | CU94: 0.7231713666 | CV94: 0.9953199061
A95: 0.7961670823 | B95: 0.4757636208 | C95: 0.860780737 | D95: 0.8012041638 | E95: 0.3546875308 | F95: 0.4340798808 | G95: 0.1842904764 | H95: 0.3692041894 | I95: 0.5222357844 | J95: 0.9235129089 | K95: 0.5751529339 | L95: 0.4210672537 | M95: 0.4422729437 | N95: 0.06976028564 | O95: 0.3396467091 | P95: 0.5815440521 | Q95: 0.9483687126 | R95: 0.8061668415 | S95: 0.8352858073 | T95: 0.5108153719 | U95: 0.003285854633 | V95: 0.7946490812 | W95: 0.4079427982 | X95: 0.1532286417 | Y95: 0.2979810453 | Z95: 0.6057641631 | AA95: 0.9001981749 | AB95: 0.2204349375 | AC95: 0.8594426638 | AD95: 0.9079468833 | AE95: 0.3285934352 | AF95: 0.9771243396 | AG95: 0.9393820755 | AH95: 0.9554792655 | AI95: 0.6053814358 | AJ95: 0.3661450286 | AK95: 0.130915891 | AL95: 0.5138753855 | AM95: 0.4382282973 | AN95: 0.2607314146 | AO95: 0.4403764254 | AP95: 0.4923326495 | AQ95: 0.09802974272 | AR95: 0.9897269267 | AS95: 0.3309751118 | AT95: 0.5896106638 | AU95: 0.3998916377 | AV95: 0.3223721177 | AW95: 0.5240569436 | AX95: 0.2574593753 | AY95: 0.2578535107 | AZ95: 0.8261779716 | BA95: 0.8512741698 | BB95: 0.09046568031 | BC95: 0.8185412568 | BD95: 0.1825112594 | BE95: 0.2092584515 | BF95: 0.933180189 | BG95: 0.3369344424 | BH95: 0.01288069871 | BI95: 0.4230631674 | BJ95: 0.9288381601 | BK95: 0.1003831744 | BL95: 0.2984598136 | BM95: 0.1408810143 | BN95: 0.912101853 | BO95: 0.004063741181 | BP95: 0.9962785436 | BQ95: 0.2802774311 | BR95: 0.05658863327 | BS95: 0.5515121507 | BT95: 0.4424727574 | BU95: 0.3891787928 | BV95: 0.2624117948 | BW95: 0.5823430464 | BX95: 0.3165732256 | BY95: 0.05864219815 | BZ95: 0.3982335745 | CA95: 0.9887416572 | CB95: 0.3445088171 | CC95: 0.7762468465 | CD95: 0.3419045834 | CE95: 0.3725146917 | CF95: 0.4430696993 | CG95: 0.241571054 | CH95: 0.4101868591 | CI95: 0.3812881139 | CJ95: 0.2328393842 | CK95: 0.1233090302 | CL95: 0.8307726183 | CM95: 0.7220739992 | CN95: 0.2693126099 | CO95: 0.9827836467 | CP95: 0.5567680321 | CQ95: 0.0003885841583 | CR95: 0.8404756586 | CS95: 0.04169065142 | CT95: 0.0371500458 | CU95: 0.336639387 | CV95: 0.5236663453
A96: 0.3725144973 | B96: 0.3676177286 | C96: 0.8595886006 | D96: 0.3001950415 | E96: 0.6839440486 | F96: 0.7984539562 | G96: 0.8629372923 | H96: 0.03807171342 | I96: 0.03521712595 | J96: 0.1766939162 | K96: 0.3510965811 | L96: 0.1964149788 | M96: 0.2669998814 | N96: 0.04094560818 | O96: 0.1042541412 | P96: 0.8268519623 | Q96: 0.1804096248 | R96: 0.8326074979 | S96: 0.2579537108 | T96: 0.9012270341 | U96: 0.788834818 | V96: 0.608454792 | W96: 0.7974082595 | X96: 0.1694803099 | Y96: 0.6078258798 | Z96: 0.08903239292 | AA96: 0.5939978481 | AB96: 0.2498410938 | AC96: 0.3672581423 | AD96: 0.05966718342 | AE96: 0.7188246032 | AF96: 0.3757536035 | AG96: 0.4570036872 | AH96: 0.1163246766 | AI96: 0.6239992354 | AJ96: 0.20450682 | AK96: 0.917305303 | AL96: 0.1377979991 | AM96: 0.06346613417 | AN96: 0.07386132545 | AO96: 0.5935033554 | AP96: 0.7096269295 | AQ96: 0.946712036 | AR96: 0.4631083766 | AS96: 0.6457409817 | AT96: 0.1708148154 | AU96: 0.455363483 | AV96: 0.6280382126 | AW96: 0.9287357294 | AX96: 0.1979881014 | AY96: 0.3805287009 | AZ96: 0.1235793489 | BA96: 0.1396725889 | BB96: 0.3817710886 | BC96: 0.8112361107 | BD96: 0.6731586084 | BE96: 0.5460543159 | BF96: 0.7118737178 | BG96: 0.7673910216 | BH96: 0.0005674017427 | BI96: 0.810045192 | BJ96: 0.3503106116 | BK96: 0.2562713056 | BL96: 0.3484833791 | BM96: 0.4507318215 | BN96: 0.8713576722 | BO96: 0.4223040243 | BP96: 0.6099615415 | BQ96: 0.5083350009 | BR96: 0.0446770242 | BS96: 0.8404809567 | BT96: 0.4450471833 | BU96: 0.2663350575 | BV96: 0.6649684064 | BW96: 0.673704241 | BX96: 0.8509102355 | BY96: 0.6289048835 | BZ96: 0.1420588091 | CA96: 0.8307837593 | CB96: 0.08185014471 | CC96: 0.1587654456 | CD96: 0.9759256292 | CE96: 0.3969807601 | CF96: 0.9890090618 | CG96: 0.3411044308 | CH96: 0.6184847754 | CI96: 0.1309561783 | CJ96: 0.11232922 | CK96: 0.5702581278 | CL96: 0.6656357352 | CM96: 0.7484748959 | CN96: 0.8922211649 | CO96: 0.8613525452 | CP96: 0.5689839037 | CQ96: 0.4406582265 | CR96: 0.1842046117 | CS96: 0.8025552746 | CT96: 0.6104108065 | CU96: 0.3263083608 | CV96: 0.1160052247
A97: 0.002332619656 | B97: 0.5854912109 | C97: 0.5850907443 | D97: 0.1620912595 | E97: 0.7855056768 | F97: 0.7239321213 | G97: 0.8263099195 | H97: 0.1294405231 | I97: 0.05072353189 | J97: 0.1372005825 | K97: 0.04615209116 | L97: 0.5796503802 | M97: 0.2441656554 | N97: 0.5889364541 | O97: 0.7940957477 | P97: 0.2285513721 | Q97: 0.4474548408 | R97: 0.4763707408 | S97: 0.2026827771 | T97: 0.1438268524 | U97: 0.1490098184 | V97: 0.7114778535 | W97: 0.3017310822 | X97: 0.3551072897 | Y97: 0.1729174553 | Z97: 0.6422812112 | AA97: 0.04063374306 | AB97: 0.8502228808 | AC97: 0.5378242844 | AD97: 0.6085663394 | AE97: 0.8108073661 | AF97: 0.05202794974 | AG97: 0.6526606458 | AH97: 0.6618549994 | AI97: 0.1395943025 | AJ97: 0.9463574875 | AK97: 0.1545917872 | AL97: 0.05126887129 | AM97: 0.4579144043 | AN97: 0.5262483917 | AO97: 0.6558936723 | AP97: 0.9270310324 | AQ97: 0.9249542554 | AR97: 0.343744854 | AS97: 0.4353629924 | AT97: 0.2739256919 | AU97: 0.6872491901 | AV97: 0.03657128668 | AW97: 0.5365644568 | AX97: 0.27112197 | AY97: 0.2101514727 | AZ97: 0.2405851362 | BA97: 0.2223276886 | BB97: 0.09512082887 | BC97: 0.6292069991 | BD97: 0.8695666248 | BE97: 0.7608341228 | BF97: 0.1308201455 | BG97: 0.1071498054 | BH97: 0.4939169733 | BI97: 0.05121298026 | BJ97: 0.3997994256 | BK97: 0.1954758075 | BL97: 0.569024689 | BM97: 0.3516339526 | BN97: 0.1613578042 | BO97: 0.7981127682 | BP97: 0.8657983671 | BQ97: 0.2319129088 | BR97: 0.4038111295 | BS97: 0.4244530453 | BT97: 0.8767454178 | BU97: 0.6570318333 | BV97: 0.8773158423 | BW97: 0.4027496304 | BX97: 0.1952823449 | BY97: 0.5769917875 | BZ97: 0.5756091741 | CA97: 0.009273262638 | CB97: 0.1996854466 | CC97: 0.8843901807 | CD97: 0.6825954944 | CE97: 0.6024048093 | CF97: 0.02468955387 | CG97: 0.0305941335 | CH97: 0.4038762243 | CI97: 0.9169964031 | CJ97: 0.07680651672 | CK97: 0.503193511 | CL97: 0.03304630191 | CM97: 0.831103555 | CN97: 0.2971446697 | CO97: 0.7905680883 | CP97: 0.5298733933 | CQ97: 0.1969646411 | CR97: 0.807070959 | CS97: 0.3734705138 | CT97: 0.8810361369 | CU97: 0.5886170947 | CV97: 0.8425219517
A98: 0.731245815 | B98: 0.6380432983 | C98: 0.6277189135 | D98: 0.05293302767 | E98: 0.3995431574 | F98: 0.2406555092 | G98: 0.4568992707 | H98: 0.8847810093 | I98: 0.7969366765 | J98: 0.6147607884 | K98: 0.2713732616 | L98: 0.1688875141 | M98: 0.8820298159 | N98: 0.3757411902 | O98: 0.4297509195 | P98: 0.3056661259 | Q98: 0.3157678024 | R98: 0.1891123837 | S98: 0.9696214202 | T98: 0.06553316315 | U98: 0.5736696137 | V98: 0.5525814095 | W98: 0.6032116925 | X98: 0.2174851608 | Y98: 0.8135783861 | Z98: 0.6811087027 | AA98: 0.2582964091 | AB98: 0.2029987933 | AC98: 0.7054849684 | AD98: 0.2127426782 | AE98: 0.4776029757 | AF98: 0.01814796279 | AG98: 0.5097984695 | AH98: 0.3419800383 | AI98: 0.8822247214 | AJ98: 0.2813808785 | AK98: 0.6275987134 | AL98: 0.01517055204 | AM98: 0.8424292408 | AN98: 0.99277784 | AO98: 0.1560422593 | AP98: 0.06006589608 | AQ98: 0.7728794971 | AR98: 0.5221670503 | AS98: 0.6998685484 | AT98: 0.3861211909 | AU98: 0.3994887208 | AV98: 0.3227877453 | AW98: 0.7589796351 | AX98: 0.7747751757 | AY98: 0.1158581728 | AZ98: 0.7824488485 | BA98: 0.9534890607 | BB98: 0.9768421105 | BC98: 0.9286768723 | BD98: 0.4347711586 | BE98: 0.5798451079 | BF98: 0.3880836626 | BG98: 0.3423765344 | BH98: 0.6860525306 | BI98: 0.6748221916 | BJ98: 0.8153240783 | BK98: 0.3726829976 | BL98: 0.9174237819 | BM98: 0.3492059091 | BN98: 0.8356145582 | BO98: 0.09833856998 | BP98: 0.9890164155 | BQ98: 0.9720128894 | BR98: 0.9081360943 | BS98: 0.01153998605 | BT98: 0.2666368691 | BU98: 0.1324246457 | BV98: 0.2654121458 | BW98: 0.8562962353 | BX98: 0.4477589215 | BY98: 0.6597393792 | BZ98: 0.3274081418 | CA98: 0.7838681124 | CB98: 0.5623822585 | CC98: 0.2194568151 | CD98: 0.07792284853 | CE98: 0.1958149482 | CF98: 0.5252109613 | CG98: 0.2964702835 | CH98: 0.1982841151 | CI98: 0.8629907917 | CJ98: 0.6516638435 | CK98: 0.2911380799 | CL98: 0.295319566 | CM98: 0.763914924 | CN98: 0.1998031738 | CO98: 0.9182477862 | CP98: 0.4947087155 | CQ98: 0.7986706858 | CR98: 0.1778469471 | CS98: 0.5873847237 | CT98: 0.02699801546 | CU98: 0.3437333081 | CV98: 0.8298337091
A99: 0.9205500815 | B99: 0.2619331507 | C99: 0.7025816684 | D99: 0.4744778977 | E99: 0.9047504717 | F99: 0.9394453423 | G99: 0.7956897759 | H99: 0.6003129338 | I99: 0.5685793037 | J99: 0.4469487232 | K99: 0.767702319 | L99: 0.6584581714 | M99: 0.5239578143 | N99: 0.2879366431 | O99: 0.9102989862 | P99: 0.6287755406 | Q99: 0.1334913815 | R99: 0.5591938331 | S99: 0.1576342955 | T99: 0.072717871 | U99: 0.5281532145 | V99: 0.4880773605 | W99: 0.7910143992 | X99: 0.218458174 | Y99: 0.1591549329 | Z99: 0.6353811591 | AA99: 0.2488085055 | AB99: 0.3886761808 | AC99: 0.05487214524 | AD99: 0.6764135529 | AE99: 0.6196936186 | AF99: 0.8635006303 | AG99: 0.8425109093 | AH99: 0.7246803611 | AI99: 0.7044056231 | AJ99: 0.0007610284297 | AK99: 0.3276635556 | AL99: 0.1490905745 | AM99: 0.389753586 | AN99: 0.9387833835 | AO99: 0.7272500772 | AP99: 0.2157636116 | AQ99: 0.502477944 | AR99: 0.5020451732 | AS99: 0.3087742587 | AT99: 0.1312439973 | AU99: 0.768594233 | AV99: 0.1946465484 | AW99: 0.2922040423 | AX99: 0.6669659421 | AY99: 0.4651568605 | AZ99: 0.5919932748 | BA99: 0.4041550725 | BB99: 0.6984489032 | BC99: 0.6248134203 | BD99: 0.8078662701 | BE99: 0.3313046694 | BF99: 0.7348922337 | BG99: 0.2301399185 | BH99: 0.00960462702 | BI99: 0.5891851405 | BJ99: 0.1046382797 | BK99: 0.670962527 | BL99: 0.4127891293 | BM99: 0.04158748058 | BN99: 0.3987737621 | BO99: 0.4439104672 | BP99: 0.9235552966 | BQ99: 0.6631116352 | BR99: 0.06817857571 | BS99: 0.7852338979 | BT99: 0.3378186263 | BU99: 0.6804215641 | BV99: 0.44641769 | BW99: 0.6785839354 | BX99: 0.6571018807 | BY99: 0.6097146252 | BZ99: 0.5221809933 | CA99: 0.9022748272 | CB99: 0.05199274318 | CC99: 0.09277411975 | CD99: 0.06527515992 | CE99: 0.3741355505 | CF99: 0.8345721506 | CG99: 0.641966867 | CH99: 0.3776870498 | CI99: 0.1681695469 | CJ99: 0.7350187841 | CK99: 0.8075786398 | CL99: 0.7312527078 | CM99: 0.3820984083 | CN99: 0.1554187842 | CO99: 0.2865003481 | CP99: 0.906549369 | CQ99: 0.4946397752 | CR99: 0.7100820816 | CS99: 0.2775647611 | CT99: 0.1507534937 | CU99: 0.03674784496 | CV99: 0.6706185299
A100: 0.7067858762 | B100: 0.7065087318 | C100: 0.1506194243 | D100: 0.1875009669 | E100: 0.539501709 | F100: 0.6134480689 | G100: 0.5334210239 | H100: 0.3804472724 | I100: 0.7720906634 | J100: 0.8472170545 | K100: 0.8534485125 | L100: 0.8076265581 | M100: 0.150048033 | N100: 0.2184586127 | O100: 0.9347464194 | P100: 0.5247067145 | Q100: 0.3772351889 | R100: 0.4519533107 | S100: 0.3554110043 | T100: 0.8114340421 | U100: 0.03171604907 | V100: 0.08340951166 | W100: 0.649282278 | X100: 0.6865940422 | Y100: 0.265270561 | Z100: 0.3188203888 | AA100: 0.9568808032 | AB100: 0.9190124505 | AC100: 0.5646484068 | AD100: 0.739096695 | AE100: 0.09948854431 | AF100: 0.5179534571 | AG100: 0.9167478464 | AH100: 0.685212254 | AI100: 0.3535091958 | AJ100: 0.7373984481 | AK100: 0.5978883766 | AL100: 0.07893731113 | AM100: 0.8004821097 | AN100: 0.7873977498 | AO100: 0.9742435693 | AP100: 0.04384399003 | AQ100: 0.5871993725 | AR100: 0.04852231672 | AS100: 0.6549726945 | AT100: 0.6318081881 | AU100: 0.4975271659 | AV100: 0.9611974388 | AW100: 0.3766297899 | AX100: 0.08723224704 | AY100: 0.8306676395 | AZ100: 0.9548766422 | BA100: 0.596407644 | BB100: 0.05869224239 | BC100: 0.05921113243 | BD100: 0.7823688799 | BE100: 0.3435850057 | BF100: 0.3956628151 | BG100: 0.6468101968 | BH100: 0.4628591233 | BI100: 0.2747403047 | BJ100: 0.1446639011 | BK100: 0.2862747999 | BL100: 0.2032444284 | BM100: 0.6245527824 | BN100: 0.6549475803 | BO100: 0.4328279565 | BP100: 0.8187371429 | BQ100: 0.0409624953 | BR100: 0.5925089344 | BS100: 0.2254393838 | BT100: 0.07489425773 | BU100: 0.9005182047 | BV100: 0.4862259902 | BW100: 0.5971395116 | BX100: 0.7877184051 | BY100: 0.6855879692 | BZ100: 0.710006953 | CA100: 0.8785302501 | CB100: 0.01322261067 | CC100: 0.4740063646 | CD100: 0.9979856491 | CE100: 0.3564833905 | CF100: 0.0953200129 | CG100: 0.06552265492 | CH100: 0.4840631073 | CI100: 0.5823745506 | CJ100: 0.08162839941 | CK100: 0.9390385195 | CL100: 0.4383759759 | CM100: 0.4522575513 | CN100: 0.2844370601 | CO100: 0.4964937717 | CP100: 0.2378062111 | CQ100: 0.6656409118 | CR100: 0.4991100541 | CS100: 0.04216587117 | CT100: 0.655511269 | CU100: 0.01867763649 | CV100: 0.516940559

Sheet Parameters
A1: All scenarios
A3: a | B3: 10000 | C3: Var_a | E3: =a*exp(bx+c)
A4: b | B4: 0.0054 | C4: Var_b
A5: c | B5: 2.37 | C5: Var_c
A7: Spoilage | B7: 0.1 | C7: Spoilage_base
A9: Grapes per bottle | B9: 750 | C9: Grapes_per_bottle
A11: Price per wine bottle | B11: 10 | C11: Price_per_bottle
A13: Production costs per bottle | B13: 2 | C13: Prodcosts_per_bottle
A15: Scenario 1
A17: Maximum sun hours | B17: 12 | C17: Max_sunhours_base
A19: Number of growing days | B19: 100 | C19: Growing_days_base
A21: Vineyard rental costs | B21: 20000 | C21: Vineyard_cost_base
A23: Scenario 2
A25: Target price per wine bottle | B25: 11.46521533 | C25: Target_price_per_bottle
A27: Scenario 3
A29: Maximum sun hours | B29: 15 | C29: Max_sunhours_alt
A31: Number of growing days | B31: 90 | C31: Growing_days_alt
A33: Vineyard rental costs | B33: 25000 | C33: Vineyard_cost_alt
A35: Number of workers | B35: 20 | C35: Number_worker_alt
A37: Overtime limit | B37: 7.5 | C37: Overtime_limit_alt
A39: Hourly overtime payment | B39: 5 | C39: Overtime_hourly_rate_alt

Sheet Wine production
A1: Wine production - vineyard 1
A3: Simulation | B3: Total hours of sun | C3: Grape production | D3: Wine bottles produced | E3: Production costs | F3: Total costs | G3: Total Revenue | H3: Profit/(loss) | I3: Rank | K3: Profit Statistics
A4: 1 | B4: =SUM(Rawdata!A1:CV1)*Max_sunhours_base -> 654.3560769 | C4: =Var_a*EXP(Var_b*'Wine production'!B4+Var_c) -> 3663256.952 | D4: =ROUNDDOWN(C4*(1-Spoilage)/Grapes_per_bottle,0) -> 4395 | E4: =D4*Prodcosts_per_bottle -> 8790 | F4: =E4+Vineyard_cost_base -> 28790 | G4: =D4*Price_per_bottle -> 43950 | H4: =G4-F4 -> 15160 | I4: =RANK(H4,$H$4:$H$103,1) -> 95
A5: =A4+1 -> 2 | B5: =SUM(Rawdata!A2:CV2)*Max_sunhours_base -> 586.4914225 | C5: =Var_a*EXP(Var_b*'Wine production'!B5+Var_c) -> 2539287.413 | D5: 3047 | E5: 6094 | F5: 26094 | G5: 30470 | H5: =G5-F5 -> 4376 | I5: =RANK(H5,$H$4:$H$103,1) -> 38 | K5: Average expected profit | M5: =AVERAGE($H$4:$H$103) -> 6481.84 | O5: Theoretical expected profit
A6: =A5+1 -> 3 | B6: =SUM(Rawdata!A3:CV3)*Max_sunhours_base -> 577.3109775 | C6: =Var_a*EXP(Var_b*'Wine production'!B6+Var_c) -> 2416473.129 | D6: 2899 | E6: 5798 | F6: 25798 | G6: 28990 | H6: 3192 | I6: 30 | K6: Maximum profit | M6: =MAX($H$4:$H$103) -> 23288 | P6: Total hours of sun | Q6: =Max_sunhours_base/2*100 -> 600
A7: 4 | B7: =SUM(Rawdata!A4:CV4)*Max_sunhours_base -> 587.8932555 | C7: =Var_a*EXP(Var_b*'Wine production'!B7+Var_c) -> 2558582.499 | D7: 3070 | E7: 6140 | F7: 26140 | G7: 30700 | H7: 4560 | I7: 40 | K7: Maximum loss | M7: =MIN($H$4:$H$103) -> -3096 | P7: Grape production | Q7: =Var_a*EXP(Var_b*Q6+Var_c) -> 2731442.38
A8: 5 | B8: =SUM(Rawdata!A5:CV5)*Max_sunhours_base -> 621.9116392 | C8: =Var_a*EXP(Var_b*'Wine production'!B8+Var_c) -> 3074531.911 | D8: 3689 | E8: 7378 | F8: 27378 | G8: 36890 | H8: 9512 | I8: 73 | K8: Probability of making a loss | M8: =COUNTIF($H$4:$H$103,"<0")/COUNT(H4:H103) -> 0.12 | P8: Wine bottles produced | Q8: =ROUNDDOWN(Q7*(1-Spoilage)/Grapes_per_bottle,0) -> 3277
A9: 6 | B9: =SUM(Rawdata!A6:CV6)*Max_sunhours_base -> 606.2299169 | C9: =Var_a*EXP(Var_b*'Wine production'!B9+Var_c) -> 2824895.479 | D9: 3389 | E9: 6778 | F9: 26778 | G9: 33890 | H9: 7112 | I9: 59 | P9: Production costs | Q9: =Q8*Prodcosts_per_bottle -> 6554
A10: 7 | B10: =SUM(Rawdata!A7:CV7)*Max_sunhours_base -> 547.2424415 | C10: =Var_a*EXP(Var_b*'Wine production'!B10+Var_c) -> 2054307.891 | D10: 2465 | E10: 4930 | F10: 24930 | G10: 24650 | H10: -280 | I10: 12 | K10: Components of Expected Profit of Median (50th Ranked) Simulation | P10: Total costs | Q10: =Q9+Vineyard_cost_base -> 26554
A11: 8 | B11: =SUM(Rawdata!A8:CV8)*Max_sunhours_base -> 593.7655224 | C11: =Var_a*EXP(Var_b*'Wine production'!B11+Var_c) -> 2641015.85 | D11: 3169 | E11: 6338 | F11: 26338 | G11: 31690 | H11: 5352 | I11: 50 | P11: Total Revenue | Q11: =Q8*Price_per_bottle -> 32770
A12: 9 | B12: =SUM(Rawdata!A9:CV9)*Max_sunhours_base -> 615.340961 | C12: =Var_a*EXP(Var_b*'Wine production'!B12+Var_c) -> 2967355.059 | D12: 3560 | E12: 7120 | F12: 27120 | G12: 35600 | H12: 8480 | I12: 64 | P12: Profit/(loss) | Q12: =Q11-Q10 -> 6216
A13: 10 | B13: =SUM(Rawdata!A10:CV10)*Max_sunhours_base -> 578.1588965 | C13: =Var_a*EXP(Var_b*'Wine production'!B13+Var_c) -> 2427562.956 | D13: 2913 | E13: 5826 | F13: 25826 | G13: 29130 | H13: 3304 | I13: 31 | K13: Simulation to find | M13: 50
A14: 11 | B14: =SUM(Rawdata!A11:CV11)*Max_sunhours_base -> 587.1017099 | C14: =Var_a*EXP(Var_b*'Wine production'!B14+Var_c) -> 2547669.571 | D14: 3057 | E14: 6114 | F14: 26114 | G14: 30570 | H14: 4456 | I14: 39
A15: 12 | B15: =SUM(Rawdata!A12:CV12)*Max_sunhours_base -> 533.4995402 | C15: =Var_a*EXP(Var_b*'Wine production'!B15+Var_c) -> 1907373.817 | D15: 2288 | E15: 4576 | F15: 24576 | G15: 22880 | H15: -1696 | I15: 5 | K15: Simulation | M15: =MATCH(M13,I4:I103,0) -> 8
A16: 13 | B16: =SUM(Rawdata!A13:CV13)*Max_sunhours_base -> 559.3452661 | C16: =Var_a*EXP(Var_b*'Wine production'!B16+Var_c) -> 2193052.153 | D16: 2631 | E16: 5262 | F16: 25262 | G16: 26310 | H16: 1048 | I16: 17
A17: 14 | B17: =SUM(Rawdata!A14:CV14)*Max_sunhours_base -> 592.5908426 | C17: =Var_a*EXP(Var_b*'Wine production'!B17+Var_c) -> 2624316.193 | D17: 3149 | E17: 6298 | F17: 26298 | G17: 31490 | H17: 5192 | I17: 48 | K17: Variable costs | M17: =VLOOKUP(M15,$A$4:$H$103,5,FALSE) -> 6338
A18: =A17+1 -> 15 | B18: =SUM(Rawdata!A15:CV15)*Max_sunhours_base -> 620.6582088 | C18: =Var_a*EXP(Var_b*'Wine production'!B18+Var_c) -> 3053792.136 | D18: 3664 | E18: 7328 | F18: 27328 | G18: 36640 | H18: 9312 | I18: 68 | K18: Fixed costs | M18: =Vineyard_cost_base -> 20000
A19: 16 | B19: =SUM(Rawdata!A16:CV16)*Max_sunhours_base -> 543.3305383 | C19: =Var_a*EXP(Var_b*'Wine production'!B19+Var_c) -> 2011367.262 | D19: 2413 | E19: 4826 | F19: 24826 | G19: 24130 | H19: -696 | I19: 9 | K19: Total costs | M19: =VLOOKUP(M15,$A$4:$H$103,6,FALSE) -> 26338
A20: 17 | B20: =SUM(Rawdata!A17:CV17)*Max_sunhours_base -> 636.2128938 | C20: =Var_a*EXP(Var_b*'Wine production'!B20+Var_c) -> 3321376.948 | D20: 3985 | E20: 7970 | F20: 27970 | G20: 39850 | H20: 11880 | I20: 84 | K20: Total Revenue | M20: =VLOOKUP(M15,$A$4:$H$103,7,FALSE) -> 31690
A21: 18 | B21: =SUM(Rawdata!A18:CV18)*Max_sunhours_base -> 578.7354716 | C21: =Var_a*EXP(Var_b*'Wine production'!B21+Var_c) -> 2435132.965 | D21: 2922 | E21: 5844 | F21: 25844 | G21: 29220 | H21: 3376 | I21: 32 | K21: Profit/(loss) | M21: =VLOOKUP(M15,$A$4:$H$103,8,FALSE) -> 5352
A22: 19 | B22: =SUM(Rawdata!A19:CV19)*Max_sunhours_base -> 634.8910168 | C22: =Var_a*EXP(Var_b*'Wine production'!B22+Var_c) -> 3297752.926 | D22: 3957 | E22: 7914 | F22: 27914 | G22: 39570 | H22: 11656 | I22: 82
A23: 20 | B23: =SUM(Rawdata!A20:CV20)*Max_sunhours_base -> 590.080947 | C23: =Var_a*EXP(Var_b*'Wine production'!B23+Var_c) -> 2588987.642 | D23: 3106 | E23: 6212 | F23: 26212 | G23: 31060 | H23: 4848 | I23: 45 | K23: Check correct simulation | M23: =IF(M21=M20-M19,"OK","CHECK") -> OK
A24: 21 | B24: =SUM(Rawdata!A21:CV21)*Max_sunhours_base -> 604.3694984 | C24: =Var_a*EXP(Var_b*'Wine production'!B24+Var_c) -> 2796657.923 | D24: 3355 | E24: 6710 | F24: 26710 | G24: 33550 | H24: 6840 | I24: 57
A25: 22 | B25: =SUM(Rawdata!A22:CV22)*Max_sunhours_base -> 589.0942261 | C25: =Var_a*EXP(Var_b*'Wine production'!B25+Var_c) -> 2575229.444 | D25: 3090 | E25: 6180 | F25: 26180 | G25: 30900 | H25: 4720 | I25: 41
A26: 23 | B26: =SUM(Rawdata!A23:CV23)*Max_sunhours_base -> 653.8504377 | C26: =Var_a*EXP(Var_b*'Wine production'!B26+Var_c) -> 3653268.249 | D26: 4383 | E26: 8766 | F26: 28766 | G26: 43830 | H26: 15064 | I26: 94
A27: 24 | B27: =SUM(Rawdata!A24:CV24)*Max_sunhours_base -> 585.3723657 | C27: =Var_a*EXP(Var_b*'Wine production'!B27+Var_c) -> 2523989.006 | D27: 3028 | E27: 6056 | F27: 26056 | G27: 30280 | H27: 4224 | I27: 35
A28: 25 | B28: =SUM(Rawdata!A25:CV25)*Max_sunhours_base -> 566.5127193 | C28: =Var_a*EXP(Var_b*'Wine production'!B28+Var_c) -> 2279596.602 | D28: 2735 | E28: 5470 | F28: 25470 | G28: 27350 | H28: 1880 | I28: 20
A29: 26 | B29: =SUM(Rawdata!A26:CV26)*Max_sunhours_base -> 692.837819 | C29: =Var_a*EXP(Var_b*'Wine production'!B29+Var_c) -> 4509354.589 | D29: 5411 | E29: 10822 | F29: 30822 | G29: 54110 | H29: 23288 | I29: 100
A30: 27 | B30: =SUM(Rawdata!A27:CV27)*Max_sunhours_base -> 592.7346115 | C30: =Var_a*EXP(Var_b*'Wine production'!B30+Var_c) -> 2626354.377 | D30: 3151 | E30: 6302 | F30: 26302 | G30: 31510 | H30: 5208 | I30: 49
A31: 28 | B31: =SUM(Rawdata!A28:CV28)*Max_sunhours_base -> 558.5955621 | C31: =Var_a*EXP(Var_b*'Wine production'!B31+Var_c) -> 2184191.745 | D31: 2621 | E31: 5242 | F31: 25242 | G31: 26210 | H31: 968 | I31: 15
A32: 29 | B32: =SUM(Rawdata!A29:CV29)*Max_sunhours_base -> 635.5256876 | C32: =Var_a*EXP(Var_b*'Wine production'!B32+Var_c) -> 3309074.447 | D32: 3970 | E32: 7940 | F32: 27940 | G32: 39700 | H32: 11760 | I32: 83
A33: 30 | B33: =SUM(Rawdata!A30:CV30)*Max_sunhours_base -> 579.8089986 | C33: =Var_a*EXP(Var_b*'Wine production'!B33+Var_c) -> 2449290.538 | D33: 2939 | E33: 5878 | F33: 25878 | G33: 29390 | H33: 3512 | I33: 33
A34: 31 | B34: =SUM(Rawdata!A31:CV31)*Max_sunhours_base -> 559.4948774 | C34: =Var_a*EXP(Var_b*'Wine production'!B34+Var_c) -> 2194824.638 | D34: 2633 | E34: 5266 | F34: 25266 | G34: 26330 | H34: 1064 | I34: 18
A35: 32 | B35: =SUM(Rawdata!A32:CV32)*Max_sunhours_base -> 585.4309708 | C35: =Var_a*EXP(Var_b*'Wine production'!B35+Var_c) -> 2524787.893 | D35: 3029 | E35: 6058 | F35: 26058 | G35: 30290 | H35: 4232 | I35: 36
A36: 33 | B36: =SUM(Rawdata!A33:CV33)*Max_sunhours_base -> 645.59736 | C36: =Var_a*EXP(Var_b*'Wine production'!B36+Var_c) -> 3494029.162 | D36: =ROUNDDOWN(C36*(1-Spoilage)/Grapes_per_bottle,0) -> 4192 | E36: =D36*Prodcosts_per_bottle -> 8384 | F36: =E36+Vineyard_cost_base -> 28384 | G36: =D36*Price_per_bottle -> 41920 | H36: 13536 | I36: 91
A37: 34 | B37: =SUM(Rawdata!A34:CV34)*Max_sunhours_base -> 589.4056733 | C37: =Var_a*EXP(Var_b*'Wine production'!B37+Var_c) -> 2579564.149 | D37: 3095 | E37: 6190 | F37: 26190 | G37: 30950 | H37: 4760 | I37: 43
A38: 35 | B38: =SUM(Rawdata!A35:CV35)*Max_sunhours_base -> 585.5136767 | C38: =Var_a*EXP(Var_b*'Wine production'!B38+Var_c) -> 2525915.745 | D38: 3031 | E38: 6062 | F38: 26062 | G38: 30310 | H38: 4248 | I38: 37
A39: 36 | B39: =SUM(Rawdata!A36:CV36)*Max_sunhours_base -> 592.0082041 | C39: =Var_a*EXP(Var_b*'Wine production'!B39+Var_c) -> 2616072.419 | D39: 3139 | E39: 6278 | F39: 26278 | G39: 31390 | H39: 5112 | I39: 47
A40: 37 | B40: =SUM(Rawdata!A37:CV37)*Max_sunhours_base -> 598.1255014 | C40: =Var_a*EXP(Var_b*'Wine production'!B40+Var_c) -> 2703933.384 | D40: 3244 | E40: 6488 | F40: 26488 | G40: 32440 | H40: 5952 | I40: 53
A41: 38 | B41: =SUM(Rawdata!A38:CV38)*Max_sunhours_base -> 638.543528 | C41: =Var_a*EXP(Var_b*'Wine production'!B41+Var_c) -> 3363442.037 | D41: 4036 | E41: 8072 | F41: 28072 | G41: 40360 | H41: 12288 | I41: 87
A42: 39 | B42: =SUM(Rawdata!A39:CV39)*Max_sunhours_base -> 636.8107519 | C42: =Var_a*EXP(Var_b*'Wine production'!B42+Var_c) -> 3332117.121 | D42: 3998 | E42: 7996 | F42: 27996 | G42: 39980 | H42: 11984 | I42: 85
A43: 40 | B43: =SUM(Rawdata!A40:CV40)*Max_sunhours_base -> 576.4387224 | C43: =Var_a*EXP(Var_b*'Wine production'!B43+Var_c) -> 2405117.875 | D43: 2886 | E43: 5772 | F43: 25772 | G43: 28860 | H43: 3088 | I43: 29
A44: 41 | B44: =SUM(Rawdata!A41:CV41)*Max_sunhours_base -> 642.9578726 | C44: =Var_a*EXP(Var_b*'Wine production'!B44+Var_c) -> 3444581.187 | D44: 4133 | E44: 8266 | F44: 28266 | G44: 41330 | H44: 13064 | I44: 90
A45: 42 | B45: =SUM(Rawdata!A42:CV42)*Max_sunhours_base -> 620.8723642 | C45: =Var_a*EXP(Var_b*'Wine production'!B45+Var_c) -> 3057325.704 | D45: 3668 | E45: 7336 | F45: 27336 | G45: 36680 | H45: 9344 | I45: 69
A46: 43 | B46: =SUM(Rawdata!A43:CV43)*Max_sunhours_base -> 613.2495363 | C46: =Var_a*EXP(Var_b*'Wine production'!B46+Var_c) -> 2934031.19 | D46: 3520 | E46: 7040 | F46: 27040 | G46: 35200 | H46: 8160 | I46: 63
A47: 44 | B47: =SUM(Rawdata!A44:CV44)*Max_sunhours_base -> 569.2577318 | C47: =Var_a*EXP(Var_b*'Wine production'!B47+Var_c) -> 2313638.899 | D47: 2776 | E47: 5552 | F47: 25552 | G47: 27760 | H47: 2208 | I47: 24
A48: 45 | B48: =SUM(Rawdata!A45:CV45)*Max_sunhours_base -> 606.0025892 | C48: =Var_a*EXP(Var_b*'Wine production'!B48+Var_c) -> 2821429.851 | D48: 3385 | E48: 6770 | F48: 26770 | G48: 33850 | H48: 7080 | I48: 58
A49: 46 | B49: =SUM(Rawdata!A46:CV46)*Max_sunhours_base -> 624.3483615 | C49: =Var_a*EXP(Var_b*'Wine production'!B49+Var_c) -> 3115254.861 | D49: 3738 | E49: 7476 | F49: 27476 | G49: 37380 | H49: 9904 | I49: 75
A50: 47 | B50: =SUM(Rawdata!A47:CV47)*Max_sunhours_base -> 628.8010952 | C50: =Var_a*EXP(Var_b*'Wine production'!B50+Var_c) -> 3191068.227 | D50: 3829 | E50: 7658 | F50: 27658 | G50: 38290 | H50: 10632 | I50: 81
A51: 48 | B51: =SUM(Rawdata!A48:CV48)*Max_sunhours_base -> 527.1011819 | C51: =Var_a*EXP(Var_b*'Wine production'!B51+Var_c) -> 1842597.38 | D51: 2211 | E51: 4422 | F51: 24422 | G51: 22110 | H51: -2312 | I51: 2
A52: 49 | B52: =SUM(Rawdata!A49:CV49)*Max_sunhours_base -> 621.3672049 | C52: =Var_a*EXP(Var_b*'Wine production'!B52+Var_c) -> 3065506.23 | D52: 3678 | E52: 7356 | F52: 27356 | G52: 36780 | H52: 9424 | I52: 71
A53: 50 | B53: =SUM(Rawdata!A50:CV50)*Max_sunhours_base -> 687.5733183 | C53: =Var_a*EXP(Var_b*'Wine production'!B53+Var_c) -> 4382966.301 | D53: 5259 | E53: 10518 | F53: 30518 | G53: 52590 | H53: 22072 | I53: 99
A54: 51 | B54: =SUM(Rawdata!A51:CV51)*Max_sunhours_base -> 653.7833642 | C54: =Var_a*EXP(Var_b*'Wine production'!B54+Var_c) -> 3651945.286 | D54: 4382 | E54: 8764 | F54: 28764 | G54: 43820 | H54: 15056 | I54: 93
A55: 52 | B55: =SUM(Rawdata!A52:CV52)*Max_sunhours_base -> 626.8821418 | C55: =Var_a*EXP(Var_b*'Wine production'!B55+Var_c) -> 3158172.001 | D55: 3789 | E55: 7578 | F55: 27578 | G55: 37890 | H55: 10312 | I55: 78
A56: 53 | B56: =SUM(Rawdata!A53:CV53)*Max_sunhours_base -> 563.9513703 | C56: =Var_a*EXP(Var_b*'Wine production'!B56+Var_c) -> 2248283.899 | D56: 2697 | E56: 5394 | F56: 25394 | G56: 26970 | H56: 1576 | I56: 19
A57: 54 | B57: =SUM(Rawdata!A54:CV54)*Max_sunhours_base -> 567.7157526 | C57: =Var_a*EXP(Var_b*'Wine production'!B57+Var_c) -> 2294453.935 | D57: 2753 | E57: 5506 | F57: 25506 | G57: 27530 | H57: 2024 | I57: 22
A58: 55 | B58: =SUM(Rawdata!A55:CV55)*Max_sunhours_base -> 662.004101 | C58: =Var_a*EXP(Var_b*'Wine production'!B58+Var_c) -> 3817714.554 | D58: 4581 | E58: 9162 | F58: 29162 | G58: 45810 | H58: 16648 | I58: 97
A59: 56 | B59: =SUM(Rawdata!A56:CV56)*Max_sunhours_base -> 546.165867 | C59: =Var_a*EXP(Var_b*'Wine production'!B59+Var_c) -> 2042399.814 | D59: 2450 | E59: 4900 | F59: 24900 | G59: 24500 | H59: -400 | I59: 11
A60: 57 | B60: =SUM(Rawdata!A57:CV57)*Max_sunhours_base -> 647.5296895 | C60: =Var_a*EXP(Var_b*'Wine production'!B60+Var_c) -> 3530678.766 | D60: 4236 | E60: 8472 | F60: 28472 | G60: 42360 | H60: 13888 | I60: 92
A61: 58 | B61: =SUM(Rawdata!A58:CV58)*Max_sunhours_base -> 551.4845701 | C61: =Var_a*EXP(Var_b*'Wine production'!B61+Var_c) -> 2101910.079 | D61: 2522 | E61: 5044 | F61: 25044 | G61: 25220 | H61: 176 | I61: 13
A62: 59 | B62: =SUM(Rawdata!A59:CV59)*Max_sunhours_base -> 573.6523829 | C62: =Var_a*EXP(Var_b*'Wine production'!B62+Var_c) -> 2369200.797 | D62: 2843 | E62: 5686 | F62: 25686 | G62: 28430 | H62: 2744 | I62: 27
A63: 60 | B63: =SUM(Rawdata!A60:CV60)*Max_sunhours_base -> 621.6772144 | C63: =Var_a*EXP(Var_b*'Wine production'!B63+Var_c) -> 3070642.343 | D63: 3684 | E63: 7368 | F63: 27368 | G63: 36840 | H63: 9472 | I63: 72
A64: 61 | B64: =SUM(Rawdata!A61:CV61)*Max_sunhours_base -> 573.4610975 | C64: =Var_a*EXP(Var_b*'Wine production'!B64+Var_c) -> 2366754.815 | D64: 2840 | E64: 5680 | F64: 25680 | G64: 28400 | H64: 2720 | I64: 26
A65: 62 | B65: =SUM(Rawdata!A62:CV62)*Max_sunhours_base -> 557.8205688 | C65: =Var_a*EXP(Var_b*'Wine production'!B65+Var_c) -> 2175070.082 | D65: 2610 | E65: 5220 | F65: 25220 | G65: 26100 | H65: 880 | I65: 14
A66: 63 | B66: =SUM(Rawdata!A63:CV63)*Max_sunhours_base -> 621.9790661 | C66: =Var_a*EXP(Var_b*'Wine production'!B66+Var_c) -> 3075651.569 | D66: 3690 | E66: 7380 | F66: 27380 | G66: 36900 | H66: 9520 | I66: 74
A67: 64 | B67: =SUM(Rawdata!A64:CV64)*Max_sunhours_base -> 611.6987783 | C67: =Var_a*EXP(Var_b*'Wine production'!B67+Var_c) -> 2909563.928 | D67: 3491 | E67: 6982 | F67: 26982 | G67: 34910 | H67: 7928 | I67: 62
A68: 65 | B68: =SUM(Rawdata!A65:CV65)*Max_sunhours_base -> 637.7868671 | C68: =Var_a*EXP(Var_b*'Wine production'!B68+Var_c) -> 3349727.155 | D68: =ROUNDDOWN(C68*(1-Spoilage)/Grapes_per_bottle,0) -> 4019 | E68: =D68*Prodcosts_per_bottle -> 8038 | F68: =E68+Vineyard_cost_base -> 28038 | G68: =D68*Price_per_bottle -> 40190 | H68: 12152 | I68: 86
A69: 66 | B69: =SUM(Rawdata!A66:CV66)*Max_sunhours_base -> 530.0807651 | C69: =Var_a*EXP(Var_b*'Wine production'!B69+Var_c) -> 1872484.101 | D69: 2246 | E69: 4492 | F69: 24492 | G69: 22460 | H69: =G69-F69 -> -2032 | I69: =RANK(H69,$H$4:$H$103,1) -> 3
A70: =A69+1 -> 67 | B70: =SUM(Rawdata!A67:CV67)*Max_sunhours_base -> 609.5047798 | C70: =Var_a*EXP(Var_b*'Wine production'!B70+Var_c) -> 2875295.999 | D70: 3450 | E70: 6900 | F70: 26900 | G70: 34500 | H70: 7600 | I70: 60
A71: 68 | B71: =SUM(Rawdata!A68:CV68)*Max_sunhours_base -> 518.7322826 | C71: =Var_a*EXP(Var_b*'Wine production'!B71+Var_c) -> 1761180.178 | D71: 2113 | E71: 4226 | F71: 24226 | G71: 21130 | H71: -3096 | I71: 1
A72: 69 | B72: =SUM(Rawdata!A69:CV69)*Max_sunhours_base -> 532.9117963 | C72: =Var_a*EXP(Var_b*'Wine production'!B72+Var_c) -> 1901329.758 | D72: 2281 | E72: 4562 | F72: 24562 | G72: 22810 | H72: -1752 | I72: 4
A73: 70 | B73: =SUM(Rawdata!A70:CV70)*Max_sunhours_base -> 604.0559064 | C73: =Var_a*EXP(Var_b*'Wine production'!B73+Var_c) -> 2791926.079 | D73: 3350 | E73: 6700 | F73: 26700 | G73: 33500 | H73: 6800 | I73: 56
A74: 71 | B74: =SUM(Rawdata!A71:CV71)*Max_sunhours_base -> 566.6772254 | C74: =Var_a*EXP(Var_b*'Wine production'!B74+Var_c) -> 2281622.542 | D74: 2737 | E74: 5474 | F74: 25474 | G74: 27370 | H74: 1896 | I74: 21
A75: 72 | B75: =SUM(Rawdata!A72:CV72)*Max_sunhours_base -> 595.5850404 | C75: =Var_a*EXP(Var_b*'Wine production'!B75+Var_c) -> 2667092.778 | D75: 3200 | E75: 6400 | F75: 26400 | G75: 32000 | H75: 5600 | I75: 52
A76: 73 | B76: =SUM(Rawdata!A73:CV73)*Max_sunhours_base -> 640.7834113 | C76: =Var_a*EXP(Var_b*'Wine production'!B76+Var_c) -> 3404371.139 | D76: 4085 | E76: 8170 | F76: 28170 | G76: 40850 | H76: 12680 | I76: 89
A77: 74 | B77: =SUM(Rawdata!A74:CV74)*Max_sunhours_base -> 534.2706138 | C77: =Var_a*EXP(Var_b*'Wine production'!B77+Var_c) -> 1915332.293 | D77: 2298 | E77: 4596 | F77: 24596 | G77: 22980 | H77: -1616 | I77: 6
A78: 75 | B78: =SUM(Rawdata!A75:CV75)*Max_sunhours_base -> 598.3838833 | C78: =Var_a*EXP(Var_b*'Wine production'!B78+Var_c) -> 2707708.713 | D78: 3249 | E78: 6498 | F78: 26498 | G78: 32490 | H78: 5992 | I78: 54
A79: 76 | B79: =SUM(Rawdata!A76:CV76)*Max_sunhours_base -> 654.9784203 | C79: =Var_a*EXP(Var_b*'Wine production'!B79+Var_c) -> 3675588.602 | D79: 4410 | E79: 8820 | F79: 28820 | G79: 44100 | H79: 15280 | I79: 96
A80: 77 | B80: =SUM(Rawdata!A77:CV77)*Max_sunhours_base -> 543.5350916 | C80: =Var_a*EXP(Var_b*'Wine production'!B80+Var_c) -> 2013590.222 | D80: 2416 | E80: 4832 | F80: 24832 | G80: 24160 | H80: -672 | I80: 10
A81: 78 | B81: =SUM(Rawdata!A78:CV78)*Max_sunhours_base -> 640.7248111 | C81: =Var_a*EXP(Var_b*'Wine production'!B81+Var_c) -> 3403294.027 | D81: 4083 | E81: 8166 | F81: 28166 | G81: 40830 | H81: 12664 | I81: 88
A82: 79 | B82: =SUM(Rawdata!A79:CV79)*Max_sunhours_base -> 618.0139189 | C82: =Var_a*EXP(Var_b*'Wine production'!B82+Var_c) -> 3010496.382 | D82: 3612 | E82: 7224 | F82: 27224 | G82: 36120 | H82: 8896 | I82: 66
A83: 80 | B83: =SUM(Rawdata!A80:CV80)*Max_sunhours_base -> 621.0505799 | C83: =Var_a*EXP(Var_b*'Wine production'!B83+Var_c) -> 3060269.382 | D83: 3672 | E83: 7344 | F83: 27344 | G83: 36720 | H83: 9376 | I83: 70
A84: 81 | B84: =SUM(Rawdata!A81:CV81)*Max_sunhours_base -> 625.8434885 | C84: =Var_a*EXP(Var_b*'Wine production'!B84+Var_c) -> 3140508.257 | D84: 3768 | E84: 7536 | F84: 27536 | G84: 37680 | H84: 10144 | I84: 77
A85: 82 | B85: =SUM(Rawdata!A82:CV82)*Max_sunhours_base -> 619.4308398 | C85: =Var_a*EXP(Var_b*'Wine production'!B85+Var_c) -> 3033619.159 | D85: 3640 | E85: 7280 | F85: 27280 | G85: 36400 | H85: 9120 | I85: 67
A86: 83 | B86: =SUM(Rawdata!A83:CV83)*Max_sunhours_base -> 541.5961028 | C86: =Var_a*EXP(Var_b*'Wine production'!B86+Var_c) -> 1992616.839 | D86: 2391 | E86: 4782 | F86: 24782 | G86: 23910 | H86: -872 | I86: 8
A87: 84 | B87: =SUM(Rawdata!A84:CV84)*Max_sunhours_base -> 625.0846955 | C87: =Var_a*EXP(Var_b*'Wine production'!B87+Var_c) -> 3127666.407 | D87: 3753 | E87: 7506 | F87: 27506 | G87: 37530 | H87: 10024 | I87: 76
A88: 85 | B88: =SUM(Rawdata!A85:CV85)*Max_sunhours_base -> 627.2869669 | C88: =Var_a*EXP(Var_b*'Wine production'!B88+Var_c) -> 3165083.493 | D88: 3798 | E88: 7596 | F88: 27596 | G88: 37980 | H88: 10384 | I88: 79
A89: 86 | B89: =SUM(Rawdata!A86:CV86)*Max_sunhours_base -> 615.3040253 | C89: =Var_a*EXP(Var_b*'Wine production'!B89+Var_c) -> 2966763.271 | D89: 3560 | E89: 7120 | F89: 27120 | G89: 35600 | H89: 8480 | I89: 64
A90: 87 | B90: =SUM(Rawdata!A87:CV87)*Max_sunhours_base -> 558.8357895 | C90: =Var_a*EXP(Var_b*'Wine production'!B90+Var_c) -> 2187026.978 | D90: 2624 | E90: 5248 | F90: 25248 | G90: 26240 | H90: 992 | I90: 16
A91: 88 | B91: =SUM(Rawdata!A88:CV88)*Max_sunhours_base -> 582.7817236 | C91: =Var_a*EXP(Var_b*'Wine production'!B91+Var_c) -> 2488925.575 | D91: 2986 | E91: 5972 | F91: 25972 | G91: 29860 | H91: 3888 | I91: 34
A92: 89 | B92: =SUM(Rawdata!A89:CV89)*Max_sunhours_base -> 677.2899654 | C92: =Var_a*EXP(Var_b*'Wine production'!B92+Var_c) -> 4146213.995 | D92: 4975 | E92: 9950 | F92: 29950 | G92: 49750 | H92: 19800 | I92: 98
A93: 90 | B93: =SUM(Rawdata!A90:CV90)*Max_sunhours_base -> 569.4593202 | C93: =Var_a*EXP(Var_b*'Wine production'!B93+Var_c) -> 2316158.845 | D93: 2779 | E93: 5558 | F93: 25558 | G93: 27790 | H93: 2232 | I93: 25
A94: 91 | B94: =SUM(Rawdata!A91:CV91)*Max_sunhours_base -> 628.0919675 | C94: =Var_a*EXP(Var_b*'Wine production'!B94+Var_c) -> 3178872.069 | D94: 3814 | E94: 7628 | F94: 27628 | G94: 38140 | H94: 10512 | I94: 80
A95: 92 | B95: =SUM(Rawdata!A92:CV92)*Max_sunhours_base -> 589.2321019 | C95: =Var_a*EXP(Var_b*'Wine production'!B95+Var_c) -> 2577147.493 | D95: 3092 | E95: 6184 | F95: 26184 | G95: 30920 | H95: 4736 | I95: 42
A96: 93 | B96: =SUM(Rawdata!A93:CV93)*Max_sunhours_base -> 590.2526751 | C96: =Var_a*EXP(Var_b*'Wine production'!B96+Var_c) -> 2591389.607 | D96: 3109 | E96: 6218 | F96: 26218 | G96: 31090 | H96: 4872 | I96: 46
A97: 94 | B97: =SUM(Rawdata!A94:CV94)*Max_sunhours_base -> 611.6153522 | C97: =Var_a*EXP(Var_b*'Wine production'!B97+Var_c) -> 2908253.461 | D97: 3489 | E97: 6978 | F97: 26978 | G97: 34890 | H97: 7912 | I97: 61
A98: 95 | B98: =SUM(Rawdata!A95:CV95)*Max_sunhours_base -> 573.8742325 | C98: =Var_a*EXP(Var_b*'Wine production'!B98+Var_c) -> 2372040.772 | D98: 2846 | E98: 5692 | F98: 25692 | G98: 28460 | H98: 2768 | I98: 28
A99: 96 | B99: =SUM(Rawdata!A96:CV96)*Max_sunhours_base -> 568.2989952 | C99: =Var_a*EXP(Var_b*'Wine production'!B99+Var_c) -> 2301691.732 | D99: 2762 | E99: 5524 | F99: 25524 | G99: 27620 | H99: 2096 | I99: 23
A100: 97 | B100: =SUM(Rawdata!A97:CV97)*Max_sunhours_base -> 534.4253306 | C100: =Var_a*EXP(Var_b*'Wine production'!B100+Var_c) -> 1916933.165 | D100: =ROUNDDOWN(C100*(1-Spoilage)/Grapes_per_bottle,0) -> 2300 | E100: =D100*Prodcosts_per_bottle -> 4600 | F100: =E100+Vineyard_cost_base -> 24600 | G100: 23000 | H100: -1600 | I100: 7
A101: 98 | B101: =SUM(Rawdata!A98:CV98)*Max_sunhours_base -> 603.2441816 | C101: =Var_a*EXP(Var_b*'Wine production'!B101+Var_c) -> 2779714.973 | D101: =ROUNDDOWN(C101*(1-Spoilage)/Grapes_per_bottle,0) -> 3335 | E101: =D101*Prodcosts_per_bottle -> 6670 | F101: =E101+Vineyard_cost_base -> 26670 | G101: 33350 | H101: 6680 | I101: 55
A102: 99 | B102: =SUM(Rawdata!A99:CV99)*Max_sunhours_base -> 589.9376067 | C102: =Var_a*EXP(Var_b*'Wine production'!B102+Var_c) -> 2586984.445 | D102: =ROUNDDOWN(C102*(1-Spoilage)/Grapes_per_bottle,0) -> 3104 | E102: =D102*Prodcosts_per_bottle -> 6208 | F102: =E102+Vineyard_cost_base -> 26208 | G102: 31040 | H102: 4832 | I102: 44
A103: 100 | B103: =SUM(Rawdata!A100:CV100)*Max_sunhours_base -> 594.2790857 | C103: =Var_a*EXP(Var_b*'Wine production'!B103+Var_c) -> 2648350.192 | D103: =ROUNDDOWN(C103*(1-Spoilage)/Grapes_per_bottle,0) -> 3178 | E103: =D103*Prodcosts_per_bottle -> 6356 | F103: =E103+Vineyard_cost_base -> 26356 | G103: 31780 | H103: 5424 | I103: 51
A105: Total | B105: =SUM(B4:B103) -> 59805.7958
A106: Expected | B106: =Rawdata!CY6*Rawdata!CY2*Max_sunhours_base -> 59805.7958
A107: Check | B107: =IF(TRUNC(B105)=TRUNC(B106),"OK","CHECK") -> OK

Sheet Chart profit
A1: This tab is used to produce a chart showing the distribution of profit
A4: Rank | B4: Simulation | C4: Profit/(loss)
A5: 1 | B5: =MATCH(A5,'Wine production'!I4:I103,0) -> 68 | C5: =OFFSET('Wine production'!$H$4,'Chart profit'!B5-1,0) -> -3096
A6: 2 | B6: 48 | C6: =OFFSET('Wine production'!$H$4,'Chart profit'!B6-1,0) -> -2312
A7: 3 | B7: 66 | C7: =OFFSET('Wine production'!$H$4,'Chart profit'!B7-1,0) -> -2032
A8: 4 | B8: 69 | C8: =OFFSET('Wine production'!$H$4,'Chart profit'!B8-1,0) -> -1752
A9: 5 | B9: 12 | C9: =OFFSET('Wine production'!$H$4,'Chart profit'!B9-1,0) -> -1696
A10: 6 | B10: 74 | C10: =OFFSET('Wine production'!$H$4,'Chart profit'!B10-1,0) -> -1616
A11: 7 | B11: 97 | C11: =OFFSET('Wine production'!$H$4,'Chart profit'!B11-1,0) -> -1600
A12: 8 | B12: 83 | C12: =OFFSET('Wine production'!$H$4,'Chart profit'!B12-1,0) -> -872
A13: 9 | B13: 16 | C13: =OFFSET('Wine production'!$H$4,'Chart profit'!B13-1,0) -> -696
A14: 10 | B14: 77 | C14: =OFFSET('Wine production'!$H$4,'Chart profit'!B14-1,0) -> -672
A15: 11 | B15: 56 | C15: =OFFSET('Wine production'!$H$4,'Chart profit'!B15-1,0) -> -400
A16: 12 | B16: 7 | C16: =OFFSET('Wine production'!$H$4,'Chart profit'!B16-1,0) -> -280
A17: 13 | B17: 58 | C17: =OFFSET('Wine production'!$H$4,'Chart profit'!B17-1,0) -> 176
A18: 14 | B18: 62 | C18: =OFFSET('Wine production'!$H$4,'Chart profit'!B18-1,0) -> 880
A19: 15 | B19: 28 | C19: =OFFSET('Wine production'!$H$4,'Chart profit'!B19-1,0) -> 968
A20: 16 | B20: 87 | C20: =OFFSET('Wine production'!$H$4,'Chart profit'!B20-1,0) -> 992
A21: 17 | B21: 13 | C21: =OFFSET('Wine production'!$H$4,'Chart profit'!B21-1,0) -> 1048
A22: 18 | B22: 31 | C22: =OFFSET('Wine production'!$H$4,'Chart profit'!B22-1,0) -> 1064
A23: 19 | B23: 53 | C23: =OFFSET('Wine production'!$H$4,'Chart profit'!B23-1,0) -> 1576
A24: 20 | B24: 25 | C24: =OFFSET('Wine production'!$H$4,'Chart profit'!B24-1,0) -> 1880
A25: 21 | B25: 71 | C25: =OFFSET('Wine production'!$H$4,'Chart profit'!B25-1,0) -> 1896
A26: 22 | B26: 54 | C26: =OFFSET('Wine production'!$H$4,'Chart profit'!B26-1,0) -> 2024
A27: 23 | B27: 96 | C27: =OFFSET('Wine production'!$H$4,'Chart profit'!B27-1,0) -> 2096
A28: 24 | B28: 44 | C28: =OFFSET('Wine production'!$H$4,'Chart profit'!B28-1,0) -> 2208
A29: 25 | B29: 90 | C29: =OFFSET('Wine production'!$H$4,'Chart profit'!B29-1,0) -> 2232
A30: 26 | B30: 61 | C30: =OFFSET('Wine production'!$H$4,'Chart profit'!B30-1,0) -> 2720
A31: 27 | B31: 59 | C31: =OFFSET('Wine production'!$H$4,'Chart profit'!B31-1,0) -> 2744
A32: 28 | B32: 95 | C32: =OFFSET('Wine production'!$H$4,'Chart profit'!B32-1,0) -> 2768
A33: 29 | B33: 40 | C33: =OFFSET('Wine production'!$H$4,'Chart profit'!B33-1,0) -> 3088
A34: 30 | B34: 3 | C34: =OFFSET('Wine production'!$H$4,'Chart profit'!B34-1,0) -> 3192
A35: 31 | B35: 10 | C35: =OFFSET('Wine production'!$H$4,'Chart profit'!B35-1,0) -> 3304
A36: 32 | B36: 18 | C36: =OFFSET('Wine production'!$H$4,'Chart profit'!B36-1,0) -> 3376
A37: 33 | B37: 30 | C37: =OFFSET('Wine production'!$H$4,'Chart profit'!B37-1,0) -> 3512
A38: 34 | B38: 88 | C38: =OFFSET('Wine production'!$H$4,'Chart profit'!B38-1,0) -> 3888
A39: 35 | B39: 24 | C39: =OFFSET('Wine production'!$H$4,'Chart profit'!B39-1,0) -> 4224
A40: 36 | B40: 32 | C40: =OFFSET('Wine production'!$H$4,'Chart profit'!B40-1,0) -> 4232
A41: 37 | B41: 35 | C41: =OFFSET('Wine production'!$H$4,'Chart profit'!B41-1,0) -> 4248
A42: 38 | B42: 2 | C42: =OFFSET('Wine production'!$H$4,'Chart profit'!B42-1,0) -> 4376
A43: 39 | B43: 11 | C43: =OFFSET('Wine production'!$H$4,'Chart profit'!B43-1,0) -> 4456
A44: 40 | B44: 4 | C44: =OFFSET('Wine production'!$H$4,'Chart profit'!B44-1,0) -> 4560
A45: 41 | B45: 22 | C45: =OFFSET('Wine production'!$H$4,'Chart profit'!B45-1,0) -> 4720
A46: 42 | B46: 92 | C46: =OFFSET('Wine production'!$H$4,'Chart profit'!B46-1,0) -> 4736
A47: 43 | B47: 34 | C47: =OFFSET('Wine production'!$H$4,'Chart profit'!B47-1,0) -> 4760
A48: 44 | B48: 99 | C48: =OFFSET('Wine production'!$H$4,'Chart profit'!B48-1,0) -> 4832
A49: 45 | B49: 20 | C49: =OFFSET('Wine production'!$H$4,'Chart profit'!B49-1,0) -> 4848
A50: 46 | B50: 93 | C50: =OFFSET('Wine production'!$H$4,'Chart profit'!B50-1,0) -> 4872
A51: 47 | B51: 36 | C51: =OFFSET('Wine production'!$H$4,'Chart profit'!B51-1,0) -> 5112
A52: 48 | B52: 14 | C52: =OFFSET('Wine production'!$H$4,'Chart profit'!B52-1,0) -> 5192
A53: 49 | B53: 27 | C53: =OFFSET('Wine production'!$H$4,'Chart profit'!B53-1,0) -> 5208
A54: 50 | B54: 8 | C54: =OFFSET('Wine production'!$H$4,'Chart profit'!B54-1,0) -> 5352
A55: 51 | B55: 100 | C55: =OFFSET('Wine production'!$H$4,'Chart profit'!B55-1,0) -> 5424
A56: 52 | B56: 72 | C56: =OFFSET('Wine production'!$H$4,'Chart profit'!B56-1,0) -> 5600
A57: 53 | B57: 37 | C57: =OFFSET('Wine production'!$H$4,'Chart profit'!B57-1,0) -> 5952
A58: 54 | B58: 75 | C58: =OFFSET('Wine production'!$H$4,'Chart profit'!B58-1,0) -> 5992
A59: 55 | B59: 98 | C59: =OFFSET('Wine production'!$H$4,'Chart profit'!B59-1,0) -> 6680
A60: 56 | B60: 70 | C60: =OFFSET('Wine production'!$H$4,'Chart profit'!B60-1,0) -> 6800
A61: 57 | B61: 21 | C61: =OFFSET('Wine production'!$H$4,'Chart profit'!B61-1,0) -> 6840
A62: 58 | B62: 45 | C62: =OFFSET('Wine production'!$H$4,'Chart profit'!B62-1,0) -> 7080
A63: 59 | B63: 6 | C63: =OFFSET('Wine production'!$H$4,'Chart profit'!B63-1,0) -> 7112
A64: 60 | B64: 67 | C64: =OFFSET('Wine production'!$H$4,'Chart profit'!B64-1,0) -> 7600
A65: 61 | B65: 94 | C65: =OFFSET('Wine production'!$H$4,'Chart profit'!B65-1,0) -> 7912
A66: 62 | B66: 64 | C66: =OFFSET('Wine production'!$H$4,'Chart profit'!B66-1,0) -> 7928
A67: 63 | B67: 43 | C67: =OFFSET('Wine production'!$H$4,'Chart profit'!B67-1,0) -> 8160
A68: 64 | B68: 9 | C68: =OFFSET('Wine production'!$H$4,'Chart profit'!B68-1,0) -> 8480
A69: 65 | B69: 86 | C69: =OFFSET('Wine production'!$H$4,'Chart profit'!B69-1,0) -> 8480
A70: 66 | B70: 79 | C70: =OFFSET('Wine production'!$H$4,'Chart profit'!B70-1,0) -> 8896
A71: 67 | B71: 82 | C71: =OFFSET('Wine production'!$H$4,'Chart profit'!B71-1,0) -> 9120
A72: 68 | B72: 15 | C72: =OFFSET('Wine production'!$H$4,'Chart profit'!B72-1,0) -> 9312
A73: 69 | B73: 42 | C73: =OFFSET('Wine production'!$H$4,'Chart profit'!B73-1,0) -> 9344
A74: 70 | B74: 80 | C74: =OFFSET('Wine production'!$H$4,'Chart profit'!B74-1,0) -> 9376
A75: 71 | B75: 49 | C75: =OFFSET('Wine production'!$H$4,'Chart profit'!B75-1,0) -> 9424
A76: 72 | B76: 60 | C76: =OFFSET('Wine production'!$H$4,'Chart profit'!B76-1,0) -> 9472
A77: 73 | B77: 5 | C77: =OFFSET('Wine production'!$H$4,'Chart profit'!B77-1,0) -> 9512
A78: 74 | B78: 63 | C78: =OFFSET('Wine production'!$H$4,'Chart profit'!B78-1,0) -> 9520
A79: 75 | B79: 46 | C79: =OFFSET('Wine production'!$H$4,'Chart profit'!B79-1,0) -> 9904
A80: 76 | B80: 84 | C80: =OFFSET('Wine production'!$H$4,'Chart profit'!B80-1,0) -> 10024
A81: 77 | B81: 81 | C81: =OFFSET('Wine production'!$H$4,'Chart profit'!B81-1,0) -> 10144
A82: 78 | B82: 52 | C82: =OFFSET('Wine production'!$H$4,'Chart profit'!B82-1,0) -> 10312
A83: 79 | B83: 85 | C83: =OFFSET('Wine production'!$H$4,'Chart profit'!B83-1,0) -> 10384
A84: 80 | B84: 91 | C84: =OFFSET('Wine production'!$H$4,'Chart profit'!B84-1,0) -> 10512
A85: 81 | B85: 47 | C85: =OFFSET('Wine production'!$H$4,'Chart profit'!B85-1,0) -> 10632
A86: 82 | B86: 19 | C86: =OFFSET('Wine production'!$H$4,'Chart profit'!B86-1,0) -> 11656
A87: 83 | B87: 29 | C87: =OFFSET('Wine production'!$H$4,'Chart profit'!B87-1,0) -> 11760
A88: 84 | B88: 17 | C88: =OFFSET('Wine production'!$H$4,'Chart profit'!B88-1,0) -> 11880
A89: 85 | B89: 39 | C89: =OFFSET('Wine production'!$H$4,'Chart profit'!B89-1,0) -> 11984
A90: 86 | B90: 65 | C90: =OFFSET('Wine production'!$H$4,'Chart profit'!B90-1,0) -> 12152
A91: 87 | B91: 38 | C91: =OFFSET('Wine production'!$H$4,'Chart profit'!B91-1,0) -> 12288
A92: 88 | B92: 78 | C92: =OFFSET('Wine production'!$H$4,'Chart profit'!B92-1,0) -> 12664
A93: 89 | B93: 73 | C93: =OFFSET('Wine production'!$H$4,'Chart profit'!B93-1,0) -> 12680
A94: 90 | B94: 41 | C94: =OFFSET('Wine production'!$H$4,'Chart profit'!B94-1,0) -> 13064
A95: 91 | B95: 33 | C95: =OFFSET('Wine production'!$H$4,'Chart profit'!B95-1,0) -> 13536
A96: 92 | B96: 57 | C96: =OFFSET('Wine production'!$H$4,'Chart profit'!B96-1,0) -> 13888
A97: 93 | B97: 51 | C97: =OFFSET('Wine production'!$H$4,'Chart profit'!B97-1,0) -> 15056
A98: 94 | B98: 23 | C98: =OFFSET('Wine production'!$H$4,'Chart profit'!B98-1,0) -> 15064
A99: 95 | B99: 1 | C99: =OFFSET('Wine production'!$H$4,'Chart profit'!B99-1,0) -> 15160
A100: 96 | B100: 76 | C100: =OFFSET('Wine production'!$H$4,'Chart profit'!B100-1,0) -> 15280
A101: 97 | B101: 55 | C101: =OFFSET('Wine production'!$H$4,'Chart profit'!B101-1,0) -> 16648
A102: 98 | B102: 89 | C102: =OFFSET('Wine production'!$H$4,'Chart profit'!B102-1,0) -> 19800
A103: 99 | B103: 50 | C103: =OFFSET('Wine production'!$H$4,'Chart profit'!B103-1,0) -> 22072
A104: 100 | B104: 26 | C104: =OFFSET('Wine production'!$H$4,'Chart profit'!B104-1,0) -> 23288

Sheet Target price
A2: Year
A3: Simulation | B3: Total hours of sun | C3: Grape production | D3: Wine bottles produced | E3: Production costs | F3: Total costs | G3: Total Revenue | H3: Profit/(loss) | J3: Profit Statistics
A4: 1 | B4: =SUM(Rawdata!A1:CV1)*Parameters!$B$17 -> 654.3560769 | C4: =Var_a*EXP(Var_b*'Target price'!B4+Var_c) -> 3663256.952 | D4: =ROUNDDOWN(C4*(1-Spoilage)/Grapes_per_bottle,0) -> 4395 | E4: =D4*Prodcosts_per_bottle -> 8790 | F4: =E4+Vineyard_cost_base -> 28790 | G4: =D4*Target_price_per_bottle -> 50389.62139 | H4: =G4-F4 -> 21599.62139
A5: =A4+1 -> 2 | B5: =SUM(Rawdata!A2:CV2)*Parameters!$B$17 -> 586.4914225 | C5: =Var_a*EXP(Var_b*'Target price'!B5+Var_c) -> 2539287.413 | D5: 3047 | E5: 6094 | F5: 26094 | G5: 34934.51112 | H5: =G5-F5 -> 8840.511122 | J5: Average expected profit | L5: =AVERAGE($H$4:$H$103) -> 11332.03975 | N5: Theoretical expected profit
A6: =A5+1 -> 3 | B6: =SUM(Rawdata!A3:CV3)*Parameters!$B$17 -> 577.3109775 | C6: =Var_a*EXP(Var_b*'Target price'!B6+Var_c) -> 2416473.129 | D6: 2899 | E6: 5798 | F6: 25798 | G6: 33237.65925 | H6: 7439.659252 | J6: Maximum profit | L6: =MAX($H$4:$H$103) -> 31216.28017 | O6: Total hours of sun | P6: =Max_sunhours_base/2*100 -> 600
A7: 4 | B7: =SUM(Rawdata!A4:CV4)*Parameters!$B$17 -> 587.8932555 | C7: =Var_a*EXP(Var_b*'Target price'!B7+Var_c) -> 2558582.499 | D7: 3070 | E7: 6140 | F7: 26140 | G7: 35198.21107 | H7: 9058.211074 | J7: Maximum loss | L7: =MIN($H$4:$H$103) -> 0 | O7: Grape production | P7: =Var_a*EXP(Var_b*P6+Var_c) -> 2731442.38
A8: 5 | B8: =SUM(Rawdata!A5:CV5)*Parameters!$B$17 -> 621.9116392 | C8: =Var_a*EXP(Var_b*'Target price'!B8+Var_c) -> 3074531.911 | D8: 3689 | E8: 7378 | F8: 27378 | G8: 42295.17937 | H8: 14917.17937 | J8: Probability of making a loss | L8: =COUNTIF($H$4:$H$103,"<0")/COUNT(H4:H103) -> 0 | O8: Wine bottles produced | P8: =ROUNDDOWN(P7*(1-Spoilage)/Grapes_per_bottle,0) -> 3277
A9: 6 | B9: =SUM(Rawdata!A6:CV6)*Parameters!$B$17 -> 606.2299169 | C9: =Var_a*EXP(Var_b*'Target price'!B9+Var_c) -> 2824895.479 | D9: 3389 | E9: 6778 | F9: 26778 | G9: 38855.61477 | H9: 12077.61477 | O9: Production costs | P9: =P8*Prodcosts_per_bottle -> 6554
A10: 7 | B10: =SUM(Rawdata!A7:CV7)*Parameters!$B$17 -> 547.2424415 | C10: =Var_a*EXP(Var_b*'Target price'!B10+Var_c) -> 2054307.891 | D10: 2465 | E10: 4930 | F10: 24930 | G10: 28261.7558 | H10: 3331.755797 | O10: Total costs | P10: =P9+Vineyard_cost_base -> 26554
A11: 8 | B11: =SUM(Rawdata!A8:CV8)*Parameters!$B$17 -> 593.7655224 | C11: =Var_a*EXP(Var_b*'Target price'!B11+Var_c) -> 2641015.85 | D11: 3169 | E11: 6338 | F11: 26338 | G11: 36333.26739 | H11: 9995.267392 | J11: Goal seek | O11: Total Revenue | P11: =P8*Target_price_per_bottle -> 37571.51065
A12: 9 | B12: =SUM(Rawdata!A9:CV9)*Parameters!$B$17 -> 615.340961 | C12: =Var_a*EXP(Var_b*'Target price'!B12+Var_c) -> 2967355.059 | D12: 3560 | E12: 7120 | F12: 27120 | G12: 40816.16659 | H12: 13696.16659 | O12: Profit/(loss) | P12: =P11-P10 -> 11017.51065
A13: 10 | B13: =SUM(Rawdata!A10:CV10)*Parameters!$B$17 -> 578.1588965 | C13: =Var_a*EXP(Var_b*'Target price'!B13+Var_c) -> 2427562.956 | D13: 2913 | E13: 5826 | F13: 25826 | G13: 33398.17227 | H13: 7572.172267 | J13: Target maximum loss | L13: 0
A14: 11 | B14: =SUM(Rawdata!A11:CV11)*Parameters!$B$17 -> 587.1017099 | C14: =Var_a*EXP(Var_b*'Target price'!B14+Var_c) -> 2547669.571 | D14: 3057 | E14: 6114 | F14: 26114 | G14: 35049.16327 | H14: 8935.163275 | J14: By changing | L14: Target_price_per_bottle
A15: 12 | B15: =SUM(Rawdata!A12:CV12)*Parameters!$B$17 -> 533.4995402 | C15: =Var_a*EXP(Var_b*'Target price'!B15+Var_c) -> 1907373.817 | D15: 2288 | E15: 4576 | F15: 24576 | G15: 26232.41268 | H15: 1656.412683
A16: 13 | B16: =SUM(Rawdata!A13:CV13)*Parameters!$B$17 -> 559.3452661 | C16: =Var_a*EXP(Var_b*'Target price'!B16+Var_c) -> 2193052.153 | D16: 2631 | E16: 5262 | F16: 25262 | G16: 30164.98154 | H16: 4902.981543 | J16: Check goal seek | L16: =IF(L7=0,"GOALSEEK OK","RERUN GOALSEEK") -> GOALSEEK OK
A17: 14 | B17: =SUM(Rawdata!A14:CV14)*Parameters!$B$17 -> 592.5908426 | C17: =Var_a*EXP(Var_b*'Target price'!B17+Var_c) -> 2624316.193 | D17: 3149 | E17: 6298 | F17: 26298 | G17: 36103.96309 | H17: 9805.963086
A18: 15 | B18: =SUM(Rawdata!A15:CV15)*Parameters!$B$17 -> 620.6582088 | C18: =Var_a*EXP(Var_b*'Target price'!B18+Var_c) -> 3053792.136 | D18: 3664 | E18: 7328 | F18: 27328 | G18: 42008.54898 | H18: 14680.54898
A19: 16 | B19: =SUM(Rawdata!A16:CV16)*Parameters!$B$17 -> 543.3305383 | C19: =Var_a*EXP(Var_b*'Target price'!B19+Var_c) -> 2011367.262 | D19: 2413 | E19: 4826 | F19: 24826 | G19: 27665.5646 | H19: 2839.5646
A20: 17 | B20: =SUM(Rawdata!A17:CV17)*Parameters!$B$17 -> 636.2128938 | C20: =Var_a*EXP(Var_b*'Target price'!B20+Var_c) -> 3321376.948 | D20: 3985 | E20: 7970 | F20: 27970 | G20: 45688.8831 | H20: 17718.8831
A21: 18 | B21: =SUM(Rawdata!A18:CV18)*Parameters!$B$17 -> 578.7354716 | C21: =Var_a*EXP(Var_b*'Target price'!B21+Var_c) -> 2435132.965 | D21: 2922 | E21: 5844 | F21: 25844 | G21: 33501.3592 | H21: 7657.359205
A22: 19 | B22: =SUM(Rawdata!A19:CV19)*Parameters!$B$17 -> 634.8910168 | C22: =Var_a*EXP(Var_b*'Target price'!B22+Var_c) -> 3297752.926 | D22: 3957 | E22: 7914 | F22: 27914 | G22: 45367.85708 | H22: 17453.85708
A23: 20 | B23: =SUM(Rawdata!A20:CV20)*Parameters!$B$17 -> 590.080947 | C23: =Var_a*EXP(Var_b*'Target price'!B23+Var_c) -> 2588987.642 | D23: 3106 | E23: 6212 | F23: 26212 | G23: 35610.95883 | H23: 9398.958826
A24: 21 | B24: =SUM(Rawdata!A21:CV21)*Parameters!$B$17 -> 604.3694984 | C24: =Var_a*EXP(Var_b*'Target price'!B24+Var_c) -> 2796657.923 | D24: 3355 | E24: 6710 | F24: 26710 | G24: 38465.79744 | H24: 11755.79744
A25: 22 | B25: =SUM(Rawdata!A22:CV22)*Parameters!$B$17 -> 589.0942261 | C25: =Var_a*EXP(Var_b*'Target price'!B25+Var_c) -> 2575229.444 | D25: 3090 | E25: 6180 | F25: 26180 | G25: 35427.51538 | H25: 9247.515381
A26: 23 | B26: =SUM(Rawdata!A23:CV23)*Parameters!$B$17 -> 653.8504377 | C26: =Var_a*EXP(Var_b*'Target price'!B26+Var_c) -> 3653268.249 | D26: 4383 | E26: 8766 | F26: 28766 | G26: 50252.03881 | H26: 21486.03881
A27: 24 | B27: =SUM(Rawdata!A24:CV24)*Parameters!$B$17 -> 585.3723657 | C27: =Var_a*EXP(Var_b*'Target price'!B27+Var_c) -> 2523989.006 | D27: 3028 | E27: 6056 | F27: 26056 | G27: 34716.67203 | H27: 8660.67203
A28: 25 | B28: =SUM(Rawdata!A25:CV25)*Parameters!$B$17 -> 566.5127193 | C28: =Var_a*EXP(Var_b*'Target price'!B28+Var_c) -> 2279596.602 | D28: 2735 | E28: 5470 | F28: 25470 | G28: 31357.36394 | H28: 5887.363938
A29: 26 | B29: =SUM(Rawdata!A26:CV26)*Parameters!$B$17 -> 692.837819 | C29: =Var_a*EXP(Var_b*'Target price'!B29+Var_c) -> 4509354.589 | D29: 5411 | E29: 10822 | F29: 30822 | G29: 62038.28017 | H29: 31216.28017
A30: 27 | B30: =SUM(Rawdata!A27:CV27)*Parameters!$B$17 -> 592.7346115 | C30: =Var_a*EXP(Var_b*'Target price'!B30+Var_c) -> 2626354.377 | D30: 3151 | E30: 6302 | F30: 26302 | G30: 36126.89352 | H30: 9824.893516
A31: 28 | B31: =SUM(Rawdata!A28:CV28)*Parameters!$B$17 -> 558.5955621 | C31: =Var_a*EXP(Var_b*'Target price'!B31+Var_c) -> 2184191.745 | D31: 2621 | E31: 5242 | F31: 25242 | G31: 30050.32939 | H31: 4808.329389
A32: 29 | B32: =SUM(Rawdata!A29:CV29)*Parameters!$B$17 -> 635.5256876 | C32: =Var_a*EXP(Var_b*'Target price'!B32+Var_c) -> 3309074.447 | D32: 3970 | E32: 7940 | F32: 27940 | G32: 45516.90487 | H32: 17576.90487
A33: 30 | B33: =SUM(Rawdata!A30:CV30)*Parameters!$B$17 -> 579.8089986 | C33: =Var_a*EXP(Var_b*'Target price'!B33+Var_c) -> 2449290.538 | D33: 2939 | E33: 5878 | F33: 25878 | G33: 33696.26787 | H33: 7818.267866
A34: 31 | B34: =SUM(Rawdata!A31:CV31)*Parameters!$B$17 -> 559.4948774 | C34: =Var_a*EXP(Var_b*'Target price'!B34+Var_c) -> 2194824.638 | D34: 2633 | E34: 5266 | F34: 25266 | G34: 30187.91197 | H34: 4921.911973
A35: 32 | B35: =SUM(Rawdata!A32:CV32)*Parameters!$B$17 -> 585.4309708 | C35: =Var_a*EXP(Var_b*'Target price'!B35+Var_c) -> 2524787.893 | D35: 3029 | E35: 6058 | F35: 26058 | G35: 34728.13725 | H35: 8670.137246
A36: 33 | B36: =SUM(Rawdata!A33:CV33)*Parameters!$B$17 -> 645.59736 | C36: =Var_a*EXP(Var_b*'Target price'!B36+Var_c) -> 3494029.162 | D36: =ROUNDDOWN(C36*(1-Spoilage)/Grapes_per_bottle,0) -> 4192 | E36: =D36*Prodcosts_per_bottle -> 8384 | F36: =E36+Vineyard_cost_base -> 28384 | G36: =D36*Target_price_per_bottle -> 48062.18268 | H36: 19678.18268
A37: 34 | B37: =SUM(Rawdata!A34:CV34)*Parameters!$B$17 -> 589.4056733 | C37: =Var_a*EXP(Var_b*'Target price'!B37+Var_c) -> 2579564.149 | D37: 3095 | E37: 6190 | F37: 26190 | G37: 35484.84146 | H37: 9294.841458
A38: 35 | B38: =SUM(Rawdata!A35:CV35)*Parameters!$B$17 -> 585.5136767 | C38: =Var_a*EXP(Var_b*'Target price'!B38+Var_c) -> 2525915.745 | D38: 3031 | E38: 6062 | F38: 26062 | G38: 34751.06768 | H38: 8689.067676
A39: 36 | B39: =SUM(Rawdata!A36:CV36)*Parameters!$B$17 -> 592.0082041 | C39: =Var_a*EXP(Var_b*'Target price'!B39+Var_c) -> 2616072.419 | D39: 3139 | E39: 6278 | F39: 26278 | G39: 35989.31093 | H39: 9711.310932
A40: 37 | B40: =SUM(Rawdata!A37:CV37)*Parameters!$B$17 -> 598.1255014 | C40: =Var_a*EXP(Var_b*'Target price'!B40+Var_c) -> 2703933.384 | D40: 3244 | E40: 6488 | F40: 26488 | G40: 37193.15854 | H40: 10705.15854
A41: 38 | B41: =SUM(Rawdata!A38:CV38)*Parameters!$B$17 -> 638.543528 | C41: =Var_a*EXP(Var_b*'Target price'!B41+Var_c) -> 3363442.037 | D41: 4036 | E41: 8072 | F41: 28072 | G41: 46273.60909 | H41: 18201.60909
A42: 39 | B42: =SUM(Rawdata!A39:CV39)*Parameters!$B$17 -> 636.8107519 | C42: =Var_a*EXP(Var_b*'Target price'!B42+Var_c) -> 3332117.121 | D42: 3998 | E42: 7996 | F42: 27996 | G42: 45837.9309 | H42: 17841.9309
A43: 40 | B43: =SUM(Rawdata!A40:CV40)*Parameters!$B$17 -> 576.4387224 | C43: =Var_a*EXP(Var_b*'Target price'!B43+Var_c) -> 2405117.875 | D43: 2886 | E43: 5772 | F43: 25772 | G43: 33088.61145 | H43: 7316.611453
A44: 41 | B44: =SUM(Rawdata!A41:CV41)*Parameters!$B$17 -> 642.9578726 | C44: =Var_a*EXP(Var_b*'Target price'!B44+Var_c) -> 3444581.187 | D44: 4133 | E44: 8266 | F44: 28266 | G44: 47385.73497 | H44: 19119.73497
A45: 42 | B45: =SUM(Rawdata!A42:CV42)*Parameters!$B$17 -> 620.8723642 | C45: =Var_a*EXP(Var_b*'Target price'!B45+Var_c) -> 3057325.704 | D45: 3668 | E45: 7336 | F45: 27336 | G45: 42054.40984 | H45: 14718.40984
A46: 43 | B46: =SUM(Rawdata!A43:CV43)*Parameters!$B$17 -> 613.2495363 | C46: =Var_a*EXP(Var_b*'Target price'!B46+Var_c) -> 2934031.19 | D46: 3520 | E46: 7040 | F46: 27040 | G46: 40357.55797 | H46: 13317.55797
A47: 44 | B47: =SUM(Rawdata!A44:CV44)*Parameters!$B$17 -> 569.2577318 | C47: =Var_a*EXP(Var_b*'Target price'!B47+Var_c) -> 2313638.899 | D47: 2776 | E47: 5552 | F47: 25552 | G47: 31827.43777 | H47: 6275.437766
A48: 45 | B48: =SUM(Rawdata!A45:CV45)*Parameters!$B$17 -> 606.0025892 | C48: =Var_a*EXP(Var_b*'Target price'!B48+Var_c) -> 2821429.851 | D48: 3385 | E48: 6770 | F48: 26770 | G48: 38809.7539 | H48: 12039.7539
A49: 46 | B49: =SUM(Rawdata!A46:CV46)*Parameters!$B$17 -> 624.3483615 | C49: =Var_a*EXP(Var_b*'Target price'!B49+Var_c) -> 3115254.861 | D49: 3738 | E49: 7476 | F49: 27476 | G49: 42856.97492 | H49: 15380.97492
A50: 47 | B50: =SUM(Rawdata!A47:CV47)*Parameters!$B$17 -> 628.8010952 | C50: =Var_a*EXP(Var_b*'Target price'!B50+Var_c) -> 3191068.227 | D50: 3829 | E50: 7658 | F50: 27658 | G50: 43900.30951 | H50: 16242.30951
A51: 48 | B51: =SUM(Rawdata!A48:CV48)*Parameters!$B$17 -> 527.1011819 | C51: =Var_a*EXP(Var_b*'Target price'!B51+Var_c) -> 1842597.38 | D51: 2211 | E51: 4422 | F51: 24422 | G51: 25349.5911 | H51: 927.5911027
A52: 49 | B52: =SUM(Rawdata!A49:CV49)*Parameters!$B$17 -> 621.3672049 | C52: =Var_a*EXP(Var_b*'Target price'!B52+Var_c) -> 3065506.23 | D52: 3678 | E52: 7356 | F52: 27356 | G52: 42169.062 | H52: 14813.062
A53: 50 | B53: =SUM(Rawdata!A50:CV50)*Parameters!$B$17 -> 687.5733183 | C53: =Var_a*EXP(Var_b*'Target price'!B53+Var_c) -> 4382966.301 | D53: 5259 | E53: 10518 | F53: 30518 | G53: 60295.56744 | H53: 29777.56744
A54: 51 | B54: =SUM(Rawdata!A51:CV51)*Parameters!$B$17 -> 653.7833642 | C54: =Var_a*EXP(Var_b*'Target price'!B54+Var_c) -> 3651945.286 | D54: 4382 | E54: 8764 | F54: 28764 | G54: 50240.57359 | H54: 21476.57359
A55: 52 | B55: =SUM(Rawdata!A52:CV52)*Parameters!$B$17 -> 626.8821418 | C55: =Var_a*EXP(Var_b*'Target price'!B55+Var_c) -> 3158172.001 | D55: 3789 | E55: 7578 | F55: 27578 | G55: 43441.7009 | H55: 15863.7009
A56: 53 | B56: =SUM(Rawdata!A53:CV53)*Parameters!$B$17 -> 563.9513703 | C56: =Var_a*EXP(Var_b*'Target price'!B56+Var_c) -> 2248283.899 | D56: 2697 | E56: 5394 | F56: 25394 | G56: 30921.68575 | H56: 5527.685755
A57: 54 | B57: =SUM(Rawdata!A54:CV54)*Parameters!$B$17 -> 567.7157526 | C57: =Var_a*EXP(Var_b*'Target price'!B57+Var_c) -> 2294453.935 | D57: 2753 | E57: 5506 | F57: 25506 | G57: 31563.73781 | H57: 6057.737814
A58: 55 | B58: =SUM(Rawdata!A55:CV55)*Parameters!$B$17 -> 662.004101 | C58: =Var_a*EXP(Var_b*'Target price'!B58+Var_c) -> 3817714.554 | D58: 4581 | E58: 9162 | F58: 29162 | G58: 52522.15144 | H58: 23360.15144
A59: 56 | B59: =SUM(Rawdata!A56:CV56)*Parameters!$B$17 -> 546.165867 | C59: =Var_a*EXP(Var_b*'Target price'!B59+Var_c) -> 2042399.814 | D59: 2450 | E59: 4900 | F59: 24900 | G59: 28089.77757 | H59: 3189.777567
A60: 57 | B60: =SUM(Rawdata!A57:CV57)*Parameters!$B$17 -> 647.5296895 | C60: =Var_a*EXP(Var_b*'Target price'!B60+Var_c) -> 3530678.766 | D60: 4236 | E60: 8472 | F60: 28472 | G60: 48566.65215 | H60: 20094.65215
A61: 58 | B61: =SUM(Rawdata!A58:CV58)*Parameters!$B$17 -> 551.4845701 | C61: =Var_a*EXP(Var_b*'Target price'!B61+Var_c) -> 2101910.079 | D61: 2522 | E61: 5044 | F61: 25044 | G61: 28915.27307 | H61: 3871.273071
A62: 59 | B62: =SUM(Rawdata!A59:CV59)*Parameters!$B$17 -> 573.6523829 | C62: =Var_a*EXP(Var_b*'Target price'!B62+Var_c) -> 2369200.797 | D62: 2843 | E62: 5686 | F62: 25686 | G62: 32595.60719 | H62: 6909.607194
A63: 60 | B63: =SUM(Rawdata!A60:CV60)*Parameters!$B$17 -> 621.6772144 | C63: =Var_a*EXP(Var_b*'Target price'!B63+Var_c) -> 3070642.343 | D63: 3684 | E63: 7368 | F63: 27368 | G63: 42237.85329 | H63: 14869.85329
A64: 61 | B64: =SUM(Rawdata!A61:CV61)*Parameters!$B$17 -> 573.4610975 | C64: =Var_a*EXP(Var_b*'Target price'!B64+Var_c) -> 2366754.815 | D64: 2840 | E64: 5680 | F64: 25680 | G64: 32561.21155 | H64: 6881.211548
A65: 62 | B65: =SUM(Rawdata!A62:CV62)*Parameters!$B$17 -> 557.8205688 | C65: =Var_a*EXP(Var_b*'Target price'!B65+Var_c) -> 2175070.082 | D65: 2610 | E65: 5220 | F65: 25220 | G65: 29924.21202 | H65: 4704.212021
A66: 63 | B66: =SUM(Rawdata!A63:CV63)*Parameters!$B$17 -> 621.9790661 | C66: =Var_a*EXP(Var_b*'Target price'!B66+Var_c) -> 3075651.569 | D66: 3690 | E66: 7380 | F66: 27380 | G66: 42306.64458 | H66: 14926.64458
A67: 64 | B67: =SUM(Rawdata!A64:CV64)*Parameters!$B$17 -> 611.6987783 | C67: =Var_a*EXP(Var_b*'Target price'!B67+Var_c) -> 2909563.928 | D67: 3491 | E67: 6982 | F67: 26982 | G67: 40025.06673 | H67: 13043.06673
A68: 65 | B68: =SUM(Rawdata!A65:CV65)*Parameters!$B$17 -> 637.7868671 | C68: =Var_a*EXP(Var_b*'Target price'!B68+Var_c) -> 3349727.155 | D68: =ROUNDDOWN(C68*(1-Spoilage)/Grapes_per_bottle,0) -> 4019 | E68: =D68*Prodcosts_per_bottle -> 8038 | F68: =E68+Vineyard_cost_base -> 28038 | G68: =D68*Target_price_per_bottle -> 46078.70043 | H68: 18040.70043
A69: 66 | B69: =SUM(Rawdata!A66:CV66)*Parameters!$B$17 -> 530.0807651 | C69: =Var_a*EXP(Var_b*'Target price'!B69+Var_c) -> 1872484.101 | D69: 2246 | E69: 4492 | F69: 24492 | G69: 25750.87364 | H69: =G69-F69 -> 1258.873639
A70: =A69+1 -> 67 | B70: =SUM(Rawdata!A67:CV67)*Parameters!$B$17 -> 609.5047798 | C70: =Var_a*EXP(Var_b*'Target price'!B70+Var_c) -> 2875295.999 | D70: 3450 | E70: 6900 | F70: 26900 | G70: 39554.9929 | H70: 12654.9929
A71: 68 | B71: =SUM(Rawdata!A68:CV68)*Parameters!$B$17 -> 518.7322826 | C71: =Var_a*EXP(Var_b*'Target price'!B71+Var_c) -> 1761180.178 | D71: 2113 | E71: 4226 | F71: 24226 | G71: 24226 | H71: 0
A72: 69 | B72: =SUM(Rawdata!A69:CV69)*Parameters!$B$17 -> 532.9117963 | C72: =Var_a*EXP(Var_b*'Target price'!B72+Var_c) -> 1901329.758 | D72: 2281 | E72: 4562 | F72: 24562 | G72: 26152.15618 | H72: 1590.156176
A73: 70 | B73: =SUM(Rawdata!A70:CV70)*Parameters!$B$17 -> 604.0559064 | C73: =Var_a*EXP(Var_b*'Target price'!B73+Var_c) -> 2791926.079 | D73: 3350 | E73: 6700 | F73: 26700 | G73: 38408.47137 | H73: 11708.47137
A74: 71 | B74: =SUM(Rawdata!A71:CV71)*Parameters!$B$17 -> 566.6772254 | C74: =Var_a*EXP(Var_b*'Target price'!B74+Var_c) -> 2281622.542 | D74: 2737 | E74: 5474 | F74: 25474 | G74: 31380.29437 | H74: 5906.294368
A75: 72 | B75: =SUM(Rawdata!A72:CV72)*Parameters!$B$17 -> 595.5850404 | C75: =Var_a*EXP(Var_b*'Target price'!B75+Var_c) -> 2667092.778 | D75: 3200 | E75: 6400 | F75: 26400 | G75: 36688.68907 | H75: 10288.68907
A76: 73 | B76: =SUM(Rawdata!A73:CV73)*Parameters!$B$17 -> 640.7834113 | C76: =Var_a*EXP(Var_b*'Target price'!B76+Var_c) -> 3404371.139 | D76: 4085 | E76: 8170 | F76: 28170 | G76: 46835.40464 | H76: 18665.40464
A77: 74 | B77: =SUM(Rawdata!A74:CV74)*Parameters!$B$17 -> 534.2706138 | C77: =Var_a*EXP(Var_b*'Target price'!B77+Var_c) -> 1915332.293 | D77: 2298 | E77: 4596 | F77: 24596 | G77: 26347.06484 | H77: 1751.064837
A78: 75 | B78: =SUM(Rawdata!A75:CV75)*Parameters!$B$17 -> 598.3838833 | C78: =Var_a*EXP(Var_b*'Target price'!B78+Var_c) -> 2707708.713 | D78: 3249 | E78: 6498 | F78: 26498 | G78: 37250.48462 | H78: 10752.48462
A79: 76 | B79: =SUM(Rawdata!A76:CV76)*Parameters!$B$17 -> 654.9784203 | C79: =Var_a*EXP(Var_b*'Target price'!B79+Var_c) -> 3675588.602 | D79: 4410 | E79: 8820 | F79: 28820 | G79: 50561.59962 | H79: 21741.59962
A80: 77 | B80: =SUM(Rawdata!A77:CV77)*Parameters!$B$17 -> 543.5350916 | C80: =Var_a*EXP(Var_b*'Target price'!B80+Var_c) -> 2013590.222 | D80: 2416 | E80: 4832 | F80: 24832 | G80: 27699.96025 | H80: 2867.960246
A81: 78 | B81: =SUM(Rawdata!A78:CV78)*Parameters!$B$17 -> 640.7248111 | C81: =Var_a*EXP(Var_b*'Target price'!B81+Var_c) -> 3403294.027 | D81: 4083 | E81: 8166 | F81: 28166 | G81: 46812.47421 | H81: 18646.47421
A82: 79 | B82: =SUM(Rawdata!A79:CV79)*Parameters!$B$17 -> 618.0139189 | C82: =Var_a*EXP(Var_b*'Target price'!B82+Var_c) -> 3010496.382 | D82: 3612 | E82: 7224 | F82: 27224 | G82: 41412.35779 | H82: 14188.35779
A83: 80 | B83: =SUM(Rawdata!A80:CV80)*Parameters!$B$17 -> 621.0505799 | C83: =Var_a*EXP(Var_b*'Target price'!B83+Var_c) -> 3060269.382 | D83: 3672 | E83: 7344 | F83: 27344 | G83: 42100.27071 | H83: 14756.27071
A84: 81 | B84: =SUM(Rawdata!A81:CV81)*Parameters!$B$17 -> 625.8434885 | C84: =Var_a*EXP(Var_b*'Target price'!B84+Var_c) -> 3140508.257 | D84: 3768 | E84: 7536 | F84: 27536 | G84: 43200.93138 | H84: 15664.93138
A85: 82 | B85: =SUM(Rawdata!A82:CV82)*Parameters!$B$17 -> 619.4308398 | C85: =Var_a*EXP(Var_b*'Target price'!B85+Var_c) -> 3033619.159 | D85: 3640 | E85: 7280 | F85: 27280 | G85: 41733.38381 | H85: 14453.38381
A86: 83 | B86: =SUM(Rawdata!A83:CV83)*Parameters!$B$17 -> 541.5961028 | C86: =Var_a*EXP(Var_b*'Target price'!B86+Var_c) -> 1992616.839 | D86: 2391 | E86: 4782 | F86: 24782 | G86: 27413.32986 | H86: 2631.329863
A87: 84 | B87: =SUM(Rawdata!A84:CV84)*Parameters!$B$17 -> 625.0846955 | C87: =Var_a*EXP(Var_b*'Target price'!B87+Var_c) -> 3127666.407 | D87: 3753 | E87: 7506 | F87: 27506 | G87: 43028.95315 | H87: 15522.95315
A88: 85 | B88: =SUM(Rawdata!A85:CV85)*Parameters!$B$17 -> 627.2869669 | C88: =Var_a*EXP(Var_b*'Target price'!B88+Var_c) -> 3165083.493 | D88: 3798 | E88: 7596 | F88: 27596 | G88: 43544.88784 | H88: 15948.88784
A89: 86 | B89: =SUM(Rawdata!A86:CV86)*Parameters!$B$17 -> 615.3040253 | C89: =Var_a*EXP(Var_b*'Target price'!B89+Var_c) -> 2966763.271 | D89: 3560 | E89: 7120 | F89: 27120 | G89: 40816.16659 | H89: 13696.16659
A90: 87 | B90: =SUM(Rawdata!A87:CV87)*Parameters!$B$17 -> 558.8357895 | C90: =Var_a*EXP(Var_b*'Target price'!B90+Var_c) -> 2187026.978 | D90: 2624 | E90: 5248 | F90: 25248 | G90: 30084.72504 | H90: 4836.725035
A91: 88 | B91: =SUM(Rawdata!A88:CV88)*Parameters!$B$17 -> 582.7817236 | C91: =Var_a*EXP(Var_b*'Target price'!B91+Var_c) -> 2488925.575 | D91: 2986 | E91: 5972 | F91: 25972 | G91: 34235.13299 | H91: 8263.132986
A92: 89 | B92: =SUM(Rawdata!A89:CV89)*Parameters!$B$17 -> 677.2899654 | C92: =Var_a*EXP(Var_b*'Target price'!B92+Var_c) -> 4146213.995 | D92: 4975 | E92: 9950 | F92: 29950 | G92: 57039.44628 | H92: 27089.44628
A93: 90 | B93: =SUM(Rawdata!A90:CV90)*Parameters!$B$17 -> 569.4593202 | C93: =Var_a*EXP(Var_b*'Target price'!B93+Var_c) -> 2316158.845 | D93: 2779 | E93: 5558 | F93: 25558 | G93: 31861.83341 | H93: 6303.833412
A94: 91 | B94: =SUM(Rawdata!A91:CV91)*Parameters!$B$17 -> 628.0919675 | C94: =Var_a*EXP(Var_b*'Target price'!B94+Var_c) -> 3178872.069 | D94: 3814 | E94: 7628 | F94: 27628 | G94: 43728.33128 | H94: 16100.33128
A95: 92 | B95: =SUM(Rawdata!A92:CV92)*Parameters!$B$17 -> 589.2321019 | C95: =Var_a*EXP(Var_b*'Target price'!B95+Var_c) -> 2577147.493 | D95: 3092 | E95: 6184 | F95: 26184 | G95: 35450.44581 | H95: 9266.445812
A96: 93 | B96: =SUM(Rawdata!A93:CV93)*Parameters!$B$17 -> 590.2526751 | C96: =Var_a*EXP(Var_b*'Target price'!B96+Var_c) -> 2591389.607 | D96: 3109 | E96: 6218 | F96: 26218 | G96: 35645.35447 | H96: 9427.354472
A97: 94 | B97: =SUM(Rawdata!A94:CV94)*Parameters!$B$17 -> 611.6153522 | C97: =Var_a*EXP(Var_b*'Target price'!B97+Var_c) -> 2908253.461 | D97: 3489 | E97: 6978 | F97: 26978 | G97: 40002.1363 | H97: 13024.1363
A98: 95 | B98: =SUM(Rawdata!A95:CV95)*Parameters!$B$17 -> 573.8742325 | C98: =Var_a*EXP(Var_b*'Target price'!B98+Var_c) -> 2372040.772 | D98: 2846 | E98: 5692 | F98: 25692 | G98: 32630.00284 | H98: 6938.00284
A99: 96 | B99: =SUM(Rawdata!A96:CV96)*Parameters!$B$17 -> 568.2989952 | C99: =Var_a*EXP(Var_b*'Target price'!B99+Var_c) -> 2301691.732 | D99: 2762 | E99: 5524 | F99: 25524 | G99: 31666.92475 | H99: 6142.924752
A100: 97 | B100: =SUM(Rawdata!A97:CV97)*Parameters!$B$17 -> 534.4253306 | C100: =Var_a*EXP(Var_b*'Target price'!B100+Var_c) -> 1916933.165 | D100: =ROUNDDOWN(C100*(1-Spoilage)/Grapes_per_bottle,0) -> 2300 | E100: =D100*Prodcosts_per_bottle -> 4600 | F100: =E100+Vineyard_cost_base -> 24600 | G100: 26369.99527 | H100: 1769.995267
A101: 98 | B101: =SUM(Rawdata!A98:CV98)*Parameters!$B$17 -> 603.2441816 | C101: =Var_a*EXP(Var_b*'Target price'!B101+Var_c) -> 2779714.973 | D101: =ROUNDDOWN(C101*(1-Spoilage)/Grapes_per_bottle,0) -> 3335 | E101: =D101*Prodcosts_per_bottle -> 6670 | F101: =E101+Vineyard_cost_base -> 26670 | G101: 38236.49314 | H101: 11566.49314
A102: 99 | B102: =SUM(Rawdata!A99:CV99)*Parameters!$B$17 -> 589.9376067 | C102: =Var_a*EXP(Var_b*'Target price'!B102+Var_c) -> 2586984.445 | D102: =ROUNDDOWN(C102*(1-Spoilage)/Grapes_per_bottle,0) -> 3104 | E102: =D102*Prodcosts_per_bottle -> 6208 | F102: =E102+Vineyard_cost_base -> 26208 | G102: 35588.0284 | H102: 9380.028396
A103: 100 | B103: =SUM(Rawdata!A100:CV100)*Parameters!$B$17 -> 594.2790857 | C103: =Var_a*EXP(Var_b*'Target price'!B103+Var_c) -> 2648350.192 | D103: =ROUNDDOWN(C103*(1-Spoilage)/Grapes_per_bottle,0) -> 3178 | E103: =D103*Prodcosts_per_bottle -> 6356 | F103: =E103+Vineyard_cost_base -> 26356 | G103: 36436.45433 | H103: 10080.45433
A105: Total | B105: =SUM(B4:B103) -> 59805.7958
A106: Expected | B106: =Rawdata!CY6*Rawdata!CY2*Max_sunhours_base -> 59805.7958
A107: Check | B107: =IF(TRUNC(B105)=TRUNC(B106),"OK","CHECK") -> OK

Sheet Wine production Alt
C1: =SUMIF(C4:L4,">"&Overtime_limit_alt,C4:L4)-COUNTIF(C4:L4,">"&Overtime_limit_alt)*Overtime_limit_alt -> 31.17603581
A2: Year | C2: Daily hours of sunshine over harvesting period
A3: Simulation | B3: Total hours of sun | C3: Day 1 | D3: Day 2 | E3: Day 3 | F3: Day 4 | G3: Day 5 | H3: Day 6 | I3: Day 7 | J3: Day 8 | K3: Day 9 | L3: Day 10 | M3: Grape production | N3: Wine bottles produced | O3: Production costs | P3: Overtime costs | Q3: Total costs | R3: Total Revenue | S3: Profit/(loss) | T3: Rank | V3: Profit Statistics
A4: 1 | B4: =SUM(Rawdata!A1:CL1)*Max_sunhours_alt -> 722.6462847 | C4: =Rawdata!CM1*Max_sunhours_alt -> 3.50851546 | D4: =Rawdata!CN1*Max_sunhours_alt -> 14.51127944 | E4: =Rawdata!CO1*Max_sunhours_alt -> 4.79422654 | F4: =Rawdata!CP1*Max_sunhours_alt -> 12.36244791 | G4: =Rawdata!CQ1*Max_sunhours_alt -> 9.076117978 | H4: =Rawdata!CR1*Max_sunhours_alt -> 13.92798889 | I4: =Rawdata!CS1*Max_sunhours_alt -> 3.320033575 | J4: =Rawdata!CT1*Max_sunhours_alt -> 14.63971062 | K4: =Rawdata!CU1*Max_sunhours_alt -> 9.993759634 | L4: =Rawdata!CV1*Max_sunhours_alt -> 9.16473135 | M4: =Var_a*EXP(Var_b*'Wine production Alt'!B4+Var_c) -> 5296889.448 | N4: =ROUNDDOWN(M4*(1-Spoilage)/Grapes_per_bottle,0) -> 6356 | O4: =N4*Prodcosts_per_bottle -> 12712 | P4: =(SUMIF(C4:L4,">"&Overtime_limit_alt,C4:L4)-COUNTIF(C4:L4,">"&Overtime_limit_alt)*Overtime_limit_alt) *Number_worker_alt*Overtime_hourly_rate_alt -> 3117.603581 | Q4: =O4+P4+Vineyard_cost_alt -> 40829.60358 | R4: =N4*Price_per_bottle -> 63560 | S4: =R4-Q4 -> 22730.39642 | T4: =RANK(S4,$S$4:$S$103,1) -> 84
A5: =A4+1 -> 2 | B5: =SUM(Rawdata!A2:CL2)*Max_sunhours_alt -> 657.6200525 | C5: =Rawdata!CM2*Max_sunhours_alt -> 9.192716915 | D5: =Rawdata!CN2*Max_sunhours_alt -> 13.83835927 | E5: =Rawdata!CO2*Max_sunhours_alt -> 6.303061828 | F5: =Rawdata!CP2*Max_sunhours_alt -> 1.466160942 | G5: =Rawdata!CQ2*Max_sunhours_alt -> 9.990412536 | H5: =Rawdata!CR2*Max_sunhours_alt -> 14.33020587 | I5: =Rawdata!CS2*Max_sunhours_alt -> 1.618926619 | J5: =Rawdata!CT2*Max_sunhours_alt -> 3.733324433 | K5: =Rawdata!CU2*Max_sunhours_alt -> 11.58623936 | L5: =Rawdata!CV2*Max_sunhours_alt -> 3.434817821 | M5: =Var_a*EXP(Var_b*'Wine production Alt'!B5+Var_c) -> 3728395.938 | N5: 4474 | O5: 8948 | P5: =(SUMIF(C5:L5,">"&Overtime_limit_alt,C5:L5)-COUNTIF(C5:L5,">"&Overtime_limit_alt)*Overtime_limit_alt) *Number_worker_alt*Overtime_hourly_rate_alt -> 2143.793395 | Q5: 36091.79339 | R5: 44740 | S5: =R5-Q5 -> 8648.206605 | T5: =RANK(S5,$S$4:$S$103,1) -> 39 | V5: Average expected profit | X5: =AVERAGE($S$4:$S$103) -> 13133.01697 | Z5: Theoretical expected profit
A6: =A5+1 -> 3 | B6: =SUM(Rawdata!A3:CL3)*Max_sunhours_alt -> 635.2219137 | C6: =Rawdata!CM3*Max_sunhours_alt -> 14.20028776 | D6: =Rawdata!CN3*Max_sunhours_alt -> 7.90643672 | E6: =Rawdata!CO3*Max_sunhours_alt -> 10.13545284 | F6: =Rawdata!CP3*Max_sunhours_alt -> 9.647158416 | G6: =Rawdata!CQ3*Max_sunhours_alt -> 6.261722417 | H6: =Rawdata!CR3*Max_sunhours_alt -> 9.875101504 | I6: =Rawdata!CS3*Max_sunhours_alt -> 0.9737200467 | J6: =Rawdata!CT3*Max_sunhours_alt -> 7.1539831 | K6: =Rawdata!CU3*Max_sunhours_alt -> 14.64327082 | L6: =Rawdata!CV3*Max_sunhours_alt -> 5.619674498 | M6: =Var_a*EXP(Var_b*'Wine production Alt'!B6+Var_c) -> 3303650.761 | N6: 3964 | O6: 7928 | P6: 2140.770805 | Q6: 35068.77081 | R6: 39640 | S6: 4571.229195 | T6: 23 | V6: Maximum profit | X6: =MAX($S$4:$S$103) -> 40640.86929 | AA6: Total hours of sun | AB6: =Max_sunhours_alt/2*Growing_days_alt -> 675
A7: 4 | B7: =SUM(Rawdata!A4:CL4)*Max_sunhours_alt -> 663.4270226 | C7: =Rawdata!CM4*Max_sunhours_alt -> 8.105449592 | D7: =Rawdata!CN4*Max_sunhours_alt -> 1.82973015 | E7: =Rawdata!CO4*Max_sunhours_alt -> 4.069161398 | F7: =Rawdata!CP4*Max_sunhours_alt -> 10.00963451 | G7: =Rawdata!CQ4*Max_sunhours_alt -> 11.68942715 | H7: =Rawdata!CR4*Max_sunhours_alt -> 5.441410668 | I7: =Rawdata!CS4*Max_sunhours_alt -> 14.05097282 | J7: =Rawdata!CT4*Max_sunhours_alt -> 1.663567575 | K7: =Rawdata!CU4*Max_sunhours_alt -> 1.234675168 | L7: =Rawdata!CV4*Max_sunhours_alt -> 13.34551776 | M7: =Var_a*EXP(Var_b*'Wine production Alt'!B7+Var_c) -> 3847162.009 | N7: 4616 | O7: 9232 | P7: 1970.100183 | Q7: 36202.10018 | R7: 46160 | S7: 9957.899817 | T7: 41 | V7: Maximum loss | X7: =MIN($S$4:$S$103) -> -4632.186768 | AA7: Grape production | AB7: =Var_a*EXP(Var_b*AB6+Var_c) -> 4095258.389
A8: 5 | B8: =SUM(Rawdata!A5:CL5)*Max_sunhours_alt -> 684.0311299 | C8: =Rawdata!CM5*Max_sunhours_alt -> 9.338465659 | D8: =Rawdata!CN5*Max_sunhours_alt -> 5.657020096 | E8: =Rawdata!CO5*Max_sunhours_alt -> 11.43678704 | F8: =Rawdata!CP5*Max_sunhours_alt -> 4.089466423 | G8: =Rawdata!CQ5*Max_sunhours_alt -> 12.82404925 | H8: =Rawdata!CR5*Max_sunhours_alt -> 7.807799596 | I8: =Rawdata!CS5*Max_sunhours_alt -> 14.9325312 | J8: =Rawdata!CT5*Max_sunhours_alt -> 2.229893094 | K8: =Rawdata!CU5*Max_sunhours_alt -> 13.45983766 | L8: =Rawdata!CV5*Max_sunhours_alt -> 11.58256906 | M8: =Var_a*EXP(Var_b*'Wine production Alt'!B8+Var_c) -> 4299926.44 | N8: 5159 | O8: 10318 | P8: 2888.203946 | Q8: 38206.20395 | R8: 51590 | S8: 13383.79605 | T8: 53 | V8: Probability of making a loss | X8: =COUNTIF($S$4:$S$103,"<0")/COUNT(S4:S103) -> 0.07 | AA8: Wine bottles produced | AB8: =ROUNDDOWN(AB7*(1-Spoilage)/Grapes_per_bottle,0) -> 4914
A9: 6 | B9: =SUM(Rawdata!A6:CL6)*Max_sunhours_alt -> 704.0401121 | C9: =Rawdata!CM6*Max_sunhours_alt -> 3.706077359 | D9: =Rawdata!CN6*Max_sunhours_alt -> 1.910397471 | E9: =Rawdata!CO6*Max_sunhours_alt -> 4.893819915 | F9: =Rawdata!CP6*Max_sunhours_alt -> 0.888421152 | G9: =Rawdata!CQ6*Max_sunhours_alt -> 2.278010083 | H9: =Rawdata!CR6*Max_sunhours_alt -> 0.9898700027 | I9: =Rawdata!CS6*Max_sunhours_alt -> 5.71745925 | J9: =Rawdata!CT6*Max_sunhours_alt -> 12.98147934 | K9: =Rawdata!CU6*Max_sunhours_alt -> 12.05653125 | L9: =Rawdata!CV6*Max_sunhours_alt -> 8.325218256 | M9: =Var_a*EXP(Var_b*'Wine production Alt'!B9+Var_c) -> 4790555.709 | N9: 5748 | O9: 11496 | P9: 1086.322885 | Q9: 37582.32288 | R9: 57480 | S9: 19897.67712 | T9: 77 | AA9: Production costs | AB9: =AB8*Prodcosts_per_bottle -> 9828
A10: 7 | B10: =SUM(Rawdata!A7:CL7)*Max_sunhours_alt -> 627.6417291 | C10: =Rawdata!CM7*Max_sunhours_alt -> 2.909454992 | D10: =Rawdata!CN7*Max_sunhours_alt -> 0.09804366128 | E10: =Rawdata!CO7*Max_sunhours_alt -> 2.449994245 | F10: =Rawdata!CP7*Max_sunhours_alt -> 6.5401838 | G10: =Rawdata!CQ7*Max_sunhours_alt -> 6.569576155 | H10: =Rawdata!CR7*Max_sunhours_alt -> 10.3130331 | I10: =Rawdata!CS7*Max_sunhours_alt -> 3.018336729 | J10: =Rawdata!CT7*Max_sunhours_alt -> 6.661222446 | K10: =Rawdata!CU7*Max_sunhours_alt -> 3.105874659 | L10: =Rawdata!CV7*Max_sunhours_alt -> 14.74560308 | M10: =Var_a*EXP(Var_b*'Wine production Alt'!B10+Var_c) -> 3171152.704 | N10: 3805 | O10: 7610 | P10: 1005.863617 | Q10: 33615.86362 | R10: 38050 | S10: 4434.136383 | T10: 22 | V10: Components of Expected Profit of Median (50th Ranked) Simulation | AA10: Overtime costs | AB10: =(Max_sunhours_alt/2-Overtime_limit_alt)*Number_worker_alt*Overtime_hourly_rate -> 0
A11: 8 | B11: =SUM(Rawdata!A8:CL8)*Max_sunhours_alt -> 661.4214275 | C11: =Rawdata!CM8*Max_sunhours_alt -> 7.223685453 | D11: =Rawdata!CN8*Max_sunhours_alt -> 2.958712748 | E11: =Rawdata!CO8*Max_sunhours_alt -> 12.65704548 | F11: =Rawdata!CP8*Max_sunhours_alt -> 4.735688255 | G11: =Rawdata!CQ8*Max_sunhours_alt -> 10.71537168 | H11: =Rawdata!CR8*Max_sunhours_alt -> 4.752185754 | I11: =Rawdata!CS8*Max_sunhours_alt -> 13.58822247 | J11: =Rawdata!CT8*Max_sunhours_alt -> 0.6084271359 | K11: =Rawdata!CU8*Max_sunhours_alt -> 12.67999221 | L11: =Rawdata!CV8*Max_sunhours_alt -> 10.86614429 | M11: =Var_a*EXP(Var_b*'Wine production Alt'!B11+Var_c) -> 3805721.234 | N11: 4566 | O11: 9132 | P11: 2300.677613 | Q11: 36432.67761 | R11: 45660 | S11: 9227.322387 | T11: 40 | AA11: Total costs | AB11: =AB9+Vineyard_cost_alt -> 34828
A12: 9 | B12: =SUM(Rawdata!A9:CL9)*Max_sunhours_alt -> 700.6554259 | C12: =Rawdata!CM9*Max_sunhours_alt -> 3.260957935 | D12: =Rawdata!CN9*Max_sunhours_alt -> 2.178990541 | E12: =Rawdata!CO9*Max_sunhours_alt -> 3.186753174 | F12: =Rawdata!CP9*Max_sunhours_alt -> 8.689541354 | G12: =Rawdata!CQ9*Max_sunhours_alt -> 12.65719169 | H12: =Rawdata!CR9*Max_sunhours_alt -> 13.73895099 | I12: =Rawdata!CS9*Max_sunhours_alt -> 2.195732953 | J12: =Rawdata!CT9*Max_sunhours_alt -> 10.44264101 | K12: =Rawdata!CU9*Max_sunhours_alt -> 3.734217672 | L12: =Rawdata!CV9*Max_sunhours_alt -> 8.435798095 | M12: =Var_a*EXP(Var_b*'Wine production Alt'!B12+Var_c) -> 4703792.573 | N12: 5644 | O12: 11288 | P12: 1646.412313 | Q12: 37934.41231 | R12: 56440 | S12: 18505.58769 | T12: 72 | AA12: Total Revenue | AB12: =AB8*Price_per_bottle -> 49140
A13: 10 | B13: =SUM(Rawdata!A10:CL10)*Max_sunhours_alt -> 649.6600368 | C13: =Rawdata!CM10*Max_sunhours_alt -> 4.831287957 | D13: =Rawdata!CN10*Max_sunhours_alt -> 12.16284294 | E13: =Rawdata!CO10*Max_sunhours_alt -> 1.017467781 | F13: =Rawdata!CP10*Max_sunhours_alt -> 6.791059795 | G13: =Rawdata!CQ10*Max_sunhours_alt -> 4.968147696 | H13: =Rawdata!CR10*Max_sunhours_alt -> 9.585409438 | I13: =Rawdata!CS10*Max_sunhours_alt -> 13.03247976 | J13: =Rawdata!CT10*Max_sunhours_alt -> 5.710422073 | K13: =Rawdata!CU10*Max_sunhours_alt -> 13.63061122 | L13: =Rawdata!CV10*Max_sunhours_alt -> 1.308855255 | M13: =Var_a*EXP(Var_b*'Wine production Alt'!B13+Var_c) -> 3571529.775 | N13: 4285 | O13: 8570 | P13: 1841.134335 | Q13: 35411.13434 | R13: 42850 | S13: 7438.865665 | T13: 34 | V13: Simulation to find | X13: 50 | AA13: Profit/(loss) | AB13: =AB12-AB11 -> 14312
A14: 11 | B14: =SUM(Rawdata!A11:CL11)*Max_sunhours_alt -> 674.3772247 | C14: =Rawdata!CM11*Max_sunhours_alt -> 9.599729877 | D14: =Rawdata!CN11*Max_sunhours_alt -> 0.5793002623 | E14: =Rawdata!CO11*Max_sunhours_alt -> 5.307290723 | F14: =Rawdata!CP11*Max_sunhours_alt -> 7.927457591 | G14: =Rawdata!CQ11*Max_sunhours_alt -> 1.017223067 | H14: =Rawdata!CR11*Max_sunhours_alt -> 1.851964732 | I14: =Rawdata!CS11*Max_sunhours_alt -> 2.625000114 | J14: =Rawdata!CT11*Max_sunhours_alt -> 6.706706388 | K14: =Rawdata!CU11*Max_sunhours_alt -> 10.69215505 | L14: =Rawdata!CV11*Max_sunhours_alt -> 13.19308488 | M14: =Var_a*EXP(Var_b*'Wine production Alt'!B14+Var_c) -> 4081509.223 | N14: 4897 | O14: 9794 | P14: 1141.24274 | Q14: 35935.24274 | R14: 48970 | S14: 13034.75726 | T14: 51 | AB14: Note: some overtime costs would be expected as these are floored at zero - therefore this estimate is expected to over state the expected profit, which it does.
A15: 12 | B15: =SUM(Rawdata!A12:CL12)*Max_sunhours_alt -> 595.3506409 | C15: =Rawdata!CM12*Max_sunhours_alt -> 10.01112943 | D15: =Rawdata!CN12*Max_sunhours_alt -> 6.707469256 | E15: =Rawdata!CO12*Max_sunhours_alt -> 2.811646274 | F15: =Rawdata!CP12*Max_sunhours_alt -> 11.0843865 | G15: =Rawdata!CQ12*Max_sunhours_alt -> 5.910852002 | H15: =Rawdata!CR12*Max_sunhours_alt -> 3.683747233 | I15: =Rawdata!CS12*Max_sunhours_alt -> 11.67866651 | J15: =Rawdata!CT12*Max_sunhours_alt -> 1.366924391 | K15: =Rawdata!CU12*Max_sunhours_alt -> 4.750746824 | L15: =Rawdata!CV12*Max_sunhours_alt -> 13.51821591 | M15: =Var_a*EXP(Var_b*'Wine production Alt'!B15+Var_c) -> 2663719.022 | N15: 3196 | O15: 6392 | P15: 1629.239835 | Q15: 33021.23984 | R15: 31960 | S15: -1061.239835 | T15: 5 | V15: Simulation | X15: =MATCH(X13,T4:T103,0) -> 45
A16: 13 | B16: =SUM(Rawdata!A13:CL13)*Max_sunhours_alt -> 640.8195369 | C16: =Rawdata!CM13*Max_sunhours_alt -> 13.47372365 | D16: =Rawdata!CN13*Max_sunhours_alt -> 6.336860055 | E16: =Rawdata!CO13*Max_sunhours_alt -> 10.35641307 | F16: =Rawdata!CP13*Max_sunhours_alt -> 12.06871305 | G16: =Rawdata!CQ13*Max_sunhours_alt -> 1.182283269 | H16: =Rawdata!CR13*Max_sunhours_alt -> 3.602774368 | I16: =Rawdata!CS13*Max_sunhours_alt -> 0.3229714157 | J16: =Rawdata!CT13*Max_sunhours_alt -> 2.36512716 | K16: =Rawdata!CU13*Max_sunhours_alt -> 5.340095086 | L16: =Rawdata!CV13*Max_sunhours_alt -> 3.313084548 | M16: =Var_a*EXP(Var_b*'Wine production Alt'!B16+Var_c) -> 3405035.322 | N16: 4086 | O16: 8172 | P16: 1339.884978 | Q16: 34511.88498 | R16: 40860 | S16: 6348.115022 | T16: 29
A17: 14 | B17: =SUM(Rawdata!A14:CL14)*Max_sunhours_alt -> 666.106512 | C17: =Rawdata!CM14*Max_sunhours_alt -> 5.791046163 | D17: =Rawdata!CN14*Max_sunhours_alt -> 4.160482362 | E17: =Rawdata!CO14*Max_sunhours_alt -> 5.000142081 | F17: =Rawdata!CP14*Max_sunhours_alt -> 9.986850351 | G17: =Rawdata!CQ14*Max_sunhours_alt -> 10.03493821 | H17: =Rawdata!CR14*Max_sunhours_alt -> 1.483985332 | I17: =Rawdata!CS14*Max_sunhours_alt -> 1.351476797 | J17: =Rawdata!CT14*Max_sunhours_alt -> 14.32421738 | K17: =Rawdata!CU14*Max_sunhours_alt -> 10.33619666 | L17: =Rawdata!CV14*Max_sunhours_alt -> 12.1627059 | M17: =Var_a*EXP(Var_b*'Wine production Alt'!B17+Var_c) -> 3903232.199 | N17: 4683 | O17: 9366 | P17: 1934.490851 | Q17: 36300.49085 | R17: 46830 | S17: 10529.50915 | T17: 43 | V17: Variable costs | X17: =VLOOKUP(X15,$A$4:$S$103,15,FALSE)+VLOOKUP(X15,$A$4:$S$103,16,FALSE) -> 11949.95302
A18: 15 | B18: =SUM(Rawdata!A15:CL15)*Max_sunhours_alt -> 733.0141673 | C18: =Rawdata!CM15*Max_sunhours_alt -> 4.202584367 | D18: =Rawdata!CN15*Max_sunhours_alt -> 0.4694284757 | E18: =Rawdata!CO15*Max_sunhours_alt -> 1.16700519 | F18: =Rawdata!CP15*Max_sunhours_alt -> 1.141052615 | G18: =Rawdata!CQ15*Max_sunhours_alt -> 12.31103512 | H18: =Rawdata!CR15*Max_sunhours_alt -> 5.17479396 | I18: =Rawdata!CS15*Max_sunhours_alt -> 0.01386792577 | J18: =Rawdata!CT15*Max_sunhours_alt -> 13.20228283 | K18: =Rawdata!CU15*Max_sunhours_alt -> 2.866939274 | L18: =Rawdata!CV15*Max_sunhours_alt -> 2.259603998 | M18: =Var_a*EXP(Var_b*'Wine production Alt'!B18+Var_c) -> 5601902.753 | N18: 6722 | O18: 13444 | P18: 1051.331794 | Q18: 39495.33179 | R18: 67220 | S18: 27724.66821 | T18: 92 | V18: Fixed costs | X18: =Vineyard_cost_alt -> 25000
A19: 16 | B19: =SUM(Rawdata!A16:CL16)*Max_sunhours_alt -> 632.7612689 | C19: =Rawdata!CM16*Max_sunhours_alt -> 0.1243567472 | D19: =Rawdata!CN16*Max_sunhours_alt -> 3.507357941 | E19: =Rawdata!CO16*Max_sunhours_alt -> 5.069333058 | F19: =Rawdata!CP16*Max_sunhours_alt -> 3.263468535 | G19: =Rawdata!CQ16*Max_sunhours_alt -> 12.00196267 | H19: =Rawdata!CR16*Max_sunhours_alt -> 13.91209471 | I19: =Rawdata!CS16*Max_sunhours_alt -> 0.8277624908 | J19: =Rawdata!CT16*Max_sunhours_alt -> 1.166608699 | K19: =Rawdata!CU16*Max_sunhours_alt -> 6.500508025 | L19: =Rawdata!CV16*Max_sunhours_alt -> 0.02845115206 | M19: =Var_a*EXP(Var_b*'Wine production Alt'!B19+Var_c) -> 3260043.914 | N19: 3912 | O19: 7824 | P19: 1091.405737 | Q19: 33915.40574 | R19: 39120 | S19: 5204.594263 | T19: 27 | V19: Total costs | X19: =VLOOKUP(X15,$A$4:$S$103,17,FALSE) -> 36949.95302
A20: 17 | B20: =SUM(Rawdata!A17:CL17)*Max_sunhours_alt -> 712.0331853 | C20: =Rawdata!CM17*Max_sunhours_alt -> 2.451496969 | D20: =Rawdata!CN17*Max_sunhours_alt -> 13.44938593 | E20: =Rawdata!CO17*Max_sunhours_alt -> 5.299076281 | F20: =Rawdata!CP17*Max_sunhours_alt -> 6.147916307 | G20: =Rawdata!CQ17*Max_sunhours_alt -> 13.14876083 | H20: =Rawdata!CR17*Max_sunhours_alt -> 10.33321538 | I20: =Rawdata!CS17*Max_sunhours_alt -> 3.919915769 | J20: =Rawdata!CT17*Max_sunhours_alt -> 13.42221178 | K20: =Rawdata!CU17*Max_sunhours_alt -> 13.64341014 | L20: =Rawdata!CV17*Max_sunhours_alt -> 1.417542563 | M20: =Var_a*EXP(Var_b*'Wine production Alt'!B20+Var_c) -> 5001855.855 | N20: 6002 | O20: 12004 | P20: 2649.698406 | Q20: 39653.69841 | R20: 60020 | S20: 20366.30159 | T20: 78 | V20: Total Revenue | X20: =VLOOKUP(X15,$A$4:$S$103,18,FALSE) -> 49980
A21: 18 | B21: =SUM(Rawdata!A18:CL18)*Max_sunhours_alt -> 646.2098757 | C21: =Rawdata!CM18*Max_sunhours_alt -> 1.080537473 | D21: =Rawdata!CN18*Max_sunhours_alt -> 10.33097295 | E21: =Rawdata!CO18*Max_sunhours_alt -> 1.334117762 | F21: =Rawdata!CP18*Max_sunhours_alt -> 9.300050295 | G21: =Rawdata!CQ18*Max_sunhours_alt -> 4.238642395 | H21: =Rawdata!CR18*Max_sunhours_alt -> 3.506002599 | I21: =Rawdata!CS18*Max_sunhours_alt -> 9.263788299 | J21: =Rawdata!CT18*Max_sunhours_alt -> 12.91387162 | K21: =Rawdata!CU18*Max_sunhours_alt -> 10.7908372 | L21: =Rawdata!CV18*Max_sunhours_alt -> 14.4506432 | M21: =Var_a*EXP(Var_b*'Wine production Alt'!B21+Var_c) -> 3505605.094 | N21: 4206 | O21: 8412 | P21: 2205.016356 | Q21: 35617.01636 | R21: 42060 | S21: 6442.983644 | T21: 30 | V21: Profit/(loss) | X21: =VLOOKUP(X15,$A$4:$S$103,19,FALSE) -> 13030.04698
A22: 19 | B22: =SUM(Rawdata!A19:CL19)*Max_sunhours_alt -> 711.6278561 | C22: =Rawdata!CM19*Max_sunhours_alt -> 13.4434651 | D22: =Rawdata!CN19*Max_sunhours_alt -> 7.52552268 | E22: =Rawdata!CO19*Max_sunhours_alt -> 8.2740804 | F22: =Rawdata!CP19*Max_sunhours_alt -> 14.04075692 | G22: =Rawdata!CQ19*Max_sunhours_alt -> 4.939848068 | H22: =Rawdata!CR19*Max_sunhours_alt -> 0.06752582353 | I22: =Rawdata!CS19*Max_sunhours_alt -> 7.338371054 | J22: =Rawdata!CT19*Max_sunhours_alt -> 12.45467044 | K22: =Rawdata!CU19*Max_sunhours_alt -> 7.097867118 | L22: =Rawdata!CV19*Max_sunhours_alt -> 6.803807334 | M22: =Var_a*EXP(Var_b*'Wine production Alt'!B22+Var_c) -> 4990919.877 | N22: 5989 | O22: 11978 | P22: 1823.849555 | Q22: 38801.84955 | R22: 59890 | S22: 21088.15045 | T22: 81
A23: 20 | B23: =SUM(Rawdata!A20:CL20)*Max_sunhours_alt -> 654.4920907 | C23: =Rawdata!CM20*Max_sunhours_alt -> 11.90544839 | D23: =Rawdata!CN20*Max_sunhours_alt -> 13.38718511 | E23: =Rawdata!CO20*Max_sunhours_alt -> 0.898811165 | F23: =Rawdata!CP20*Max_sunhours_alt -> 14.22945561 | G23: =Rawdata!CQ20*Max_sunhours_alt -> 4.576725308 | H23: =Rawdata!CR20*Max_sunhours_alt -> 14.35525929 | I23: =Rawdata!CS20*Max_sunhours_alt -> 12.94025518 | J23: =Rawdata!CT20*Max_sunhours_alt -> 7.419738989 | K23: =Rawdata!CU20*Max_sunhours_alt -> 0.9980269127 | L23: =Rawdata!CV20*Max_sunhours_alt -> 2.398187071 | M23: =Var_a*EXP(Var_b*'Wine production Alt'!B23+Var_c) -> 3665948.508 | N23: 4399 | O23: 8798 | P23: 2931.760358 | Q23: 36729.76036 | R23: 43990 | S23: 7260.239642 | T23: 33 | V23: Check correct simulation | X23: =IF(X21=X20-X19,"OK","CHECK") -> OK
A24: 21 | B24: =SUM(Rawdata!A21:CL21)*Max_sunhours_alt -> 659.112885 | C24: =Rawdata!CM21*Max_sunhours_alt -> 12.41235834 | D24: =Rawdata!CN21*Max_sunhours_alt -> 12.75939505 | E24: =Rawdata!CO21*Max_sunhours_alt -> 1.680168747 | F24: =Rawdata!CP21*Max_sunhours_alt -> 10.93880993 | G24: =Rawdata!CQ21*Max_sunhours_alt -> 7.44530003 | H24: =Rawdata!CR21*Max_sunhours_alt -> 13.96933934 | I24: =Rawdata!CS21*Max_sunhours_alt -> 5.734362624 | J24: =Rawdata!CT21*Max_sunhours_alt -> 9.211645227 | K24: =Rawdata!CU21*Max_sunhours_alt -> 10.12580862 | L24: =Rawdata!CV21*Max_sunhours_alt -> 12.07180002 | M24: =Var_a*EXP(Var_b*'Wine production Alt'!B24+Var_c) -> 3758573.109 | N24: 4510 | O24: 9020 | P24: 2898.915653 | Q24: 36918.91565 | R24: 45100 | S24: 8181.084347 | T24: 37
A25: 22 | B25: =SUM(Rawdata!A22:CL22)*Max_sunhours_alt -> 662.4493449 | C25: =Rawdata!CM22*Max_sunhours_alt -> 13.04516313 | D25: =Rawdata!CN22*Max_sunhours_alt -> 5.599654312 | E25: =Rawdata!CO22*Max_sunhours_alt -> 4.33221865 | F25: =Rawdata!CP22*Max_sunhours_alt -> 4.17416813 | G25: =Rawdata!CQ22*Max_sunhours_alt -> 4.823843312 | H25: =Rawdata!CR22*Max_sunhours_alt -> 2.01240467 | I25: =Rawdata!CS22*Max_sunhours_alt -> 8.73066395 | J25: =Rawdata!CT22*Max_sunhours_alt -> 12.97156303 | K25: =Rawdata!CU22*Max_sunhours_alt -> 11.49972245 | L25: =Rawdata!CV22*Max_sunhours_alt -> 6.729036086 | M25: =Var_a*EXP(Var_b*'Wine production Alt'!B25+Var_c) -> 3826904.593 | N25: 4592 | O25: 9184 | P25: 1624.711256 | Q25: 35808.71126 | R25: 45920 | S25: 10111.28874 | T25: 42
A26: 23 | B26: =SUM(Rawdata!A23:CL23)*Max_sunhours_alt -> 739.9965448 | C26: =Rawdata!CM23*Max_sunhours_alt -> 3.704680407 | D26: =Rawdata!CN23*Max_sunhours_alt -> 11.17405556 | E26: =Rawdata!CO23*Max_sunhours_alt -> 3.675627772 | F26: =Rawdata!CP23*Max_sunhours_alt -> 8.472600822 | G26: =Rawdata!CQ23*Max_sunhours_alt -> 13.04053365 | H26: =Rawdata!CR23*Max_sunhours_alt -> 13.27883891 | I26: =Rawdata!CS23*Max_sunhours_alt -> 4.645889747 | J26: =Rawdata!CT23*Max_sunhours_alt -> 7.304582685 | K26: =Rawdata!CU23*Max_sunhours_alt -> 12.00068413 | L26: =Rawdata!CV23*Max_sunhours_alt -> 0.01900867989 | M26: =Var_a*EXP(Var_b*'Wine production Alt'!B26+Var_c) -> 5817154.1 | N26: 6980 | O26: 13960 | P26: 2046.671307 | Q26: 41006.67131 | R26: 69800 | S26: 28793.32869 | T26: 94
A27: 24 | B27: =SUM(Rawdata!A24:CL24)*Max_sunhours_alt -> 638.8282968 | C27: =Rawdata!CM24*Max_sunhours_alt -> 10.5485684 | D27: =Rawdata!CN24*Max_sunhours_alt -> 11.04737602 | E27: =Rawdata!CO24*Max_sunhours_alt -> 1.044072529 | F27: =Rawdata!CP24*Max_sunhours_alt -> 0.4743132072 | G27: =Rawdata!CQ24*Max_sunhours_alt -> 11.98579221 | H27: =Rawdata!CR24*Max_sunhours_alt -> 12.80334358 | I27: =Rawdata!CS24*Max_sunhours_alt -> 14.4017131 | J27: =Rawdata!CT24*Max_sunhours_alt -> 10.69077121 | K27: =Rawdata!CU24*Max_sunhours_alt -> 6.041956799 | L27: =Rawdata!CV24*Max_sunhours_alt -> 13.8492533 | M27: =Var_a*EXP(Var_b*'Wine production Alt'!B27+Var_c) -> 3368618.153 | N27: 4042 | O27: 8084 | P27: 3282.681781 | Q27: 36366.68178 | R27: 40420 | S27: 4053.318219 | T27: 21
A28: 25 | B28: =SUM(Rawdata!A25:CL25)*Max_sunhours_alt -> 626.5048857 | C28: =Rawdata!CM25*Max_sunhours_alt -> 11.46946952 | D28: =Rawdata!CN25*Max_sunhours_alt -> 8.277685637 | E28: =Rawdata!CO25*Max_sunhours_alt -> 11.93236376 | F28: =Rawdata!CP25*Max_sunhours_alt -> 9.008878027 | G28: =Rawdata!CQ25*Max_sunhours_alt -> 0.2204743039 | H28: =Rawdata!CR25*Max_sunhours_alt -> 9.257992408 | I28: =Rawdata!CS25*Max_sunhours_alt -> 2.658676422 | J28: =Rawdata!CT25*Max_sunhours_alt -> 8.190762153 | K28: =Rawdata!CU25*Max_sunhours_alt -> 12.35700675 | L28: =Rawdata!CV25*Max_sunhours_alt -> 8.262704383 | M28: =Var_a*EXP(Var_b*'Wine production Alt'!B28+Var_c) -> 3151744.777 | N28: 3782 | O28: 7564 | P28: 1875.686264 | Q28: 34439.68626 | R28: 37820 | S28: 3380.313736 | T28: 18
A29: 26 | B29: =SUM(Rawdata!A26:CL26)*Max_sunhours_alt -> 773.9102083 | C29: =Rawdata!CM26*Max_sunhours_alt -> 14.94253349 | D29: =Rawdata!CN26*Max_sunhours_alt -> 10.75383104 | E29: =Rawdata!CO26*Max_sunhours_alt -> 10.87299105 | F29: =Rawdata!CP26*Max_sunhours_alt -> 14.61199097 | G29: =Rawdata!CQ26*Max_sunhours_alt -> 14.50398144 | H29: =Rawdata!CR26*Max_sunhours_alt -> 5.250342924 | I29: =Rawdata!CS26*Max_sunhours_alt -> 3.664930802 | J29: =Rawdata!CT26*Max_sunhours_alt -> 6.405131042 | K29: =Rawdata!CU26*Max_sunhours_alt -> 6.88622476 | L29: =Rawdata!CV26*Max_sunhours_alt -> 4.245107942 | M29: =Var_a*EXP(Var_b*'Wine production Alt'!B29+Var_c) -> 6986257.038 | N29: 8383 | O29: 16766 | P29: 2818.532798 | Q29: 44584.5328 | R29: 83830 | S29: 39245.4672 | T29: 99
A30: 27 | B30: =SUM(Rawdata!A27:CL27)*Max_sunhours_alt -> 687.2554247 | C30: =Rawdata!CM27*Max_sunhours_alt -> 9.995087803 | D30: =Rawdata!CN27*Max_sunhours_alt -> 0.03226426392 | E30: =Rawdata!CO27*Max_sunhours_alt -> 4.600221115 | F30: =Rawdata!CP27*Max_sunhours_alt -> 7.369629617 | G30: =Rawdata!CQ27*Max_sunhours_alt -> 13.00220921 | H30: =Rawdata!CR27*Max_sunhours_alt -> 7.866573821 | I30: =Rawdata!CS27*Max_sunhours_alt -> 0.5722513282 | J30: =Rawdata!CT27*Max_sunhours_alt -> 2.171105446 | K30: =Rawdata!CU27*Max_sunhours_alt -> 7.829651614 | L30: =Rawdata!CV27*Max_sunhours_alt -> 0.2238454003 | M30: =Var_a*EXP(Var_b*'Wine production Alt'!B30+Var_c) -> 4375448.845 | N30: 5250 | O30: 10500 | P30: 869.3522451 | Q30: 36369.35225 | R30: 52500 | S30: 16130.64775 | T30: 63
A31: 28 | B31: =SUM(Rawdata!A28:CL28)*Max_sunhours_alt -> 611.9960269 | C31: =Rawdata!CM28*Max_sunhours_alt -> 4.456736642 | D31: =Rawdata!CN28*Max_sunhours_alt -> 3.979613488 | E31: =Rawdata!CO28*Max_sunhours_alt -> 12.11104455 | F31: =Rawdata!CP28*Max_sunhours_alt -> 14.5897902 | G31: =Rawdata!CQ28*Max_sunhours_alt -> 11.87592025 | H31: =Rawdata!CR28*Max_sunhours_alt -> 5.350129745 | I31: =Rawdata!CS28*Max_sunhours_alt -> 11.63878646 | J31: =Rawdata!CT28*Max_sunhours_alt -> 9.341994447 | K31: =Rawdata!CU28*Max_sunhours_alt -> 11.6443954 | L31: =Rawdata!CV28*Max_sunhours_alt -> 1.260014594 | M31: =Var_a*EXP(Var_b*'Wine production Alt'!B31+Var_c) -> 2914237.942 | N31: 3497 | O31: 6994 | P31: 2620.19313 | Q31: 34614.19313 | R31: 34970 | S31: 355.8068701 | T31: 8
A32: 29 | B32: =SUM(Rawdata!A29:CL29)*Max_sunhours_alt -> 711.9853088 | C32: =Rawdata!CM29*Max_sunhours_alt -> 9.878962904 | D32: =Rawdata!CN29*Max_sunhours_alt -> 12.68063792 | E32: =Rawdata!CO29*Max_sunhours_alt -> 3.110704722 | F32: =Rawdata!CP29*Max_sunhours_alt -> 1.914820359 | G32: =Rawdata!CQ29*Max_sunhours_alt -> 9.707687112 | H32: =Rawdata!CR29*Max_sunhours_alt -> 8.473835664 | I32: =Rawdata!CS29*Max_sunhours_alt -> 14.2205166 | J32: =Rawdata!CT29*Max_sunhours_alt -> 3.60561729 | K32: =Rawdata!CU29*Max_sunhours_alt -> 7.741292752 | L32: =Rawdata!CV29*Max_sunhours_alt -> 11.08772534 | M32: =Var_a*EXP(Var_b*'Wine production Alt'!B32+Var_c) -> 5000562.878 | N32: 6000 | O32: 12000 | P32: 2129.06583 | Q32: 39129.06583 | R32: 60000 | S32: 20870.93417 | T32: 80
A33: 30 | B33: =SUM(Rawdata!A30:CL30)*Max_sunhours_alt -> 664.1870056 | C33: =Rawdata!CM30*Max_sunhours_alt -> 13.26137215 | D33: =Rawdata!CN30*Max_sunhours_alt -> 11.30985397 | E33: =Rawdata!CO30*Max_sunhours_alt -> 7.690159467 | F33: =Rawdata!CP30*Max_sunhours_alt -> 10.2917493 | G33: =Rawdata!CQ30*Max_sunhours_alt -> 0.2939851887 | H33: =Rawdata!CR30*Max_sunhours_alt -> 1.261785079 | I33: =Rawdata!CS30*Max_sunhours_alt -> 0.6655572716 | J33: =Rawdata!CT30*Max_sunhours_alt -> 3.955065424 | K33: =Rawdata!CU30*Max_sunhours_alt -> 5.851122892 | L33: =Rawdata!CV30*Max_sunhours_alt -> 5.993591886 | M33: =Var_a*EXP(Var_b*'Wine production Alt'!B33+Var_c) -> 3862982.851 | N33: 4635 | O33: 9270 | P33: 1255.313488 | Q33: 35525.31349 | R33: 46350 | S33: 10824.68651 | T33: 44
A34: 31 | B34: =SUM(Rawdata!A31:CL31)*Max_sunhours_alt -> 625.2747542 | C34: =Rawdata!CM31*Max_sunhours_alt -> 11.35027585 | D34: =Rawdata!CN31*Max_sunhours_alt -> 1.571410517 | E34: =Rawdata!CO31*Max_sunhours_alt -> 11.8458161 | F34: =Rawdata!CP31*Max_sunhours_alt -> 12.66142834 | G34: =Rawdata!CQ31*Max_sunhours_alt -> 1.331158122 | H34: =Rawdata!CR31*Max_sunhours_alt -> 7.369151893 | I34: =Rawdata!CS31*Max_sunhours_alt -> 8.615889817 | J34: =Rawdata!CT31*Max_sunhours_alt -> 7.453189266 | K34: =Rawdata!CU31*Max_sunhours_alt -> 11.0718851 | L34: =Rawdata!CV31*Max_sunhours_alt -> 0.8236375086 | M34: =Var_a*EXP(Var_b*'Wine production Alt'!B34+Var_c) -> 3130878.032 | N34: 3757 | O34: 7514 | P34: 1804.52952 | Q34: 34318.52952 | R34: 37570 | S34: 3251.47048 | T34: 16
A35: 32 | B35: =SUM(Rawdata!A32:CL32)*Max_sunhours_alt -> 641.4636439 | C35: =Rawdata!CM32*Max_sunhours_alt -> 6.925978902 | D35: =Rawdata!CN32*Max_sunhours_alt -> 2.163574414 | E35: =Rawdata!CO32*Max_sunhours_alt -> 13.62927634 | F35: =Rawdata!CP32*Max_sunhours_alt -> 9.841110437 | G35: =Rawdata!CQ32*Max_sunhours_alt -> 8.950758676 | H35: =Rawdata!CR32*Max_sunhours_alt -> 2.995077103 | I35: =Rawdata!CS32*Max_sunhours_alt -> 14.41767511 | J35: =Rawdata!CT32*Max_sunhours_alt -> 10.04445022 | K35: =Rawdata!CU32*Max_sunhours_alt -> 8.1876229 | L35: =Rawdata!CV32*Max_sunhours_alt -> 13.16954551 | M35: =Var_a*EXP(Var_b*'Wine production Alt'!B35+Var_c) -> 3416899.261 | N35: 4100 | O35: 8200 | P35: 2574.043918 | Q35: 35774.04392 | R35: 41000 | S35: 5225.956082 | T35: 28
A36: 33 | B36: =SUM(Rawdata!A33:CL33)*Max_sunhours_alt -> 720.7263568 | C36: =Rawdata!CM33*Max_sunhours_alt -> 3.443935479 | D36: =Rawdata!CN33*Max_sunhours_alt -> 9.293540268 | E36: =Rawdata!CO33*Max_sunhours_alt -> 12.40419298 | F36: =Rawdata!CP33*Max_sunhours_alt -> 1.093080226 | G36: =Rawdata!CQ33*Max_sunhours_alt -> 1.515927156 | H36: =Rawdata!CR33*Max_sunhours_alt -> 14.52514966 | I36: =Rawdata!CS33*Max_sunhours_alt -> 13.66402818 | J36: =Rawdata!CT33*Max_sunhours_alt -> 8.078639867 | K36: =Rawdata!CU33*Max_sunhours_alt -> 12.36503366 | L36: =Rawdata!CV33*Max_sunhours_alt -> 9.886815726 | M36: =Var_a*EXP(Var_b*'Wine production Alt'!B36+Var_c) -> 5242257.051 | N36: =ROUNDDOWN(M36*(1-Spoilage)/Grapes_per_bottle,0) -> 6290 | O36: =N36*Prodcosts_per_bottle -> 12580 | P36: =(SUMIF(C36:L36,">"&Overtime_limit_alt,C36:L36)-COUNTIF(C36:L36,">"&Overtime_limit_alt)*Overtime_limit_alt) *Number_worker_alt*Overtime_hourly_rate_alt -> 2771.740034 | Q36: =O36+P36+Vineyard_cost_alt -> 40351.74003 | R36: =N36*Price_per_bottle -> 62900 | S36: 22548.25997 | T36: 83
A37: 34 | B37: =SUM(Rawdata!A34:CL34)*Max_sunhours_alt -> 651.7455171 | C37: =Rawdata!CM34*Max_sunhours_alt -> 10.66685591 | D37: =Rawdata!CN34*Max_sunhours_alt -> 2.720683391 | E37: =Rawdata!CO34*Max_sunhours_alt -> 9.600376177 | F37: =Rawdata!CP34*Max_sunhours_alt -> 11.82690818 | G37: =Rawdata!CQ34*Max_sunhours_alt -> 3.054016332 | H37: =Rawdata!CR34*Max_sunhours_alt -> 8.461772695 | I37: =Rawdata!CS34*Max_sunhours_alt -> 14.05261487 | J37: =Rawdata!CT34*Max_sunhours_alt -> 14.61303855 | K37: =Rawdata!CU34*Max_sunhours_alt -> 4.879264275 | L37: =Rawdata!CV34*Max_sunhours_alt -> 5.136044167 | M37: =Var_a*EXP(Var_b*'Wine production Alt'!B37+Var_c) -> 3611978.223 | N37: 4334 | O37: 8668 | P37: 2422.156639 | Q37: 36090.15664 | R37: 43340 | S37: 7249.843361 | T37: 32
A38: 35 | B38: =SUM(Rawdata!A35:CL35)*Max_sunhours_alt -> 653.1330947 | C38: =Rawdata!CM35*Max_sunhours_alt -> 5.801108813 | D38: =Rawdata!CN35*Max_sunhours_alt -> 3.565509029 | E38: =Rawdata!CO35*Max_sunhours_alt -> 12.45020551 | F38: =Rawdata!CP35*Max_sunhours_alt -> 14.50089424 | G38: =Rawdata!CQ35*Max_sunhours_alt -> 12.0322722 | H38: =Rawdata!CR35*Max_sunhours_alt -> 2.131604594 | I38: =Rawdata!CS35*Max_sunhours_alt -> 10.83390676 | J38: =Rawdata!CT35*Max_sunhours_alt -> 10.00661028 | K38: =Rawdata!CU35*Max_sunhours_alt -> 3.41624842 | L38: =Rawdata!CV35*Max_sunhours_alt -> 4.020641344 | M38: =Var_a*EXP(Var_b*'Wine production Alt'!B38+Var_c) -> 3639144.132 | N38: 4366 | O38: 8732 | P38: 2232.388898 | Q38: 35964.3889 | R38: 43660 | S38: 7695.611102 | T38: 35
A39: 36 | B39: =SUM(Rawdata!A36:CL36)*Max_sunhours_alt -> 674.4131567 | C39: =Rawdata!CM36*Max_sunhours_alt -> 8.525467094 | D39: =Rawdata!CN36*Max_sunhours_alt -> 5.955932824 | E39: =Rawdata!CO36*Max_sunhours_alt -> 9.52567179 | F39: =Rawdata!CP36*Max_sunhours_alt -> 6.725412816 | G39: =Rawdata!CQ36*Max_sunhours_alt -> 2.47429886 | H39: =Rawdata!CR36*Max_sunhours_alt -> 4.608082716 | I39: =Rawdata!CS36*Max_sunhours_alt -> 2.454381088 | J39: =Rawdata!CT36*Max_sunhours_alt -> 10.62867194 | K39: =Rawdata!CU36*Max_sunhours_alt -> 14.26069238 | L39: =Rawdata!CV36*Max_sunhours_alt -> 0.4384869142 | M39: =Var_a*EXP(Var_b*'Wine production Alt'!B39+Var_c) -> 4082301.246 | N39: 4898 | O39: 9796 | P39: 1294.050321 | Q39: 36090.05032 | R39: 48980 | S39: 12889.94968 | T39: 48
A40: 37 | B40: =SUM(Rawdata!A37:CL37)*Max_sunhours_alt -> 708.5372391 | C40: =Rawdata!CM37*Max_sunhours_alt -> 0.6292056365 | D40: =Rawdata!CN37*Max_sunhours_alt -> 0.1109198614 | E40: =Rawdata!CO37*Max_sunhours_alt -> 2.048840607 | F40: =Rawdata!CP37*Max_sunhours_alt -> 0.9597877243 | G40: =Rawdata!CQ37*Max_sunhours_alt -> 6.411461294 | H40: =Rawdata!CR37*Max_sunhours_alt -> 4.004129577 | I40: =Rawdata!CS37*Max_sunhours_alt -> 10.27421966 | J40: =Rawdata!CT37*Max_sunhours_alt -> 11.47934682 | K40: =Rawdata!CU37*Max_sunhours_alt -> 0.6609153022 | L40: =Rawdata!CV37*Max_sunhours_alt -> 2.540811187 | M40: =Var_a*EXP(Var_b*'Wine production Alt'!B40+Var_c) -> 4908315.979 | N40: 5889 | O40: 11778 | P40: 675.3566479 | Q40: 37453.35665 | R40: 58890 | S40: 21436.64335 | T40: 82
A41: 38 | B41: =SUM(Rawdata!A38:CL38)*Max_sunhours_alt -> 708.5725623 | C41: =Rawdata!CM38*Max_sunhours_alt -> 10.11434661 | D41: =Rawdata!CN38*Max_sunhours_alt -> 1.099386412 | E41: =Rawdata!CO38*Max_sunhours_alt -> 5.167947578 | F41: =Rawdata!CP38*Max_sunhours_alt -> 13.87916458 | G41: =Rawdata!CQ38*Max_sunhours_alt -> 11.67161102 | H41: =Rawdata!CR38*Max_sunhours_alt -> 3.12690809 | I41: =Rawdata!CS38*Max_sunhours_alt -> 11.08432988 | J41: =Rawdata!CT38*Max_sunhours_alt -> 8.284830253 | K41: =Rawdata!CU38*Max_sunhours_alt -> 12.57038912 | L41: =Rawdata!CV38*Max_sunhours_alt -> 12.60793422 | M41: =Var_a*EXP(Var_b*'Wine production Alt'!B41+Var_c) -> 4909252.305 | N41: 5891 | O41: 11782 | P41: 2771.260568 | Q41: 39553.26057 | R41: 58910 | S41: 19356.73943 | T41: 75
A42: 39 | B42: =SUM(Rawdata!A39:CL39)*Max_sunhours_alt -> 726.8027754 | C42: =Rawdata!CM39*Max_sunhours_alt -> 4.949898786 | D42: =Rawdata!CN39*Max_sunhours_alt -> 3.088606176 | E42: =Rawdata!CO39*Max_sunhours_alt -> 0.2312256187 | F42: =Rawdata!CP39*Max_sunhours_alt -> 0.4040935951 | G42: =Rawdata!CQ39*Max_sunhours_alt -> 12.0881766 | H42: =Rawdata!CR39*Max_sunhours_alt -> 8.76282027 | I42: =Rawdata!CS39*Max_sunhours_alt -> 11.61706315 | J42: =Rawdata!CT39*Max_sunhours_alt -> 14.44632189 | K42: =Rawdata!CU39*Max_sunhours_alt -> 8.847639394 | L42: =Rawdata!CV39*Max_sunhours_alt -> 4.774818906 | M42: =Var_a*EXP(Var_b*'Wine production Alt'!B42+Var_c) -> 5417122.668 | N42: 6500 | O42: 13000 | P42: 1826.202131 | Q42: 39826.20213 | R42: 65000 | S42: 25173.79787 | T42: 90
A43: 40 | B43: =SUM(Rawdata!A40:CL40)*Max_sunhours_alt -> 651.9650221 | C43: =Rawdata!CM40*Max_sunhours_alt -> 3.266022374 | D43: =Rawdata!CN40*Max_sunhours_alt -> 6.613555429 | E43: =Rawdata!CO40*Max_sunhours_alt -> 13.61012191 | F43: =Rawdata!CP40*Max_sunhours_alt -> 13.74971454 | G43: =Rawdata!CQ40*Max_sunhours_alt -> 8.934618131 | H43: =Rawdata!CR40*Max_sunhours_alt -> 7.001588422 | I43: =Rawdata!CS40*Max_sunhours_alt -> 4.48659594 | J43: =Rawdata!CT40*Max_sunhours_alt -> 4.677990185 | K43: =Rawdata!CU40*Max_sunhours_alt -> 3.592359117 | L43: =Rawdata!CV40*Max_sunhours_alt -> 2.650814779 | M43: =Var_a*EXP(Var_b*'Wine production Alt'!B43+Var_c) -> 3616262.137 | N43: 4339 | O43: 8678 | P43: 1379.445458 | Q43: 35057.44546 | R43: 43390 | S43: 8332.554542 | T43: 38
A44: 41 | B44: =SUM(Rawdata!A41:CL41)*Max_sunhours_alt -> 727.8924951 | C44: =Rawdata!CM41*Max_sunhours_alt -> 8.506406733 | D44: =Rawdata!CN41*Max_sunhours_alt -> 7.648062571 | E44: =Rawdata!CO41*Max_sunhours_alt -> 7.238051611 | F44: =Rawdata!CP41*Max_sunhours_alt -> 3.042143855 | G44: =Rawdata!CQ41*Max_sunhours_alt -> 11.32493296 | H44: =Rawdata!CR41*Max_sunhours_alt -> 8.151039675 | I44: =Rawdata!CS41*Max_sunhours_alt -> 13.97492378 | J44: =Rawdata!CT41*Max_sunhours_alt -> 1.889366905 | K44: =Rawdata!CU41*Max_sunhours_alt -> 6.654120065 | L44: =Rawdata!CV41*Max_sunhours_alt -> 7.375797409 | M44: =Var_a*EXP(Var_b*'Wine production Alt'!B44+Var_c) -> 5449093.627 | N44: 6538 | O44: 13076 | P44: 1210.536572 | Q44: 39286.53657 | R44: 65380 | S44: 26093.46343 | T44: 91
